Workbook

Sheet Cover
D2: ARP model
D4: Release for 2021/22 charge setting
B6: ='Version control'!F7 -> Model date: | D6: ='Version control'!H7 -> 2019-11-08
B8: ='Version control'!F9 -> Development stage: | D8: ='Version control'!H9 -> Release for charge setting
B10: ='Version control'!F11 -> Model number: | D10: ='Version control'!H11 -> 5
B12: ='Version control'!F13 -> DCUSA text version: | D12: ='Version control'!H13 -> Attachment A_01 April 2021 Charging Methodologies Pre-Release_Issued October 2019 (shared 10/10/2019)
B14: ='Version control'!F15 -> DCUSA text schedule: | D14: ='Version control'!H15 -> Schedules 16 & 20
B16: DISCLAIMER | D16: Unless stated otherwise, this workbook is only a prototype for testing purposes and all the data in this model are for illustration only. Neither the authors nor Cambridge Economic Policy Associates/TNEI accept or assume any responsibility or duty of care to any third party.
D17: © All rights reserved by Cambridge Economic Policy Associates Ltd (CEPA) and TNEI Services Ltd
B19: Charging year: | D19: 2021/22
B21: DNO name: | D21: WPD Mid East
B23: Data version: | D23: April 21 Prices
B25: Notes: | D25: [enter DNO comments, if any]
B27: Key:
B28: Format | D28: Description
D29: Cell intentionally blank
B30: Value | D30: Hardcoded input
B31: Value | D31: User input
B32: Value | D32: Model output
B33: Value | D33: Calculation
B34: Value | D34: Value from another worksheet
B35: Value | D35: Value used on another worksheet
B36: Value | D36: Issue identified in a check
B37: Text | D37: Label
B38: Text | D38: Annotation
B39: Text | D39: Column heading
B40: Text | D40: Level 1 heading
B41: Text | D41: Level 2 heading
B42: Text | D42: Level 3 and 4 heading
B43: Sheet tab colour | D43: Information sheet
B44: Sheet tab colour | D44: User control sheet
B45: Sheet tab colour | D45: Input sheet
B46: Sheet tab colour | D46: Calculation sheet
B47: Sheet tab colour | D47: Output sheet

Sheet Version control
A1: =MID(CELL("filename",A1),FIND("]",CELL("filename",A1))+1,255) -> Version control
A2: =Cover!D21&" - "&Cover!D23 -> WPD Mid East - April 21 Prices
A3: =Cover!D2&" - "&Cover!D8&" v"&Cover!D10&" - "&Cover!D19 -> ARP model - Release for charge setting v5 - 2021/22
A4: =J61 & IF(J61 = 1, " issue", " issues") &" identified in checks on this sheet" -> 0 issues identified in checks on this sheet
B5: Model version
F7: Model date: | H7: =LOOKUP(2,1/(F20:F30<>""),F20:F30) -> 2019-11-08
F9: Development stage: | H9: =LOOKUP(2,1/(G20:G30<>""),G20:G30) -> Release for charge setting
F11: Model number: | H11: =LOOKUP(2,1/(H20:H30<>""),H20:H30) -> 5
F13: DCUSA text version: | H13: =LOOKUP(2,1/(I20:I30<>""),I20:I30) -> Attachment A_01 April 2021 Charging Methodologies Pre-Release_Issued October 2019 (shared 10/10/2019)
F15: DCUSA text schedule: | H15: =LOOKUP(2,1/(J20:J30<>""),J20:J30) -> Schedules 16 & 20
B17: Version log
F19: Model date | G19: Development stage | H19: Model number | I19: DCUSA text version | J19: DCUSA text schedule | K19: Author | L19: Description of changes
F20: 2018-05-30 | G20: Pre-release | H20: 1 | I20: 2019-20 pre-release plus Expert Panel clarifications | J20: Schedules 16 & 20 | K20: CEPA-TNEI | L20: -
F21: 2018-07-20 | G21: Pre-release | H21: 2 | I21: DCUSA v10.3 (released 28/06/2018) | J21: Schedules 16 & 20 | K21: CEPA-TNEI | L21: References to DCUSA text updated to comply with version 10.3 (released 28/06/2018).
F22: 2018-10-16 | G22: Release for charge setting | H22: 3 | I22: 01 April 2020 DCUSA Charging Methodologies Pre-Release (released 09/10/2018) | J22: Schedules 16 & 20 | K22: CEPA-TNEI | L22: Updated references to legal text version.
F23: 2019-07-17 | G23: Pre-release | H23: 4 | I23: DCP 268 Draft Legal Text v2.0 (shared 10/06/2019) | J23: Schedules 16 & 20 | K23: CEPA-TNEI | L23: Implemented DCP268 as per service 1 request (received 10/06/2019): replaced 33 existing tariffs with 16 enduring tariffs, modified structure of fixed inputs and inputs by customer type, modified pseudo-load coefficient calculation, modified revenue matching calculation, modified ARP_Load characteristics.
F24: 2019-11-08 | G24: Release for charge setting | H24: 5 | I24: Attachment A_01 April 2021 Charging Methodologies Pre-Release_Issued October 2019 (shared 10/10/2019) | J24: Schedules 16 & 20 | K24: CEPA-TNEI | L24: Updated references to legal text version, and implemented DCP332 and DCP333, assuming implementation of DCP 356 (as described in the user guide).
B31: Model checks
E33: Issues identified by in-built model checks, by sheet
F34: ="ARP_"&F38 -> ARP_Inputs by customer type | H34: Input 501 | I34: number of issues | J34: ='ARP_Inputs by customer type'!$H$530 -> 0
F35: ="ARP_"&F39 -> ARP_Inputs by network level | H35: Input 502 | I35: number of issues | J35: ='ARP_Inputs by network level'!$H$218 -> 0
F36: ="ARP_"&F40 -> ARP_General inputs | H36: Input 503 | I36: number of issues | J36: ='ARP_General inputs'!$H$124 -> 0
F37: Fixed inputs | H37: Input 504 | I37: number of issues | J37: ='Fixed inputs'!H172 -> 0
F38: Inputs by customer type | H38: Section 501 | I38: number of issues | J38: ='Inputs by customer type'!H65 -> 0
F39: Inputs by network level | H39: Section 502 | I39: number of issues | J39: ='Inputs by network level'!H59 -> 0
F40: General inputs | H40: Section 503 | I40: number of issues | J40: ='General inputs'!H117 -> 0
F41: Standing Charge Factors | H41: Section 504 | I41: number of issues | J41: ='Standing charge factors'!H58 -> 0
F42: Load & loss characteristics | H42: Section 505 | I42: number of issues | J42: ='Load & loss characteristics'!H183 -> 0
F43: Customer contributions | H43: Section 506 | I43: number of issues | J43: ='Customer contributions'!H70 -> 0
F44: Volume adjustments | H44: Section 507 | I44: number of issues | J44: ='Volume adjustments'!H140 -> 0
F45: Pseudo-load coefficients | H45: Section 508 | I45: number of issues | J45: ='Pseudo-load coefficients'!H306 -> 0
F46: System peak demand | H46: Section 509 | I46: number of issues | J46: ='System peak demand'!H281 -> 0
F47: Service model assets | H47: Section 510 | I47: number of issues | J47: ='Service model assets'!H38 -> 0
F48: Unit costs | H48: Section 511 | I48: number of issues | J48: ='Unit costs'!H131 -> 0
F49: Initial unit rates | H49: Section 512 | I49: number of issues | J49: ='Initial unit rates'!H241 -> 0
F50: Service model charges | H50: Section 513 | I50: number of issues | J50: ='Service model charges'!H48 -> 0
F51: Unit rate charges | H51: Section 514 | I51: number of issues | J51: ='Unit rate charges'!H223 -> 0
F52: Reactive power charges | H52: Section 515 | I52: number of issues | J52: ='Reactive power charges'!H254 -> 0
F53: Capacity charges | H53: Section 516 | I53: number of issues | J53: ='Capacity charges'!H295 -> 0
F54: Fixed charges | H54: Section 517 | I54: number of issues | J54: ='Fixed charges'!H165 -> 0
F55: Revenue matching | H55: Section 518 | I55: number of issues | J55: ='Revenue matching'!H162 -> 0
F56: Fixed charge adder | H56: Section 519 | I56: number of issues | J56: ='Fixed charge adder'!H66 -> 0
F57: Rounding | H57: Section 520 | I57: number of issues | J57: =Rounding!H158 -> 0
F58: Net revenue summary | H58: Input 505 | I58: number of issues | J58: ='Net revenue summary'!H134 -> 0
F59: Tariff summary | H59: Input 506 | I59: number of issues | J59: ='Tariff summary'!H353 -> 0
F60: Typical bills | H60: Input 507 | I60: number of issues | J60: ='Typical bills'!H73 -> 0
F61: Total | I61: number of issues | J61: =IFERROR(SUM(J34:J60), 1) -> 0
B63: Version log lists
F65: Development stages
F66: Working draft
F67: Interim release
F68: Pre-release
F69: Release for charge setting
F76: …
B78: End of sheet

Sheet Model map
A1: =MID(CELL("filename",A1),FIND("]",CELL("filename",A1))+1,255) -> Model map
A2: =Cover!D21&" - "&Cover!D23 -> WPD Mid East - April 21 Prices
A3: =Cover!D2&" - "&Cover!D8&" v"&Cover!D10&" - "&Cover!D19 -> ARP model - Release for charge setting v5 - 2021/22
B5: Model map
B65: End of sheet

Sheet Index
A1: =MID(CELL("filename",A1),FIND("]",CELL("filename",A1))+1,255) -> Index
A2: =Cover!D21&" - "&Cover!D23 -> WPD Mid East - April 21 Prices
A3: =Cover!D2&" - "&Cover!D8&" v"&Cover!D10&" - "&Cover!D19 -> ARP model - Release for charge setting v5 - 2021/22
B5: Description
C7: This sheet contains links to each sheet of the model and the main sections within them.
C8: It also contains links to more granular sections within the sheets for inputs, calculations and outputs.
B10: Index of sheets and main sections
C12: The following table provides links to all the sheets within this model and the main sections within them.
F14: Sheet | G14: Section
F15: Cover
F16: Version control | G16: ='Version control'!$B$5 -> Model version
G17: ='Version control'!$B$17 -> Version log
G18: ='Version control'!$B$31 -> Model checks
G19: ='Version control'!$B$63 -> Version log lists
F20: Model map | G20: ='Model map'!$B$5 -> Model map
F21: Named ranges | G21: ='Named ranges'!$B$5 -> List of named ranges
F22: ARP_DNO commentary | G22: ='ARP_DNO commentary'!$B$9 -> Commentary
F23: ARP_CDCM timebands | G23: ='ARP_CDCM timebands'!$B$12 -> CDCM timebands
F24: ARP_Load characteristics | G24: ='ARP_Load characteristics'!$B$13 -> Years
G25: ='ARP_Load characteristics'!$B$20 -> Load characteristics
F26: ARP_Peaking probabilities | G26: ='ARP_Peaking probabilities'!$B$14 -> Years
G27: ='ARP_Peaking probabilities'!$B$21 -> Peaking probabilities, by distribution timeband
F28: ARP_User control | G28: ='ARP_User control'!$B$10 -> User interface
G29: ='ARP_User control'!$B$25 -> Lists
F30: ARP_Inputs by customer type | G30: ='ARP_Inputs by customer type'!$B$14 -> Load characteristics
G31: ='ARP_Inputs by customer type'!$B$56 -> Volumes
G32: ='ARP_Inputs by customer type'!$B$462 -> Service model asset values
F33: ARP_Inputs by network level | G33: ='ARP_Inputs by network level'!$B$14 -> Inputs by network level
F34: ARP_General inputs | G34: ='ARP_General inputs'!$B$14 -> General inputs
F35: Fixed inputs | G35: ='Fixed inputs'!$B$11 -> Fixed inputs
F36: Inputs by customer type | G36: ='Inputs by customer type'!$B$14 -> Inputs by customer type
F37: Inputs by network level | G37: ='Inputs by network level'!$B$14 -> Inputs by network level
F38: General inputs | G38: ='General inputs'!$B$14 -> General inputs
F39: Standing charge factors | G39: ='Standing charge factors'!$B$17 -> Adjustments to standing charges
F40: Load & loss characteristics | G40: ='Load & loss characteristics'!$B$13 -> Load and loss characteristics
G41: ='Load & loss characteristics'!$B$31 -> User loss factor adjustments
F42: Customer contributions | G42: ='Customer contributions'!$B$12 -> Customer contributions
F43: Volume adjustments | G43: ='Volume adjustments'!$B$13 -> LDNO discounts
G44: ='Volume adjustments'!$B$51 -> Volume discounting
F45: Pseudo-load coefficients | G45: ='Pseudo-load coefficients'!$B$13 -> Step 1: Ratio of coincidence to load factor assuming units evenly spread within time bands, and peak falls in Red period
G46: ='Pseudo-load coefficients'!$B$56 -> Step 2: Calculate correction factor
G47: ='Pseudo-load coefficients'!$B$95 -> Step 3: Ratio of coincidence factor (to network asset peak) to load factor, given peaking probabilities, multiplied by correction factor
G48: ='Pseudo-load coefficients'!$B$261 -> Step 4: Results of Step 3
F49: System peak demand | G49: ='System peak demand'!$B$16 -> Common inputs for chargeable load calculations
G50: ='System peak demand'!$B$63 -> Load at system peak charged to unit rates
G51: ='System peak demand'!$B$179 -> Load at system peak charged to standing charges
G52: ='System peak demand'!$B$262 -> System peak based on chargeable load
F53: Service model assets | G53: ='Service model assets'!$B$12 -> Service model notional asset values
F54: Unit costs | G54: ='Unit costs'!$B$15 -> 500MW model costs
G55: ='Unit costs'!$B$58 -> Allocation of other costs
G56: ='Unit costs'!$B$102 -> Outputs
F57: Initial unit rates | G57: ='Initial unit rates'!$B$11 -> Inputs for yardstick and unit rate calculations
G58: ='Initial unit rates'!$B$116 -> Calculation of yardstick & unit rate charges
F59: Service model charges | G59: ='Service model charges'!$B$13 -> Inputs to service model charge calculation
G60: ='Service model charges'!$B$29 -> Allocation of service model costs
F61: Unit rate charges | G61: ='Unit rate charges'!$B$15 -> Inputs to unit rate charge calculations
G62: ='Unit rate charges'!$B$122 -> Application of standing charges to unit rates
F63: Reactive power charges | G63: ='Reactive power charges'!$B$13 -> Inputs to reactive power charge calculations
G64: ='Reactive power charges'!$B$150 -> Calculation of yardstick charges for generation
G65: ='Reactive power charges'!$B$185 -> Calculation of reactive power charges
F66: Capacity charges | G66: ='Capacity charges'!$B$17 -> Inputs to capacity charge calculations
G67: ='Capacity charges'!$B$125 -> Calculation of capacity charges
G68: ='Capacity charges'!$B$249 -> Capacity charges (and elements allocated to fixed charges)
F69: Fixed charges | G69: ='Fixed charges'!$B$14 -> Inputs to fixed charge calculations
G70: ='Fixed charges'!$B$65 -> Calculation of fixed charges
F71: Revenue matching | G71: ='Revenue matching'!$B$13 -> Pre-matching net revenue calculations
G72: ='Revenue matching'!$B$62 -> Adder calculation
F73: Fixed charge adder | G73: ='Fixed charge adder'!$B$12 -> Fixed tariff adjustments
F74: Rounding | G74: =Rounding!$B$12 -> Inputs
G75: =Rounding!$B$83 -> Rounding of tariff forecast
F76: Net revenue summary | G76: ='Net revenue summary'!$B$11 -> Inputs to net revenue summary calculation
G77: ='Net revenue summary'!$B$79 -> Typical bills
F78: Tariff summary | G78: ='Tariff summary'!$B$13 -> Tariff summary
F79: Typical bills | G79: ='Typical bills'!$B$13 -> Typical bills
B81: Index of inputs, calculation sections and outputs
C83: The following table provides links to each input, calculation and output section. Each has a unique identifier for ease of reference.
F85: Sheet | G85: Section
F86: ARP_CDCM timebands | G86: ='ARP_CDCM timebands'!$C$14 -> Distribution time bands
G87: ='ARP_CDCM timebands'!$C$26 -> Special distribution time bands
F88: ARP_User control | G88: ='ARP_User control'!$C$15 -> Inputs for manually running selected year
G89: ='ARP_User control'!$C$19 -> Macro to run all years
F90: ARP_Inputs by customer type | G90: ='ARP_Inputs by customer type'!$C$16 -> Input 501-A: Load factor
G91: ='ARP_Inputs by customer type'!$C$36 -> Input 501-B: Coincidence factor
G92: ='ARP_Inputs by customer type'!$C$58 -> Input 501-C: All-the-way volumes
G93: ='ARP_Inputs by customer type'!$C$186 -> Input 501-D: LDNO LV volumes
G94: ='ARP_Inputs by customer type'!$C$314 -> Input 501-E: LDNO HV volumes
G95: ='ARP_Inputs by customer type'!$C$442 -> Input 501-F: 'Designated Property' MPANs with EDCM-level LDNO boundaries
G96: ='ARP_Inputs by customer type'!$C$466 -> Input 501-G: LV customer service model asset values
G97: ='ARP_Inputs by customer type'!$C$486 -> Input 501-H: HV customer service model asset values
G98: ='ARP_Inputs by customer type'!$C$506 -> Input 501-I: LV UMS customer service model asset values
F99: ARP_Inputs by network level | G99: ='ARP_Inputs by network level'!$C$16 -> Input 502-A: Diversity allowance between top and bottom of network level
G100: ='ARP_Inputs by network level'!$C$30 -> Input 502-B: Proportion of EHV/HV load going through 132kV/HV direct transformation
G101: ='ARP_Inputs by network level'!$C$44 -> Input 502-C: Loss adjustment factors to transmission
G102: ='ARP_Inputs by network level'!$C$58 -> Input 502-D: Average kVAr by kVA, by network level
G103: ='ARP_Inputs by network level'!$C$72 -> Input 502-E: Customer contributions under current connection charging policy
G104: ='ARP_Inputs by network level'!$C$120 -> Input 502-F: Gross asset cost by network level
G105: ='ARP_Inputs by network level'!$C$134 -> Input 502-G: Peaking probabilities, by timeband & network level
F106: ARP_General inputs | G106: ='ARP_General inputs'!$C$16 -> Input 503-A: Split of hours by distribution timeband
G107: ='ARP_General inputs'!$C$28 -> Input 503-B: Embedded network (LDNO) discount percentages
G108: ='ARP_General inputs'!$C$38 -> Input 503-C: CDCM target revenue
G109: ='ARP_General inputs'!$C$98 -> Input 503-D: Financial and general assumptions
G110: ='ARP_General inputs'!$C$103 -> Input 503-E: Transmission exit charges
G111: ='ARP_General inputs'!$C$107 -> Input 503-F: Other expenditure
F112: Fixed inputs | G112: ='Fixed inputs'!$C$13 -> Input 504-A: Conversions and time
G113: ='Fixed inputs'!$C$20 -> Input 504-B: Input 101-B: Rounding
G114: ='Fixed inputs'!$C$33 -> Input 504-C: Financial and general assumptions
G115: ='Fixed inputs'!$C$43 -> Input 504-D: Mappings
G116: ='Fixed inputs'!$C$84 -> Input 504-E: Standing charge factors
G117: ='Fixed inputs'!$C$99 -> Input 504-F: Flags
G118: ='Fixed inputs'!$C$141 -> Input 504-G: Identifiers for customer groupings
G119: ='Fixed inputs'!$C$151 -> Input 504-H: Decimal places for error checks
G120: ='Fixed inputs'!$C$155 -> Input 504-I: Map of applicable MPANs
F121: Inputs by customer type | G121: ='Inputs by customer type'!$C$16 -> Section 501-A: Load characteristics
G122: ='Inputs by customer type'!$C$21 -> Section 501-B: Volume forecasts for the charging year
G123: ='Inputs by customer type'!$C$52 -> Section 501-C: Service model asset values
F124: Inputs by network level | G124: ='Inputs by network level'!$C$16 -> Section 502-A: Network and load inputs
G125: ='Inputs by network level'!$C$26 -> Section 502-B: Customer contributions under current connection charging policy
G126: ='Inputs by network level'!$C$34 -> Section 502-C: DRM asset costs
G127: ='Inputs by network level'!$C$38 -> Section 502-D: Peaking probabilities by network level
F128: General inputs | G128: ='General inputs'!$C$16 -> Section 503-A: Inputs by distribution timeband
G129: ='General inputs'!$C$28 -> Section 503-B: LDNO discount inputs
G130: ='General inputs'!$C$38 -> Section 503-C: CDCM target revenue
G131: ='General inputs'!$C$92 -> Section 503-D: Financial and general assumptions
G132: ='General inputs'!$C$98 -> Section 503-E: Transmission exit charges
G133: ='General inputs'!$C$102 -> Section 503-F: Other expenditure
F134: Standing charge factors | G134: ='Standing charge factors'!$C$19 -> Section 504-A: Adjustments to standing charges
F135: Load & loss characteristics | G135: ='Load & loss characteristics'!$C$17 -> Section 505-A: Load characteristics
G136: ='Load & loss characteristics'!$C$25 -> Section 505-B: Loss adjustment factors
G137: ='Load & loss characteristics'!$C$35 -> Section 505-C: Proportion of relevant load going through 132kV/HV direct transformation
G138: ='Load & loss characteristics'!$C$40 -> Section 505-D: Network use factors
G139: ='Load & loss characteristics'!$C$121 -> Section 505-E: User loss factors
F140: Customer contributions | G140: ='Customer contributions'!$C$16 -> Section 506-A: Network use factors
G141: ='Customer contributions'!$C$38 -> Section 506-B: Customer contributions
F142: Volume adjustments | G142: ='Volume adjustments'!$C$15 -> Section 507-A: LDNO discounts
G143: ='Volume adjustments'!$C$55 -> Section 507-B: Volume discounting
F144: Pseudo-load coefficients | G144: ='Pseudo-load coefficients'!$C$18 -> Section 508-A: Flags and hours in timebands
G145: ='Pseudo-load coefficients'!$C$28 -> Section 508-B: Average load by timeband
G146: ='Pseudo-load coefficients'!$C$36 -> Section 508-C: Aggregated groups for pseudo-load coefficients
G147: ='Pseudo-load coefficients'!$C$52 -> Section 508-D: Ratio of coincidence to load factor assuming units evenly spread within time bands, and peak falls in Red period
G148: ='Pseudo-load coefficients'!$C$60 -> Section 508-E: Load characteristics for all customers
G149: ='Pseudo-load coefficients'!$C$65 -> Section 508-F: Aggregated load characteristics for grouped customers
G150: ='Pseudo-load coefficients'!$C$87 -> Section 508-G: Calculation of correction factor
G151: ='Pseudo-load coefficients'!$C$100 -> Section 508-H: Peaking probabilities, by network level
G152: ='Pseudo-load coefficients'!$C$174 -> Section 508-I: Peaking probabilities, by network level and customer type
G153: ='Pseudo-load coefficients'!$C$221 -> Section 508-J: Ratio of coincidence factor to load factor, based on uniform distribution in timebands and peaking probabilities
G154: ='Pseudo-load coefficients'!$C$265 -> Section 508-K: Load coefficient
G155: ='Pseudo-load coefficients'!$C$269 -> Section 508-L: Pseudo load coefficients, by unit rate
F156: System peak demand | G156: ='System peak demand'!$C$18 -> Section 509-A: Common inputs for chargeable load calculations
G157: ='System peak demand'!$C$67 -> Section 509-B: System peak load, by unit rate
G158: ='System peak demand'!$C$138 -> Section 509-C: System peak load, all unit rates
G159: ='System peak demand'!$C$164 -> Section 509-D: Unit rate contributions to chargeable peak load
G160: ='System peak demand'!$C$184 -> Section 509-E: Adjustment of import and exceeded capacity
G161: ='System peak demand'!$C$194 -> Section 509-F: Calculation of LV circuit diversity factor
G162: ='System peak demand'!$C$236 -> Section 509-G: Import/exceeded capacity contribution to system peak
G163: ='System peak demand'!$C$249 -> Section 509-H: Estimated capacity contribution to system peak
G164: ='System peak demand'!$C$266 -> Section 509-I: System peak based on chargeable load
F165: Service model assets | G165: ='Service model assets'!$C$14 -> Section 510-A: Service model notional asset values
F166: Unit costs | G166: ='Unit costs'!$C$19 -> Section 511-A: Financial data
G167: ='Unit costs'!$C$27 -> Section 511-B: Diversity and loss adjustment factors
G168: ='Unit costs'!$C$35 -> Section 511-C: Maximum demand
G169: ='Unit costs'!$C$42 -> Section 511-D: Rerouting matrix
G170: ='Unit costs'!$C$50 -> Section 511-E: Annuitised cost of assets
G171: ='Unit costs'!$C$62 -> Section 511-F: System simultaneous peak load based on charegable units
G172: ='Unit costs'!$C$69 -> Section 511-G: Notional asset values, by network level
G173: ='Unit costs'!$C$80 -> Section 511-H: Other operating costs
G174: ='Unit costs'!$C$92 -> Section 511-I: Other operating costs by network level
G175: ='Unit costs'!$C$104 -> Section 511-J: Notional asset values by network level
G176: ='Unit costs'!$C$110 -> Section 511-K: Unit costs
G177: ='Unit costs'!$C$117 -> Section 511-L: Values used for allocating costs to service models
F178: Initial unit rates | G178: ='Initial unit rates'!$C$13 -> Section 512-A: Inputs for yardstick and unit rate calculations
G179: ='Initial unit rates'!$C$118 -> Section 512-B: Yardstick charges
G180: ='Initial unit rates'!$C$146 -> Section 512-C: Unit rate 1
G181: ='Initial unit rates'!$C$175 -> Section 512-D: Unit rate 2
G182: ='Initial unit rates'!$C$204 -> Section 512-E: Unit rate 3
F183: Service model charges | G183: ='Service model charges'!$C$17 -> Section 513-A: Inputs to service model charge calculation
G184: ='Service model charges'!$C$33 -> Section 513-B: Calculation of other operating expenditure per £ of notional asset value
G185: ='Service model charges'!$C$37 -> Section 513-C: Calculation of service model charges
F186: Unit rate charges | G186: ='Unit rate charges'!$C$19 -> Section 514-A: Initial unit rate 1
G187: ='Unit rate charges'!$C$49 -> Section 514-B: Initial unit rate 2
G188: ='Unit rate charges'!$C$79 -> Section 514-C: Initial unit rate 3
G189: ='Unit rate charges'!$C$109 -> Section 514-D: Standing charge factors
G190: ='Unit rate charges'!$C$124 -> Section 514-E: Contributions to unit rate 1 p/kWh by network level (taking account of standing charges)
G191: ='Unit rate charges'!$C$154 -> Section 514-F: Contributions to unit rate 2 p/kWh by network level (taking account of standing charges)
G192: ='Unit rate charges'!$C$184 -> Section 514-G: Contributions to unit rate 3 p/kWh by network level (taking account of standing charges)
G193: ='Unit rate charges'!$C$214 -> Section 514-H: Unit rates, post application of standing charges
F194: Reactive power charges | G194: ='Reactive power charges'!$C$17 -> Section 515-A: Inputs to reactive power charge calculations
G195: ='Reactive power charges'!$C$120 -> Section 515-B: Yardstick charge (demand)
G196: ='Reactive power charges'!$C$155 -> Section 515-C: Yardstick charge used for generation
G197: ='Reactive power charges'!$C$190 -> Section 515-D: Reactive power charges, all customer categories
G198: ='Reactive power charges'!$C$220 -> Section 515-E: Reactive power charges for applicable customers
F199: Capacity charges | G199: ='Capacity charges'!$C$19 -> Section 516-A: Inputs to capacity charge calculations
G200: ='Capacity charges'!$C$129 -> Section 516-B: Capacity-based charge elements (to be split between capacity & fixed charges)
G201: ='Capacity charges'!$C$159 -> Section 516-C: Exceeded capacity-based charge elements
G202: ='Capacity charges'!$C$189 -> Section 516-D: Capacity charges for eligible customers, by network level
G203: ='Capacity charges'!$C$219 -> Section 516-E: Exceeded capacity charges for eligible customers, by network level
G204: ='Capacity charges'!$C$254 -> Section 516-F: Capacity and exceeded capacity charges
G205: ='Capacity charges'!$C$259 -> Section 516-G: Capacity elements allocated to fixed charges
F206: Fixed charges | G206: ='Fixed charges'!$C$16 -> Section 517-A: Volumes (discounted MPANs & maximum load)
G207: ='Fixed charges'!$C$22 -> Section 517-B: Capacity elements allocated to fixed charges
G208: ='Fixed charges'!$C$52 -> Section 517-C: Service model costs allocated to fixed charges
... 35 more rows

Sheet Named ranges
A1: =MID(CELL("filename",A1),FIND("]",CELL("filename",A1))+1,255) -> Named ranges
A2: =Cover!D21&" - "&Cover!D23 -> WPD Mid East - April 21 Prices
A3: =Cover!D2&" - "&Cover!D8&" v"&Cover!D10&" - "&Cover!D19 -> ARP model - Release for charge setting v5 - 2021/22
B5: List of named ranges
F7: charging_year | G7: Year for which charges are being calculated | H7: Cover
F8: charging_year_selected | G8: Charging year currently selected for ARP | H8: ARP_User control
F9: check_decimals | G9: Number of decimal places of precision for in-built model checks | H9: Fixed inputs
F10: days_in_year | G10: Days in the charging year | H10: General inputs
F11: DNO_name | G11: Name of DNO | H11: Cover
F12: hours_in_day | G12: Hours per day | H12: Fixed inputs
F13: hours_in_year | G13: Hours in the charging year | H13: General inputs
F14: hundred | G14: Equal to 100 | H14: Fixed inputs
F15: live_results_bills | G15: Typical bills for selected charging year | H15: Typical bills
F16: live_results_tariffs | G16: Tariffs for selected charging year | H16: Tariff summary
F17: PowerFactor | G17: Power factor, equal to 0.95 | H17: Fixed inputs
F18: results_4_bills | G18: Typical bills for current charging year | H18: Typical bills
F19: results_4_tariffs | G19: Tariffs for current charging year | H19: Tariff summary
F20: results_5_bills | G20: Typical bills for current charging year + 1 | H20: Typical bills
F21: results_5_tariffs | G21: Tariffs for current charging year + 1 | H21: Tariff summary
F22: results_6_bills | G22: Typical bills for current charging year + 2 | H22: Typical bills
F23: results_6_tariffs | G23: Tariffs for current charging year + 2 | H23: Tariff summary
F24: results_7_bills | G24: Typical bills for current charging year + 3 | H24: Typical bills
F25: results_7_tariffs | G25: Tariffs for current charging year + 3 | H25: Tariff summary
F26: results_8_bills | G26: Typical bills for current charging year + 4 | H26: Typical bills
F27: results_8_tariffs | G27: Tariffs for current charging year + 4 | H27: Tariff summary
F28: ten | G28: Equal to 10 | H28: Fixed inputs
F29: thousand | G29: Equal to 1000 | H29: Fixed inputs
F30: year_selection | G30: Index for selected charging year | H30: ARP_User control
B32: End of sheet

Sheet ARP_DNO commentary
A1: =MID(CELL("filename",A1),FIND("]",CELL("filename",A1))+1,255) -> ARP_DNO commentary
A2: =Cover!D21&" - "&Cover!D23 -> WPD Mid East - April 21 Prices
A3: =Cover!D2&" - "&Cover!D8&" v"&Cover!D10&" - "&Cover!D19 -> ARP model - Release for charge setting v5 - 2021/22
B5: Description
C7: This sheet contains the DNO's commentary on its forecast of CDCM input data for the four years following the charging year, as required by DCUSA Schedule 20, Paragraph 2.1 (e).
B9: Commentary
F11: There were no published inputs prior to 2021/22 by customer type for the new DCP268 tariffs and so these have been left blank.
B20: End of sheet

Sheet ARP_CDCM timebands
A1: =MID(CELL("filename",A1),FIND("]",CELL("filename",A1))+1,255) -> ARP_CDCM timebands
A2: =Cover!D21&" - "&Cover!D23 -> WPD Mid East - April 21 Prices
A3: =Cover!D2&" - "&Cover!D8&" v"&Cover!D10&" - "&Cover!D19 -> ARP model - Release for charge setting v5 - 2021/22
B5: Click here to return to model map | G5: Units | H5: Constants | J5: =TRANSPOSE('ARP_User control'!G31:G35) -> 2021/22 | K5: 2022/23 | L5: 2023/24 | M5: 2024/25 | N5: 2025/26
B7: Description
C9: This sheet sets out the expected timebands that the DNO plans to use for each of the five years covered by the
C10: Annual Review Pack, as required by DCUSA Schedule 20, Paragraph 2.1 (f).
B12: CDCM timebands
C14: Distribution time bands
E16: Weekdays (including bank holidays)
F17: Red | G17: time of day | J17: 16:00 to 19:00 | K17: 16:00 to 19:00 | L17: 16:00 to 19:00 | M17: 16:00 to 19:00 | N17: 16:00 to 19:00
F18: Amber | G18: time of day | J18: 07:30 to 16:00 19:00 to 21:00 | K18: 07:30 to 16:00 19:00 to 21:00 | L18: 07:30 to 16:00 19:00 to 21:00 | M18: 07:30 to 16:00 19:00 to 21:00 | N18: 07:30 to 16:00 19:00 to 21:00
F19: Green | G19: time of day | J19: 00:00 to 07:30 21:00 to 24:00 | K19: 00:00 to 07:30 21:00 to 24:00 | L19: 00:00 to 07:30 21:00 to 24:00 | M19: 00:00 to 07:30 21:00 to 24:00 | N19: 00:00 to 07:30 21:00 to 24:00
E21: Weekends
F22: Red | G22: time of day | J22: 0 | K22: 0 | L22: 0 | M22: 0 | N22: 0
F23: Amber | G23: time of day | J23: 0 | K23: 0 | L23: 0 | M23: 0 | N23: 0
F24: Green | G24: time of day | J24: 00:00 to 24:00 | K24: 00:00 to 24:00 | L24: 00:00 to 24:00 | M24: 00:00 to 24:00 | N24: 00:00 to 24:00
C26: Special distribution time bands
E28: Weekdays (including bank holidays) Nov to Feb
F29: Black | G29: time of day | J29: 16:00 to 19:00 | K29: 16:00 to 19:00 | L29: 16:00 to 19:00 | M29: 16:00 to 19:00 | N29: 16:00 to 19:00
F30: Yellow | G30: time of day | J30: 07:30 to 16:00 19:00 to 21:00 | K30: 07:30 to 16:00 19:00 to 21:00 | L30: 07:30 to 16:00 19:00 to 21:00 | M30: 07:30 to 16:00 19:00 to 21:00 | N30: 07:30 to 16:00 19:00 to 21:00
F31: Green | G31: time of day | J31: 00:00 to 07:30 21:00 to 24:00 | K31: 00:00 to 07:30 21:00 to 24:00 | L31: 00:00 to 07:30 21:00 to 24:00 | M31: 00:00 to 07:30 21:00 to 24:00 | N31: 00:00 to 07:30 21:00 to 24:00
E33: Weekdays (including bank holidays) Mar to Oct
F34: Black | G34: time of day | J34: 0 | K34: 0 | L34: 0 | M34: 0 | N34: 0
F35: Yellow | G35: time of day | J35: 07:30 to 21:00 | K35: 07:30 to 21:00 | L35: 07:30 to 21:00 | M35: 07:30 to 21:00 | N35: 07:30 to 21:00
F36: Green | G36: time of day | J36: 00:00 to 07:30 21:00 to 24:00 | K36: 00:00 to 07:30 21:00 to 24:00 | L36: 00:00 to 07:30 21:00 to 24:00 | M36: 00:00 to 07:30 21:00 to 24:00 | N36: 00:00 to 07:30 21:00 to 24:00
E38: Weekends
F39: Black | G39: time of day | J39: 0 | K39: 0 | L39: 0 | M39: 0 | N39: 0
F40: Yellow | G40: time of day | J40: 0 | K40: 0 | L40: 0 | M40: 0 | N40: 0
F41: Green | G41: time of day | J41: 00:00 to 24:00 | K41: 00:00 to 24:00 | L41: 00:00 to 24:00 | M41: 00:00 to 24:00 | N41: 00:00 to 24:00
B43: End of sheet

Sheet ARP_Load characteristics
A1: =MID(CELL("filename",A1),FIND("]",CELL("filename",A1))+1,255) -> ARP_Load characteristics
A2: =Cover!D21&" - "&Cover!D23 -> WPD Mid East - April 21 Prices
A3: =Cover!D2&" - "&Cover!D8&" v"&Cover!D10&" - "&Cover!D19 -> ARP model - Release for charge setting v5 - 2021/22
B5: Click here to return to model map | G5: Units | H5: Constants | J5: Domestic Aggregated | K5: Domestic Aggregated (Related MPAN) | L5: Non-Domestic Aggregated | M5: Non-Domestic Aggregated (Related MPAN) | N5: LV Site Specific | O5: LV Sub Site Specific | P5: HV Site Specific | Q5: Unmetered Supplies | R5: LV Generation Aggregated | S5: LV Sub Generation Aggregated | T5: LV Generation Site Specific | U5: LV Generation Site Specific no RP Charge | V5: LV Sub Generation Site Specific | W5: LV Sub Generation Site Specific no RP Charge | X5: HV Generation Site Specific | Y5: HV Generation Site Specific no RP Charge
B7: Description
C9: This sheet presents historic data used to calculate average values for load characteristics, as required by DCUSA Schedule 20, Paragraph 2.1 (g).
C10: Charges for year Y are set in year Y-2 using average load characteristics from the three previous years (i.e. Y-3 to Y-5).
C11: This sheet is for information only, and is not linked to following worksheets.
B13: Years
E15: Years to which input data relate
F16: Year 1 | G16: year | H16: =LEFT(H17,4) - 1 & "/" & RIGHT(H17,2) - 1 -> 2016/17
F17: Year 2 | G17: year | H17: =LEFT(H18,4) - 1 & "/" & RIGHT(H18,2) - 1 -> 2017/18
F18: Year 3 | G18: year | H18: ='ARP_User control'!$G$28 -> 2018/19
B20: Load characteristics
E22: Load factor
F23: =$H$16 -> 2016/17 | G23: % | J23: 0.4490538019 | K23: 0.1396163877 | L23: 0.4736064946 | M23: 0.2507101375 | N23: 0.5471936345 | O23: 0.58111579 | P23: 0.7224883572 | Q23: 0.488600464
F24: =$H$17 -> 2017/18 | G24: % | J24: 0.4374083621 | K24: 0.1407686979 | L24: 0.3878686285 | M24: 0.2291082404 | N24: 0.5403241985 | O24: 0.5895918923 | P24: 0.7277496918 | Q24: 0.4860981343
F25: =$H$18 -> 2018/19 | G25: % | J25: 0.4454770763 | K25: 0.1360515011 | L25: 0.462223271 | M25: 0.221243564 | N25: 0.5374970796 | O25: 0.5838984667 | P25: 0.7332932163 | Q25: 0.4875985165
F26: Average | G26: % | J26: =AVERAGE(J23:J25) -> 0.4439797468 | K26: =AVERAGE(K23:K25) -> 0.1388121956 | L26: 0.441232798 | M26: 0.233687314 | N26: 0.5416716375 | O26: 0.5848687163 | P26: 0.7278437551 | Q26: 0.4874323716
E28: Coincidence factor
F29: =$H$16 -> 2016/17 | G29: % | J29: 0.8941185669 | L29: 0.7886099421 | N29: 0.7896968317 | O29: 0.8560037553 | P29: 0.8326604164 | Q29: 0.9369778262
F30: =$H$17 -> 2017/18 | G30: % | J30: 1 | L30: 0.604987207 | N30: 0.6815370889 | O30: 0.7393363947 | P30: 0.7771084897 | Q30: 0.9297953624
F31: =$H$18 -> 2018/19 | G31: % | J31: 0.8941881767 | L31: 0.8101550676 | N31: 0.7860269839 | O31: 0.8443366773 | P31: 0.822423891 | Q31: 0.9267871362
F32: Average | G32: % | J32: =AVERAGE(J29:J31) -> 0.9294355812 | L32: =AVERAGE(L29:L31) -> 0.7345840722 | N32: 0.7524203015 | O32: 0.8132256091 | P32: =AVERAGE(P29:P31) -> 0.8107309324 | Q32: 0.9311867749
B34: End of sheet

Sheet ARP_Peaking probabilities
A1: =MID(CELL("filename",A1),FIND("]",CELL("filename",A1))+1,255) -> ARP_Peaking probabilities
A2: =Cover!D21&" - "&Cover!D23 -> WPD Mid East - April 21 Prices
A3: =Cover!D2&" - "&Cover!D8&" v"&Cover!D10&" - "&Cover!D19 -> ARP model - Release for charge setting v5 - 2021/22
B5: Click here to return to model map | G5: Units | H5: Constants | J5: Transmission exit | K5: GSPs | L5: 132kV | M5: 132kV/EHV | N5: EHV | O5: EHV/HV | P5: 132kV/HV | Q5: HV | R5: HV/LV | S5: LV circuits
B7: Description
C9: This sheet presents historic data used to calculate average values for peaking probabilities, as required by
C10: DCUSA Schedule 20, Paragraph 2.1 (e).
C11: Charges for year Y are set in year Y-2 using average peaking probabilities from the three previous years (i.e. Y-3 to Y-5).
C12: This sheet is for information only, and is not linked to following worksheets.
B14: Years
E16: Years to which input data relate
F17: Year 1 | G17: year | H17: =LEFT(H18,4) - 1 & "/" & RIGHT(H18,2) - 1 -> 2016/17
F18: Year 2 | G18: year | H18: =LEFT(H19,4) - 1 & "/" & RIGHT(H19,2) - 1 -> 2017/18
F19: Year 3 | G19: year | H19: ='ARP_User control'!$G$28 -> 2018/19
B21: Peaking probabilities, by distribution timeband
E23: Red period
F24: =$H$17 -> 2016/17 | G24: % | K24: 1 | L24: 0.7517476481 | M24: 0.7517476481 | N24: 0.671551727 | O24: 0.671551727 | P24: 0.7517476481 | Q24: 0.671551727 | R24: 0.671551727 | S24: 0.671551727
F25: =$H$18 -> 2017/18 | G25: % | K25: 0.667752443 | L25: 0.7356112563 | M25: 0.7356112563 | N25: 0.6104087786 | O25: 0.6104087786 | P25: 0.7356112563 | Q25: 0.6104087786 | R25: 0.6104087786 | S25: 0.6104087786
F26: =$H$19 -> 2018/19 | G26: % | K26: 0.9236530468 | L26: 0.7358473839 | M26: 0.7358473839 | N26: 0.5860824923 | O26: 0.5860824923 | P26: 0.7358473839 | Q26: 0.5860824923 | R26: 0.5860824923 | S26: 0.5860824923
F27: Average | G27: % | K27: =AVERAGE(K24:K26) -> 0.8638018299 | L27: 0.7410687627 | M27: 0.7410687627 | N27: 0.6226809993 | O27: 0.6226809993 | P27: 0.7410687627 | Q27: 0.6226809993 | R27: 0.6226809993 | S27: 0.6226809993
E29: Amber period
F30: =$H$17 -> 2016/17 | G30: % | K30: 0 | L30: 0.2482523519 | M30: 0.2482523519 | N30: 0.2919991521 | O30: 0.2919991521 | P30: 0.2482523519 | Q30: 0.2919991521 | R30: 0.2919991521 | S30: 0.2919991521
F31: =$H$18 -> 2017/18 | G31: % | K31: 0.332247557 | L31: 0.2313954329 | M31: 0.2313954329 | N31: 0.3438129158 | O31: 0.3438129158 | P31: 0.2313954329 | Q31: 0.3438129158 | R31: 0.3438129158 | S31: 0.3438129158
F32: =$H$19 -> 2018/19 | G32: % | K32: 0.07634695318 | L32: 0.2348060255 | M32: 0.2348060255 | N32: 0.3650098128 | O32: 0.3650098128 | P32: 0.2348060255 | Q32: 0.3650098128 | R32: 0.3650098128 | S32: 0.3650098128
F33: Average | G33: % | K33: =AVERAGE(K30:K32) -> 0.1361981701 | L33: 0.2381512701 | M33: 0.2381512701 | N33: 0.3336072936 | O33: 0.3336072936 | P33: 0.2381512701 | Q33: 0.3336072936 | R33: 0.3336072936 | S33: 0.3336072936
E35: Green period
F36: =$H$17 -> 2016/17 | G36: % | K36: 0 | L36: 0 | M36: 0 | N36: 0.0364491209 | O36: 0.0364491209 | P36: 0 | Q36: 0.0364491209 | R36: 0.0364491209 | S36: 0.0364491209
F37: =$H$18 -> 2017/18 | G37: % | K37: 0 | L37: 0.03299331088 | M37: 0.03299331088 | N37: 0.0457783056 | O37: 0.0457783056 | P37: 0.03299331088 | Q37: 0.0457783056 | R37: 0.0457783056 | S37: 0.0457783056
F38: =$H$19 -> 2018/19 | G38: % | K38: 0 | L38: 0.02934659065 | M38: 0.02934659065 | N38: 0.04890769497 | O38: 0.04890769497 | P38: 0.02934659065 | Q38: 0.04890769497 | R38: 0.04890769497 | S38: 0.04890769497
F39: Average | G39: % | K39: =AVERAGE(K36:K38) -> 0 | L39: 0.02077996718 | M39: 0.02077996718 | N39: 0.04371170716 | O39: 0.04371170716 | P39: 0.02077996718 | Q39: 0.04371170716 | R39: 0.04371170716 | S39: 0.04371170716
E41: Black period
F42: =$H$17 -> 2016/17 | G42: % | K42: 1 | L42: 0.7222133967 | M42: 0.7222133967 | N42: 0.6566215961 | O42: 0.6566215961 | P42: 0.7222133967 | Q42: 0.6566215961 | R42: 0.6566215961 | S42: 0.6566215961
F43: =$H$18 -> 2017/18 | G43: % | K43: 0.3185284537 | L43: 0.6851932343 | M43: 0.6851932343 | N43: 0.5774565207 | O43: 0.5774565207 | P43: 0.6851932343 | Q43: 0.5774565207 | R43: 0.5774565207 | S43: 0.5774565207
F44: =$H$19 -> 2018/19 | G44: % | K44: 0.8720100384 | L44: 0.7278742543 | M44: 0.7278742543 | N44: 0.5740651511 | O44: 0.5740651511 | P44: 0.7278742543 | Q44: 0.5740651511 | R44: 0.5740651511 | S44: 0.5740651511
F45: Average | G45: % | K45: =AVERAGE(K42:K44) -> 0.7301794974 | L45: 0.7117602951 | M45: 0.7117602951 | N45: 0.6027144227 | O45: 0.6027144227 | P45: 0.7117602951 | Q45: 0.6027144227 | R45: 0.6027144227 | S45: 0.6027144227
B47: End of sheet

Sheet ARP_User control
A1: =MID(CELL("filename",A1),FIND("]",CELL("filename",A1))+1,255) -> ARP_User control
A2: =Cover!D21&" - "&Cover!D23 -> WPD Mid East - April 21 Prices
A3: =Cover!D2&" - "&Cover!D8&" v"&Cover!D10&" - "&Cover!D19 -> ARP model - Release for charge setting v5 - 2021/22
B5: Description
C7: This sheet contains the user interface for the ARP, which is used to select the "live" year used for input data.
C8: It houses the Macro Button which should be pressed to update results for all years of the forecast period.
B10: User interface
C12: Users can select which year of input data is pulled into the model using the yellow cell.
C13: Users should press the "Run all years" macro button to update multi-year results on the 'Tariff summary' and 'Typical bills' sheets.
C15: Inputs for manually running selected year
E17: Year selection | G17: 2021/22
C19: Macro to run all years
B25: Lists
D27: List of years
E28: Year -3 | G28: =LEFT(G29,4) - 1 & "/" & RIGHT(G29,2) - 1 -> 2018/19 | H28: Historic
E29: Year -2 | G29: =LEFT(G30,4) - 1 & "/" & RIGHT(G30,2) - 1 -> 2019/20 | H29: Historic
E30: Year -1 | G30: =LEFT(G31,4) - 1 & "/" & RIGHT(G31,2) - 1 -> 2020/21 | H30: Historic
E31: ="Charging year (" & charging_year &")" -> Charging year (2021/22) | G31: =charging_year -> 2021/22 | H31: Current
E32: Year +1 | G32: =LEFT(G31,4) + 1 & "/" & RIGHT(G31,2) + 1 -> 2022/23 | H32: Forecast
E33: Year +2 | G33: =LEFT(G32,4) + 1 & "/" & RIGHT(G32,2) + 1 -> 2023/24 | H33: Forecast
E34: Year +3 | G34: 2024/25 | H34: Forecast
E35: Year +4 | G35: 2025/26 | H35: Forecast
E36: Year selection (index) | G36: =MATCH(G17,G28:G35) -> 4 | H36: =INDEX(H28:H35,MATCH($G$17,$G$28:$G$35,0)) -> Current
B38: End of sheet

Sheet ARP_Inputs by customer type
A1: =MID(CELL("filename",A1),FIND("]",CELL("filename",A1))+1,255) -> ARP_Inputs by customer type
A2: =Cover!D21&" - "&Cover!D23 -> WPD Mid East - April 21 Prices
A3: =Cover!D2&" - "&Cover!D8&" v"&Cover!D10&" - "&Cover!D19 -> ARP model - Release for charge setting v5 - 2021/22
A4: =H530 & IF(H530 = 1, " issue", " issues") &" identified in checks on this sheet" -> 0 issues identified in checks on this sheet
J5: ="Year selected ("& charging_year_selected &")" -> Year selected (2021/22) | L5: =TRANSPOSE('ARP_User control'!G28:H35) -> 2018/19 | M5: 2019/20 | N5: 2020/21 | O5: 2021/22 | P5: 2022/23 | Q5: 2023/24 | R5: 2024/25 | S5: 2025/26
B6: Click here to return to model map | G6: Units | H6: Constants | J6: ='ARP_User control'!$H$36 -> Current | L6: Historic | M6: Historic | N6: Historic | O6: Current | P6: Forecast | Q6: Forecast | R6: Forecast | S6: Forecast | U6: Legal text reference
B8: Description
C10: This sheet sets out inputs by customer type and by year.
C11: DNOs should populate the inputs for the charging year and the four following years.
C12: DNOs can also populate the three years preceding the charging year, but are not obliged to do so.
B14: Load characteristics
C16: =INDEX('Version control'!$H$34:$H$60,MATCH($A$1,'Version control'!$F$34:$F$60,0),1)&"-A: Load factor" -> Input 501-A: Load factor
E18: Load factor | I18: > | U18: Paragraphs 42 (a) and 52
F19: Domestic Aggregated | G19: % | J19: =CHOOSE(year_selection, L19,M19,N19,O19,P19,Q19,R19,S19) -> 0.4439797468 | O19: =HLOOKUP(F19,'ARP_Load characteristics'!$J$5:$Q$32,22,FALSE) -> 0.4439797468 | P19: =O19 -> 0.4439797468 | Q19: =P19 -> 0.4439797468 | R19: 0.4439797468 | S19: 0.4439797468
F20: Domestic Aggregated (Related MPAN) | G20: % | J20: =CHOOSE(year_selection, L20,M20,N20,O20,P20,Q20,R20,S20) -> 0.1388121956 | O20: =HLOOKUP(F20,'ARP_Load characteristics'!$J$5:$Q$32,22,FALSE) -> 0.1388121956 | P20: =O20 -> 0.1388121956 | Q20: 0.1388121956 | R20: 0.1388121956 | S20: 0.1388121956
F21: Non-Domestic Aggregated | G21: % | J21: 0.441232798 | O21: =HLOOKUP(F21,'ARP_Load characteristics'!$J$5:$Q$32,22,FALSE) -> 0.441232798 | P21: =O21 -> 0.441232798 | Q21: 0.441232798 | R21: 0.441232798 | S21: 0.441232798
F22: Non-Domestic Aggregated (Related MPAN) | G22: % | J22: 0.233687314 | O22: =HLOOKUP(F22,'ARP_Load characteristics'!$J$5:$Q$32,22,FALSE) -> 0.233687314 | P22: =O22 -> 0.233687314 | Q22: 0.233687314 | R22: 0.233687314 | S22: 0.233687314
F23: LV Site Specific | G23: % | J23: 0.5416716375 | O23: =HLOOKUP(F23,'ARP_Load characteristics'!$J$5:$Q$32,22,FALSE) -> 0.5416716375 | P23: =O23 -> 0.5416716375 | Q23: 0.5416716375 | R23: 0.5416716375 | S23: 0.5416716375
F24: LV Sub Site Specific | G24: % | J24: 0.5848687163 | O24: =HLOOKUP(F24,'ARP_Load characteristics'!$J$5:$Q$32,22,FALSE) -> 0.5848687163 | P24: =O24 -> 0.5848687163 | Q24: 0.5848687163 | R24: 0.5848687163 | S24: 0.5848687163
F25: HV Site Specific | G25: % | J25: 0.7278437551 | O25: =HLOOKUP(F25,'ARP_Load characteristics'!$J$5:$Q$32,22,FALSE) -> 0.7278437551 | P25: =O25 -> 0.7278437551 | Q25: 0.7278437551 | R25: 0.7278437551 | S25: 0.7278437551
F26: Unmetered Supplies | G26: % | J26: 0.4874323716 | O26: =HLOOKUP(F26,'ARP_Load characteristics'!$J$5:$Q$32,22,FALSE) -> 0.4874323716 | P26: =O26 -> 0.4874323716 | Q26: 0.4874323716 | R26: 0.4874323716 | S26: 0.4874323716
F27: LV Generation Aggregated | G27: %
F28: LV Sub Generation Aggregated | G28: %
F29: LV Generation Site Specific | G29: %
F30: LV Generation Site Specific no RP Charge | G30: %
F31: LV Sub Generation Site Specific | G31: %
F32: LV Sub Generation Site Specific no RP Charge | G32: %
F33: HV Generation Site Specific | G33: %
F34: HV Generation Site Specific no RP Charge | G34: %
C36: =INDEX('Version control'!$H$34:$H$60,MATCH($A$1,'Version control'!$F$34:$F$60,0),1)&"-B: Coincidence factor" -> Input 501-B: Coincidence factor
E38: Coincidence factor | I38: > | U38: Paragraphs 42 (b) and 52
F39: Domestic Aggregated | G39: % | J39: =CHOOSE(year_selection, L39,M39,N39,O39,P39,Q39,R39,S39) -> 0.9294355812 | O39: =HLOOKUP(F39,'ARP_Load characteristics'!$J$5:$Q$32,28,FALSE) -> 0.9294355812 | P39: =O39 -> 0.9294355812 | Q39: =P39 -> 0.9294355812 | R39: 0.9294355812 | S39: 0.9294355812
F40: Domestic Aggregated (Related MPAN) | G40: %
F41: Non-Domestic Aggregated | G41: % | J41: 0.7345840722 | O41: =HLOOKUP(F41,'ARP_Load characteristics'!$J$5:$Q$32,28,FALSE) -> 0.7345840722 | P41: =O41 -> 0.7345840722 | Q41: 0.7345840722 | R41: 0.7345840722 | S41: 0.7345840722
F42: Non-Domestic Aggregated (Related MPAN) | G42: %
F43: LV Site Specific | G43: % | J43: 0.7524203015 | O43: =HLOOKUP(F43,'ARP_Load characteristics'!$J$5:$Q$32,28,FALSE) -> 0.7524203015 | P43: =O43 -> 0.7524203015 | Q43: 0.7524203015 | R43: 0.7524203015 | S43: 0.7524203015
F44: LV Sub Site Specific | G44: % | J44: 0.8132256091 | O44: =HLOOKUP(F44,'ARP_Load characteristics'!$J$5:$Q$32,28,FALSE) -> 0.8132256091 | P44: =O44 -> 0.8132256091 | Q44: 0.8132256091 | R44: 0.8132256091 | S44: 0.8132256091
F45: HV Site Specific | G45: % | J45: 0.8107309324 | O45: =HLOOKUP(F45,'ARP_Load characteristics'!$J$5:$Q$32,28,FALSE) -> 0.8107309324 | P45: =O45 -> 0.8107309324 | Q45: 0.8107309324 | R45: 0.8107309324 | S45: 0.8107309324
F46: Unmetered Supplies | G46: % | J46: 0.9311867749 | O46: =HLOOKUP(F46,'ARP_Load characteristics'!$J$5:$Q$32,28,FALSE) -> 0.9311867749 | P46: =O46 -> 0.9311867749 | Q46: 0.9311867749 | R46: 0.9311867749 | S46: 0.9311867749
F47: LV Generation Aggregated | G47: %
F48: LV Sub Generation Aggregated | G48: %
F49: LV Generation Site Specific | G49: %
F50: LV Generation Site Specific no RP Charge | G50: %
F51: LV Sub Generation Site Specific | G51: %
F52: LV Sub Generation Site Specific no RP Charge | G52: %
F53: HV Generation Site Specific | G53: %
F54: HV Generation Site Specific no RP Charge | G54: %
B56: Volumes
C58: =INDEX('Version control'!$H$34:$H$60,MATCH($A$1,'Version control'!$F$34:$F$60,0),1)&"-C: All-the-way volumes" -> Input 501-C: All-the-way volumes
E60: Rate 1 units | I60: > | U60: Paragraph 52
F61: Domestic Aggregated | G61: MWh | H61: All the way customers | J61: =CHOOSE(year_selection, L61,M61,N61,O61,P61,Q61,R61,S61) -> 970871.8236 | O61: 970871.8236 | P61: =O61 -> 970871.8236 | Q61: 970871.8236 | R61: 970871.8236 | S61: 970871.8236 | U61: 17
F62: Domestic Aggregated (Related MPAN) | G62: MWh | H62: All the way customers | J62: 844.7630365 | O62: 844.7630365 | P62: =O62 -> 844.7630365 | Q62: 844.7630365 | R62: 844.7630365 | S62: 844.7630365 | U62: =U61 -> 17
F63: Non-Domestic Aggregated | G63: MWh | H63: All the way customers | J63: 327000 | O63: 327000 | P63: =O63 -> 327000 | Q63: 327000 | R63: 327000 | S63: 327000 | U63: =U62 -> 17
F64: Non-Domestic Aggregated (Related MPAN) | G64: MWh | H64: All the way customers | J64: 29.86139468 | O64: 29.86139468 | P64: =O64 -> 29.86139468 | Q64: 29.86139468 | R64: 29.86139468 | S64: 29.86139468 | U64: =U63 -> 17
F65: LV Site Specific | G65: MWh | H65: All the way customers | J65: 336787.2598 | O65: 336787.2598 | P65: =O65 -> 336787.2598 | Q65: 336787.2598 | R65: 336787.2598 | S65: 336787.2598 | U65: 17
F66: LV Sub Site Specific | G66: MWh | H66: All the way customers | J66: 26999.98332 | O66: 26999.98332 | P66: =O66 -> 26999.98332 | Q66: 26999.98332 | R66: 26999.98332 | S66: 26999.98332 | U66: 17
F67: HV Site Specific | G67: MWh | H67: All the way customers | J67: 683754.1663 | O67: 683754.1663 | P67: =O67 -> 683754.1663 | Q67: 683754.1663 | R67: 683754.1663 | S67: 683754.1663 | U67: 17
F68: Unmetered Supplies | G68: MWh | H68: All the way customers | J68: 9789.520573 | O68: 9789.520573 | P68: =O68 -> 9789.520573 | Q68: 9789.520573 | R68: 9789.520573 | S68: 9789.520573 | U68: 17
F69: LV Generation Aggregated | G69: MWh | H69: All the way customers | J69: 111.4890524 | O69: 111.4890524 | P69: =O69 -> 111.4890524 | Q69: 111.4890524 | R69: 111.4890524 | S69: 111.4890524 | U69: 17
F70: LV Sub Generation Aggregated | G70: MWh | H70: All the way customers | J70: 0 | O70: 0 | P70: =O70 -> 0 | Q70: 0 | R70: 0 | S70: 0 | U70: 17
F71: LV Generation Site Specific | G71: MWh | H71: All the way customers | J71: 4546.060784 | O71: 4546.060784 | P71: =O71 -> 4546.060784 | Q71: 4546.060784 | R71: 4546.060784 | S71: 4546.060784 | U71: 17
F72: LV Generation Site Specific no RP Charge | G72: MWh | H72: All the way customers | J72: 0 | O72: 0 | P72: =O72 -> 0 | Q72: 0 | R72: 0 | S72: 0 | U72: 17
F73: LV Sub Generation Site Specific | G73: MWh | H73: All the way customers | J73: 615.0655258 | O73: 615.0655258 | P73: =O73 -> 615.0655258 | Q73: 615.0655258 | R73: 615.0655258 | S73: 615.0655258 | U73: 17
F74: LV Sub Generation Site Specific no RP Charge | G74: MWh | H74: All the way customers | J74: 0 | O74: 0 | P74: =O74 -> 0 | Q74: 0 | R74: 0 | S74: 0 | U74: 17
F75: HV Generation Site Specific | G75: MWh | H75: All the way customers | J75: 229961.8799 | O75: 229961.8799 | P75: =O75 -> 229961.8799 | Q75: 229961.8799 | R75: 229961.8799 | S75: 229961.8799 | U75: 17
F76: HV Generation Site Specific no RP Charge | G76: MWh | H76: All the way customers | J76: 0 | O76: 0 | P76: =O76 -> 0 | Q76: 0 | R76: 0 | S76: 0 | U76: 17
E78: Rate 2 units
F79: Domestic Aggregated | G79: MWh | H79: All the way customers | J79: =CHOOSE(year_selection, L79,M79,N79,O79,P79,Q79,R79,S79) -> 2877584.013 | O79: 2877584.013 | P79: =O79 -> 2877584.013 | Q79: 2877584.013 | R79: 2877584.013 | S79: 2877584.013 | U79: =U61+1 -> 18
F80: Domestic Aggregated (Related MPAN) | G80: MWh | H80: All the way customers | J80: 5440.33583 | O80: 5440.33583 | P80: =O80 -> 5440.33583 | Q80: 5440.33583 | R80: 5440.33583 | S80: 5440.33583 | U80: =U62+1 -> 18
F81: Non-Domestic Aggregated | G81: MWh | H81: All the way customers | J81: 1347000 | O81: 1347000 | P81: =O81 -> 1347000 | Q81: 1347000 | R81: 1347000 | S81: 1347000 | U81: 18
F82: Non-Domestic Aggregated (Related MPAN) | G82: MWh | H82: All the way customers | J82: 464.0832887 | O82: 464.0832887 | P82: =O82 -> 464.0832887 | Q82: 464.0832887 | R82: 464.0832887 | S82: 464.0832887 | U82: 18
F83: LV Site Specific | G83: MWh | H83: All the way customers | J83: 1423327.11 | O83: 1423327.11 | P83: =O83 -> 1423327.11 | Q83: 1423327.11 | R83: 1423327.11 | S83: 1423327.11 | U83: 18
F84: LV Sub Site Specific | G84: MWh | H84: All the way customers | J84: 99999.93305 | O84: 99999.93305 | P84: =O84 -> 99999.93305 | Q84: 99999.93305 | R84: 99999.93305 | S84: 99999.93305 | U84: 18
F85: HV Site Specific | G85: MWh | H85: All the way customers | J85: 2612881.953 | O85: 2612881.953 | P85: =O85 -> 2612881.953 | Q85: 2612881.953 | R85: 2612881.953 | S85: 2612881.953 | U85: 18
F86: Unmetered Supplies | G86: MWh | H86: All the way customers | J86: 48857.68668 | O86: 48857.68668 | P86: =O86 -> 48857.68668 | Q86: 48857.68668 | R86: 48857.68668 | S86: 48857.68668 | U86: 18
F87: LV Generation Aggregated | G87: MWh | H87: All the way customers | J87: 613.1821802 | O87: 613.1821802 | P87: =O87 -> 613.1821802 | Q87: 613.1821802 | R87: 613.1821802 | S87: 613.1821802 | U87: 18
F88: LV Sub Generation Aggregated | G88: MWh | H88: All the way customers | J88: 0 | O88: 0 | P88: =O88 -> 0 | Q88: 0 | R88: 0 | S88: 0 | U88: 18
F89: LV Generation Site Specific | G89: MWh | H89: All the way customers | J89: 22509.83535 | O89: 22509.83535 | P89: =O89 -> 22509.83535 | Q89: 22509.83535 | R89: 22509.83535 | S89: 22509.83535 | U89: 18
F90: LV Generation Site Specific no RP Charge | G90: MWh | H90: All the way customers | J90: 0 | O90: 0 | P90: =O90 -> 0 | Q90: 0 | R90: 0 | S90: 0 | U90: 18
F91: LV Sub Generation Site Specific | G91: MWh | H91: All the way customers | J91: 2420.075697 | O91: 2420.075697 | P91: =O91 -> 2420.075697 | Q91: 2420.075697 | R91: 2420.075697 | S91: 2420.075697 | U91: 18
F92: LV Sub Generation Site Specific no RP Charge | G92: MWh | H92: All the way customers | J92: 0 | O92: 0 | P92: =O92 -> 0 | Q92: 0 | R92: 0 | S92: 0 | U92: 18
F93: HV Generation Site Specific | G93: MWh | H93: All the way customers | J93: 553493.3101 | O93: 553493.3101 | P93: =O93 -> 553493.3101 | Q93: 553493.3101 | R93: 553493.3101 | S93: 553493.3101 | U93: 18
F94: HV Generation Site Specific no RP Charge | G94: MWh | H94: All the way customers | J94: 0 | O94: 0 | P94: =O94 -> 0 | Q94: 0 | R94: 0 | S94: 0 | U94: 18
E96: Rate 3 units
F97: Domestic Aggregated | G97: MWh | H97: All the way customers | J97: =CHOOSE(year_selection, L97,M97,N97,O97,P97,Q97,R97,S97) -> 4767280.924 | O97: 4767280.924 | P97: =O97 -> 4767280.924 | Q97: 4767280.924 | R97: 4767280.924 | S97: 4767280.924 | U97: =U79+1 -> 19
F98: Domestic Aggregated (Related MPAN) | G98: MWh | H98: All the way customers | J98: 9899.716549 | O98: 9899.716549 | P98: =O98 -> 9899.716549 | Q98: 9899.716549 | R98: 9899.716549 | S98: 9899.716549 | U98: =U80+1 -> 19
F99: Non-Domestic Aggregated | G99: MWh | H99: All the way customers | J99: 1479000 | O99: 1479000 | P99: =O99 -> 1479000 | Q99: 1479000 | R99: 1479000 | S99: 1479000 | U99: 19
F100: Non-Domestic Aggregated (Related MPAN) | G100: MWh | H100: All the way customers | J100: 1793.2522 | O100: 1793.2522 | P100: =O100 -> 1793.2522 | Q100: 1793.2522 | R100: 1793.2522 | S100: 1793.2522 | U100: 19
F101: LV Site Specific | G101: MWh | H101: All the way customers | J101: 1552629.361 | O101: 1552629.361 | P101: =O101 -> 1552629.361 | Q101: 1552629.361 | R101: 1552629.361 | S101: 1552629.361 | U101: 19
F102: LV Sub Site Specific | G102: MWh | H102: All the way customers | J102: 113999.9528 | O102: 113999.9528 | P102: =O102 -> 113999.9528 | Q102: 113999.9528 | R102: 113999.9528 | S102: 113999.9528 | U102: 19
F103: HV Site Specific | G103: MWh | H103: All the way customers | J103: 3724107.611 | O103: 3724107.611 | P103: =O103 -> 3724107.611 | Q103: 3724107.611 | R103: 3724107.611 | S103: 3724107.611 | U103: 19
F104: Unmetered Supplies | G104: MWh | H104: All the way customers | J104: 162200.7872 | O104: 162200.7872 | P104: =O104 -> 162200.7872 | Q104: 162200.7872 | R104: 162200.7872 | S104: 162200.7872 | U104: 19
F105: LV Generation Aggregated | G105: MWh | H105: All the way customers | J105: 360.3962597 | O105: 360.3962597 | P105: =O105 -> 360.3962597 | Q105: 360.3962597 | R105: 360.3962597 | S105: 360.3962597 | U105: 19
F106: LV Sub Generation Aggregated | G106: MWh | H106: All the way customers | J106: 0 | O106: 0 | P106: =O106 -> 0 | Q106: 0 | R106: 0 | S106: 0 | U106: 19
F107: LV Generation Site Specific | G107: MWh | H107: All the way customers | J107: 23742.42825 | O107: 23742.42825 | P107: =O107 -> 23742.42825 | Q107: 23742.42825 | R107: 23742.42825 | S107: 23742.42825 | U107: 19
F108: LV Generation Site Specific no RP Charge | G108: MWh | H108: All the way customers | J108: 0 | O108: 0 | P108: =O108 -> 0 | Q108: 0 | R108: 0 | S108: 0 | U108: 19
F109: LV Sub Generation Site Specific | G109: MWh | H109: All the way customers | J109: 4177.52702 | O109: 4177.52702 | P109: =O109 -> 4177.52702 | Q109: 4177.52702 | R109: 4177.52702 | S109: 4177.52702 | U109: 19
F110: LV Sub Generation Site Specific no RP Charge | G110: MWh | H110: All the way customers | J110: 0 | O110: 0 | P110: =O110 -> 0 | Q110: 0 | R110: 0 | S110: 0 | U110: 19
F111: HV Generation Site Specific | G111: MWh | H111: All the way customers | J111: 650372.2276 | O111: 650372.2276 | P111: =O111 -> 650372.2276 | Q111: 650372.2276 | R111: 650372.2276 | S111: 650372.2276 | U111: 19
F112: HV Generation Site Specific no RP Charge | G112: MWh | H112: All the way customers | J112: 0 | O112: 0 | P112: =O112 -> 0 | Q112: 0 | R112: 0 | S112: 0 | U112: 19
E114: MPANs
F115: Domestic Aggregated | G115: MPANs | H115: All the way customers | J115: =CHOOSE(year_selection, L115,M115,N115,O115,P115,Q115,R115,S115) -> 2477513.718 | O115: 2477513.718 | P115: =O115 -> 2477513.718 | Q115: 2477513.718 | R115: 2477513.718 | S115: 2477513.718 | U115: =U97+1 -> 20
F116: Domestic Aggregated (Related MPAN) | G116: MPANs | H116: All the way customers | J116: 0 | O116: 0 | P116: =O116 -> 0 | Q116: 0 | R116: 0 | S116: 0 | U116: =U98+1 -> 20
F117: Non-Domestic Aggregated | G117: MPANs | H117: All the way customers | J117: 185569.609 | O117: 185569.609 | P117: =O117 -> 185569.609 | Q117: 185569.609 | R117: 185569.609 | S117: 185569.609 | U117: 20
F118: Non-Domestic Aggregated (Related MPAN) | G118: MPANs | H118: All the way customers | J118: 0 | O118: 0 | P118: =O118 -> 0 | Q118: 0 | R118: 0 | S118: 0 | U118: 20
F119: LV Site Specific | G119: MPANs | H119: All the way customers | J119: 15340.27625 | O119: 15340.27625 | P119: =O119 -> 15340.27625 | Q119: 15340.27625 | R119: 15340.27625 | S119: 15340.27625 | U119: 20
F120: LV Sub Site Specific | G120: MPANs | H120: All the way customers | J120: 459.2754303 | O120: 459.2754303 | P120: =O120 -> 459.2754303 | Q120: 459.2754303 | R120: 459.2754303 | S120: 459.2754303 | U120: 20
F121: HV Site Specific | G121: MPANs | H121: All the way customers | J121: 3354.375621 | O121: 3354.375621 | P121: =O121 -> 3354.375621 | Q121: 3354.375621 | R121: 3354.375621 | S121: 3354.375621 | U121: 20
F122: Unmetered Supplies | G122: MPANs | H122: All the way customers | J122: 31.60632558 | O122: 31.60632558 | P122: =O122 -> 31.60632558 | Q122: 31.60632558 | R122: 31.60632558 | S122: 31.60632558 | U122: 20
F123: LV Generation Aggregated | G123: MPANs | H123: All the way customers | J123: 0 | O123: 0 | P123: =O123 -> 0 | Q123: 0 | R123: 0 | S123: 0 | U123: 20
F124: LV Sub Generation Aggregated | G124: MPANs | H124: All the way customers | J124: 0 | O124: 0 | P124: =O124 -> 0 | Q124: 0 | R124: 0 | S124: 0 | U124: 20
F125: LV Generation Site Specific | G125: MPANs | H125: All the way customers | J125: 737.2411219 | O125: 737.2411219 | P125: =O125 -> 737.2411219 | Q125: 737.2411219 | R125: 737.2411219 | S125: 737.2411219 | U125: 20
F126: LV Generation Site Specific no RP Charge | G126: MPANs | H126: All the way customers | J126: 0 | O126: 0 | P126: =O126 -> 0 | Q126: 0 | R126: 0 | S126: 0 | U126: 20
F127: LV Sub Generation Site Specific | G127: MPANs | H127: All the way customers | J127: 52.79929559 | O127: 52.79929559 | P127: =O127 -> 52.79929559 | Q127: 52.79929559 | R127: 52.79929559 | S127: 52.79929559 | U127: 20
F128: LV Sub Generation Site Specific no RP Charge | G128: MPANs | H128: All the way customers | J128: 0 | O128: 0 | P128: =O128 -> 0 | Q128: 0 | R128: 0 | S128: 0 | U128: 20
F129: HV Generation Site Specific | G129: MPANs | H129: All the way customers | J129: 465.2046601 | O129: 465.2046601 | P129: =O129 -> 465.2046601 | Q129: 465.2046601 | R129: 465.2046601 | S129: 465.2046601 | U129: 20
F130: HV Generation Site Specific no RP Charge | G130: MPANs | H130: All the way customers | J130: 0 | O130: 0 | P130: =O130 -> 0 | Q130: 0 | R130: 0 | S130: 0 | U130: 20
E132: Import capacity
F133: Domestic Aggregated | G133: kVA | H133: All the way customers | U133: =U115+1 -> 21
F134: Domestic Aggregated (Related MPAN) | G134: kVA | H134: All the way customers | U134: =U116+1 -> 21
F135: Non-Domestic Aggregated | G135: kVA | H135: All the way customers | U135: 21
F136: Non-Domestic Aggregated (Related MPAN) | G136: kVA | H136: All the way customers | U136: 21
F137: LV Site Specific | G137: kVA | H137: All the way customers | J137: =CHOOSE(year_selection, L137,M137,N137,O137,P137,Q137,R137,S137) -> 2030032.333 | O137: 2030032.333 | P137: =O137 -> 2030032.333 | Q137: 2030032.333 | R137: 2030032.333 | S137: 2030032.333 | U137: 21
F138: LV Sub Site Specific | G138: kVA | H138: All the way customers | J138: 145993.6667 | O138: 145993.6667 | P138: =O138 -> 145993.6667 | Q138: 145993.6667 | R138: 145993.6667 | S138: 145993.6667 | U138: 21
F139: HV Site Specific | G139: kVA | H139: All the way customers | J139: 2724720.667 | O139: 2724720.667 | P139: =O139 -> 2724720.667 | Q139: 2724720.667 | R139: 2724720.667 | S139: 2724720.667 | U139: 21
F140: Unmetered Supplies | G140: kVA | H140: All the way customers | U140: 21
F141: LV Generation Aggregated | G141: kVA | H141: All the way customers | U141: 21
F142: LV Sub Generation Aggregated | G142: kVA | H142: All the way customers | U142: 21
F143: LV Generation Site Specific | G143: kVA | H143: All the way customers | U143: 21
F144: LV Generation Site Specific no RP Charge | G144: kVA | H144: All the way customers | U144: 21
F145: LV Sub Generation Site Specific | G145: kVA | H145: All the way customers | U145: 21
F146: LV Sub Generation Site Specific no RP Charge | G146: kVA | H146: All the way customers | U146: 21
F147: HV Generation Site Specific | G147: kVA | H147: All the way customers | U147: 21
F148: HV Generation Site Specific no RP Charge | G148: kVA | H148: All the way customers | U148: 21
E150: Exceeded capacity
F151: Domestic Aggregated | G151: kVA | H151: All the way customers | U151: =U133+1 -> 22
F152: Domestic Aggregated (Related MPAN) | G152: kVA | H152: All the way customers | U152: =U134+1 -> 22
F153: Non-Domestic Aggregated | G153: kVA | H153: All the way customers | U153: 22
F154: Non-Domestic Aggregated (Related MPAN) | G154: kVA | H154: All the way customers | U154: 22
F155: LV Site Specific | G155: kVA | H155: All the way customers | J155: =CHOOSE(year_selection, L155,M155,N155,O155,P155,Q155,R155,S155) -> 35413.46662 | O155: 35413.46662 | P155: =O155 -> 35413.46662 | Q155: 35413.46662 | R155: 35413.46662 | S155: 35413.46662 | U155: 22
F156: LV Sub Site Specific | G156: kVA | H156: All the way customers | J156: 2300.876114 | O156: 2300.876114 | P156: =O156 -> 2300.876114 | Q156: 2300.876114 | R156: 2300.876114 | S156: 2300.876114 | U156: 22
F157: HV Site Specific | G157: kVA | H157: All the way customers | J157: 45458.07051 | O157: 45458.07051 | P157: =O157 -> 45458.07051 | Q157: 45458.07051 | R157: 45458.07051 | S157: 45458.07051 | U157: 22
F158: Unmetered Supplies | G158: kVA | H158: All the way customers | U158: 22
F159: LV Generation Aggregated | G159: kVA | H159: All the way customers | U159: 22
F160: LV Sub Generation Aggregated | G160: kVA | H160: All the way customers | U160: 22
F161: LV Generation Site Specific | G161: kVA | H161: All the way customers | U161: 22
F162: LV Generation Site Specific no RP Charge | G162: kVA | H162: All the way customers | U162: 22
F163: LV Sub Generation Site Specific | G163: kVA | H163: All the way customers | U163: 22
F164: LV Sub Generation Site Specific no RP Charge | G164: kVA | H164: All the way customers | U164: 22
F165: HV Generation Site Specific | G165: kVA | H165: All the way customers | U165: 22
F166: HV Generation Site Specific no RP Charge | G166: kVA | H166: All the way customers | U166: 22
E168: Reactive power units
F169: Domestic Aggregated | G169: MVArh | H169: All the way customers | U169: =U151+1 -> 23
F170: Domestic Aggregated (Related MPAN) | G170: MVArh | H170: All the way customers | U170: =U152+1 -> 23
F171: Non-Domestic Aggregated | G171: MVArh | H171: All the way customers | U171: 23
F172: Non-Domestic Aggregated (Related MPAN) | G172: MVArh | H172: All the way customers | U172: 23
F173: LV Site Specific | G173: MVArh | H173: All the way customers | J173: =CHOOSE(year_selection, L173,M173,N173,O173,P173,Q173,R173,S173) -> 358169.5154 | O173: 358169.5154 | P173: =O173 -> 358169.5154 | Q173: 358169.5154 | R173: 358169.5154 | S173: 358169.5154 | U173: 23
F174: LV Sub Site Specific | G174: MVArh | H174: All the way customers | J174: 30403.57565 | O174: 30403.57565 | P174: =O174 -> 30403.57565 | Q174: 30403.57565 | R174: 30403.57565 | S174: 30403.57565 | U174: 23
F175: HV Site Specific | G175: MVArh | H175: All the way customers | J175: 596771.2509 | O175: 596771.2509 | P175: =O175 -> 596771.2509 | Q175: 596771.2509 | R175: 596771.2509 | S175: 596771.2509 | U175: 23
F176: Unmetered Supplies | G176: MVArh | H176: All the way customers | U176: 23
F177: LV Generation Aggregated | G177: MVArh | H177: All the way customers | U177: 23
F178: LV Sub Generation Aggregated | G178: MVArh | H178: All the way customers | U178: 23
F179: LV Generation Site Specific | G179: MVArh | H179: All the way customers | J179: =CHOOSE(year_selection, L179,M179,N179,O179,P179,Q179,R179,S179) -> 3718.690335 | O179: 3718.690335 | P179: =O179 -> 3718.690335 | Q179: =P179 -> 3718.690335 | R179: =Q179 -> 3718.690335 | S179: =R179 -> 3718.690335 | U179: 23
F180: LV Generation Site Specific no RP Charge | G180: MVArh | H180: All the way customers | U180: 23
F181: LV Sub Generation Site Specific | G181: MVArh | H181: All the way customers | J181: =CHOOSE(year_selection, L181,M181,N181,O181,P181,Q181,R181,S181) -> 530.8712737 | O181: 530.8712737 | P181: =O181 -> 530.8712737 | Q181: =P181 -> 530.8712737 | R181: =Q181 -> 530.8712737 | S181: =R181 -> 530.8712737 | U181: 23
F182: LV Sub Generation Site Specific no RP Charge | G182: MVArh | H182: All the way customers | U182: 23
F183: HV Generation Site Specific | G183: MVArh | H183: All the way customers | J183: =CHOOSE(year_selection, L183,M183,N183,O183,P183,Q183,R183,S183) -> 17917.30144 | O183: 17917.30144 | P183: =O183 -> 17917.30144 | Q183: =P183 -> 17917.30144 | R183: =Q183 -> 17917.30144 | S183: =R183 -> 17917.30144 | U183: 23
F184: HV Generation Site Specific no RP Charge | G184: MVArh | H184: All the way customers | U184: 23
C186: =INDEX('Version control'!$H$34:$H$60,MATCH($A$1,'Version control'!$F$34:$F$60,0),1)&"-D: LDNO LV volumes" -> Input 501-D: LDNO LV volumes
E188: Rate 1 units | I188: > | U188: Paragraph 52
F189: Domestic Aggregated | G189: MWh | H189: LDNO LV customers | J189: =CHOOSE(year_selection, L189,M189,N189,O189,P189,Q189,R189,S189) -> 13094.19845 | O189: 13094.19845 | P189: =O189 -> 13094.19845 | Q189: =P189 -> 13094.19845 | R189: =Q189 -> 13094.19845 | S189: =R189 -> 13094.19845 | U189: =U169+3 -> 26
F190: Domestic Aggregated (Related MPAN) | G190: MWh | H190: LDNO LV customers | J190: 0 | O190: 0 | P190: =O190 -> 0 | Q190: 0 | R190: 0 | S190: 0 | U190: =U189 -> 26
F191: Non-Domestic Aggregated | G191: MWh | H191: LDNO LV customers | J191: 453.23891 | O191: 453.23891 | P191: =O191 -> 453.23891 | Q191: 453.23891 | R191: 453.23891 | S191: 453.23891 | U191: =U190 -> 26
F192: Non-Domestic Aggregated (Related MPAN) | G192: MWh | H192: LDNO LV customers | J192: 0 | O192: 0 | P192: =O192 -> 0 | Q192: 0 | R192: 0 | S192: 0 | U192: =U191 -> 26
F193: LV Site Specific | G193: MWh | H193: LDNO LV customers | J193: 1820.076549 | O193: 1820.076549 | P193: =O193 -> 1820.076549 | Q193: 1820.076549 | R193: 1820.076549 | S193: 1820.076549 | U193: 26
F194: LV Sub Site Specific | G194: MWh | H194: LDNO LV customers | U194: 26
F195: HV Site Specific | G195: MWh | H195: LDNO LV customers | U195: 26
F196: Unmetered Supplies | G196: MWh | H196: LDNO LV customers | J196: 11.43420017 | O196: 11.43420017 | P196: =O196 -> 11.43420017 | Q196: 11.43420017 | R196: 11.43420017 | S196: 11.43420017 | U196: 26
F197: LV Generation Aggregated | G197: MWh | H197: LDNO LV customers | J197: 1.791337806 | O197: 1.791337806 | P197: =O197 -> 1.791337806 | Q197: 1.791337806 | R197: 1.791337806 | S197: 1.791337806 | U197: 26
F198: LV Sub Generation Aggregated | G198: MWh | H198: LDNO LV customers | U198: 26
F199: LV Generation Site Specific | G199: MWh | H199: LDNO LV customers | J199: 0 | O199: 0 | P199: =O199 -> 0 | Q199: =P199 -> 0 | R199: =Q199 -> 0 | S199: =R199 -> 0 | U199: 26
F200: LV Generation Site Specific no RP Charge | G200: MWh | H200: LDNO LV customers | U200: 26
F201: LV Sub Generation Site Specific | G201: MWh | H201: LDNO LV customers | U201: 26
F202: LV Sub Generation Site Specific no RP Charge | G202: MWh | H202: LDNO LV customers | U202: 26
F203: HV Generation Site Specific | G203: MWh | H203: LDNO LV customers | U203: 26
F204: HV Generation Site Specific no RP Charge | G204: MWh | H204: LDNO LV customers | U204: 26
E206: Rate 2 units
F207: Domestic Aggregated | G207: MWh | H207: LDNO LV customers | J207: =CHOOSE(year_selection, L207,M207,N207,O207,P207,Q207,R207,S207) -> 37530.49737 | O207: 37530.49737 | P207: =O207 -> 37530.49737 | Q207: 37530.49737 | R207: 37530.49737 | S207: 37530.49737 | U207: =U189+1 -> 27
F208: Domestic Aggregated (Related MPAN) | G208: MWh | H208: LDNO LV customers | J208: 0 | O208: 0 | P208: =O208 -> 0 | Q208: 0 | R208: 0 | S208: 0 | U208: =U190+1 -> 27
F209: Non-Domestic Aggregated | G209: MWh | H209: LDNO LV customers | J209: 1957.030668 | O209: 1957.030668 | P209: =O209 -> 1957.030668 | Q209: 1957.030668 | R209: 1957.030668 | S209: 1957.030668 | U209: 27
F210: Non-Domestic Aggregated (Related MPAN) | G210: MWh | H210: LDNO LV customers | J210: 0 | O210: 0 | P210: =O210 -> 0 | Q210: 0 | R210: 0 | S210: 0 | U210: 27
F211: LV Site Specific | G211: MWh | H211: LDNO LV customers | J211: 6832.355527 | O211: 6832.355527 | P211: =O211 -> 6832.355527 | Q211: 6832.355527 | R211: 6832.355527 | S211: 6832.355527 | U211: 27
F212: LV Sub Site Specific | G212: MWh | H212: LDNO LV customers | U212: 27
F213: HV Site Specific | G213: MWh | H213: LDNO LV customers | U213: 27
F214: Unmetered Supplies | G214: MWh | H214: LDNO LV customers | J214: =CHOOSE(year_selection, L214,M214,N214,O214,P214,Q214,R214,S214) -> 133.5233261 | O214: 133.5233261 | P214: =O214 -> 133.5233261 | Q214: 133.5233261 | R214: 133.5233261 | S214: 133.5233261 | U214: 27
F215: LV Generation Aggregated | G215: MWh | H215: LDNO LV customers | J215: 8.547918648 | O215: 8.547918648 | P215: =O215 -> 8.547918648 | Q215: 8.547918648 | R215: 8.547918648 | S215: 8.547918648 | U215: 27
F216: LV Sub Generation Aggregated | G216: MWh | H216: LDNO LV customers | U216: 27
F217: LV Generation Site Specific | G217: MWh | H217: LDNO LV customers | J217: =CHOOSE(year_selection, L217,M217,N217,O217,P217,Q217,R217,S217) -> 0 | O217: 0 | P217: =O217 -> 0 | Q217: =P217 -> 0 | R217: =Q217 -> 0 | S217: =R217 -> 0 | U217: 27
F218: LV Generation Site Specific no RP Charge | G218: MWh | H218: LDNO LV customers | U218: 27
F219: LV Sub Generation Site Specific | G219: MWh | H219: LDNO LV customers | U219: 27
... 286 more rows

Sheet ARP_Inputs by network level
A1: =MID(CELL("filename",A1),FIND("]",CELL("filename",A1))+1,255) -> ARP_Inputs by network level
A2: =Cover!D21&" - "&Cover!D23 -> WPD Mid East - April 21 Prices
A3: =Cover!D2&" - "&Cover!D8&" v"&Cover!D10&" - "&Cover!D19 -> ARP model - Release for charge setting v5 - 2021/22
A4: =H218 & IF(H218 = 1, " issue", " issues") &" identified in checks on this sheet" -> 0 issues identified in checks on this sheet
J5: ="Year selected ("& charging_year_selected &")" -> Year selected (2021/22) | L5: =TRANSPOSE('ARP_User control'!G28:H35) -> 2018/19 | M5: 2019/20 | N5: 2020/21 | O5: 2021/22 | P5: 2022/23 | Q5: 2023/24 | R5: 2024/25 | S5: 2025/26
B6: Click here to return to model map | G6: Units | H6: Constants | J6: ='ARP_User control'!$H$36 -> Current | L6: Historic | M6: Historic | N6: Historic | O6: Current | P6: Forecast | Q6: Forecast | R6: Forecast | S6: Forecast | U6: Legal text reference
B8: Description
C10: This sheet sets out inputs by network level and by year.
C11: DNOs should populate the inputs for the charging year and the four following years.
C12: DNOs can also populate the three years preceding the charging year, but are not obliged to do so.
B14: Inputs by network level
C16: =INDEX('Version control'!$H$34:$H$60,MATCH($A$1,'Version control'!$F$34:$F$60,0),1)&"-A: Diversity allowance between top and bottom of network level" -> Input 502-A: Diversity allowance between top and bottom of network level
E18: Diversity allowance between top and bottom of network level | I18: > | U18: Paragraphs 26 to 28
F19: Transmission exit | G19: %
F20: GSPs | G20: % | J20: =CHOOSE(year_selection, L20,M20,N20,O20,P20,Q20,R20,S20) -> 0.02471374244 | L20: 0.02471374244 | M20: 0.02471374244 | N20: 0.02471374244 | O20: 0.02471374244 | P20: =O20 -> 0.02471374244 | Q20: =P20 -> 0.02471374244 | R20: 0.02471374244 | S20: 0.02471374244 | U20: 11
F21: 132kV | G21: % | J21: =CHOOSE(year_selection, L21,M21,N21,O21,P21,Q21,R21,S21) -> 0.04501347824 | L21: 0.04501347824 | M21: 0.04501347824 | N21: 0.04501347824 | O21: 0.04501347824 | P21: =O21 -> 0.04501347824 | Q21: 0.04501347824 | R21: 0.04501347824 | S21: 0.04501347824 | U21: =U20 -> 11
F22: 132kV/EHV | G22: % | U22: =U21 -> 11
F23: EHV | G23: % | J23: =CHOOSE(year_selection, L23,M23,N23,O23,P23,Q23,R23,S23) -> 0.07901764269 | L23: 0.07901764269 | M23: 0.07901764269 | N23: 0.07901764269 | O23: 0.07901764269 | P23: =O23 -> 0.07901764269 | Q23: 0.07901764269 | R23: 0.07901764269 | S23: 0.07901764269 | U23: 11
F24: EHV/HV | G24: % | U24: 11
F25: 132kV/HV | G25: % | U25: 11
F26: HV | G26: % | J26: =CHOOSE(year_selection, L26,M26,N26,O26,P26,Q26,R26,S26) -> 0.34 | L26: 0.34 | M26: 0.34 | N26: 0.34 | O26: 0.34 | P26: =O26 -> 0.34 | Q26: =P26 -> 0.34 | R26: 0.34 | S26: 0.34 | U26: 11
F27: HV/LV | G27: % | U27: 11
F28: LV circuits | G28: % | U28: 11
C30: =INDEX('Version control'!$H$34:$H$60,MATCH($A$1,'Version control'!$F$34:$F$60,0),1)&"-B: Proportion of EHV/HV load going through 132kV/HV direct transformation" -> Input 502-B: Proportion of EHV/HV load going through 132kV/HV direct transformation
E32: Proportion of EHV/HV load going through 132kV/HV direct transformation
F33: Transmission exit | G33: %
F34: GSPs | G34: % | U34: =U20+2 -> 13
F35: 132kV | G35: % | U35: =U21+2 -> 13
F36: 132kV/EHV | G36: % | U36: 13
F37: EHV | G37: % | U37: 13
F38: EHV/HV | G38: % | U38: 13
F39: 132kV/HV | G39: % | J39: =CHOOSE(year_selection, L39,M39,N39,O39,P39,Q39,R39,S39) -> 0.07504434271 | L39: 0.07504434271 | M39: 0.07504434271 | N39: 0.07504434271 | O39: 0.07504434271 | P39: =O39 -> 0.07504434271 | Q39: =P39 -> 0.07504434271 | R39: 0.07504434271 | S39: 0.07504434271 | U39: 13
F40: HV | G40: % | U40: 13
F41: HV/LV | G41: % | U41: 13
F42: LV circuits | G42: % | U42: 13
C44: =INDEX('Version control'!$H$34:$H$60,MATCH($A$1,'Version control'!$F$34:$F$60,0),1)&"-C: Loss adjustment factors to transmission" -> Input 502-C: Loss adjustment factors to transmission
E46: Loss adjustment factors to transmission | I46: > | U46: Paragraph 47
F47: Transmission exit | G47: scalar
F48: GSPs | G48: scalar | J48: =CHOOSE(year_selection, L48,M48,N48,O48,P48,Q48,R48,S48) -> 1 | L48: 1 | M48: 1 | N48: 1 | O48: 1 | P48: =O48 -> 1 | Q48: 1 | R48: 1 | S48: 1 | U48: =U34+2 -> 15
F49: 132kV | G49: scalar | J49: =CHOOSE(year_selection, L49,M49,N49,O49,P49,Q49,R49,S49) -> 1.003 | L49: 1.002 | M49: 1.002 | N49: 1.003 | O49: 1.003 | P49: =O49 -> 1.003 | Q49: 1.003 | R49: 1.003 | S49: 1.003 | U49: =U35+2 -> 15
F50: 132kV/EHV | G50: scalar | J50: =CHOOSE(year_selection, L50,M50,N50,O50,P50,Q50,R50,S50) -> 1.006 | L50: 1.008 | M50: 1.008 | N50: 1.006 | O50: 1.006 | P50: =O50 -> 1.006 | Q50: 1.006 | R50: 1.006 | S50: 1.006 | U50: 15
F51: EHV | G51: scalar | J51: =CHOOSE(year_selection, L51,M51,N51,O51,P51,Q51,R51,S51) -> 1.014 | L51: 1.01 | M51: 1.01 | N51: 1.014 | O51: 1.014 | P51: =O51 -> 1.014 | Q51: 1.014 | R51: 1.014 | S51: 1.014 | U51: 15
F52: EHV/HV | G52: scalar | J52: =CHOOSE(year_selection, L52,M52,N52,O52,P52,Q52,R52,S52) -> 1.02 | L52: 1.018 | M52: 1.018 | N52: 1.02 | O52: 1.02 | P52: =O52 -> 1.02 | Q52: 1.02 | R52: 1.02 | S52: 1.02 | U52: 15
F53: 132kV/HV | G53: scalar | U53: 15
F54: HV | G54: scalar | J54: =CHOOSE(year_selection, L54,M54,N54,O54,P54,Q54,R54,S54) -> 1.036 | L54: 1.034 | M54: 1.034 | N54: 1.036 | O54: 1.036 | P54: =O54 -> 1.036 | Q54: 1.036 | R54: 1.036 | S54: 1.036 | U54: 15
F55: HV/LV | G55: scalar | J55: =CHOOSE(year_selection, L55,M55,N55,O55,P55,Q55,R55,S55) -> 1.047 | L55: 1.05 | M55: 1.05 | N55: 1.047 | O55: 1.047 | P55: =O55 -> 1.047 | Q55: 1.047 | R55: 1.047 | S55: 1.047 | U55: 15
F56: LV circuits | G56: scalar | J56: =CHOOSE(year_selection, L56,M56,N56,O56,P56,Q56,R56,S56) -> 1.078 | L56: 1.08 | M56: 1.08 | N56: 1.078 | O56: 1.078 | P56: =O56 -> 1.078 | Q56: 1.078 | R56: 1.078 | S56: 1.078 | U56: 15
C58: =INDEX('Version control'!$H$34:$H$60,MATCH($A$1,'Version control'!$F$34:$F$60,0),1)&"-D: Average kVAr by kVA, by network level" -> Input 502-D: Average kVAr by kVA, by network level
E60: Average kVAr by kVA, by network level | I60: > | U60: Paragraphs 50 to 51
F61: Transmission exit | G61: kVAr/ kVA
F62: GSPs | G62: kVAr/ kVA | J62: =CHOOSE(year_selection, L62,M62,N62,O62,P62,Q62,R62,S62) -> 0.2231987844 | L62: 0.2147534319 | M62: 0.1748899836 | N62: 0.204927761 | O62: 0.2231987844 | P62: =O62 -> 0.2231987844 | Q62: 0.2231987844 | R62: 0.2231987844 | S62: 0.2231987844 | U62: =U48+2 -> 17
F63: 132kV | G63: kVAr/ kVA | J63: 0.2231987844 | L63: 0.2147534319 | M63: 0.1748899836 | N63: 0.204927761 | O63: 0.2231987844 | P63: =O63 -> 0.2231987844 | Q63: 0.2231987844 | R63: 0.2231987844 | S63: 0.2231987844 | U63: =U49+2 -> 17
F64: 132kV/EHV | G64: kVAr/ kVA | J64: 0.2231987844 | L64: 0.2147534319 | M64: 0.1748899836 | N64: 0.204927761 | O64: 0.2231987844 | P64: =O64 -> 0.2231987844 | Q64: 0.2231987844 | R64: 0.2231987844 | S64: 0.2231987844 | U64: 17
F65: EHV | G65: kVAr/ kVA | J65: 0.2231987844 | L65: 0.2147534319 | M65: 0.1748899836 | N65: 0.204927761 | O65: 0.2231987844 | P65: =O65 -> 0.2231987844 | Q65: 0.2231987844 | R65: 0.2231987844 | S65: 0.2231987844 | U65: 17
F66: EHV/HV | G66: kVAr/ kVA | J66: 0.2231987844 | L66: 0.2147534319 | M66: 0.1748899836 | N66: 0.204927761 | O66: 0.2231987844 | P66: =O66 -> 0.2231987844 | Q66: 0.2231987844 | R66: 0.2231987844 | S66: 0.2231987844 | U66: 17
F67: 132kV/HV | G67: kVAr/ kVA | J67: 0.2231987844 | L67: 0.2147534319 | M67: 0.1748899836 | N67: 0.204927761 | O67: 0.2231987844 | P67: =O67 -> 0.2231987844 | Q67: 0.2231987844 | R67: 0.2231987844 | S67: 0.2231987844 | U67: 17
F68: HV | G68: kVAr/ kVA | J68: 0.2231987844 | L68: 0.2147534319 | M68: 0.1748899836 | N68: 0.204927761 | O68: 0.2231987844 | P68: =O68 -> 0.2231987844 | Q68: 0.2231987844 | R68: 0.2231987844 | S68: 0.2231987844 | U68: 17
F69: HV/LV | G69: kVAr/ kVA | J69: 0.2231987844 | L69: 0.2147534319 | M69: 0.1748899836 | N69: 0.204927761 | O69: 0.2231987844 | P69: =O69 -> 0.2231987844 | Q69: 0.2231987844 | R69: 0.2231987844 | S69: 0.2231987844 | U69: 17
F70: LV circuits | G70: kVAr/ kVA | J70: 0.2231987844 | L70: 0.2147534319 | M70: 0.1748899836 | N70: 0.204927761 | O70: 0.2231987844 | P70: =O70 -> 0.2231987844 | Q70: 0.2231987844 | R70: 0.2231987844 | S70: 0.2231987844 | U70: 17
C72: =INDEX('Version control'!$H$34:$H$60,MATCH($A$1,'Version control'!$F$34:$F$60,0),1)&"-E: Customer contributions under current connection charging policy" -> Input 502-E: Customer contributions under current connection charging policy
D74: Customer contributions under current connection charging policy | I74: > | U74: Paragraphs 29 to 31
E75: LV network
F76: Transmission exit | G76: %
F77: GSPs | G77: % | U77: =U62+5 -> 22
F78: 132kV | G78: % | J78: =CHOOSE(year_selection, L78,M78,N78,O78,P78,Q78,R78,S78) -> 0 | L78: 0 | M78: 0 | N78: 0 | O78: 0 | P78: =O78 -> 0 | Q78: 0 | R78: 0 | S78: 0 | U78: =U63+5 -> 22
F79: 132kV/EHV | G79: % | J79: 0 | L79: 0 | M79: 0 | N79: 0 | O79: 0 | P79: =O79 -> 0 | Q79: 0 | R79: 0 | S79: 0 | U79: 22
F80: EHV | G80: % | J80: 0 | L80: 0 | M80: 0 | N80: 0 | O80: 0 | P80: =O80 -> 0 | Q80: 0 | R80: 0 | S80: 0 | U80: 22
F81: EHV/HV | G81: % | J81: 0 | L81: 0 | M81: 0 | N81: 0 | O81: 0 | P81: =O81 -> 0 | Q81: 0 | R81: 0 | S81: 0 | U81: 22
F82: 132kV/HV | G82: % | J82: 0 | L82: 0 | M82: 0 | N82: 0 | O82: 0 | P82: =O82 -> 0 | Q82: 0 | R82: 0 | S82: 0 | U82: 22
F83: HV | G83: % | J83: 0.479133519 | L83: 0.479133519 | M83: 0.479133519 | N83: 0.479133519 | O83: 0.479133519 | P83: =O83 -> 0.479133519 | Q83: 0.479133519 | R83: 0.479133519 | S83: 0.479133519 | U83: 22
F84: HV/LV | G84: % | J84: 0.7089238456 | L84: 0.7089238456 | M84: 0.7089238456 | N84: 0.7089238456 | O84: 0.7089238456 | P84: =O84 -> 0.7089238456 | Q84: 0.7089238456 | R84: 0.7089238456 | S84: 0.7089238456 | U84: 22
F85: LV circuits | G85: % | J85: 0.9387141723 | L85: 0.9387141723 | M85: 0.9387141723 | N85: 0.9387141723 | O85: 0.9387141723 | P85: =O85 -> 0.9387141723 | Q85: 0.9387141723 | R85: 0.9387141723 | S85: 0.9387141723 | U85: 22
E86: LV substation
F87: Transmission exit | G87: %
F88: GSPs | G88: % | U88: =U77+1 -> 23
F89: 132kV | G89: % | J89: =CHOOSE(year_selection, L89,M89,N89,O89,P89,Q89,R89,S89) -> 0 | L89: 0 | M89: 0 | N89: 0 | O89: 0 | P89: =O89 -> 0 | Q89: 0 | R89: 0 | S89: 0 | U89: =U78+1 -> 23
F90: 132kV/EHV | G90: % | J90: 0 | L90: 0 | M90: 0 | N90: 0 | O90: 0 | P90: =O90 -> 0 | Q90: 0 | R90: 0 | S90: 0 | U90: 23
F91: EHV | G91: % | J91: 0 | L91: 0 | M91: 0 | N91: 0 | O91: 0 | P91: =O91 -> 0 | Q91: 0 | R91: 0 | S91: 0 | U91: 23
F92: EHV/HV | G92: % | J92: 0 | L92: 0 | M92: 0 | N92: 0 | O92: 0 | P92: =O92 -> 0 | Q92: 0 | R92: 0 | S92: 0 | U92: 23
F93: 132kV/HV | G93: % | J93: 0 | L93: 0 | M93: 0 | N93: 0 | O93: 0 | P93: =O93 -> 0 | Q93: 0 | R93: 0 | S93: 0 | U93: 23
F94: HV | G94: % | J94: 0.479133519 | L94: 0.479133519 | M94: 0.479133519 | N94: 0.479133519 | O94: 0.479133519 | P94: =O94 -> 0.479133519 | Q94: 0.479133519 | R94: 0.479133519 | S94: 0.479133519 | U94: 23
F95: HV/LV | G95: % | J95: 0.7089238456 | L95: 0.7089238456 | M95: 0.7089238456 | N95: 0.7089238456 | O95: 0.7089238456 | P95: =O95 -> 0.7089238456 | Q95: 0.7089238456 | R95: 0.7089238456 | S95: 0.7089238456 | U95: 23
F96: LV circuits | G96: % | U96: 23
E97: HV network
F98: Transmission exit | G98: %
F99: GSPs | G99: % | U99: =U88+1 -> 24
F100: 132kV | G100: % | J100: =CHOOSE(year_selection, L100,M100,N100,O100,P100,Q100,R100,S100) -> 0 | L100: 0 | M100: 0 | N100: 0 | O100: 0 | P100: =O100 -> 0 | Q100: 0 | R100: 0 | S100: 0 | U100: =U89+1 -> 24
F101: 132kV/EHV | G101: % | J101: 0 | L101: 0 | M101: 0 | N101: 0 | O101: 0 | P101: =O101 -> 0 | Q101: 0 | R101: 0 | S101: 0 | U101: 24
F102: EHV | G102: % | J102: 0.06542004956 | L102: 0.06542004956 | M102: 0.06542004956 | N102: 0.06542004956 | O102: 0.06542004956 | P102: =O102 -> 0.06542004956 | Q102: 0.06542004956 | R102: 0.06542004956 | S102: 0.06542004956 | U102: 24
F103: EHV/HV | G103: % | J103: 0.3516296229 | L103: 0.3516296229 | M103: 0.3516296229 | N103: 0.3516296229 | O103: 0.3516296229 | P103: =O103 -> 0.3516296229 | Q103: 0.3516296229 | R103: 0.3516296229 | S103: 0.3516296229 | U103: 24
F104: 132kV/HV | G104: % | J104: 0.3516296229 | L104: 0.3516296229 | M104: 0.3516296229 | N104: 0.3516296229 | O104: 0.3516296229 | P104: =O104 -> 0.3516296229 | Q104: 0.3516296229 | R104: 0.3516296229 | S104: 0.3516296229 | U104: 24
F105: HV | G105: % | J105: 0.6378391962 | L105: 0.6378391962 | M105: 0.6378391962 | N105: 0.6378391962 | O105: 0.6378391962 | P105: =O105 -> 0.6378391962 | Q105: 0.6378391962 | R105: 0.6378391962 | S105: 0.6378391962 | U105: 24
F106: HV/LV | G106: % | U106: 24
F107: LV circuits | G107: % | U107: 24
E108: HV substation
F109: Transmission exit | G109: %
F110: GSPs | G110: % | U110: =U99+1 -> 25
F111: 132kV | G111: % | J111: =CHOOSE(year_selection, L111,M111,N111,O111,P111,Q111,R111,S111) -> 0 | L111: 0 | M111: 0 | N111: 0 | O111: 0 | P111: =O111 -> 0 | Q111: 0 | R111: 0 | S111: 0 | U111: =U100+1 -> 25
F112: 132kV/EHV | G112: % | J112: 0 | L112: 0 | M112: 0 | N112: 0 | O112: 0 | P112: =O112 -> 0 | Q112: 0 | R112: 0 | S112: 0 | U112: 25
F113: EHV | G113: % | J113: 0.06542004956 | L113: 0.06542004956 | M113: 0.06542004956 | N113: 0.06542004956 | O113: 0.06542004956 | P113: =O113 -> 0.06542004956 | Q113: 0.06542004956 | R113: 0.06542004956 | S113: 0.06542004956 | U113: 25
F114: EHV/HV | G114: % | J114: 0.3516296229 | L114: 0.3516296229 | M114: 0.3516296229 | N114: 0.3516296229 | O114: 0.3516296229 | P114: =O114 -> 0.3516296229 | Q114: 0.3516296229 | R114: 0.3516296229 | S114: 0.3516296229 | U114: 25
F115: 132kV/HV | G115: % | U115: 25
F116: HV | G116: % | U116: 25
F117: HV/LV | G117: % | U117: 25
F118: LV circuits | G118: % | U118: 25
C120: =INDEX('Version control'!$H$34:$H$60,MATCH($A$1,'Version control'!$F$34:$F$60,0),1)&"-F: Gross asset cost by network level" -> Input 502-F: Gross asset cost by network level
E122: Gross asset cost by network level
F123: Transmission exit | G123: £
F124: GSPs | G124: £ | U124: =U110+4 -> 29
F125: 132kV | G125: £ | J125: =CHOOSE(year_selection, L125,M125,N125,O125,P125,Q125,R125,S125) -> 55914776.24 | L125: 57679128.79 | M125: 56518353.98 | N125: 56512948.07 | O125: 55914776.24 | P125: =O125*'ARP_General inputs'!P$46/'ARP_General inputs'!O$46 -> 57688440.83 | Q125: =P125*'ARP_General inputs'!Q$46/'ARP_General inputs'!P$46 -> 59518367.58 | R125: =Q125*'ARP_General inputs'!R$46/'ARP_General inputs'!Q$46 -> 61406341.18 | S125: =R125*'ARP_General inputs'!S$46/'ARP_General inputs'!R$46 -> 63354202.91 | U125: =U111+4 -> 29
F126: 132kV/EHV | G126: £ | J126: 29214948.85 | L126: 29030907.45 | M126: 28721335.71 | N126: 29527488.05 | O126: 29214948.85 | P126: =O126*'ARP_General inputs'!P$46/'ARP_General inputs'!O$46 -> 30141672.05 | Q126: =P126*'ARP_General inputs'!Q$46/'ARP_General inputs'!P$46 -> 31097791.7 | R126: =Q126*'ARP_General inputs'!R$46/'ARP_General inputs'!Q$46 -> 32084240.29 | S126: =R126*'ARP_General inputs'!S$46/'ARP_General inputs'!R$46 -> 33101979.87 | U126: 29
F127: EHV | G127: £ | J127: 36091113.73 | L127: 35386115.1 | M127: 35107370.34 | N127: 36477213.59 | O127: 36091113.73 | P127: =O127*'ARP_General inputs'!P$46/'ARP_General inputs'!O$46 -> 37235954.77 | Q127: =P127*'ARP_General inputs'!Q$46/'ARP_General inputs'!P$46 -> 38417111.15 | R127: =Q127*'ARP_General inputs'!R$46/'ARP_General inputs'!Q$46 -> 39635734.81 | S127: =R127*'ARP_General inputs'!S$46/'ARP_General inputs'!R$46 -> 40893014.27 | U127: 29
F128: EHV/HV | G128: £ | J128: 58060293.78 | L128: 57337925.42 | M128: 56993035.86 | N128: 58681418.18 | O128: 58060293.78 | P128: =O128*'ARP_General inputs'!P$46/'ARP_General inputs'!O$46 -> 59902016.03 | Q128: =P128*'ARP_General inputs'!Q$46/'ARP_General inputs'!P$46 -> 61802159.28 | R128: =Q128*'ARP_General inputs'!R$46/'ARP_General inputs'!Q$46 -> 63762576.7 | S128: =R128*'ARP_General inputs'!S$46/'ARP_General inputs'!R$46 -> 65785180.25 | U128: 29
F129: 132kV/HV | G129: £ | J129: 4889083.675 | L129: 4821054.875 | M129: 4780051.294 | N129: 4941386.704 | O129: 4889083.675 | P129: =O129*'ARP_General inputs'!P$46/'ARP_General inputs'!O$46 -> 5044169.597 | Q129: =P129*'ARP_General inputs'!Q$46/'ARP_General inputs'!P$46 -> 5204174.977 | R129: =Q129*'ARP_General inputs'!R$46/'ARP_General inputs'!Q$46 -> 5369255.864 | S129: =R129*'ARP_General inputs'!S$46/'ARP_General inputs'!R$46 -> 5539573.259 | U129: 29
F130: HV | G130: £ | J130: 133760976.4 | L130: 143411384.4 | M130: 135229188.2 | N130: 135191940.7 | O130: 133760976.4 | P130: =O130*'ARP_General inputs'!P$46/'ARP_General inputs'!O$46 -> 138003989.1 | Q130: =P130*'ARP_General inputs'!Q$46/'ARP_General inputs'!P$46 -> 142381593.8 | R130: =Q130*'ARP_General inputs'!R$46/'ARP_General inputs'!Q$46 -> 146898059.9 | S130: =R130*'ARP_General inputs'!S$46/'ARP_General inputs'!R$46 -> 151557792.2 | U130: 29
F131: HV/LV | G131: £ | J131: 61229373.39 | L131: 60907419.75 | M131: 61125988.26 | N131: 61884400.36 | O131: 61229373.39 | P131: =O131*'ARP_General inputs'!P$46/'ARP_General inputs'!O$46 -> 63171621.56 | Q131: =P131*'ARP_General inputs'!Q$46/'ARP_General inputs'!P$46 -> 65175479.5 | R131: =Q131*'ARP_General inputs'!R$46/'ARP_General inputs'!Q$46 -> 67242901.53 | S131: =R131*'ARP_General inputs'!S$46/'ARP_General inputs'!R$46 -> 69375903.96 | U131: 29
F132: LV circuits | G132: £ | J132: 122042790.6 | L132: 120192375.8 | M132: 118958510.7 | N132: 123348394.7 | O132: 122042790.6 | P132: =O132*'ARP_General inputs'!P$46/'ARP_General inputs'!O$46 -> 125914092.5 | Q132: =P132*'ARP_General inputs'!Q$46/'ARP_General inputs'!P$46 -> 129908195.3 | R132: =Q132*'ARP_General inputs'!R$46/'ARP_General inputs'!Q$46 -> 134028994.6 | S132: =R132*'ARP_General inputs'!S$46/'ARP_General inputs'!R$46 -> 138280509 | U132: 29
C134: =INDEX('Version control'!$H$34:$H$60,MATCH($A$1,'Version control'!$F$34:$F$60,0),1)&"-G: Peaking probabilities, by timeband & network level" -> Input 502-G: Peaking probabilities, by timeband & network level
C136: Red, Amber & Green peaking probabilities must sum to 100%, except for unused network levels, which should sum to 0%
E138: Red peaking probabilities, by network level | I138: > | U138: Paragraphs 48 to 49
F139: Transmission exit | G139: %
F140: GSPs | G140: % | J140: =CHOOSE(year_selection, L140,M140,N140,O140,P140,Q140,R140,S140) -> 0.8638018299 | L140: 0.9826022009 | M140: 1 | N140: 0.8892508143 | O140: =HLOOKUP(F140,'ARP_Peaking probabilities'!K$5:S45,U140,FALSE) -> 0.8638018299 | P140: =O140 -> 0.8638018299 | Q140: 0.8638018299 | R140: 0.8638018299 | S140: 0.8638018299 | U140: 23
F141: 132kV | G141: % | J141: 0.7410687627 | L141: 0.8364835089 | M141: 0.7808365749 | N141: 0.773423042 | O141: =HLOOKUP(F141,'ARP_Peaking probabilities'!K$5:S46,U141,FALSE) -> 0.7410687627 | P141: =O141 -> 0.7410687627 | Q141: 0.7410687627 | R141: 0.7410687627 | S141: 0.7410687627 | U141: =U140 -> 23
F142: 132kV/EHV | G142: % | J142: 0.7410687627 | L142: 0.8364835089 | M142: 0.7808365749 | N142: 0.773423042 | O142: =HLOOKUP(F142,'ARP_Peaking probabilities'!K$5:S47,U142,FALSE) -> 0.7410687627 | P142: =O142 -> 0.7410687627 | Q142: 0.7410687627 | R142: 0.7410687627 | S142: 0.7410687627 | U142: =U141 -> 23
F143: EHV | G143: % | J143: 0.6226809993 | L143: 0.6706119937 | M143: 0.6632160394 | N143: 0.649912373 | O143: =HLOOKUP(F143,'ARP_Peaking probabilities'!K$5:S48,U143,FALSE) -> 0.6226809993 | P143: =O143 -> 0.6226809993 | Q143: 0.6226809993 | R143: 0.6226809993 | S143: 0.6226809993 | U143: 23
F144: EHV/HV | G144: % | J144: 0.6226809993 | L144: 0.6706119937 | M144: 0.6632160394 | N144: 0.649912373 | O144: =HLOOKUP(F144,'ARP_Peaking probabilities'!K$5:S49,U144,FALSE) -> 0.6226809993 | P144: =O144 -> 0.6226809993 | Q144: 0.6226809993 | R144: 0.6226809993 | S144: 0.6226809993 | U144: 23
F145: 132kV/HV | G145: % | J145: 0.7410687627 | L145: 0.8364835089 | M145: 0.7808365749 | N145: 0.773423042 | O145: =HLOOKUP(F145,'ARP_Peaking probabilities'!K$5:S50,U145,FALSE) -> 0.7410687627 | P145: =O145 -> 0.7410687627 | Q145: 0.7410687627 | R145: 0.7410687627 | S145: 0.7410687627 | U145: 23
F146: HV | G146: % | J146: 0.6226809993 | L146: 0.6706119937 | M146: 0.6632160394 | N146: 0.649912373 | O146: =HLOOKUP(F146,'ARP_Peaking probabilities'!K$5:S51,U146,FALSE) -> 0.6226809993 | P146: =O146 -> 0.6226809993 | Q146: 0.6226809993 | R146: 0.6226809993 | S146: 0.6226809993 | U146: 23
F147: HV/LV | G147: % | J147: 0.6226809993 | L147: 0.6706119937 | M147: 0.6632160394 | N147: 0.649912373 | O147: =HLOOKUP(F147,'ARP_Peaking probabilities'!K$5:S52,U147,FALSE) -> 0.6226809993 | P147: =O147 -> 0.6226809993 | Q147: 0.6226809993 | R147: 0.6226809993 | S147: 0.6226809993 | U147: 23
F148: LV circuits | G148: % | J148: 0.6226809993 | L148: 0.6706119937 | M148: 0.6632160394 | N148: 0.649912373 | O148: =HLOOKUP(F148,'ARP_Peaking probabilities'!K$5:S53,U148,FALSE) -> 0.6226809993 | P148: =O148 -> 0.6226809993 | Q148: 0.6226809993 | R148: 0.6226809993 | S148: 0.6226809993 | U148: 23
E150: Amber peaking probabilities, by network level | I150: > | U150: Paragraphs 48 to 49
F151: Transmission exit | G151: %
F152: GSPs | G152: % | J152: =CHOOSE(year_selection, L152,M152,N152,O152,P152,Q152,R152,S152) -> 0.1361981701 | L152: 0 | M152: 0 | N152: 0.1107491857 | O152: =HLOOKUP(F152,'ARP_Peaking probabilities'!K$5:S57,U152,FALSE) -> 0.1361981701 | P152: =O152 -> 0.1361981701 | Q152: 0.1361981701 | R152: 0.1361981701 | S152: 0.1361981701 | U152: =U140+6 -> 29
F153: 132kV | G153: % | J153: 0.2381512701 | L153: 0.1499101701 | M153: 0.2080416046 | N153: 0.2119391534 | O153: =HLOOKUP(F153,'ARP_Peaking probabilities'!K$5:S58,U153,FALSE) -> 0.2381512701 | P153: =O153 -> 0.2381512701 | Q153: 0.2381512701 | R153: 0.2381512701 | S153: 0.2381512701 | U153: =U141+6 -> 29
F154: 132kV/EHV | G154: % | J154: 0.2381512701 | L154: 0.1499101701 | M154: 0.2080416046 | N154: 0.2119391534 | O154: =HLOOKUP(F154,'ARP_Peaking probabilities'!K$5:S59,U154,FALSE) -> 0.2381512701 | P154: =O154 -> 0.2381512701 | Q154: 0.2381512701 | R154: 0.2381512701 | S154: 0.2381512701 | U154: 29
F155: EHV | G155: % | J155: 0.3336072936 | L155: 0.2875482766 | M155: 0.297869872 | N155: 0.3089188255 | O155: =HLOOKUP(F155,'ARP_Peaking probabilities'!K$5:S60,U155,FALSE) -> 0.3336072936 | P155: =O155 -> 0.3336072936 | Q155: 0.3336072936 | R155: 0.3336072936 | S155: 0.3336072936 | U155: 29
F156: EHV/HV | G156: % | J156: 0.3336072936 | L156: 0.2875482766 | M156: 0.297869872 | N156: 0.3089188255 | O156: =HLOOKUP(F156,'ARP_Peaking probabilities'!K$5:S61,U156,FALSE) -> 0.3336072936 | P156: =O156 -> 0.3336072936 | Q156: 0.3336072936 | R156: 0.3336072936 | S156: 0.3336072936 | U156: 29
F157: 132kV/HV | G157: % | J157: 0.2381512701 | L157: 0.1499101701 | M157: 0.2080416046 | N157: 0.2119391534 | O157: =HLOOKUP(F157,'ARP_Peaking probabilities'!K$5:S62,U157,FALSE) -> 0.2381512701 | P157: =O157 -> 0.2381512701 | Q157: 0.2381512701 | R157: 0.2381512701 | S157: 0.2381512701 | U157: 29
F158: HV | G158: % | J158: 0.3336072936 | L158: 0.2875482766 | M158: 0.297869872 | N158: 0.3089188255 | O158: =HLOOKUP(F158,'ARP_Peaking probabilities'!K$5:S63,U158,FALSE) -> 0.3336072936 | P158: =O158 -> 0.3336072936 | Q158: 0.3336072936 | R158: 0.3336072936 | S158: 0.3336072936 | U158: 29
F159: HV/LV | G159: % | J159: 0.3336072936 | L159: 0.2875482766 | M159: 0.297869872 | N159: 0.3089188255 | O159: =HLOOKUP(F159,'ARP_Peaking probabilities'!K$5:S64,U159,FALSE) -> 0.3336072936 | P159: =O159 -> 0.3336072936 | Q159: 0.3336072936 | R159: 0.3336072936 | S159: 0.3336072936 | U159: 29
F160: LV circuits | G160: % | J160: 0.3336072936 | L160: 0.2875482766 | M160: 0.297869872 | N160: 0.3089188255 | O160: =HLOOKUP(F160,'ARP_Peaking probabilities'!K$5:S65,U160,FALSE) -> 0.3336072936 | P160: =O160 -> 0.3336072936 | Q160: 0.3336072936 | R160: 0.3336072936 | S160: 0.3336072936 | U160: 29
E162: Green peaking probabilities, by network level | I162: > | U162: Paragraphs 48 to 49
F163: Transmission exit | G163: %
F164: GSPs | G164: % | J164: =CHOOSE(year_selection, L164,M164,N164,O164,P164,Q164,R164,S164) -> 0 | L164: 0.01739779907 | M164: 0 | N164: 0 | O164: =HLOOKUP(F164,'ARP_Peaking probabilities'!K$5:S69,U164,FALSE) -> 0 | P164: =O164 -> 0 | Q164: 0 | R164: 0 | S164: 0 | U164: =U152+6 -> 35
F165: 132kV | G165: % | J165: 0.02077996718 | L165: 0.01360632097 | M165: 0.01112182054 | N165: 0.01463780454 | O165: =HLOOKUP(F165,'ARP_Peaking probabilities'!K$5:S70,U165,FALSE) -> 0.02077996718 | P165: =O165 -> 0.02077996718 | Q165: 0.02077996718 | R165: 0.02077996718 | S165: 0.02077996718 | U165: =U153+6 -> 35
F166: 132kV/EHV | G166: % | J166: 0.02077996718 | L166: 0.01360632097 | M166: 0.01112182054 | N166: 0.01463780454 | O166: =HLOOKUP(F166,'ARP_Peaking probabilities'!K$5:S71,U166,FALSE) -> 0.02077996718 | P166: =O166 -> 0.02077996718 | Q166: 0.02077996718 | R166: 0.02077996718 | S166: 0.02077996718 | U166: 35
F167: EHV | G167: % | J167: 0.04371170716 | L167: 0.04183972972 | M167: 0.03891408863 | N167: 0.04116880152 | O167: =HLOOKUP(F167,'ARP_Peaking probabilities'!K$5:S72,U167,FALSE) -> 0.04371170716 | P167: =O167 -> 0.04371170716 | Q167: 0.04371170716 | R167: 0.04371170716 | S167: 0.04371170716 | U167: 35
F168: EHV/HV | G168: % | J168: 0.04371170716 | L168: 0.04183972972 | M168: 0.03891408863 | N168: 0.04116880152 | O168: =HLOOKUP(F168,'ARP_Peaking probabilities'!K$5:S73,U168,FALSE) -> 0.04371170716 | P168: =O168 -> 0.04371170716 | Q168: 0.04371170716 | R168: 0.04371170716 | S168: 0.04371170716 | U168: 35
F169: 132kV/HV | G169: % | J169: 0.02077996718 | L169: 0.01360632097 | M169: 0.01112182054 | N169: 0.01463780454 | O169: =HLOOKUP(F169,'ARP_Peaking probabilities'!K$5:S74,U169,FALSE) -> 0.02077996718 | P169: =O169 -> 0.02077996718 | Q169: 0.02077996718 | R169: 0.02077996718 | S169: 0.02077996718 | U169: 35
F170: HV | G170: % | J170: 0.04371170716 | L170: 0.04183972972 | M170: 0.03891408863 | N170: 0.04116880152 | O170: =HLOOKUP(F170,'ARP_Peaking probabilities'!K$5:S75,U170,FALSE) -> 0.04371170716 | P170: =O170 -> 0.04371170716 | Q170: 0.04371170716 | R170: 0.04371170716 | S170: 0.04371170716 | U170: 35
F171: HV/LV | G171: % | J171: 0.04371170716 | L171: 0.04183972972 | M171: 0.03891408863 | N171: 0.04116880152 | O171: =HLOOKUP(F171,'ARP_Peaking probabilities'!K$5:S76,U171,FALSE) -> 0.04371170716 | P171: =O171 -> 0.04371170716 | Q171: 0.04371170716 | R171: 0.04371170716 | S171: 0.04371170716 | U171: 35
F172: LV circuits | G172: % | J172: 0.04371170716 | L172: 0.04183972972 | M172: 0.03891408863 | N172: 0.04116880152 | O172: =HLOOKUP(F172,'ARP_Peaking probabilities'!K$5:S77,U172,FALSE) -> 0.04371170716 | P172: =O172 -> 0.04371170716 | Q172: 0.04371170716 | R172: 0.04371170716 | S172: 0.04371170716 | U172: 35
E174: Black peaking probabilities, by network level
F175: Transmission exit | G175: %
F176: GSPs | G176: % | J176: =CHOOSE(year_selection, L176,M176,N176,O176,P176,Q176,R176,S176) -> 0.7301794974 | L176: 0.9826022009 | M176: 1 | N176: 0.7728428179 | O176: =HLOOKUP(F176,'ARP_Peaking probabilities'!K$5:S81,U176,FALSE) -> 0.7301794974 | P176: =O176 -> 0.7301794974 | Q176: 0.7301794974 | R176: 0.7301794974 | S176: 0.7301794974 | U176: =U164+6 -> 41
F177: 132kV | G177: % | J177: 0.7117602951 | L177: 0.8331370982 | M177: 0.7676454137 | N177: 0.7442444491 | O177: =HLOOKUP(F177,'ARP_Peaking probabilities'!K$5:S82,U177,FALSE) -> 0.7117602951 | P177: =O177 -> 0.7117602951 | Q177: 0.7117602951 | R177: 0.7117602951 | S177: 0.7117602951 | U177: =U165+6 -> 41
F178: 132kV/EHV | G178: % | J178: 0.7117602951 | L178: 0.8331370982 | M178: 0.7676454137 | N178: 0.7442444491 | O178: =HLOOKUP(F178,'ARP_Peaking probabilities'!K$5:S83,U178,FALSE) -> 0.7117602951 | P178: =O178 -> 0.7117602951 | Q178: 0.7117602951 | R178: 0.7117602951 | S178: 0.7117602951 | U178: 41
F179: EHV | G179: % | J179: 0.6027144227 | L179: 0.6626471918 | M179: 0.6525603403 | N179: 0.6301860564 | O179: =HLOOKUP(F179,'ARP_Peaking probabilities'!K$5:S84,U179,FALSE) -> 0.6027144227 | P179: =O179 -> 0.6027144227 | Q179: 0.6027144227 | R179: 0.6027144227 | S179: 0.6027144227 | U179: 41
F180: EHV/HV | G180: % | J180: 0.6027144227 | L180: 0.6626471918 | M180: 0.6525603403 | N180: 0.6301860564 | O180: =HLOOKUP(F180,'ARP_Peaking probabilities'!K$5:S85,U180,FALSE) -> 0.6027144227 | P180: =O180 -> 0.6027144227 | Q180: 0.6027144227 | R180: 0.6027144227 | S180: 0.6027144227 | U180: 41
F181: 132kV/HV | G181: % | J181: 0.7117602951 | L181: 0.8331370982 | M181: 0.7676454137 | N181: 0.7442444491 | O181: =HLOOKUP(F181,'ARP_Peaking probabilities'!K$5:S86,U181,FALSE) -> 0.7117602951 | P181: =O181 -> 0.7117602951 | Q181: 0.7117602951 | R181: 0.7117602951 | S181: 0.7117602951 | U181: 41
F182: HV | G182: % | J182: 0.6027144227 | L182: 0.6626471918 | M182: 0.6525603403 | N182: 0.6301860564 | O182: =HLOOKUP(F182,'ARP_Peaking probabilities'!K$5:S87,U182,FALSE) -> 0.6027144227 | P182: =O182 -> 0.6027144227 | Q182: 0.6027144227 | R182: 0.6027144227 | S182: 0.6027144227 | U182: 41
F183: HV/LV | G183: % | J183: 0.6027144227 | L183: 0.6626471918 | M183: 0.6525603403 | N183: 0.6301860564 | O183: =HLOOKUP(F183,'ARP_Peaking probabilities'!K$5:S88,U183,FALSE) -> 0.6027144227 | P183: =O183 -> 0.6027144227 | Q183: 0.6027144227 | R183: 0.6027144227 | S183: 0.6027144227 | U183: 41
F184: LV circuits | G184: % | J184: 0.6027144227 | L184: 0.6626471918 | M184: 0.6525603403 | N184: 0.6301860564 | O184: =HLOOKUP(F184,'ARP_Peaking probabilities'!K$5:S89,U184,FALSE) -> 0.6027144227 | P184: =O184 -> 0.6027144227 | Q184: 0.6027144227 | R184: 0.6027144227 | S184: 0.6027144227 | U184: 41
B186: Checks
C188: Checks are not run for historic years, for which DNOs are not obliged to enter inputs.
E190: Check for error values | G190: number of issues | H190: =SUM(IF(ISERROR(H18:T185), 1)) -> 0
E192: Check that loss adjustment factor = 1 at grid supply point | G192: number of issues | H192: =SUM(L192:S192) -> 0 | O192: =IF(O48 = 1, 0, 1) -> 0 | P192: =IF(P48 = 1, 0, 1) -> 0 | Q192: =IF(Q48 = 1, 0, 1) -> 0 | R192: =IF(R48 = 1, 0, 1) -> 0 | S192: =IF(S48 = 1, 0, 1) -> 0
E194: Peaking probabilities check - General
F195: Transmission exit | G195: number of issues
F196: GSPs | G196: number of issues | H196: =SUM(L196:S196) -> 0 | O196: =IF(ABS(SUM(O140,O152,O164) - 1) < 10^-check_decimals,0,1) -> 0 | P196: =IF(ABS(SUM(P140,P152,P164) - 1) < 10^-check_decimals,0,1) -> 0 | Q196: =IF(ABS(SUM(Q140,Q152,Q164) - 1) < 10^-check_decimals,0,1) -> 0 | R196: =IF(ABS(SUM(R140,R152,R164) - 1) < 10^-check_decimals,0,1) -> 0 | S196: =IF(ABS(SUM(S140,S152,S164) - 1) < 10^-check_decimals,0,1) -> 0
F197: 132kV | G197: number of issues
F198: 132kV/EHV | G198: number of issues
F199: EHV | G199: number of issues | H199: 0 | O199: =IF(ABS(SUM(O143,O155,O167) - 1) < 10^-check_decimals,0,1) -> 0 | P199: 0 | Q199: 0 | R199: 0 | S199: 0
F200: EHV/HV | G200: number of issues | H200: 0 | O200: 0 | P200: 0 | Q200: 0 | R200: 0 | S200: 0
F201: 132kV/HV | G201: number of issues
F202: HV | G202: number of issues | H202: 0 | O202: =IF(ABS(SUM(O146,O158,O170) - 1) < 10^-check_decimals,0,1) -> 0 | P202: 0 | Q202: 0 | R202: 0 | S202: 0
F203: HV/LV | G203: number of issues | H203: 0 | O203: 0 | P203: 0 | Q203: 0 | R203: 0 | S203: 0
F204: LV circuits | G204: number of issues | H204: =SUM(L204:S204) -> 0 | O204: 0 | P204: 0 | Q204: 0 | R204: 0 | S204: 0
E206: Peaking probabilities check - 132kV/HV
F207: Transmission exit | G207: number of issues
F208: GSPs | G208: number of issues
F209: 132kV | G209: number of issues | H209: =SUM(L209:S209) -> 0 | O209: =IF(OR(ABS(SUM(O141,O153,O165) - 1) < 10^-check_decimals, ABS(SUM(O141,O153,O165) - 0) < 10^-check_decimals),0,1) -> 0 | P209: 0 | Q209: 0 | R209: 0 | S209: 0
F210: 132kV/EHV | G210: number of issues | H210: =SUM(L210:S210) -> 0 | O210: 0 | P210: 0 | Q210: 0 | R210: 0 | S210: 0
F211: EHV | G211: number of issues
F212: EHV/HV | G212: number of issues
F213: 132kV/HV | G213: number of issues | H213: =SUM(L213:S213) -> 0 | O213: =IF(OR(ABS(SUM(O145,O157,O169) - 1) < 10^-check_decimals, ABS(SUM(O145,O157,O169) - 0) < 10^-check_decimals),0,1) -> 0 | P213: =IF(OR(ABS(SUM(P145,P157,P169) - 1) < 10^-check_decimals, ABS(SUM(P145,P157,P169) - 0) < 10^-check_decimals),0,1) -> 0 | Q213: =IF(OR(ABS(SUM(Q145,Q157,Q169) - 1) < 10^-check_decimals, ABS(SUM(Q145,Q157,Q169) - 0) < 10^-check_decimals),0,1) -> 0 | R213: =IF(OR(ABS(SUM(R145,R157,R169) - 1) < 10^-check_decimals, ABS(SUM(R145,R157,R169) - 0) < 10^-check_decimals),0,1) -> 0 | S213: =IF(OR(ABS(SUM(S145,S157,S169) - 1) < 10^-check_decimals, ABS(SUM(S145,S157,S169) - 0) < 10^-check_decimals),0,1) -> 0
F214: HV | G214: number of issues
F215: HV/LV | G215: number of issues
F216: LV circuits | G216: number of issues
E218: Summary of checks | G218: number of issues | H218: =SUM(H190,H192,H195:H204,H207:H216) -> 0
B220: End of sheet

Sheet ARP_General inputs
A1: =MID(CELL("filename",A1),FIND("]",CELL("filename",A1))+1,255) -> ARP_General inputs
A2: =Cover!D21&" - "&Cover!D23 -> WPD Mid East - April 21 Prices
A3: =Cover!D2&" - "&Cover!D8&" v"&Cover!D10&" - "&Cover!D19 -> ARP model - Release for charge setting v5 - 2021/22
A4: =H124 & IF(H124 = 1, " issue", " issues") &" identified in checks on this sheet" -> 0 issues identified in checks on this sheet
J5: ="Year selected ("& charging_year_selected &")" -> Year selected (2021/22) | L5: =TRANSPOSE('ARP_User control'!G28:H35) -> 2018/19 | M5: 2019/20 | N5: 2020/21 | O5: 2021/22 | P5: 2022/23 | Q5: 2023/24 | R5: 2024/25 | S5: 2025/26
B6: Click here to return to model map | G6: Units | H6: Constants | J6: ='ARP_User control'!$H$36 -> Current | L6: Historic | M6: Historic | N6: Historic | O6: Current | P6: Forecast | Q6: Forecast | R6: Forecast | S6: Forecast | U6: Legal text reference
B8: Description
C10: This sheet sets out general inputs by year.
C11: DNOs should populate the inputs for the charging year and the four following years.
C12: DNOs can also populate the three years preceding the charging year, but are not obliged to do so.
B14: General inputs
C16: =INDEX('Version control'!$H$34:$H$60,MATCH($A$1,'Version control'!$F$34:$F$60,0),1)&"-A: Split of hours by distribution timeband" -> Input 503-A: Split of hours by distribution timeband
E18: Typical annual hours by special distribution time band | I18: > | U18: Paragraphs 40 to 41
F19: Black | G19: hours per year | J19: =CHOOSE(year_selection, L19,M19,N19,O19,P19,Q19,R19,S19) -> 258 | L19: 258 | M19: 258 | N19: 255 | O19: 258 | P19: 258 | Q19: 261 | R19: 258 | S19: 255
F20: Yellow | G20: hours per year | J20: =CHOOSE(year_selection, L20,M20,N20,O20,P20,Q20,R20,S20) -> 3265.5 | L20: 3252 | M20: 3279 | N20: 3268.5 | O20: 3265.5 | P20: 3265.5 | Q20: 3249 | R20: 3265.5 | S20: 3268.5
F21: Green | G21: hours per year | J21: =CHOOSE(year_selection, L21,M21,N21,O21,P21,Q21,R21,S21) -> 5236.5 | L21: 5250 | M21: 5247 | N21: 5236.5 | O21: 5236.5 | P21: 5236.5 | Q21: 5274 | R21: 5236.5 | S21: 5236.5
E23: Typical annual hours by distribution time band | I23: > | U23: Paragraphs 40 to 41
F24: Red | G24: hours per year | J24: =CHOOSE(year_selection, L24,M24,N24,O24,P24,Q24,R24,S24) -> 783 | L24: 780 | M24: 786 | N24: 783 | O24: 783 | P24: 783 | Q24: 780 | R24: 783 | S24: 783
F25: Amber | G25: hours per year | J25: =CHOOSE(year_selection, L25,M25,N25,O25,P25,Q25,R25,S25) -> 2740.5 | L25: 2730 | M25: 2751 | N25: 2740.5 | O25: 2740.5 | P25: 2740.5 | Q25: 2730 | R25: 2740.5 | S25: 2740.5
F26: Green | G26: hours per year | J26: =CHOOSE(year_selection, L26,M26,N26,O26,P26,Q26,R26,S26) -> 5236.5 | L26: 5250 | M26: 5247 | N26: 5236.5 | O26: 5236.5 | P26: 5236.5 | Q26: 5274 | R26: 5236.5 | S26: 5236.5
C28: =INDEX('Version control'!$H$34:$H$60,MATCH($A$1,'Version control'!$F$34:$F$60,0),1)&"-B: Embedded network (LDNO) discount percentages" -> Input 503-B: Embedded network (LDNO) discount percentages
D30: Inputs sourced from PCDM
E32: Embedded network (LDNO) discount percentages | I32: > | U32: Paragraph 53
F33: LDNO LV: LV user | G33: % | J33: =CHOOSE(year_selection, L33,M33,N33,O33,P33,Q33,R33,S33) -> 0.3050843779 | L33: 0.3014472644 | M33: 0.3003526752 | N33: 0.3044839002 | O33: 0.3050843779 | P33: =O33 -> 0.3050843779 | Q33: =P33 -> 0.3050843779 | R33: 0.3050843779 | S33: 0.3050843779
F34: LDNO HV: LV user | G34: % | J34: =CHOOSE(year_selection, L34,M34,N34,O34,P34,Q34,R34,S34) -> 0.447802573 | L34: 0.4813124308 | M34: 0.4781813948 | N34: 0.4712340036 | O34: 0.447802573 | P34: =O34 -> 0.447802573 | Q34: 0.447802573 | R34: 0.447802573 | S34: 0.447802573 | W34: NHH UMS category D | X34: LV UMS (Pseudo HH Metered) | Y34: LV Generation NHH or Aggregate HH | Z34: LV Sub Generation NHH | AA34: LV Generation Intermittent | AB34: LV Generation Intermittent no RP charge | AC34: LV Generation Non-Intermittent | AD34: LV Generation Non-Intermittent no RP charge | AE34: LV Sub Generation Intermittent | AF34: LV Sub Generation Intermittent no RP charge | AG34: LV Sub Generation Non-Intermittent | AH34: LV Sub Generation Non-Intermittent no RP charge | AI34: HV Generation Intermittent | AJ34: HV Generation Intermittent no RP charge | AK34: HV Generation Non-Intermittent | AL34: HV Generation Non-Intermittent no RP charge
F35: LDNO HV: LV Sub user | G35: % | J35: =CHOOSE(year_selection, L35,M35,N35,O35,P35,Q35,R35,S35) -> 0.1927605069 | L35: 0.2484184575 | M35: 0.2436374369 | N35: 0.2282540764 | O35: 0.1927605069 | P35: =O35 -> 0.1927605069 | Q35: 0.1927605069 | R35: 0.1927605069 | S35: 0.1927605069
F36: LDNO HV: HV user | G36: % | J36: =CHOOSE(year_selection, L36,M36,N36,O36,P36,Q36,R36,S36) -> 0.08466062657 | L36: 0.1480503478 | M36: 0.142496875 | N36: 0.125593122 | O36: 0.08466062657 | P36: =O36 -> 0.08466062657 | Q36: 0.08466062657 | R36: 0.08466062657 | S36: 0.08466062657
C38: =INDEX('Version control'!$H$34:$H$60,MATCH($A$1,'Version control'!$F$34:$F$60,0),1)&"-C: CDCM target revenue" -> Input 503-C: CDCM target revenue
D40: The contents of this section are defined in Paragraph 1.5 of Schedule 15 (Table 1). | I40: > | U40: Paragraph 54 and Schedule 15 Table 1
D41: "Latest forecast of CDCM Revenue" is the only row used as an input to the model itself
E43: Base Demand Revenue before inflation | G43: £ | J43: =CHOOSE(year_selection, L43,M43,N43,O43,P43,Q43,R43,S43) -> 427600000 | L43: 415000000 | M43: 419200000 | N43: 423300000 | O43: 427600000 | P43: 431900000 | Q43: 431900000 | R43: =Q43 -> 431900000 | S43: 431900000
E44: Annual Iteration adjustment before inflation | G44: £ | J44: -22344482.13 | L44: -13500000 | M44: -11051253.26 | N44: -17400000 | O44: -22344482.13 | P44: -26985005.4 | Q44: 0 | R44: 0 | S44: 0
E45: RPI True-up before inflation | G45: £ | J45: -3189403.836 | L45: -1594068.01 | M45: 1029693.833 | N45: -426512.9194 | O45: -3189403.836 | P45: 0 | Q45: 0 | R45: 0 | S45: 0
E46: Price index adjustment (RPI index) | G46: scalar | J46: 1.261 | L46: 1.159 | M46: 1.198 | N46: 1.223 | O46: 1.261 | P46: 1.301 | Q46: 1.342268834 | R46: =Q46/P46*Q46 -> 1.384846751 | S46: =R46/Q46*R46 -> 1.428775276
E47: Base demand revenue | G47: £ | J47: 402066114 | L47: =SUM(L43:L45) -> 399905932 | M47: =SUM(M43:M45) -> 409178440.6 | N47: =SUM(N43:N45) -> 405473487.1 | O47: 402066114 | P47: =SUM(P43:P45) -> 404914994.6 | Q47: 431900000 | R47: 431900000 | S47: 431900000
E48: Inflation adjustment | G48: £ | J48: 104939255.8 | L48: =L47 * (L46 - 1) -> 63585043.19 | M48: =M47 * (M46 - 1) -> 81017331.23 | N48: =N47 * (N46 - 1) -> 90420587.62 | O48: 104939255.8 | P48: =P47 * (P46 - 1) -> 121879413.4 | Q48: 147825909.5 | R48: 166215311.9 | S48: 185188041.8
E50: Pass-Through Licence Fees | G50: £ | J50: =CHOOSE(year_selection, L50,M50,N50,O50,P50,Q50,R50,S50) -> 541577.7345 | L50: -67882.45537 | M50: 330467.8455 | N50: 362696.4924 | O50: 541577.7345 | P50: 539067.0982 | Q50: 559122.9997 | R50: 573808.8544 | S50: 0
E51: Pass-Through Business Rates | G51: £ | J51: -32389013.76 | L51: 19407.23936 | M51: -8050131.914 | N51: -18768347.46 | O51: -32389013.76 | P51: -35394595.33 | Q51: -38490738.96 | R51: -41767455.27 | S51: 0
E52: Pass-Through Transmission Connection Point Charges | G52: £ | J52: -2815404.989 | L52: -716260.1709 | M52: -1729459.576 | N52: -2084007.813 | O52: -2815404.989 | P52: -3037689.127 | Q52: -3179245.655 | R52: -3526356.226 | S52: 0
E53: Pass-through Smart Meter Communication Licence Costs | G53: £ | J53: 1663177.944 | L53: 608912.8174 | M53: 605289.2962 | N53: 1382215.763 | O53: 1663177.944 | P53: 2464294.096 | Q53: 3109668.526 | R53: 2613776.717 | S53: 0
E54: Pass-through Smart Meter IT Costs | G54: £ | J54: 874954.9548 | L54: 106499.2126 | M54: 252648.2188 | N54: -27505.1033 | O54: 874954.9548 | P54: -367924.4881 | Q54: 4166615.064 | R54: 7996232.122 | S54: 0
E55: Pass-through Ring Fence Costs | G55: £ | J55: 52708.08217 | L55: 30516.63599 | M55: 50451.02507 | N55: 58467.34189 | O55: 52708.08217 | P55: 54309.52707 | Q55: 56364.86017 | R55: 57878.30254 | S55: 0
E56: Pass-through Supplier of Last Resort Adjustment | G56: £ | J56: 82980.66696 | L56: 0 | M56: 0 | N56: -30073.22167 | O56: 82980.66696 | P56: 165647.8255 | Q56: 0 | R56: 0 | S56: 0
E57: Pass-through Eligible Bad Debt Adjustment | G57: £ | J57: 1612387.72 | L57: 0 | M57: 0 | N57: 0 | O57: 1612387.72 | P57: 0 | Q57: 0 | S57: 0
E58: Pass-Through Others | G58: £ | J58: 0 | L58: 0 | M58: 0 | N58: 0 | O58: 0 | P58: 0 | Q58: 0 | S58: 0
E59: Allowed Pass-Through Items | G59: £ | J59: -30376631.65 | L59: =SUM(L50:L58) -> -18806.72094 | M59: -8540735.104 | N59: -19106554 | O59: =SUM(O50:O58) -> -30376631.65 | P59: =SUM(P50:P58) -> -35576890.4 | Q59: -33778213.17 | R59: -34052115.5 | S59: 0
E61: Broad Measure of Customer Service incentive | G61: £ | J61: =CHOOSE(year_selection, L61,M61,N61,O61,P61,Q61,R61,S61) -> 6611201.903 | L61: 5891502.939 | M61: 6183794.791 | N61: 6517004.527 | O61: 6611201.903 | P61: 6797692.053 | Q61: 6797692.053 | R61: =Q61 -> 6797692.053 | S61: =R61 -> 6797692.053
E62: Quality of Service incentive | G62: £ | J62: 19667991.88 | L62: 21327014.28 | M62: 18210062.62 | N62: 21968875.05 | O62: 19667991.88 | P62: 18640004.51 | Q62: 18640004.51 | R62: =Q62 -> 18640004.51 | S62: 18640004.51
E63: Connections Engagement incentive | G63: £ | J63: 0 | L63: 0 | M63: 0 | N63: 0 | O63: 0 | P63: 0 | Q63: 0 | R63: =Q63 -> 0 | S63: 0
E64: Time to Connect incentive | G64: £ | J64: 1537977.991 | L64: 1423899.22 | M64: 1797702.258 | N64: 1852632.267 | O64: 1537977.991 | P64: 1581361.592 | Q64: 0 | R64: =Q64 -> 0 | S64: 0
E65: Losses Discretionary Reward incentive | G65: £ | J65: 0 | L65: 0 | M65: 0 | N65: 0 | O65: 0 | P65: 0 | Q65: 0 | R65: =Q65 -> 0 | S65: 0
E66: Network Innovation Allowance | G66: £ | J66: 1499883.192 | L66: 1269270 | M66: 1846010.079 | N66: 2307512.601 | O66: 1499883.192 | P66: 974924.073 | Q66: 974924.073 | R66: =Q66 -> 974924.073 | S66: 974924.073
E67: Low Carbon Network Fund - Tier 1 unrecoverable | G67: £ | J67: 0 | L67: 0 | M67: 0 | N67: 0 | O67: 0 | P67: 0 | Q67: 0 | R67: =Q67 -> 0 | S67: 0
E68: Low Carbon Network Fund - Tier 2 & Discretionary Funding | G68: £ | J68: 103529.17 | L68: 753503.04 | M68: 103529.17 | N68: 103529.17 | O68: 103529.17 | P68: 103529.17 | Q68: 103529.17 | R68: =Q68 -> 103529.17 | S68: 103529.17
E69: Connection Guaranteed Standards Systems & Processes penalty | G69: £ | J69: 0 | L69: 0 | M69: 0 | N69: 0 | O69: 0 | P69: 0 | Q69: 0 | R69: =Q69 -> 0 | S69: 0
E70: Residual Losses and Growth Incentive - Losses | G70: £ | J70: 0 | L70: -3225285.133 | M70: 0 | N70: 0 | O70: 0 | P70: 0 | Q70: 0 | R70: =Q70 -> 0 | S70: 0
E71: Residual Losses and Growth Incentive - Growth | G71: £ | J71: 0 | L71: 0 | M71: 0 | N71: 0 | O71: 0 | P71: 0 | Q71: 0 | R71: =Q71 -> 0 | S71: 0
E72: Incentive Revenue and Other Adjustments | G72: £ | J72: 29420584.13 | L72: =SUM(L61:L71) -> 27439904.35 | M72: 28141098.92 | N72: 32749553.62 | O72: =SUM(O61:O71) -> 29420584.13 | P72: =SUM(P61:P71) -> 28097511.4 | Q72: 26516149.81 | R72: 26516149.81 | S72: 26516149.81
E74: Correction Factor | G74: £ | J74: =CHOOSE(year_selection, L74,M74,N74,O74,P74,Q74,R74,S74) -> 8024914.622 | L74: -6957754.703 | M74: 1204084.4 | N74: 712744.5259 | O74: 8024914.622 | P74: 13802859.51 | Q74: 0 | R74: 0 | S74: 0
E75: Total allowed Revenue | G75: £ | J75: =CHOOSE(year_selection, L75,M75,N75,O75,P75,Q75,R75,S75) -> 514074236.9 | L75: =L74 + L72 + L59 + L48 + L47 -> 483954318.1 | M75: 511000220 | N75: 510249818.8 | O75: =O74 + O72 + O59 + O48 + O47 -> 514074236.9 | P75: =P74 + P72 + P59 + P48 + P47 -> 533117888.5 | Q75: 572463846.2 | R75: 590579346.2 | S75: 643604191.6
E77: Other 1. Excluded services - Top-up, standby, and enhanced system security | G77: £ | J77: =CHOOSE(year_selection, L77,M77,N77,O77,P77,Q77,R77,S77) -> 0
E78: Other 2. Excluded services - Revenue protection services | G78: £ | J78: 0
E79: Other 3. Excluded services - Miscellaneous | G79: £ | J79: 0
E80: Other 4. Please describe if used | G80: £ | J80: 0
E81: Other 5. Please describe if used | G81: £ | J81: 0
E82: Total other revenue recovered by Use of System Charges | G82: £ | J82: 0 | L82: =SUM(L77:L81) -> 0 | M82: 0 | N82: 0 | O82: =SUM(O77:O81) -> 0 | P82: =SUM(P77:P81) -> 0 | Q82: 0 | R82: 0 | S82: 0
E83: Total Revenue for Use of System Charges | G83: £ | J83: 514074236.9 | L83: =L75+L82 -> 483954318.1 | M83: 511000220 | N83: 510249818.8 | O83: =O75+O82 -> 514074236.9 | P83: =P75+P82 -> 533117888.5 | Q83: 572463846.2 | R83: 590579346.2 | S83: 643604191.6
E85: 1. Revenue raised outside CDCM - EDCM and Certain Interconnector Revenue | G85: £ | J85: =CHOOSE(year_selection, L85,M85,N85,O85,P85,Q85,R85,S85) -> 11930443.02 | L85: 10413995.41 | M85: 10809631.87 | N85: 10997123.59 | O85: 11930443.02 | P85: 11489986.06 | Q85: 12264897.16 | R85: =R75/Q75*Q85 -> 12653017.3 | S85: =S75/R75*R85 -> 13789061.58
E86: 2. Revenue raised outside CDCM - Voluntary under-recovery | G86: £ | J86: 0 | L86: 0 | M86: 0 | N86: 0 | O86: 0 | P86: 0 | Q86: 0 | R86: 0 | S86: 0
E87: 3. Revenue raised outside CDCM - Please describe if used | G87: £ | J87: 0 | L87: 0 | M87: 0 | N87: 0 | O87: 0 | P87: 0 | Q87: 0 | R87: 0 | S87: 0
E88: 4. Revenue raised outside CDCM - Please describe if used | G88: £ | J88: 0 | L88: 0 | M88: 0 | N88: 0 | O88: 0 | P88: 0 | Q88: 0 | R88: 0 | S88: 0
E89: Total Revenue to be raised outside the CDCM | G89: £ | J89: 11930443.02 | L89: =SUM(L85:L88) -> 10413995.41 | M89: 10809631.87 | N89: 10997123.59 | O89: =SUM(O85:O88) -> 11930443.02 | P89: =SUM(P85:P88) -> 11489986.06 | Q89: 12264897.16 | R89: 12653017.3 | S89: 13789061.58
E90: Latest forecast of CDCM Revenue | G90: £ | J90: 502143793.9 | L90: =L83-L89 -> 473540322.7 | M90: 500190588.2 | N90: 499252695.3 | O90: =O83-O89 -> 502143793.9 | P90: =P83-P89 -> 521627902.4 | Q90: 560198949 | R90: 577926328.9 | S90: 629815130.1
E91: CDCM Revenue Used in Charging Model | G91: £ | J91: =CHOOSE(year_selection, L91,M91,N91,O91,P91,Q91,R91,S91) -> 502143793.9 | L91: =L90 -> 473540322.7 | M91: 500190588.2 | N91: 499252695.3 | O91: =O90 -> 502143793.9 | P91: =P90 -> 521627902.4 | Q91: 560198949 | R91: 577926328.9 | S91: 629815130.1
E93: Final Collected Revenue Forecast | G93: £ | J93: =CHOOSE(year_selection, L93,M93,N93,O93,P93,Q93,R93,S93) -> 514074236.9 | L93: 483272034 | M93: 503324594.3 | N93: 497047736.6 | O93: 514074236.9 | P93: 533117888.5 | Q93: 569072585.8 | R93: =R83 -> 590579346.2 | S93: =S83 -> 643604191.6
E94: Forecast Over / (Under) Recovery | G94: £ | J94: =CHOOSE(year_selection, L94,M94,N94,O94,P94,Q94,R94,S94) -> 0 | L94: =L93 - L82 - L75 + L86 -> -682284.0704 | M94: -7675625.681 | N94: -13202082.26 | O94: 0 | P94: -5.960464478e-08 | Q94: -3391260.334 | R94: 0 | S94: 0
E95: Forecast overall percentage change to Allowed Revenue | G95: % | J95: =CHOOSE(year_selection, L95,M95,N95,O95,P95,Q95,R95,S95) -> 0.007495187501 | L95: =IF( K75 <> 0, L75 / K75 - 1, 0) -> 0 | M95: 0.05588523732 | N95: -0.001468494822 | O95: 0.007495187501 | P95: 0.03704455547 | Q95: 0.07380348422 | R95: 0.03164479321 | S95: 0.08978445622
E96: Overall % change to Use of System Charges effective 1st April of Regulatory Year to balance | G96: % | J96: =CHOOSE(year_selection, L96,M96,N96,O96,P96,Q96,R96,S96) -> 0.03425526176 | L96: =IF( K93 <> 0, L93 / K93 - 1, 0) -> 0 | M96: 0.04149331825 | N96: -0.01247079484 | O96: 0.03425526176 | P96: 0.03704455547 | Q96: 0.06744230143 | R96: 0.03779264878 | S96: 0.08978445622
C98: =INDEX('Version control'!$H$34:$H$60,MATCH($A$1,'Version control'!$F$34:$F$60,0),1)&"-D: Financial and general assumptions" -> Input 503-D: Financial and general assumptions
E100: Real post-tax cost of capital | G100: % | I100: > | J100: =CHOOSE(year_selection, L100,M100,N100,O100,P100,Q100,R100,S100) -> 0.0341 | L100: 0.0421 | M100: 0.0408 | N100: 0.0373 | O100: 0.0341 | P100: =O100 -> 0.0341 | Q100: =P100 -> 0.0341 | R100: 0.0341 | S100: 0.0341 | U100: Paragraph 57
E101: Days in the charging year | G101: days | J101: =CHOOSE(year_selection, L101,M101,N101,O101,P101,Q101,R101,S101) -> 365 | L101: 365 | M101: 366 | N101: 365 | O101: 365 | P101: =O101 -> 365 | Q101: 366 | R101: 365 | S101: =R101 -> 365
C103: =INDEX('Version control'!$H$34:$H$60,MATCH($A$1,'Version control'!$F$34:$F$60,0),1)&"-E: Transmission exit charges" -> Input 503-E: Transmission exit charges
E105: Transmission exit charges | G105: £ per year | I105: > | J105: =CHOOSE(year_selection, L105,M105,N105,O105,P105,Q105,R105,S105) -> 13079170.86 | L105: 11739385.59 | M105: 12361557.29 | N105: 12903738.28 | O105: 13079170.86 | P105: 14821073.36 | Q105: =P105*Q$46/P$46 -> 15291210.5 | R105: =Q105*R$46/Q$46 -> 15776260.8 | S105: 16276697.3 | U105: Paragraph 38
C107: =INDEX('Version control'!$H$34:$H$60,MATCH($A$1,'Version control'!$F$34:$F$60,0),1)&"-F: Other expenditure" -> Input 503-F: Other expenditure
E109: Other expenditure | I109: > | U109: Paragraph 39
F110: Direct cost | G110: £ per year | J110: =CHOOSE(year_selection, L110,M110,N110,O110,P110,Q110,R110,S110) -> 44469072.86 | L110: 32530260.7 | M110: 34760356.96 | N110: 43916287.54 | O110: 44469072.86 | P110: =O110*P$46/O$46 -> 45879669.94 | Q110: =P110*Q$46/P$46 -> 47335012.36 | R110: 48836519.49 | S110: 50385655.72
F111: Indirect cost | G111: £ per year | J111: =CHOOSE(year_selection, L111,M111,N111,O111,P111,Q111,R111,S111) -> 144357826.6 | L111: 115748659 | M111: 123377417.7 | N111: 129435808 | O111: 144357826.6 | P111: =O111*P$46/O$46 -> 148936980.5 | Q111: =P111*Q$46/P$46 -> 153661389.1 | R111: 158535660 | S111: 163564546.9
F112: Network rates | G112: £ per year | J112: =CHOOSE(year_selection, L112,M112,N112,O112,P112,Q112,R112,S112) -> 32693484.43 | L112: 35308717.16 | M112: 34760396.18 | N112: 33739616.91 | O112: 32693484.43 | P112: 31717737.8 | Q112: =P112*Q$46/P$46 -> 32723851.61 | R112: 33761880.21 | S112: 34832835.97
B114: Checks
C116: Checks are not run for historic years, for which DNOs are not obliged to enter inputs.
E118: Check for error values | G118: number of issues | H118: =SUM(IF(ISERROR(H15:S113), 1)) -> 0
E120: Hours in charging year check
F121: Normal distribution timebands | G121: number of issues | H121: =SUM(L121:S121) -> 0 | M121: =IF(SUM(M19:M21) = M$101 * hours_in_day, 0, 1) -> 0 | N121: 0 | O121: 0 | P121: 0 | Q121: 0 | R121: 0 | S121: 0
F122: Special distribution timebands | G122: number of issues | H122: =SUM(L122:S122) -> 0 | M122: =IF(SUM(M24:M26) = M$101 * hours_in_day, 0, 1) -> 0 | N122: 0 | O122: 0 | P122: 0 | Q122: 0 | R122: 0 | S122: 0
E124: Summary of checks | G124: number of issues | H124: =SUM(H118, H121:H122) -> 0
B126: End of sheet

Sheet Fixed inputs
A1: =MID(CELL("filename",A1),FIND("]",CELL("filename",A1))+1,255) -> Fixed inputs
A2: =Cover!D21&" - "&Cover!D23 -> WPD Mid East - April 21 Prices
A3: =Cover!D2&" - "&Cover!D8&" v"&Cover!D10&" - "&Cover!D19 -> ARP model - Release for charge setting v5 - 2021/22
A4: =H172 & IF(H172 = 1, " issue", " issues") &" identified in checks on this sheet" -> 0 issues identified in checks on this sheet
B5: Click here to return to model map | G5: Units | H5: Constants | J5: Domestic Aggregated | K5: Domestic Aggregated (Related MPAN) | L5: Non-Domestic Aggregated | M5: Non-Domestic Aggregated (Related MPAN) | N5: LV Site Specific | O5: LV Sub Site Specific | P5: HV Site Specific | Q5: Unmetered Supplies | R5: LV Generation Aggregated | S5: LV Sub Generation Aggregated | T5: LV Generation Site Specific | U5: LV Generation Site Specific no RP Charge | V5: LV Sub Generation Site Specific | W5: LV Sub Generation Site Specific no RP Charge | X5: HV Generation Site Specific | Y5: HV Generation Site Specific no RP Charge | AA5: Legal text reference
B7: Description
C9: This sheet sets out the inputs that should be constant across DNOs
B11: Fixed inputs
C13: =INDEX('Version control'!$H$34:$H$60,MATCH($A$1,'Version control'!$F$34:$F$60,0),1)&"-A: Conversions and time" -> Input 504-A: Conversions and time
E15: Hours per day | G15: hours | H15: 24
E16: Ten | G16: integer | H16: 10
E17: One hundred | G17: integer | H17: 100
E18: One thousand | G18: integer | H18: 1000
C20: =INDEX('Version control'!$H$34:$H$60,MATCH($A$1,'Version control'!$F$34:$F$60,0),1)&"-B: Input 101-B: Rounding" -> Input 504-B: Input 101-B: Rounding
D22: Number of decimal places each final charge should be rounded to, specified in Paragraph 14.
E24: Decimal places | I24: > | AA24: Paragraph 14
F25: Unit rate 1 | G25: integer | H25: 3
F26: Unit rate 2 | G26: integer | H26: 3
F27: Unit rate 3 | G27: integer | H27: 3
F28: Fixed charge | G28: integer | H28: 2
F29: Capacity charge | G29: integer | H29: 2
F30: Exceeded capacity charge | G30: integer | H30: 2
F31: Reactive power charge | G31: integer | H31: 3
C33: =INDEX('Version control'!$H$34:$H$60,MATCH($A$1,'Version control'!$F$34:$F$60,0),1)&"-C: Financial and general assumptions" -> Input 504-C: Financial and general assumptions
E35: Annualisation period | G35: years | H35: 40 | I35: > | AA35: Paragraph 57
E37: Power factor | G37: % | H37: 0.95 | I37: > | AA37: Paragraphs 21 & 79
E39: Indirect cost proportion | G39: % | H39: 0.6 | I39: > | AA39: Paragraph 39
E41: Network model GSP peak demand | G41: MW | H41: 500 | I41: > | AA41: Paragraph 20
C43: =INDEX('Version control'!$H$34:$H$60,MATCH($A$1,'Version control'!$F$34:$F$60,0),1)&"-D: Mappings" -> Input 504-D: Mappings
E45: LDNO discount map
F46: LDNO LV: LV user | G46: 1 or 0 | J46: 1 | K46: 1 | L46: 1 | M46: 1 | N46: 1 | O46: 0 | P46: 0 | Q46: 1
F47: LDNO HV: LV user | G47: 1 or 0 | J47: 1 | K47: 1 | L47: 1 | M47: 1 | N47: 1 | O47: 0 | P47: 0 | Q47: 1
F48: LDNO HV: LV Sub user | G48: 1 or 0 | J48: 0 | K48: 0 | L48: 0 | M48: 0 | N48: 0 | O48: 1 | P48: 0 | Q48: 0
F49: LDNO HV: HV user | G49: 1 or 0 | J49: 0 | K49: 0 | L49: 0 | M49: 0 | N49: 0 | O49: 0 | P49: 1 | Q49: 0
E51: Network level at which users are supplied | I51: > | AA51: Paragraph 30
E52: Network use factors based on customer contributed assets
F53: HV substation | G53: 1 or 0 | J53: 0 | K53: 0 | L53: 0 | M53: 0 | N53: 0 | O53: 0 | P53: 0 | Q53: 0 | R53: 0 | S53: 0 | T53: 0 | U53: 0 | V53: 0 | W53: 0 | X53: 0 | Y53: 0
F54: HV network | G54: 1 or 0 | J54: 0 | K54: 0 | L54: 0 | M54: 0 | N54: 0 | O54: 0 | P54: 1 | Q54: 0 | R54: 0 | S54: 0 | T54: 0 | U54: 0 | V54: 0 | W54: 0 | X54: 1 | Y54: 1
F55: LV substation | G55: 1 or 0 | J55: 0 | K55: 0 | L55: 0 | M55: 0 | N55: 0 | O55: 1 | P55: 0 | Q55: 0 | R55: 0 | S55: 1 | T55: 0 | U55: 0 | V55: 1 | W55: 1 | X55: 0 | Y55: 0
F56: LV network | G56: 1 or 0 | J56: 1 | K56: 1 | L56: 1 | M56: 1 | N56: 1 | O56: 0 | P56: 0 | Q56: 1 | R56: 1 | S56: 0 | T56: 1 | U56: 1 | V56: 0 | W56: 0 | X56: 0 | Y56: 0
E58: Network use factors (assuming generation contributes at level of connection)
E59: These assume demand and generation use the network from the point of connection.
F60: Transmission exit | G60: 1, 0 or -1 | J60: 1 | K60: 1 | L60: 1 | M60: 1 | N60: 1 | O60: 1 | P60: 1 | Q60: 1 | R60: -1 | S60: -1 | T60: -1 | U60: -1 | V60: -1 | W60: -1 | X60: -1 | Y60: -1
F61: GSPs | G61: 1, 0 or -1 | J61: 1 | K61: 1 | L61: 1 | M61: 1 | N61: 1 | O61: 1 | P61: 1 | Q61: 1 | R61: -1 | S61: -1 | T61: -1 | U61: -1 | V61: -1 | W61: -1 | X61: -1 | Y61: -1
F62: 132kV | G62: 1, 0 or -1 | J62: 1 | K62: 1 | L62: 1 | M62: 1 | N62: 1 | O62: 1 | P62: 1 | Q62: 1 | R62: -1 | S62: -1 | T62: -1 | U62: -1 | V62: -1 | W62: -1 | X62: -1 | Y62: -1
F63: 132kV/EHV | G63: 1, 0 or -1 | J63: 1 | K63: 1 | L63: 1 | M63: 1 | N63: 1 | O63: 1 | P63: 1 | Q63: 1 | R63: -1 | S63: -1 | T63: -1 | U63: -1 | V63: -1 | W63: -1 | X63: -1 | Y63: -1
F64: EHV | G64: 1, 0 or -1 | J64: 1 | K64: 1 | L64: 1 | M64: 1 | N64: 1 | O64: 1 | P64: 1 | Q64: 1 | R64: -1 | S64: -1 | T64: -1 | U64: -1 | V64: -1 | W64: -1 | X64: -1 | Y64: -1
F65: EHV/HV | G65: 1, 0 or -1 | J65: 1 | K65: 1 | L65: 1 | M65: 1 | N65: 1 | O65: 1 | P65: 1 | Q65: 1 | R65: -1 | S65: -1 | T65: -1 | U65: -1 | V65: -1 | W65: -1 | X65: -1 | Y65: -1
F66: 132kV/HV | G66: 1, 0 or -1 | J66: 1 | K66: 1 | L66: 1 | M66: 1 | N66: 1 | O66: 1 | P66: 1 | Q66: 1 | R66: -1 | S66: -1 | T66: -1 | U66: -1 | V66: -1 | W66: -1 | X66: -1 | Y66: -1
F67: HV | G67: 1, 0 or -1 | J67: 1 | K67: 1 | L67: 1 | M67: 1 | N67: 1 | O67: 1 | P67: 1 | Q67: 1 | R67: -1 | S67: -1 | T67: -1 | U67: -1 | V67: -1 | W67: -1 | X67: -1 | Y67: -1
F68: HV/LV | G68: 1, 0 or -1 | J68: 1 | K68: 1 | L68: 1 | M68: 1 | N68: 1 | O68: 1 | P68: 0 | Q68: 1 | R68: -1 | S68: -1 | T68: -1 | U68: -1 | V68: -1 | W68: -1 | X68: 0 | Y68: 0
F69: LV circuits | G69: 1, 0 or -1 | J69: 1 | K69: 1 | L69: 1 | M69: 1 | N69: 1 | O69: 0 | P69: 0 | Q69: 1 | R69: -1 | S69: 0 | T69: -1 | U69: -1 | V69: 0 | W69: 0 | X69: 0 | Y69: 0
E71: Network use factors (assuming generation makes no contribution at level of connection) | I71: > | AA71: Paragraphs 62 & 71
E72: Equal to 0 for the network level at which generation is connected, otherwise equal to network use factor
F73: Transmission exit | G73: 1, 0 or -1 | J73: 1 | K73: 1 | L73: 1 | M73: 1 | N73: 1 | O73: 1 | P73: 1 | Q73: 1 | R73: -1 | S73: -1 | T73: -1 | U73: -1 | V73: -1 | W73: -1 | X73: -1 | Y73: -1
F74: GSPs | G74: 1, 0 or -1 | J74: 1 | K74: 1 | L74: 1 | M74: 1 | N74: 1 | O74: 1 | P74: 1 | Q74: 1 | R74: -1 | S74: -1 | T74: -1 | U74: -1 | V74: -1 | W74: -1 | X74: -1 | Y74: -1
F75: 132kV | G75: 1, 0 or -1 | J75: 1 | K75: 1 | L75: 1 | M75: 1 | N75: 1 | O75: 1 | P75: 1 | Q75: 1 | R75: -1 | S75: -1 | T75: -1 | U75: -1 | V75: -1 | W75: -1 | X75: -1 | Y75: -1
F76: 132kV/EHV | G76: 1, 0 or -1 | J76: 1 | K76: 1 | L76: 1 | M76: 1 | N76: 1 | O76: 1 | P76: 1 | Q76: 1 | R76: -1 | S76: -1 | T76: -1 | U76: -1 | V76: -1 | W76: -1 | X76: -1 | Y76: -1
F77: EHV | G77: 1, 0 or -1 | J77: 1 | K77: 1 | L77: 1 | M77: 1 | N77: 1 | O77: 1 | P77: 1 | Q77: 1 | R77: -1 | S77: -1 | T77: -1 | U77: -1 | V77: -1 | W77: -1 | X77: -1 | Y77: -1
F78: EHV/HV | G78: 1, 0 or -1 | J78: 1 | K78: 1 | L78: 1 | M78: 1 | N78: 1 | O78: 1 | P78: 1 | Q78: 1 | R78: -1 | S78: -1 | T78: -1 | U78: -1 | V78: -1 | W78: -1 | X78: -1 | Y78: -1
F79: 132kV/HV | G79: 1, 0 or -1 | J79: 1 | K79: 1 | L79: 1 | M79: 1 | N79: 1 | O79: 1 | P79: 1 | Q79: 1 | R79: -1 | S79: -1 | T79: -1 | U79: -1 | V79: -1 | W79: -1 | X79: -1 | Y79: -1
F80: HV | G80: 1, 0 or -1 | J80: 1 | K80: 1 | L80: 1 | M80: 1 | N80: 1 | O80: 1 | P80: 1 | Q80: 1 | R80: -1 | S80: -1 | T80: -1 | U80: -1 | V80: -1 | W80: -1 | X80: 0 | Y80: 0
F81: HV/LV | G81: 1, 0 or -1 | J81: 1 | K81: 1 | L81: 1 | M81: 1 | N81: 1 | O81: 1 | P81: 0 | Q81: 1 | R81: -1 | S81: 0 | T81: -1 | U81: -1 | V81: 0 | W81: 0 | X81: 0 | Y81: 0
F82: LV circuits | G82: 1, 0 or -1 | J82: 1 | K82: 1 | L82: 1 | M82: 1 | N82: 1 | O82: 0 | P82: 0 | Q82: 1 | R82: 0 | S82: 0 | T82: 0 | U82: 0 | V82: 0 | W82: 0 | X82: 0 | Y82: 0
C84: =INDEX('Version control'!$H$34:$H$60,MATCH($A$1,'Version control'!$F$34:$F$60,0),1)&"-E: Standing charge factors" -> Input 504-E: Standing charge factors
E86: Standing charge factors | I86: > | AA86: Paragraph 74
E87: Sets the proportion of costs to be recovered through fixed and capacity charge components.
F88: Transmission exit | G88: %
F89: GSPs | G89: %
F90: 132kV | G90: %
F91: 132kV/EHV | G91: %
F92: EHV | G92: % | P92: 0.2
F93: EHV/HV | G93: % | P93: 1
F94: 132kV/HV | G94: %
F95: HV | G95: % | N95: 0.2 | O95: 1 | P95: 1
F96: HV/LV | G96: % | N96: 1 | O96: 1
F97: LV circuits | G97: % | J97: 1 | K97: 1 | L97: 1 | M97: 1 | N97: 1 | Q97: 0
C99: =INDEX('Version control'!$H$34:$H$60,MATCH($A$1,'Version control'!$F$34:$F$60,0),1)&"-F: Flags" -> Input 504-F: Flags
D101: Override discount rate applied
D102: See Schedule 16, para 125. This has been interpreted to mean that MPANs are fully discounted,
D103: and everything else is not
E104: MWh
F105: Override discount | G105: TRUE / FALSE | I105: > | J105: FALSE | K105: FALSE | L105: FALSE | M105: FALSE | N105: FALSE | O105: FALSE | P105: FALSE | Q105: FALSE | R105: TRUE | S105: TRUE | T105: TRUE | U105: TRUE | V105: TRUE | W105: TRUE | X105: TRUE | Y105: TRUE | AA105: Paragraph 99
F106: Discount % | G106: % | R106: 0 | S106: 0 | T106: 0 | U106: 0 | V106: 0 | W106: 0 | X106: 0 | Y106: 0
E108: MPANs
F109: Override discount | G109: TRUE / FALSE | J109: FALSE | K109: FALSE | L109: FALSE | M109: FALSE | N109: FALSE | O109: FALSE | P109: FALSE | Q109: FALSE | R109: TRUE | S109: TRUE | T109: TRUE | U109: TRUE | V109: TRUE | W109: TRUE | X109: TRUE | Y109: TRUE
F110: Discount % | G110: % | R110: 1 | S110: 1 | T110: 1 | U110: 1 | V110: 1 | W110: 1 | X110: 1 | Y110: 1
E112: Import capacity (kVA)
F113: Override discount | G113: TRUE / FALSE | J113: FALSE | K113: FALSE | L113: FALSE | M113: FALSE | N113: FALSE | O113: FALSE | P113: FALSE | Q113: FALSE | R113: TRUE | S113: TRUE | T113: TRUE | U113: TRUE | V113: TRUE | W113: TRUE | X113: TRUE | Y113: TRUE
F114: Discount % | G114: % | R114: 0 | S114: 0 | T114: 0 | U114: 0 | V114: 0 | W114: 0 | X114: 0 | Y114: 0
E116: Exceeded capacity (kVA)
F117: Override discount | G117: TRUE / FALSE | J117: FALSE | K117: FALSE | L117: FALSE | M117: FALSE | N117: FALSE | O117: FALSE | P117: FALSE | Q117: FALSE | R117: TRUE | S117: TRUE | T117: TRUE | U117: TRUE | V117: TRUE | W117: TRUE | X117: TRUE | Y117: TRUE
F118: Discount % | G118: % | R118: 0 | S118: 0 | T118: 0 | U118: 0 | V118: 0 | W118: 0 | X118: 0 | Y118: 0
E120: Reactive power units (MVArh)
F121: Override discount | G121: TRUE / FALSE | J121: FALSE | K121: FALSE | L121: FALSE | M121: FALSE | N121: FALSE | O121: FALSE | P121: FALSE | Q121: FALSE | R121: TRUE | S121: TRUE | T121: TRUE | U121: TRUE | V121: TRUE | W121: TRUE | X121: TRUE | Y121: TRUE
F122: Discount % | G122: % | R122: 0 | S122: 0 | T122: 0 | U122: 0 | V122: 0 | W122: 0 | X122: 0 | Y122: 0
E124: Unmetered supply flags
E125: These are used to flag UMS tariff forecast in the pseudo load coefficient calculations, because UMS
E126: customers are subject to a different timebanding
F127: Unmetered supply flags | G127: TRUE / FALSE | J127: FALSE | K127: FALSE | L127: FALSE | M127: FALSE | N127: FALSE | O127: FALSE | P127: FALSE | Q127: TRUE | R127: FALSE | S127: FALSE | T127: FALSE | U127: FALSE | V127: FALSE | W127: FALSE | X127: FALSE | Y127: FALSE
E129: Flags used in calculation of LV diversity allowance
E130: FALSE = exclude
F131: Flag for customers included in aggregate maximum demand | G131: TRUE / FALSE | J131: TRUE | K131: FALSE | L131: TRUE | M131: FALSE | N131: TRUE | O131: TRUE | P131: TRUE | Q131: TRUE | R131: TRUE | S131: TRUE | T131: TRUE | U131: TRUE | V131: TRUE | W131: TRUE | X131: TRUE | Y131: TRUE
E133: Flags for applicability of capacity & reactive charges | I133: > | AA133: Paragraphs 141 & 146
E134: 0 = charges not applicable to customer type
E135: For fixed charges, 1 = capacity element is allocated to fixed charges
F136: Capacity charge | G136: 1 or 0 | J136: 0 | K136: 0 | L136: 0 | M136: 0 | N136: 1 | O136: 1 | P136: 1 | Q136: 0 | R136: 0 | S136: 0 | T136: 0 | U136: 0 | V136: 0 | W136: 0 | X136: 0 | Y136: 0
F137: Exceeded capacity charge | G137: 1 or 0 | J137: 0 | K137: 0 | L137: 0 | M137: 0 | N137: 1 | O137: 1 | P137: 1 | Q137: 0 | R137: 0 | S137: 0 | T137: 0 | U137: 0 | V137: 0 | W137: 0 | X137: 0 | Y137: 0
F138: Reactive power | G138: 1 or 0 | J138: 0 | K138: 0 | L138: 0 | M138: 0 | N138: 1 | O138: 1 | P138: 1 | Q138: 0 | R138: 0 | S138: 0 | T138: 1 | U138: 0 | V138: 1 | W138: 0 | X138: 1 | Y138: 0
F139: Capacity charge allocated to fixed charge | G139: 1 or 0 | J139: 1 | K139: 0 | L139: 1 | M139: 0 | N139: 0 | O139: 0 | P139: 0 | Q139: 0 | R139: 0 | S139: 0 | T139: 0 | U139: 0 | V139: 0 | W139: 0 | X139: 0 | Y139: 0
C141: =INDEX('Version control'!$H$34:$H$60,MATCH($A$1,'Version control'!$F$34:$F$60,0),1)&"-G: Identifiers for customer groupings" -> Input 504-G: Identifiers for customer groupings
E143: Groupings for fixed charges
E144: Sets out the groups that are aggregated when calculating fixed charges. Each group is given an identifier. | I144: > | AA144: Paragraph 83
F145: Groupings for fixed charges | G145: integer | J145: 1 | L145: 1
E147: Groupings for aggregated pseudo-load coefficients | I147: > | AA147: Paragraph 70 c) iv
E148: Sets out the groups that are equalised for unit rates, as set out in Paragraph 70 c) iv
F149: Pseudo-load coefficient aggregation group | G149: integer | J149: 1 | K149: 1 | L149: 2 | M149: 2
C151: =INDEX('Version control'!$H$34:$H$60,MATCH($A$1,'Version control'!$F$34:$F$60,0),1)&"-H: Decimal places for error checks" -> Input 504-H: Decimal places for error checks
E153: Decimals of precision for error checks | G153: integer | H153: 5
C155: =INDEX('Version control'!$H$34:$H$60,MATCH($A$1,'Version control'!$F$34:$F$60,0),1)&"-I: Map of applicable MPANs" -> Input 504-I: Map of applicable MPANs
E157: Map of applicable MPANs | I157: > | AA157: Paragraphs 101 and 103
F158: Pass-through Supplier of Last Resort Adjustment | G158: 1 or 0 | J158: 1 | K158: 0 | L158: 0 | M158: 0 | N158: 0 | O158: 0 | P158: 0 | Q158: 0 | R158: 0 | S158: 0 | T158: 0 | U158: 0 | V158: 0 | W158: 0 | X158: 0 | Y158: 0
F159: Pass-through Eligible Bad Debt Adjustment | G159: 1 or 0 | J159: 1 | K159: 0 | L159: 1 | M159: 0 | N159: 1 | O159: 1 | P159: 1 | Q159: 0 | R159: 0 | S159: 0 | T159: 0 | U159: 0 | V159: 0 | W159: 0 | X159: 0 | Y159: 0
B161: Checks
E163: Check for error values | G163: number of issues | H163: =SUM(IF(ISERROR(H15:Y146), 1)) -> 0
E165: Check that discount overrides are either FALSE, or non-zero
F166: MWh override | G166: number of issues | H166: =SUM(J166:Y166) -> 0 | J166: =IF( OR( AND(J105 = TRUE, NOT(ISBLANK(J106))), AND(J105 = FALSE, J106 = 0)), 0, 1) -> 0 | K166: 0 | L166: 0 | M166: 0 | N166: 0 | O166: 0 | P166: 0 | Q166: 0 | R166: 0 | S166: 0 | T166: 0 | U166: 0 | V166: 0 | W166: 0 | X166: 0 | Y166: 0
F167: MPAN override | G167: number of issues | H167: =SUM(J167:Y167) -> 0 | J167: =IF( OR( AND(J109 = TRUE, NOT(ISBLANK(J110))), AND(J109 = FALSE, J110 = 0)), 0, 1) -> 0 | K167: 0 | L167: 0 | M167: 0 | N167: 0 | O167: 0 | P167: 0 | Q167: 0 | R167: 0 | S167: 0 | T167: 0 | U167: 0 | V167: 0 | W167: 0 | X167: 0 | Y167: 0
F168: Import capacity override | G168: number of issues | H168: =SUM(J168:Y168) -> 0 | J168: =IF( OR( AND(J113 = TRUE, NOT(ISBLANK(J114))), AND(J113 = FALSE, J114 = 0)), 0, 1) -> 0 | K168: 0 | L168: 0 | M168: 0 | N168: 0 | O168: 0 | P168: 0 | Q168: 0 | R168: 0 | S168: 0 | T168: 0 | U168: 0 | V168: 0 | W168: 0 | X168: 0 | Y168: 0
F169: Exceeded capacity override | G169: number of issues | H169: =SUM(J169:Y169) -> 0 | J169: =IF( OR( AND(J117 = TRUE, NOT(ISBLANK(J118))), AND(J117 = FALSE, J118 = 0)), 0, 1) -> 0 | K169: 0 | L169: 0 | M169: 0 | N169: 0 | O169: 0 | P169: 0 | Q169: 0 | R169: 0 | S169: 0 | T169: 0 | U169: 0 | V169: 0 | W169: 0 | X169: 0 | Y169: 0
F170: Reactive power override | G170: number of issues | H170: =SUM(J170:Y170) -> 0 | J170: =IF( OR( AND(J121 = TRUE, NOT(ISBLANK(J122))), AND(J121 = FALSE, J122 = 0)), 0, 1) -> 0 | K170: 0 | L170: 0 | M170: 0 | N170: 0 | O170: 0 | P170: 0 | Q170: 0 | R170: 0 | S170: 0 | T170: 0 | U170: 0 | V170: 0 | W170: 0 | X170: 0 | Y170: 0
E172: Summary of checks | G172: number of issues | H172: =H163 + SUM(H166:H170) -> 0
B174: End of sheet

Sheet Inputs by customer type
A1: =MID(CELL("filename",A1),FIND("]",CELL("filename",A1))+1,255) -> Inputs by customer type
A2: =Cover!D21&" - "&Cover!D23 -> WPD Mid East - April 21 Prices
A3: =Cover!D2&" - "&Cover!D8&" v"&Cover!D10&" - "&Cover!D19 -> ARP model - Release for charge setting v5 - 2021/22
A4: =H65 & IF(H65 = 1, " issue", " issues") &" identified in checks on this sheet" -> 0 issues identified in checks on this sheet
B5: Click here to return to model map | G5: Units | H5: Constants | J5: Domestic Aggregated | K5: Domestic Aggregated (Related MPAN) | L5: Non-Domestic Aggregated | M5: Non-Domestic Aggregated (Related MPAN) | N5: LV Site Specific | O5: LV Sub Site Specific | P5: HV Site Specific | Q5: Unmetered Supplies | R5: LV Generation Aggregated | S5: LV Sub Generation Aggregated | T5: LV Generation Site Specific | U5: LV Generation Site Specific no RP Charge | V5: LV Sub Generation Site Specific | W5: LV Sub Generation Site Specific no RP Charge | X5: HV Generation Site Specific | Y5: HV Generation Site Specific no RP Charge | AA5: Legal text reference
B7: Description
C9: This sheet sets out the inputs by customer type to be filled in by DNOs.
E11: Charging year selected | G11: year | H11: =charging_year_selected -> 2021/22
E12: Historic / current / forecast | G12: text | H12: ='ARP_User control'!$H$36 -> Current
B14: Inputs by customer type
C16: =INDEX('Version control'!$H$34:$H$58,MATCH($A$1,'Version control'!$F$34:$F$58,0),1)&"-A: Load characteristics" -> Section 501-A: Load characteristics
E18: Load factor | G18: % | I18: > | J18: ='ARP_Inputs by customer type'!J19 -> 0.4439797468 | K18: ='ARP_Inputs by customer type'!J20 -> 0.1388121956 | L18: ='ARP_Inputs by customer type'!J21 -> 0.441232798 | M18: ='ARP_Inputs by customer type'!J22 -> 0.233687314 | N18: ='ARP_Inputs by customer type'!J23 -> 0.5416716375 | O18: ='ARP_Inputs by customer type'!J24 -> 0.5848687163 | P18: ='ARP_Inputs by customer type'!J25 -> 0.7278437551 | Q18: ='ARP_Inputs by customer type'!J26 -> 0.4874323716 | AA18: Paragraph 42 (a)
E19: Coincidence factor | G19: % | I19: > | J19: ='ARP_Inputs by customer type'!J39 -> 0.9294355812 | L19: ='ARP_Inputs by customer type'!J41 -> 0.7345840722 | N19: ='ARP_Inputs by customer type'!J43 -> 0.7524203015 | O19: ='ARP_Inputs by customer type'!J44 -> 0.8132256091 | P19: ='ARP_Inputs by customer type'!J45 -> 0.8107309324 | Q19: ='ARP_Inputs by customer type'!J46 -> 0.9311867749 | AA19: Paragraph 42 (b)
C21: =INDEX('Version control'!$H$34:$H$58,MATCH($A$1,'Version control'!$F$34:$F$58,0),1)&"-B: Volume forecasts for the charging year" -> Section 501-B: Volume forecasts for the charging year
E23: All the way volume forecast | I23: > | AA23: Paragraph 52
F24: Rate 1 units | G24: MWh | J24: ='ARP_Inputs by customer type'!J61 -> 970871.8236 | K24: ='ARP_Inputs by customer type'!J62 -> 844.7630365 | L24: ='ARP_Inputs by customer type'!J63 -> 327000 | M24: ='ARP_Inputs by customer type'!J64 -> 29.86139468 | N24: ='ARP_Inputs by customer type'!J65 -> 336787.2598 | O24: ='ARP_Inputs by customer type'!J66 -> 26999.98332 | P24: ='ARP_Inputs by customer type'!J67 -> 683754.1663 | Q24: ='ARP_Inputs by customer type'!J68 -> 9789.520573 | R24: ='ARP_Inputs by customer type'!J69 -> 111.4890524 | S24: ='ARP_Inputs by customer type'!J70 -> 0 | T24: ='ARP_Inputs by customer type'!J71 -> 4546.060784 | U24: ='ARP_Inputs by customer type'!J72 -> 0 | V24: ='ARP_Inputs by customer type'!J73 -> 615.0655258 | W24: ='ARP_Inputs by customer type'!J74 -> 0 | X24: ='ARP_Inputs by customer type'!J75 -> 229961.8799 | Y24: ='ARP_Inputs by customer type'!J76 -> 0
F25: Rate 2 units | G25: MWh | J25: ='ARP_Inputs by customer type'!J79 -> 2877584.013 | K25: ='ARP_Inputs by customer type'!J80 -> 5440.33583 | L25: ='ARP_Inputs by customer type'!J81 -> 1347000 | M25: ='ARP_Inputs by customer type'!J82 -> 464.0832887 | N25: ='ARP_Inputs by customer type'!J83 -> 1423327.11 | O25: ='ARP_Inputs by customer type'!J84 -> 99999.93305 | P25: ='ARP_Inputs by customer type'!J85 -> 2612881.953 | Q25: ='ARP_Inputs by customer type'!J86 -> 48857.68668 | R25: ='ARP_Inputs by customer type'!J87 -> 613.1821802 | S25: ='ARP_Inputs by customer type'!J88 -> 0 | T25: ='ARP_Inputs by customer type'!J89 -> 22509.83535 | U25: ='ARP_Inputs by customer type'!J90 -> 0 | V25: ='ARP_Inputs by customer type'!J91 -> 2420.075697 | W25: ='ARP_Inputs by customer type'!J92 -> 0 | X25: ='ARP_Inputs by customer type'!J93 -> 553493.3101 | Y25: ='ARP_Inputs by customer type'!J94 -> 0
F26: Rate 3 units | G26: MWh | J26: ='ARP_Inputs by customer type'!J97 -> 4767280.924 | K26: ='ARP_Inputs by customer type'!J98 -> 9899.716549 | L26: ='ARP_Inputs by customer type'!J99 -> 1479000 | M26: ='ARP_Inputs by customer type'!J100 -> 1793.2522 | N26: ='ARP_Inputs by customer type'!J101 -> 1552629.361 | O26: ='ARP_Inputs by customer type'!J102 -> 113999.9528 | P26: ='ARP_Inputs by customer type'!J103 -> 3724107.611 | Q26: ='ARP_Inputs by customer type'!J104 -> 162200.7872 | R26: ='ARP_Inputs by customer type'!J105 -> 360.3962597 | S26: ='ARP_Inputs by customer type'!J106 -> 0 | T26: ='ARP_Inputs by customer type'!J107 -> 23742.42825 | U26: ='ARP_Inputs by customer type'!J108 -> 0 | V26: ='ARP_Inputs by customer type'!J109 -> 4177.52702 | W26: ='ARP_Inputs by customer type'!J110 -> 0 | X26: ='ARP_Inputs by customer type'!J111 -> 650372.2276 | Y26: ='ARP_Inputs by customer type'!J112 -> 0
F27: MPANs | G27: MPANs | J27: ='ARP_Inputs by customer type'!J115 -> 2477513.718 | K27: ='ARP_Inputs by customer type'!J116 -> 0 | L27: ='ARP_Inputs by customer type'!J117 -> 185569.609 | M27: ='ARP_Inputs by customer type'!J118 -> 0 | N27: ='ARP_Inputs by customer type'!J119 -> 15340.27625 | O27: ='ARP_Inputs by customer type'!J120 -> 459.2754303 | P27: ='ARP_Inputs by customer type'!J121 -> 3354.375621 | Q27: ='ARP_Inputs by customer type'!J122 -> 31.60632558 | R27: ='ARP_Inputs by customer type'!J123 -> 0 | S27: ='ARP_Inputs by customer type'!J124 -> 0 | T27: ='ARP_Inputs by customer type'!J125 -> 737.2411219 | U27: ='ARP_Inputs by customer type'!J126 -> 0 | V27: ='ARP_Inputs by customer type'!J127 -> 52.79929559 | W27: ='ARP_Inputs by customer type'!J128 -> 0 | X27: ='ARP_Inputs by customer type'!J129 -> 465.2046601 | Y27: ='ARP_Inputs by customer type'!J130 -> 0
F28: Import capacity | G28: kVA | N28: ='ARP_Inputs by customer type'!J137 -> 2030032.333 | O28: ='ARP_Inputs by customer type'!J138 -> 145993.6667 | P28: ='ARP_Inputs by customer type'!J139 -> 2724720.667
F29: Exceeded capacity | G29: kVA | N29: ='ARP_Inputs by customer type'!J155 -> 35413.46662 | O29: ='ARP_Inputs by customer type'!J156 -> 2300.876114 | P29: ='ARP_Inputs by customer type'!J157 -> 45458.07051
F30: Reactive power units | G30: MVArh | N30: ='ARP_Inputs by customer type'!J173 -> 358169.5154 | O30: ='ARP_Inputs by customer type'!J174 -> 30403.57565 | P30: ='ARP_Inputs by customer type'!J175 -> 596771.2509 | T30: ='ARP_Inputs by customer type'!J179 -> 3718.690335 | V30: ='ARP_Inputs by customer type'!J181 -> 530.8712737 | X30: ='ARP_Inputs by customer type'!J183 -> 17917.30144
E32: LDNO LV volume forecast | I32: > | AA32: Paragraph 52
F33: Rate 1 units | G33: MWh | J33: ='ARP_Inputs by customer type'!J189 -> 13094.19845 | K33: ='ARP_Inputs by customer type'!J190 -> 0 | L33: ='ARP_Inputs by customer type'!J191 -> 453.23891 | M33: ='ARP_Inputs by customer type'!J192 -> 0 | N33: ='ARP_Inputs by customer type'!J193 -> 1820.076549 | Q33: ='ARP_Inputs by customer type'!J196 -> 11.43420017 | R33: ='ARP_Inputs by customer type'!J197 -> 1.791337806 | T33: ='ARP_Inputs by customer type'!J199 -> 0
F34: Rate 2 units | G34: MWh | J34: ='ARP_Inputs by customer type'!J207 -> 37530.49737 | K34: ='ARP_Inputs by customer type'!J208 -> 0 | L34: ='ARP_Inputs by customer type'!J209 -> 1957.030668 | M34: ='ARP_Inputs by customer type'!J210 -> 0 | N34: ='ARP_Inputs by customer type'!J211 -> 6832.355527 | Q34: ='ARP_Inputs by customer type'!J214 -> 133.5233261 | R34: ='ARP_Inputs by customer type'!J215 -> 8.547918648 | T34: ='ARP_Inputs by customer type'!J217 -> 0
F35: Rate 3 units | G35: MWh | J35: ='ARP_Inputs by customer type'!J225 -> 56461.54538 | K35: ='ARP_Inputs by customer type'!J226 -> 0 | L35: ='ARP_Inputs by customer type'!J227 -> 1844.106757 | M35: ='ARP_Inputs by customer type'!J228 -> 0 | N35: ='ARP_Inputs by customer type'!J229 -> 8494.704928 | Q35: ='ARP_Inputs by customer type'!J232 -> 229.7570838 | R35: ='ARP_Inputs by customer type'!J233 -> 5.044922088 | T35: ='ARP_Inputs by customer type'!J235 -> 0
F36: MPANs | G36: MPANs | J36: ='ARP_Inputs by customer type'!J243 -> 37750.7171 | K36: ='ARP_Inputs by customer type'!J244 -> 0 | L36: ='ARP_Inputs by customer type'!J245 -> 675.5915152 | M36: ='ARP_Inputs by customer type'!J246 -> 0 | N36: ='ARP_Inputs by customer type'!J247 -> 72.30452618 | Q36: ='ARP_Inputs by customer type'!J250 -> 0 | R36: ='ARP_Inputs by customer type'!J251 -> 0 | T36: ='ARP_Inputs by customer type'!J253 -> 0
F37: Import capacity | G37: kVA | N37: ='ARP_Inputs by customer type'!J265 -> 13243.8451
F38: Exceeded capacity | G38: kVA | N38: ='ARP_Inputs by customer type'!J283 -> 35.71225127
F39: Reactive power units | G39: MVArh | N39: ='ARP_Inputs by customer type'!J301 -> 1072.501047 | T39: ='ARP_Inputs by customer type'!J307 -> 0
E41: LDNO HV volume forecast | I41: > | AA41: Paragraph 52
F42: Rate 1 units | G42: MWh | J42: ='ARP_Inputs by customer type'!J317 -> 28310.86916 | K42: ='ARP_Inputs by customer type'!J318 -> 0 | L42: ='ARP_Inputs by customer type'!J319 -> 2258.505891 | M42: ='ARP_Inputs by customer type'!J320 -> 0 | N42: ='ARP_Inputs by customer type'!J321 -> 16531.88181 | O42: ='ARP_Inputs by customer type'!J322 -> 2297.380044 | P42: ='ARP_Inputs by customer type'!J323 -> 9826.106985 | Q42: ='ARP_Inputs by customer type'!J324 -> 20.12619214 | R42: ='ARP_Inputs by customer type'!J325 -> 0 | S42: ='ARP_Inputs by customer type'!J326 -> 0 | T42: ='ARP_Inputs by customer type'!J327 -> 7.128093679 | V42: ='ARP_Inputs by customer type'!J329 -> 0 | X42: ='ARP_Inputs by customer type'!J331 -> 0
F43: Rate 2 units | G43: MWh | J43: ='ARP_Inputs by customer type'!J335 -> 81187.99311 | K43: ='ARP_Inputs by customer type'!J336 -> 0 | L43: ='ARP_Inputs by customer type'!J337 -> 9690.745452 | M43: ='ARP_Inputs by customer type'!J338 -> 0 | N43: ='ARP_Inputs by customer type'!J339 -> 61315.14568 | O43: ='ARP_Inputs by customer type'!J340 -> 8846.709165 | P43: ='ARP_Inputs by customer type'!J341 -> 34457.35047 | Q43: ='ARP_Inputs by customer type'!J342 -> 268.4234907 | R43: ='ARP_Inputs by customer type'!J343 -> 0 | S43: ='ARP_Inputs by customer type'!J344 -> 0 | T43: ='ARP_Inputs by customer type'!J345 -> 38.84068984 | V43: ='ARP_Inputs by customer type'!J347 -> 0 | X43: ='ARP_Inputs by customer type'!J349 -> 0
F44: Rate 3 units | G44: MWh | J44: ='ARP_Inputs by customer type'!J353 -> 122440.0956 | K44: ='ARP_Inputs by customer type'!J354 -> 0 | L44: ='ARP_Inputs by customer type'!J355 -> 8744.01572 | M44: ='ARP_Inputs by customer type'!J356 -> 0 | N44: ='ARP_Inputs by customer type'!J357 -> 76148.11171 | O44: ='ARP_Inputs by customer type'!J358 -> 12956.12975 | P44: ='ARP_Inputs by customer type'!J359 -> 53818.46404 | Q44: ='ARP_Inputs by customer type'!J360 -> 487.8145926 | R44: ='ARP_Inputs by customer type'!J361 -> 0 | S44: ='ARP_Inputs by customer type'!J362 -> 0 | T44: ='ARP_Inputs by customer type'!J363 -> 73.65941573 | V44: ='ARP_Inputs by customer type'!J365 -> 0 | X44: ='ARP_Inputs by customer type'!J367 -> 0
F45: MPANs | G45: MPANs | J45: ='ARP_Inputs by customer type'!J371 -> 84612.64234 | K45: ='ARP_Inputs by customer type'!J372 -> 0 | L45: ='ARP_Inputs by customer type'!J373 -> 2007.150809 | M45: ='ARP_Inputs by customer type'!J374 -> 0 | N45: ='ARP_Inputs by customer type'!J375 -> 465.7393649 | O45: ='ARP_Inputs by customer type'!J376 -> 26.84503597 | P45: ='ARP_Inputs by customer type'!J377 -> 45.30709916 | Q45: ='ARP_Inputs by customer type'!J378 -> 0 | R45: ='ARP_Inputs by customer type'!J379 -> 0 | S45: ='ARP_Inputs by customer type'!J380 -> 0 | T45: ='ARP_Inputs by customer type'!J381 -> 6.476815257 | V45: ='ARP_Inputs by customer type'!J383 -> 0 | X45: ='ARP_Inputs by customer type'!J385 -> 0
F46: Import capacity | G46: kVA | N46: ='ARP_Inputs by customer type'!J393 -> 127077.8778 | O46: ='ARP_Inputs by customer type'!J394 -> 18844.38059 | P46: ='ARP_Inputs by customer type'!J395 -> 68248.27615
F47: Exceeded capacity | G47: kVA | N47: ='ARP_Inputs by customer type'!J411 -> 395.8235027 | O47: ='ARP_Inputs by customer type'!J412 -> 81.92949961 | P47: ='ARP_Inputs by customer type'!J413 -> 45.71472071
F48: Reactive power units | G48: MVArh | N48: ='ARP_Inputs by customer type'!J429 -> 10517.87956 | O48: ='ARP_Inputs by customer type'!J430 -> 1752.531518 | P48: ='ARP_Inputs by customer type'!J431 -> 2835.35374 | T48: ='ARP_Inputs by customer type'!J435 -> 52.88235801 | V48: ='ARP_Inputs by customer type'!J437 -> 0 | X48: ='ARP_Inputs by customer type'!J439 -> 0
E50: 'Designated Property' MPANs with EDCM-level LDNO boundaries | G50: MPANs | I50: > | J50: =TRANSPOSE('ARP_Inputs by customer type'!J445:J460) -> 1071.136742 | K50: 0 | L50: 1629.7492 | M50: 0 | N50: 18.89666957 | O50: 0 | P50: 4.877792332 | Q50: 0 | R50: 0 | S50: 0 | T50: 0 | U50: 0 | V50: 0 | W50: 0 | X50: 0 | Y50: 0 | AA50: Paragraphs 53A, 53B, 101 and 102
C52: =INDEX('Version control'!$H$34:$H$58,MATCH($A$1,'Version control'!$F$34:$F$58,0),1)&"-C: Service model asset values" -> Section 501-C: Service model asset values
D54: Service model costs should be entered per customer or per MWh for unmetered customers
I55: > | AA55: Paragraphs 32 to 37
E56: LV customer service model asset values | G56: £ per MPAN | J56: ='ARP_Inputs by customer type'!J469 -> 238.5569374 | L56: ='ARP_Inputs by customer type'!J471 -> 699.481451 | N56: ='ARP_Inputs by customer type'!J473 -> 1395.561792 | O56: ='ARP_Inputs by customer type'!J474 -> 1089.385951 | R56: ='ARP_Inputs by customer type'!J477 -> 0 | S56: ='ARP_Inputs by customer type'!J478 -> 0 | T56: ='ARP_Inputs by customer type'!J479 -> 0 | U56: ='ARP_Inputs by customer type'!J480 -> 0 | V56: ='ARP_Inputs by customer type'!J481 -> 0 | W56: ='ARP_Inputs by customer type'!J482 -> 0
E57: HV customer service model asset values | G57: £ per MPAN | P57: ='ARP_Inputs by customer type'!J495 -> 10057.03206 | X57: ='ARP_Inputs by customer type'!J503 -> 6294.119931 | Y57: ='ARP_Inputs by customer type'!J504 -> 6294.119931
E59: LV UMS customer service model asset values | G59: £/MWh/year | I59: > | Q59: ='ARP_Inputs by customer type'!J516 -> 269.6734779 | AA59: Paragraph 36
B61: Checks
E63: Check for error values | G63: number of issues | H63: =SUM(IF(ISERROR(H16:Y60), 1)) -> 0
E65: Summary of checks | G65: number of issues | H65: =H63 -> 0
B67: End of sheet

Sheet Inputs by network level
A1: =MID(CELL("filename",A1),FIND("]",CELL("filename",A1))+1,255) -> Inputs by network level
A2: =Cover!D21&" - "&Cover!D23 -> WPD Mid East - April 21 Prices
A3: =Cover!D2&" - "&Cover!D8&" v"&Cover!D10&" - "&Cover!D19 -> ARP model - Release for charge setting v5 - 2021/22
A4: =H59 & IF(H59 = 1, " issue", " issues") &" identified in checks on this sheet" -> 0 issues identified in checks on this sheet
B5: Click here to return to model map | G5: Units | H5: Constants | J5: Transmission exit | K5: GSPs | L5: 132kV | M5: 132kV/EHV | N5: EHV | O5: EHV/HV | P5: 132kV/HV | Q5: HV | R5: HV/LV | S5: LV circuits | U5: Legal text reference
B7: Description
C9: This sheet sets out the inputs by network level to be filled in by DNOs.
E11: Charging year selected | G11: year | H11: =charging_year_selected -> 2021/22
E12: Historic / current / forecast | G12: text | H12: ='ARP_User control'!$H$36 -> Current
B14: Inputs by network level
C16: =INDEX('Version control'!$H$34:$H$58,MATCH($A$1,'Version control'!$F$34:$F$58,0),1)&"-A: Network and load inputs" -> Section 502-A: Network and load inputs
E18: Diversity allowance between top and bottom of network level | G18: % | I18: > | K18: ='ARP_Inputs by network level'!J20 -> 0.02471374244 | L18: ='ARP_Inputs by network level'!J21 -> 0.04501347824 | N18: ='ARP_Inputs by network level'!J23 -> 0.07901764269 | Q18: ='ARP_Inputs by network level'!J26 -> 0.34 | U18: Paragraphs 26 to 28
E20: Proportion of load going through 132kV/HV direct transformation | G20: % | P20: ='ARP_Inputs by network level'!J39 -> 0.07504434271
E22: Loss adjustment factors to transmission | G22: scalar | I22: > | K22: ='ARP_Inputs by network level'!J48 -> 1 | L22: ='ARP_Inputs by network level'!J49 -> 1.003 | M22: ='ARP_Inputs by network level'!J50 -> 1.006 | N22: ='ARP_Inputs by network level'!J51 -> 1.014 | O22: ='ARP_Inputs by network level'!J52 -> 1.02 | Q22: ='ARP_Inputs by network level'!J54 -> 1.036 | R22: ='ARP_Inputs by network level'!J55 -> 1.047 | S22: ='ARP_Inputs by network level'!J56 -> 1.078 | U22: Paragraph 47
E24: Average kVAr by kVA, by network level | G24: kVAr/kVA | I24: > | K24: ='ARP_Inputs by network level'!J62 -> 0.2231987844 | L24: ='ARP_Inputs by network level'!J63 -> 0.2231987844 | M24: ='ARP_Inputs by network level'!J64 -> 0.2231987844 | N24: ='ARP_Inputs by network level'!J65 -> 0.2231987844 | O24: ='ARP_Inputs by network level'!J66 -> 0.2231987844 | P24: ='ARP_Inputs by network level'!J67 -> 0.2231987844 | Q24: ='ARP_Inputs by network level'!J68 -> 0.2231987844 | R24: ='ARP_Inputs by network level'!J69 -> 0.2231987844 | S24: ='ARP_Inputs by network level'!J70 -> 0.2231987844 | U24: Paragraphs 50 to 51
C26: =INDEX('Version control'!$H$34:$H$58,MATCH($A$1,'Version control'!$F$34:$F$58,0),1)&"-B: Customer contributions under current connection charging policy" -> Section 502-B: Customer contributions under current connection charging policy
I27: > | U27: Paragraphs 29 to 31
E28: Customer contributions under current connection charging policy
F29: LV network | G29: % | L29: ='ARP_Inputs by network level'!J78 -> 0 | M29: ='ARP_Inputs by network level'!J79 -> 0 | N29: ='ARP_Inputs by network level'!J80 -> 0 | O29: ='ARP_Inputs by network level'!J81 -> 0 | P29: ='ARP_Inputs by network level'!J82 -> 0 | Q29: ='ARP_Inputs by network level'!J83 -> 0.479133519 | R29: ='ARP_Inputs by network level'!J84 -> 0.7089238456 | S29: ='ARP_Inputs by network level'!J85 -> 0.9387141723
F30: LV substation | G30: % | L30: ='ARP_Inputs by network level'!J89 -> 0 | M30: ='ARP_Inputs by network level'!J90 -> 0 | N30: ='ARP_Inputs by network level'!J91 -> 0 | O30: ='ARP_Inputs by network level'!J92 -> 0 | P30: ='ARP_Inputs by network level'!J93 -> 0 | Q30: ='ARP_Inputs by network level'!J94 -> 0.479133519 | R30: ='ARP_Inputs by network level'!J95 -> 0.7089238456
F31: HV network | G31: % | L31: ='ARP_Inputs by network level'!J100 -> 0 | M31: ='ARP_Inputs by network level'!J101 -> 0 | N31: ='ARP_Inputs by network level'!J102 -> 0.06542004956 | O31: ='ARP_Inputs by network level'!J103 -> 0.3516296229 | P31: ='ARP_Inputs by network level'!J104 -> 0.3516296229 | Q31: ='ARP_Inputs by network level'!J105 -> 0.6378391962
F32: HV substation | G32: % | L32: ='ARP_Inputs by network level'!J111 -> 0 | M32: ='ARP_Inputs by network level'!J112 -> 0 | N32: ='ARP_Inputs by network level'!J113 -> 0.06542004956 | O32: ='ARP_Inputs by network level'!J114 -> 0.3516296229
C34: =INDEX('Version control'!$H$34:$H$58,MATCH($A$1,'Version control'!$F$34:$F$58,0),1)&"-C: DRM asset costs" -> Section 502-C: DRM asset costs
E36: Gross asset cost by network level | G36: £ | I36: > | L36: ='ARP_Inputs by network level'!J125 -> 55914776.24 | M36: ='ARP_Inputs by network level'!J126 -> 29214948.85 | N36: ='ARP_Inputs by network level'!J127 -> 36091113.73 | O36: ='ARP_Inputs by network level'!J128 -> 58060293.78 | P36: ='ARP_Inputs by network level'!J129 -> 4889083.675 | Q36: ='ARP_Inputs by network level'!J130 -> 133760976.4 | R36: ='ARP_Inputs by network level'!J131 -> 61229373.39 | S36: ='ARP_Inputs by network level'!J132 -> 122042790.6
C38: =INDEX('Version control'!$H$34:$H$58,MATCH($A$1,'Version control'!$F$34:$F$58,0),1)&"-D: Peaking probabilities by network level" -> Section 502-D: Peaking probabilities by network level
D40: Red, Amber & Green peaking probabilities must sum to 100%, except for unused network levels, which should sum to 0%
E42: Peaking probabilities by network level | I42: > | U42: Paragraphs 48 to 49
F43: Red | G43: % | K43: ='ARP_Inputs by network level'!J140 -> 0.8638018299 | L43: ='ARP_Inputs by network level'!J141 -> 0.7410687627 | M43: ='ARP_Inputs by network level'!J142 -> 0.7410687627 | N43: ='ARP_Inputs by network level'!J143 -> 0.6226809993 | O43: ='ARP_Inputs by network level'!J144 -> 0.6226809993 | P43: ='ARP_Inputs by network level'!J145 -> 0.7410687627 | Q43: ='ARP_Inputs by network level'!J146 -> 0.6226809993 | R43: ='ARP_Inputs by network level'!J147 -> 0.6226809993 | S43: ='ARP_Inputs by network level'!J148 -> 0.6226809993
F44: Amber | G44: % | K44: ='ARP_Inputs by network level'!J152 -> 0.1361981701 | L44: ='ARP_Inputs by network level'!J153 -> 0.2381512701 | M44: ='ARP_Inputs by network level'!J154 -> 0.2381512701 | N44: ='ARP_Inputs by network level'!J155 -> 0.3336072936 | O44: ='ARP_Inputs by network level'!J156 -> 0.3336072936 | P44: ='ARP_Inputs by network level'!J157 -> 0.2381512701 | Q44: ='ARP_Inputs by network level'!J158 -> 0.3336072936 | R44: ='ARP_Inputs by network level'!J159 -> 0.3336072936 | S44: ='ARP_Inputs by network level'!J160 -> 0.3336072936
F45: Green | G45: % | K45: ='ARP_Inputs by network level'!J164 -> 0 | L45: ='ARP_Inputs by network level'!J165 -> 0.02077996718 | M45: ='ARP_Inputs by network level'!J166 -> 0.02077996718 | N45: ='ARP_Inputs by network level'!J167 -> 0.04371170716 | O45: ='ARP_Inputs by network level'!J168 -> 0.04371170716 | P45: ='ARP_Inputs by network level'!J169 -> 0.02077996718 | Q45: ='ARP_Inputs by network level'!J170 -> 0.04371170716 | R45: ='ARP_Inputs by network level'!J171 -> 0.04371170716 | S45: ='ARP_Inputs by network level'!J172 -> 0.04371170716
F46: Black | G46: % | K46: ='ARP_Inputs by network level'!J176 -> 0.7301794974 | L46: ='ARP_Inputs by network level'!J177 -> 0.7117602951 | M46: ='ARP_Inputs by network level'!J178 -> 0.7117602951 | N46: ='ARP_Inputs by network level'!J179 -> 0.6027144227 | O46: ='ARP_Inputs by network level'!J180 -> 0.6027144227 | P46: ='ARP_Inputs by network level'!J181 -> 0.7117602951 | Q46: ='ARP_Inputs by network level'!J182 -> 0.6027144227 | R46: ='ARP_Inputs by network level'!J183 -> 0.6027144227 | S46: ='ARP_Inputs by network level'!J184 -> 0.6027144227
B48: Checks
E50: Check for error values | G50: number of issues | H50: =SUM(IF(ISERROR(H18:AA47), 1)) -> 0
E52: Check that loss adjustment factor = 1 at grid supply point | G52: number of issues | H52: =IF(K22 = 1, 0, 1) -> 0
E54: Peaking probabilities check
E55: 0% peaking probabilities are permitted for 132kV, 132kV/EHV & 132kV/HV network levels, which do not exist for all DNOs
F56: General | G56: number of issues | H56: =SUM(K56:S56) -> 0 | K56: =IF(ABS(SUM(K43:K45) - 1) < 10^-check_decimals, 0, 1) -> 0 | N56: =IF(ABS(SUM(N43:N45) - 1) < 10^-check_decimals, 0, 1) -> 0 | O56: =IF(ABS(SUM(O43:O45) - 1) < 10^-check_decimals, 0, 1) -> 0 | Q56: =IF(ABS(SUM(Q43:Q45) - 1) < 10^-check_decimals, 0, 1) -> 0 | R56: =IF(ABS(SUM(R43:R45) - 1) < 10^-check_decimals, 0, 1) -> 0 | S56: =IF(ABS(SUM(S43:S45) - 1) < 10^-check_decimals, 0, 1) -> 0
F57: 132kV | G57: number of issues | H57: =SUM(K57:S57) -> 0 | L57: =IF(OR(ABS(SUM(L43:L45) - 1) < 10^-check_decimals, ABS(SUM(L43:L45) - 0) < 10^-check_decimals), 0, 1) -> 0 | M57: =IF(OR(ABS(SUM(M43:M45) - 1) < 10^-check_decimals, ABS(SUM(M43:M45) - 0) < 10^-check_decimals), 0, 1) -> 0 | P57: =IF(OR(ABS(SUM(P43:P45) - 1) < 10^-check_decimals, ABS(SUM(P43:P45) - 0) < 10^-check_decimals), 0, 1) -> 0
E59: Summary of checks | G59: number of issues | H59: =SUM(H50:H57) -> 0
B61: End of sheet

Sheet General inputs
A1: =MID(CELL("filename",A1),FIND("]",CELL("filename",A1))+1,255) -> General inputs
A2: =Cover!D21&" - "&Cover!D23 -> WPD Mid East - April 21 Prices
A3: =Cover!D2&" - "&Cover!D8&" v"&Cover!D10&" - "&Cover!D19 -> ARP model - Release for charge setting v5 - 2021/22
A4: =H117 & IF(H117 = 1, " issue", " issues") &" identified in checks on this sheet" -> 0 issues identified in checks on this sheet
B5: Click here to return to model map | G5: Units | H5: Constants | J5: Legal text reference
B7: Description
C9: This sheet sets out the other inputs to be filled in by DNOs
E11: Charging year selected | G11: year | H11: =charging_year_selected -> 2021/22
E12: Historic / current / forecast | G12: text | H12: ='ARP_User control'!$H$36 -> Current
B14: General inputs
C16: =INDEX('Version control'!$H$34:$H$58,MATCH($A$1,'Version control'!$F$34:$F$58,0),1)&"-A: Inputs by distribution timeband" -> Section 503-A: Inputs by distribution timeband
D18: Typical annual hours by special distribution time band | I18: > | J18: Paragraphs 40 to 41
E19: Black | G19: hours per year | H19: ='ARP_General inputs'!J19 -> 258
E20: Yellow | G20: hours per year | H20: ='ARP_General inputs'!J20 -> 3265.5
E21: Green | G21: hours per year | H21: ='ARP_General inputs'!J21 -> 5236.5
D23: Typical annual hours by distribution time band | I23: > | J23: Paragraphs 40 to 41
E24: Red | G24: hours per year | H24: ='ARP_General inputs'!J24 -> 783
E25: Amber | G25: hours per year | H25: ='ARP_General inputs'!J25 -> 2740.5
E26: Green | G26: hours per year | H26: ='ARP_General inputs'!J26 -> 5236.5
C28: =INDEX('Version control'!$H$34:$H$58,MATCH($A$1,'Version control'!$F$34:$F$58,0),1)&"-B: LDNO discount inputs" -> Section 503-B: LDNO discount inputs
D30: Inputs sourced from the PCDM
D32: Embedded network (LDNO) discount percentages | I32: > | J32: Paragraph 53
E33: LDNO LV: LV user | G33: % | H33: ='ARP_General inputs'!J33 -> 0.3050843779
E34: LDNO HV: LV user | G34: % | H34: ='ARP_General inputs'!J34 -> 0.447802573
E35: LDNO HV: LV Sub user | G35: % | H35: ='ARP_General inputs'!J35 -> 0.1927605069
E36: LDNO HV: HV user | G36: % | H36: ='ARP_General inputs'!J36 -> 0.08466062657
C38: =INDEX('Version control'!$H$34:$H$58,MATCH($A$1,'Version control'!$F$34:$F$58,0),1)&"-C: CDCM target revenue" -> Section 503-C: CDCM target revenue
D40: The contents of this table are defined in Paragraph 1.5 of Schedule 15 (Table 1) | I40: > | J40: Paragraph 54 and Schedule 15 Table 1
D41: "Latest forecast of CDCM Revenue" is the only row used as an input to the model itself
E43: Base Demand Revenue before inflation | G43: £ | H43: ='ARP_General inputs'!J43 -> 427600000
E44: Annual Iteration adjustment before inflation | G44: £ | H44: ='ARP_General inputs'!J44 -> -22344482.13
E45: RPI True-up before inflation | G45: £ | H45: ='ARP_General inputs'!J45 -> -3189403.836
E46: Price index adjustment (RPI index) | G46: scalar | H46: ='ARP_General inputs'!J46 -> 1.261
E47: Base demand revenue | G47: £ | H47: =SUM(H43:H45) -> 402066114
E48: Inflation adjustment | G48: £ | H48: =H47 * (H46 - 1) -> 104939255.8
E50: Pass-Through Licence Fees | G50: £ | H50: ='ARP_General inputs'!J50 -> 541577.7345
E51: Pass-Through Business Rates | G51: £ | H51: ='ARP_General inputs'!J51 -> -32389013.76
E52: Pass-Through Transmission Connection Point Charges | G52: £ | H52: ='ARP_General inputs'!J52 -> -2815404.989
E53: Pass-through Smart Meter Communication Licence Costs | G53: £ | H53: ='ARP_General inputs'!J53 -> 1663177.944
E54: Pass-through Smart Meter IT Costs | G54: £ | H54: ='ARP_General inputs'!J54 -> 874954.9548
E55: Pass-through Ring Fence Costs | G55: £ | H55: ='ARP_General inputs'!J55 -> 52708.08217
E56: Pass-through Supplier of Last Resort Adjustment | G56: £ | H56: ='ARP_General inputs'!J56 -> 82980.66696
E57: Pass-through Eligible Bad Debt Adjustment | G57: £ | H57: ='ARP_General inputs'!J57 -> 1612387.72
E58: Pass-Through Others | G58: £ | H58: ='ARP_General inputs'!J58 -> 0
E59: Allowed Pass-Through Items | G59: £ | H59: =SUM(H50:H58) -> -30376631.65
E61: Broad Measure of Customer Service incentive | G61: £ | H61: ='ARP_General inputs'!J61 -> 6611201.903
E62: Quality of Service incentive | G62: £ | H62: ='ARP_General inputs'!J62 -> 19667991.88
E63: Connections Engagement incentive | G63: £ | H63: ='ARP_General inputs'!J63 -> 0
E64: Time to Connect incentive | G64: £ | H64: ='ARP_General inputs'!J64 -> 1537977.991
E65: Losses Discretionary Reward incentive | G65: £ | H65: ='ARP_General inputs'!J65 -> 0
E66: Network Innovation Allowance | G66: £ | H66: ='ARP_General inputs'!J66 -> 1499883.192
E67: Low Carbon Network Fund - Tier 1 unrecoverable | G67: £ | H67: ='ARP_General inputs'!J67 -> 0
E68: Low Carbon Network Fund - Tier 2 & Discretionary Funding | G68: £ | H68: ='ARP_General inputs'!J68 -> 103529.17
E69: Connection Guaranteed Standards Systems & Processes penalty | G69: £ | H69: ='ARP_General inputs'!J69 -> 0
E70: Residual Losses and Growth Incentive - Losses | G70: £ | H70: ='ARP_General inputs'!J70 -> 0
E71: Residual Losses and Growth Incentive - Growth | G71: £ | H71: ='ARP_General inputs'!J71 -> 0
E72: Incentive Revenue and Other Adjustments | G72: £ | H72: =SUM(H61:H71) -> 29420584.13
E74: Correction Factor | G74: £ | H74: ='ARP_General inputs'!J74 -> 8024914.622
E75: Total allowed Revenue | G75: £ | H75: =H74 + H72 + H59 + H48 + H47 -> 514074236.9
E77: Other 1. Excluded services - Top-up, standby, and enhanced system security | G77: £ | H77: ='ARP_General inputs'!J77 -> 0
E78: Other 2. Excluded services - Revenue protection services | G78: £ | H78: ='ARP_General inputs'!J78 -> 0
E79: Other 3. Excluded services - Miscellaneous | G79: £ | H79: ='ARP_General inputs'!J79 -> 0
E80: Other 4. Please describe if used | G80: £ | H80: ='ARP_General inputs'!J80 -> 0
E81: Other 5. Please describe if used | G81: £ | H81: ='ARP_General inputs'!J81 -> 0
E82: Total other revenue recovered by Use of System Charges | G82: £ | H82: =SUM(H77:H81) -> 0
E83: Total Revenue for Use of System Charges | G83: £ | H83: =H75+H82 -> 514074236.9
E85: 1. Revenue raised outside CDCM - EDCM and Certain Interconnector Revenue | G85: £ | H85: ='ARP_General inputs'!J85 -> 11930443.02
E86: 2. Revenue raised outside CDCM - Voluntary under-recovery | G86: £ | H86: ='ARP_General inputs'!J86 -> 0
E87: 3. Revenue raised outside CDCM - Please describe if used | G87: £ | H87: ='ARP_General inputs'!J87 -> 0
E88: 4. Revenue raised outside CDCM - Please describe if used | G88: £ | H88: ='ARP_General inputs'!J88 -> 0
E89: Total Revenue to be raised outside the CDCM | G89: £ | H89: =SUM(H85:H88) -> 11930443.02
E90: Latest forecast of CDCM Revenue | G90: £ | H90: =H83-H89 -> 502143793.9
C92: =INDEX('Version control'!$H$34:$H$58,MATCH($A$1,'Version control'!$F$34:$F$58,0),1)&"-D: Financial and general assumptions" -> Section 503-D: Financial and general assumptions
E94: Real pre-tax cost of capital | G94: % | H94: ='ARP_General inputs'!J100 -> 0.0341 | I94: > | J94: Paragraph 57
E95: Days in the charging year | G95: days | H95: ='ARP_General inputs'!J101 -> 365
E96: Hours in charging year | G96: hours | H96: =days_in_year * hours_in_day -> 8760
C98: =INDEX('Version control'!$H$34:$H$58,MATCH($A$1,'Version control'!$F$34:$F$58,0),1)&"-E: Transmission exit charges" -> Section 503-E: Transmission exit charges
E100: Transmission exit charges | G100: £ per year | H100: ='ARP_General inputs'!J105 -> 13079170.86 | I100: > | J100: Paragraph 38
C102: =INDEX('Version control'!$H$34:$H$58,MATCH($A$1,'Version control'!$F$34:$F$58,0),1)&"-F: Other expenditure" -> Section 503-F: Other expenditure
E104: Other expenditure | I104: > | J104: Paragraph 39
F105: Direct cost | G105: £ per year | H105: ='ARP_General inputs'!J110 -> 44469072.86
F106: Indirect cost | G106: £ per year | H106: ='ARP_General inputs'!J111 -> 144357826.6
F107: Network rates | G107: £ per year | H107: ='ARP_General inputs'!J112 -> 32693484.43
B109: Checks
E111: Check for error values | G111: number of issues | H111: =SUM(IF(ISERROR(H6:H108), 1)) -> 0
E113: Hours in charging year check
F114: Normal distribution timebands | G114: number of issues | H114: =IF(SUM(H19:H21) = hours_in_year, 0, 1) -> 0
F115: Special distribution timebands | G115: number of issues | H115: =IF(SUM(H24:H26) = hours_in_year, 0, 1) -> 0
E117: Summary of checks | G117: number of issues | H117: =SUM(H111,H114:H115) -> 0
B119: End of sheet

Sheet Standing charge factors
A1: =MID(CELL("filename",A1),FIND("]",CELL("filename",A1))+1,255) -> Standing charge factors
A2: =Cover!D21&" - "&Cover!D23 -> WPD Mid East - April 21 Prices
A3: =Cover!D2&" - "&Cover!D8&" v"&Cover!D10&" - "&Cover!D19 -> ARP model - Release for charge setting v5 - 2021/22
A4: =H58 & IF(H58 = 1, " issue", " issues") &" identified in checks on this sheet" -> 0 issues identified in checks on this sheet
B5: Click here to return to model map | G5: Units | H5: Constants | J5: Domestic Aggregated | K5: Domestic Aggregated (Related MPAN) | L5: Non-Domestic Aggregated | M5: Non-Domestic Aggregated (Related MPAN) | N5: LV Site Specific | O5: LV Sub Site Specific | P5: HV Site Specific | Q5: Unmetered Supplies | R5: LV Generation Aggregated | S5: LV Sub Generation Aggregated | T5: LV Generation Site Specific | U5: LV Generation Site Specific no RP Charge | V5: LV Sub Generation Site Specific | W5: LV Sub Generation Site Specific no RP Charge | X5: HV Generation Site Specific | Y5: HV Generation Site Specific no RP Charge | AA5: Legal text reference
B7: Description
C9: This sheet contains standing charge factors, as described in DCUSA Schedule 16, Paragraphs 74-76.
C10: Standing charge factors are used to split network costs between those to be recovered through unit rate charges
C11: and those to be recovered through standing (capacity or fixed) charges, depending on the customer class and
C12: the network level at which costs occur.
C14: Standing charge factors are only applied for demand users.
C15: A factor of 100% implies that all costs will be allocated to standing charges.
B17: Adjustments to standing charges
C19: =INDEX('Version control'!$H$34:$H$58,MATCH($A$1,'Version control'!$F$34:$F$58,0),1)&"-A: Adjustments to standing charges" -> Section 504-A: Adjustments to standing charges
D21: Brings in standing charge factors and adjusts them for share of load going through 132/HV
E23: Raw inputs for standing charge factors, by network level | I23: > | AA23: Paragraph 74
E24: Standing charge factors as specified in Paragraph 74
F25: Transmission exit | G25: % | J25: ='Fixed inputs'!J88 -> 0 | K25: ='Fixed inputs'!K88 -> 0 | L25: ='Fixed inputs'!L88 -> 0 | M25: ='Fixed inputs'!M88 -> 0 | N25: ='Fixed inputs'!N88 -> 0 | O25: ='Fixed inputs'!O88 -> 0 | P25: ='Fixed inputs'!P88 -> 0 | Q25: ='Fixed inputs'!Q88 -> 0
F26: GSPs | G26: % | J26: ='Fixed inputs'!J89 -> 0 | K26: ='Fixed inputs'!K89 -> 0 | L26: ='Fixed inputs'!L89 -> 0 | M26: ='Fixed inputs'!M89 -> 0 | N26: ='Fixed inputs'!N89 -> 0 | O26: ='Fixed inputs'!O89 -> 0 | P26: ='Fixed inputs'!P89 -> 0 | Q26: ='Fixed inputs'!Q89 -> 0
F27: 132kV | G27: % | J27: ='Fixed inputs'!J90 -> 0 | K27: ='Fixed inputs'!K90 -> 0 | L27: ='Fixed inputs'!L90 -> 0 | M27: ='Fixed inputs'!M90 -> 0 | N27: ='Fixed inputs'!N90 -> 0 | O27: ='Fixed inputs'!O90 -> 0 | P27: ='Fixed inputs'!P90 -> 0 | Q27: ='Fixed inputs'!Q90 -> 0
F28: 132kV/EHV | G28: % | J28: ='Fixed inputs'!J91 -> 0 | K28: ='Fixed inputs'!K91 -> 0 | L28: ='Fixed inputs'!L91 -> 0 | M28: ='Fixed inputs'!M91 -> 0 | N28: ='Fixed inputs'!N91 -> 0 | O28: ='Fixed inputs'!O91 -> 0 | P28: ='Fixed inputs'!P91 -> 0 | Q28: ='Fixed inputs'!Q91 -> 0
F29: EHV | G29: % | J29: ='Fixed inputs'!J92 -> 0 | K29: ='Fixed inputs'!K92 -> 0 | L29: ='Fixed inputs'!L92 -> 0 | M29: ='Fixed inputs'!M92 -> 0 | N29: ='Fixed inputs'!N92 -> 0 | O29: ='Fixed inputs'!O92 -> 0 | P29: ='Fixed inputs'!P92 -> 0.2 | Q29: ='Fixed inputs'!Q92 -> 0
F30: EHV/HV | G30: % | J30: ='Fixed inputs'!J93 -> 0 | K30: ='Fixed inputs'!K93 -> 0 | L30: ='Fixed inputs'!L93 -> 0 | M30: ='Fixed inputs'!M93 -> 0 | N30: ='Fixed inputs'!N93 -> 0 | O30: ='Fixed inputs'!O93 -> 0 | P30: ='Fixed inputs'!P93 -> 1 | Q30: ='Fixed inputs'!Q93 -> 0
F31: 132kV/HV | G31: % | J31: ='Fixed inputs'!J94 -> 0 | K31: ='Fixed inputs'!K94 -> 0 | L31: ='Fixed inputs'!L94 -> 0 | M31: ='Fixed inputs'!M94 -> 0 | N31: ='Fixed inputs'!N94 -> 0 | O31: ='Fixed inputs'!O94 -> 0 | P31: ='Fixed inputs'!P94 -> 0 | Q31: ='Fixed inputs'!Q94 -> 0
F32: HV | G32: % | J32: ='Fixed inputs'!J95 -> 0 | K32: ='Fixed inputs'!K95 -> 0 | L32: ='Fixed inputs'!L95 -> 0 | M32: ='Fixed inputs'!M95 -> 0 | N32: ='Fixed inputs'!N95 -> 0.2 | O32: ='Fixed inputs'!O95 -> 1 | P32: ='Fixed inputs'!P95 -> 1 | Q32: ='Fixed inputs'!Q95 -> 0
F33: HV/LV | G33: % | J33: ='Fixed inputs'!J96 -> 0 | K33: ='Fixed inputs'!K96 -> 0 | L33: ='Fixed inputs'!L96 -> 0 | M33: ='Fixed inputs'!M96 -> 0 | N33: ='Fixed inputs'!N96 -> 1 | O33: ='Fixed inputs'!O96 -> 1 | P33: ='Fixed inputs'!P96 -> 0 | Q33: ='Fixed inputs'!Q96 -> 0
F34: LV circuits | G34: % | J34: ='Fixed inputs'!J97 -> 1 | K34: ='Fixed inputs'!K97 -> 1 | L34: ='Fixed inputs'!L97 -> 1 | M34: ='Fixed inputs'!M97 -> 1 | N34: ='Fixed inputs'!N97 -> 1 | O34: ='Fixed inputs'!O97 -> 0 | P34: ='Fixed inputs'!P97 -> 0 | Q34: ='Fixed inputs'!Q97 -> 0
F35: LV customers | G35: %
F36: HV customers | G36: %
E38: Proportion of load going through 132kV/HV direct transformation
F39: Proportion of load going through 132kV/HV direct transformation | G39: % | H39: ='Inputs by network level'!P20 -> 0.07504434271
E41: Standing charges factors adapted to use 132kV/HV, by network level
E42: Adjustments as described in Paragraph 75 and 76
F43: Transmission exit | G43: %
F44: GSPs | G44: %
F45: 132kV | G45: % | I45: > | J45: =IF($H$39 = 0, J27, J29 * $H$39) -> 0 | K45: =IF($H$39 = 0, K27, K29 * $H$39) -> 0 | L45: 0 | M45: 0 | N45: 0 | O45: 0 | P45: 0.01500886854 | Q45: 0 | AA45: Paragraph 76
F46: 132kV/EHV | G46: % | J46: =J28 -> 0 | K46: 0 | L46: 0 | M46: 0 | N46: 0 | O46: 0 | P46: 0 | Q46: 0
F47: EHV | G47: % | J47: 0 | K47: 0 | L47: 0 | M47: 0 | N47: 0 | O47: 0 | P47: 0.2 | Q47: 0
F48: EHV/HV | G48: % | J48: 0 | K48: 0 | L48: 0 | M48: 0 | N48: 0 | O48: 0 | P48: 1 | Q48: 0
F49: 132kV/HV | G49: % | I49: > | J49: =J30 -> 0 | K49: 0 | L49: 0 | M49: 0 | N49: 0 | O49: 0 | P49: 1 | Q49: 0 | AA49: Paragraph 75
F50: HV | G50: % | J50: =J32 -> 0 | K50: 0 | L50: 0 | M50: 0 | N50: 0.2 | O50: 1 | P50: 1 | Q50: 0
F51: HV/LV | G51: % | J51: 0 | K51: 0 | L51: 0 | M51: 0 | N51: 1 | O51: 1 | P51: 0 | Q51: 0
F52: LV circuits | G52: % | J52: 1 | K52: 1 | L52: 1 | M52: 1 | N52: 1 | O52: 0 | P52: 0 | Q52: 0
F53: LV customers | G53: %
F54: HV customers | G54: %
B56: Checks
E58: Check for error values | G58: number of issues | H58: =SUM(IF(ISERROR(H25:Y54), 1)) -> 0
B60: End of sheet

Sheet Load & loss characteristics
A1: =MID(CELL("filename",A1),FIND("]",CELL("filename",A1))+1,255) -> Load & loss characteristics
A2: =Cover!D21&" - "&Cover!D23 -> WPD Mid East - April 21 Prices
A3: =Cover!D2&" - "&Cover!D8&" v"&Cover!D10&" - "&Cover!D19 -> ARP model - Release for charge setting v5 - 2021/22
A4: =H183 & IF(H183 = 1, " issue", " issues") &" identified in checks on this sheet" -> 0 issues identified in checks on this sheet
B5: Click here to return to model map | G5: Units | H5: Constants | J5: Transmission exit | K5: GSPs | L5: 132kV | M5: 132kV/EHV | N5: EHV | O5: EHV/HV | P5: 132kV/HV | Q5: HV | R5: HV/LV | S5: LV circuits | T5: LV customers | U5: HV customers | W5: Legal text reference
B7: Description
C9: This sheet adjusts diversity allowances, coincidence factors and loss adjustment factors for use in the model
C10: This sheet then uses network use factors and loss adjustment factors to calculate user loss factors
C11: Network use factors and user loss factors are also adjusted for the share of load going through 132/HV transformation
B13: Load and loss characteristics
C15: Brings in diversity allowances to calculate coincidence and cumulative diversity factors. Also adjusts loss adjustment factors.
C17: =INDEX('Version control'!$H$34:$H$58,MATCH($A$1,'Version control'!$F$34:$F$58,0),1)&"-A: Load characteristics" -> Section 505-A: Load characteristics
E19: Network model diversity allowances | G19: % | K19: ='Inputs by network level'!K18 -> 0.02471374244 | L19: ='Inputs by network level'!L18 -> 0.04501347824 | N19: ='Inputs by network level'!N18 -> 0.07901764269 | Q19: ='Inputs by network level'!Q18 -> 0.34
E20: Coincidence factor | G20: % | J20: =IF(I20 = "", 1, I20 / (1 + J19)) -> 1 | K20: =IF(J20 = "", 1, J20 / (1 + K19)) -> 0.9758822963 | L20: =IF(K20 = "", 1, K20 / (1 + L19)) -> 0.9338466121 | M20: 0.9338466121 | N20: 0.8654600029 | O20: 0.8654600029 | P20: 0.8654600029 | Q20: 0.6458656738 | R20: 0.6458656738 | S20: 0.6458656738
E21: Network model cumulative diversity factor | G21: % | J21: =1 / J20 - 1 -> 0 | K21: =1 / K20 - 1 -> 0.02471374244 | L21: 0.07083967218 | M21: 0.07083967218 | N21: 0.1554548988 | O21: 0.1554548988 | P21: 0.1554548988 | Q21: 0.5483095644 | R21: 0.5483095644 | S21: 0.5483095644
E22: Adjustment for 132/HV diversity | G22: % | P22: =M21 -> 0.07083967218
E23: Adjusted network model cumulative diversity factor | G23: % | I23: > | J23: =IF(J22 = "", J21, J22) -> 0 | K23: 0.02471374244 | L23: 0.07083967218 | M23: 0.07083967218 | N23: 0.1554548988 | O23: 0.1554548988 | P23: 0.07083967218 | Q23: 0.5483095644 | R23: 0.5483095644 | S23: 0.5483095644 | W23: Paragraphs 42 to 44
C25: =INDEX('Version control'!$H$34:$H$58,MATCH($A$1,'Version control'!$F$34:$F$58,0),1)&"-B: Loss adjustment factors" -> Section 505-B: Loss adjustment factors
E27: Loss adjustment factor to transmission | G27: scalar | K27: ='Inputs by network level'!K22 -> 1 | L27: ='Inputs by network level'!L22 -> 1.003 | M27: ='Inputs by network level'!M22 -> 1.006 | N27: ='Inputs by network level'!N22 -> 1.014 | O27: ='Inputs by network level'!O22 -> 1.02 | Q27: ='Inputs by network level'!Q22 -> 1.036 | R27: ='Inputs by network level'!R22 -> 1.047 | S27: ='Inputs by network level'!S22 -> 1.078
E28: Adjustment for 132/HV transformation & transmission exit | G28: scalar | J28: =K27 -> 1 | P28: =O27 -> 1.02
E29: Loss adjustment factor to transmission for each DRM network level | G29: scalar | I29: > | J29: =J27 + J28 -> 1 | K29: 1 | L29: 1.003 | M29: 1.006 | N29: 1.014 | O29: 1.02 | P29: 1.02 | Q29: 1.036 | R29: 1.047 | S29: 1.078 | W29: Paragraph 47
B31: User loss factor adjustments
C33: Calculates user loss factors and makes adjustments for share of load going through 132kV/HV
C35: =INDEX('Version control'!$H$34:$H$58,MATCH($A$1,'Version control'!$F$34:$F$58,0),1)&"-C: Proportion of relevant load going through 132kV/HV direct transformation" -> Section 505-C: Proportion of relevant load going through 132kV/HV direct transformation
E37: 132kV/HV | G37: % | H37: ='Inputs by network level'!P20 -> 0.07504434271
E38: Adjustment to network use factors for 132/HV share | G38: % | M38: =1 - $H$37 -> 0.9249556573 | N38: =1 - $H$37 -> 0.9249556573 | O38: =1 - $H$37 -> 0.9249556573 | P38: =H37 -> 0.07504434271
C40: =INDEX('Version control'!$H$34:$H$58,MATCH($A$1,'Version control'!$F$34:$F$58,0),1)&"-D: Network use factors" -> Section 505-D: Network use factors
D42: Network use factors assume demand and generation use the network from the point of connection.
E44: Network use factors (assuming generation contributes at level of connection)
E45: These values are drawn from the "Fixed inputs" sheet.
F46: Domestic Aggregated | G46: 1, 0 or -1 | J46: =TRANSPOSE('Fixed inputs'!J60:Y69) -> 1 | K46: 1 | L46: 1 | M46: 1 | N46: 1 | O46: 1 | P46: 1 | Q46: 1 | R46: 1 | S46: 1
F47: Domestic Aggregated (Related MPAN) | G47: 1, 0 or -1 | J47: 1 | K47: 1 | L47: 1 | M47: 1 | N47: 1 | O47: 1 | P47: 1 | Q47: 1 | R47: 1 | S47: 1
F48: Non-Domestic Aggregated | G48: 1, 0 or -1 | J48: 1 | K48: 1 | L48: 1 | M48: 1 | N48: 1 | O48: 1 | P48: 1 | Q48: 1 | R48: 1 | S48: 1
F49: Non-Domestic Aggregated (Related MPAN) | G49: 1, 0 or -1 | J49: 1 | K49: 1 | L49: 1 | M49: 1 | N49: 1 | O49: 1 | P49: 1 | Q49: 1 | R49: 1 | S49: 1
F50: LV Site Specific | G50: 1, 0 or -1 | J50: 1 | K50: 1 | L50: 1 | M50: 1 | N50: 1 | O50: 1 | P50: 1 | Q50: 1 | R50: 1 | S50: 1
F51: LV Sub Site Specific | G51: 1, 0 or -1 | J51: 1 | K51: 1 | L51: 1 | M51: 1 | N51: 1 | O51: 1 | P51: 1 | Q51: 1 | R51: 1 | S51: 0
F52: HV Site Specific | G52: 1, 0 or -1 | J52: 1 | K52: 1 | L52: 1 | M52: 1 | N52: 1 | O52: 1 | P52: 1 | Q52: 1 | R52: 0 | S52: 0
F53: Unmetered Supplies | G53: 1, 0 or -1 | J53: 1 | K53: 1 | L53: 1 | M53: 1 | N53: 1 | O53: 1 | P53: 1 | Q53: 1 | R53: 1 | S53: 1
F54: LV Generation Aggregated | G54: 1, 0 or -1 | J54: -1 | K54: -1 | L54: -1 | M54: -1 | N54: -1 | O54: -1 | P54: -1 | Q54: -1 | R54: -1 | S54: -1
F55: LV Sub Generation Aggregated | G55: 1, 0 or -1 | J55: -1 | K55: -1 | L55: -1 | M55: -1 | N55: -1 | O55: -1 | P55: -1 | Q55: -1 | R55: -1 | S55: 0
F56: LV Generation Site Specific | G56: 1, 0 or -1 | J56: -1 | K56: -1 | L56: -1 | M56: -1 | N56: -1 | O56: -1 | P56: -1 | Q56: -1 | R56: -1 | S56: -1
F57: LV Generation Site Specific no RP Charge | G57: 1, 0 or -1 | J57: -1 | K57: -1 | L57: -1 | M57: -1 | N57: -1 | O57: -1 | P57: -1 | Q57: -1 | R57: -1 | S57: -1
F58: LV Sub Generation Site Specific | G58: 1, 0 or -1 | J58: -1 | K58: -1 | L58: -1 | M58: -1 | N58: -1 | O58: -1 | P58: -1 | Q58: -1 | R58: -1 | S58: 0
F59: LV Sub Generation Site Specific no RP Charge | G59: 1, 0 or -1 | J59: -1 | K59: -1 | L59: -1 | M59: -1 | N59: -1 | O59: -1 | P59: -1 | Q59: -1 | R59: -1 | S59: 0
F60: HV Generation Site Specific | G60: 1, 0 or -1 | J60: -1 | K60: -1 | L60: -1 | M60: -1 | N60: -1 | O60: -1 | P60: -1 | Q60: -1 | R60: 0 | S60: 0
F61: HV Generation Site Specific no RP Charge | G61: 1, 0 or -1 | J61: -1 | K61: -1 | L61: -1 | M61: -1 | N61: -1 | O61: -1 | P61: -1 | Q61: -1 | R61: 0 | S61: 0
E63: Network use factors (assuming generation contributes at level of connection) scaled for 132/HV
E64: These have been adjusted for the share of load going through 132/HV transformation
F65: Domestic Aggregated | G65: 1, 0 or -1 | J65: =IF(J$38 = "", J46, J46 * J$38) -> 1 | K65: 1 | L65: 1 | M65: 0.9249556573 | N65: 0.9249556573 | O65: 0.9249556573 | P65: 0.07504434271 | Q65: 1 | R65: 1 | S65: 1
F66: Domestic Aggregated (Related MPAN) | G66: 1, 0 or -1 | J66: 1 | K66: 1 | L66: 1 | M66: 0.9249556573 | N66: 0.9249556573 | O66: 0.9249556573 | P66: 0.07504434271 | Q66: 1 | R66: 1 | S66: 1
F67: Non-Domestic Aggregated | G67: 1, 0 or -1 | J67: 1 | K67: 1 | L67: 1 | M67: 0.9249556573 | N67: 0.9249556573 | O67: 0.9249556573 | P67: 0.07504434271 | Q67: 1 | R67: 1 | S67: 1
F68: Non-Domestic Aggregated (Related MPAN) | G68: 1, 0 or -1 | J68: 1 | K68: 1 | L68: 1 | M68: 0.9249556573 | N68: 0.9249556573 | O68: 0.9249556573 | P68: 0.07504434271 | Q68: 1 | R68: 1 | S68: 1
F69: LV Site Specific | G69: 1, 0 or -1 | J69: 1 | K69: 1 | L69: 1 | M69: 0.9249556573 | N69: 0.9249556573 | O69: 0.9249556573 | P69: 0.07504434271 | Q69: 1 | R69: 1 | S69: 1
F70: LV Sub Site Specific | G70: 1, 0 or -1 | J70: 1 | K70: 1 | L70: 1 | M70: 0.9249556573 | N70: 0.9249556573 | O70: 0.9249556573 | P70: 0.07504434271 | Q70: 1 | R70: 1 | S70: 0
F71: HV Site Specific | G71: 1, 0 or -1 | J71: 1 | K71: 1 | L71: 1 | M71: 0.9249556573 | N71: 0.9249556573 | O71: 0.9249556573 | P71: 0.07504434271 | Q71: 1 | R71: 0 | S71: 0
F72: Unmetered Supplies | G72: 1, 0 or -1 | J72: 1 | K72: 1 | L72: 1 | M72: 0.9249556573 | N72: 0.9249556573 | O72: 0.9249556573 | P72: 0.07504434271 | Q72: 1 | R72: 1 | S72: 1
F73: LV Generation Aggregated | G73: 1, 0 or -1 | J73: -1 | K73: -1 | L73: -1 | M73: -0.9249556573 | N73: -0.9249556573 | O73: -0.9249556573 | P73: -0.07504434271 | Q73: -1 | R73: -1 | S73: -1
F74: LV Sub Generation Aggregated | G74: 1, 0 or -1 | J74: -1 | K74: -1 | L74: -1 | M74: -0.9249556573 | N74: -0.9249556573 | O74: -0.9249556573 | P74: -0.07504434271 | Q74: -1 | R74: -1 | S74: 0
F75: LV Generation Site Specific | G75: 1, 0 or -1 | J75: -1 | K75: -1 | L75: -1 | M75: -0.9249556573 | N75: -0.9249556573 | O75: -0.9249556573 | P75: -0.07504434271 | Q75: -1 | R75: -1 | S75: -1
F76: LV Generation Site Specific no RP Charge | G76: 1, 0 or -1 | J76: -1 | K76: -1 | L76: -1 | M76: -0.9249556573 | N76: -0.9249556573 | O76: -0.9249556573 | P76: -0.07504434271 | Q76: -1 | R76: -1 | S76: -1
F77: LV Sub Generation Site Specific | G77: 1, 0 or -1 | J77: -1 | K77: -1 | L77: -1 | M77: -0.9249556573 | N77: -0.9249556573 | O77: -0.9249556573 | P77: -0.07504434271 | Q77: -1 | R77: -1 | S77: 0
F78: LV Sub Generation Site Specific no RP Charge | G78: 1, 0 or -1 | J78: -1 | K78: -1 | L78: -1 | M78: -0.9249556573 | N78: -0.9249556573 | O78: -0.9249556573 | P78: -0.07504434271 | Q78: -1 | R78: -1 | S78: 0
F79: HV Generation Site Specific | G79: 1, 0 or -1 | J79: -1 | K79: -1 | L79: -1 | M79: -0.9249556573 | N79: -0.9249556573 | O79: -0.9249556573 | P79: -0.07504434271 | Q79: -1 | R79: 0 | S79: 0
F80: HV Generation Site Specific no RP Charge | G80: 1, 0 or -1 | J80: -1 | K80: -1 | L80: -1 | M80: -0.9249556573 | N80: -0.9249556573 | O80: -0.9249556573 | P80: -0.07504434271 | Q80: -1 | R80: 0 | S80: 0
E82: Network use factors (assuming generation makes no contribution at level of connection) | I82: > | W82: Paragraphs 62 and 71
E83: Equal to 0 for the network level at which generation is connected, otherwise equal to network use factor
F84: Domestic Aggregated | G84: 1 or 0 | J84: =TRANSPOSE('Fixed inputs'!J73:Y82) -> 1 | K84: 1 | L84: 1 | M84: 1 | N84: 1 | O84: 1 | P84: 1 | Q84: 1 | R84: 1 | S84: 1
F85: Domestic Aggregated (Related MPAN) | G85: 1 or 0 | J85: 1 | K85: 1 | L85: 1 | M85: 1 | N85: 1 | O85: 1 | P85: 1 | Q85: 1 | R85: 1 | S85: 1
F86: Non-Domestic Aggregated | G86: 1 or 0 | J86: 1 | K86: 1 | L86: 1 | M86: 1 | N86: 1 | O86: 1 | P86: 1 | Q86: 1 | R86: 1 | S86: 1
F87: Non-Domestic Aggregated (Related MPAN) | G87: 1 or 0 | J87: 1 | K87: 1 | L87: 1 | M87: 1 | N87: 1 | O87: 1 | P87: 1 | Q87: 1 | R87: 1 | S87: 1
F88: LV Site Specific | G88: 1 or 0 | J88: 1 | K88: 1 | L88: 1 | M88: 1 | N88: 1 | O88: 1 | P88: 1 | Q88: 1 | R88: 1 | S88: 1
F89: LV Sub Site Specific | G89: 1 or 0 | J89: 1 | K89: 1 | L89: 1 | M89: 1 | N89: 1 | O89: 1 | P89: 1 | Q89: 1 | R89: 1 | S89: 0
F90: HV Site Specific | G90: 1 or 0 | J90: 1 | K90: 1 | L90: 1 | M90: 1 | N90: 1 | O90: 1 | P90: 1 | Q90: 1 | R90: 0 | S90: 0
F91: Unmetered Supplies | G91: 1 or 0 | J91: 1 | K91: 1 | L91: 1 | M91: 1 | N91: 1 | O91: 1 | P91: 1 | Q91: 1 | R91: 1 | S91: 1
F92: LV Generation Aggregated | G92: 1 or 0 | J92: -1 | K92: -1 | L92: -1 | M92: -1 | N92: -1 | O92: -1 | P92: -1 | Q92: -1 | R92: -1 | S92: 0
F93: LV Sub Generation Aggregated | G93: 1 or 0 | J93: -1 | K93: -1 | L93: -1 | M93: -1 | N93: -1 | O93: -1 | P93: -1 | Q93: -1 | R93: 0 | S93: 0
F94: LV Generation Site Specific | G94: 1 or 0 | J94: -1 | K94: -1 | L94: -1 | M94: -1 | N94: -1 | O94: -1 | P94: -1 | Q94: -1 | R94: -1 | S94: 0
F95: LV Generation Site Specific no RP Charge | G95: 1 or 0 | J95: -1 | K95: -1 | L95: -1 | M95: -1 | N95: -1 | O95: -1 | P95: -1 | Q95: -1 | R95: -1 | S95: 0
F96: LV Sub Generation Site Specific | G96: 1 or 0 | J96: -1 | K96: -1 | L96: -1 | M96: -1 | N96: -1 | O96: -1 | P96: -1 | Q96: -1 | R96: 0 | S96: 0
F97: LV Sub Generation Site Specific no RP Charge | G97: 1 or 0 | J97: -1 | K97: -1 | L97: -1 | M97: -1 | N97: -1 | O97: -1 | P97: -1 | Q97: -1 | R97: 0 | S97: 0
F98: HV Generation Site Specific | G98: 1 or 0 | J98: -1 | K98: -1 | L98: -1 | M98: -1 | N98: -1 | O98: -1 | P98: -1 | Q98: 0 | R98: 0 | S98: 0
F99: HV Generation Site Specific no RP Charge | G99: 1 or 0 | J99: -1 | K99: -1 | L99: -1 | M99: -1 | N99: -1 | O99: -1 | P99: -1 | Q99: 0 | R99: 0 | S99: 0
E101: Network use factors (assuming generation makes no contribution at level of connection), scaled for 132/HV | I101: > | W101: Paragraphs 62 and 71
E102: Equal to 0 for the network level at which generation is connected, otherwise equal to network use factor
E103: These have been adjusted for the share of load going through 132/HV transformation
F104: Domestic Aggregated | G104: 1 or 0 | J104: =IF(J$38 = "", J84, J84 * J$38) -> 1 | K104: 1 | L104: 1 | M104: 0.9249556573 | N104: 0.9249556573 | O104: 0.9249556573 | P104: 0.07504434271 | Q104: 1 | R104: 1 | S104: 1
F105: Domestic Aggregated (Related MPAN) | G105: 1 or 0 | J105: 1 | K105: 1 | L105: 1 | M105: 0.9249556573 | N105: 0.9249556573 | O105: 0.9249556573 | P105: 0.07504434271 | Q105: 1 | R105: 1 | S105: 1
F106: Non-Domestic Aggregated | G106: 1 or 0 | J106: 1 | K106: 1 | L106: 1 | M106: 0.9249556573 | N106: 0.9249556573 | O106: 0.9249556573 | P106: 0.07504434271 | Q106: 1 | R106: 1 | S106: 1
F107: Non-Domestic Aggregated (Related MPAN) | G107: 1 or 0 | J107: 1 | K107: 1 | L107: 1 | M107: 0.9249556573 | N107: 0.9249556573 | O107: 0.9249556573 | P107: 0.07504434271 | Q107: 1 | R107: 1 | S107: 1
F108: LV Site Specific | G108: 1 or 0 | J108: 1 | K108: 1 | L108: 1 | M108: 0.9249556573 | N108: 0.9249556573 | O108: 0.9249556573 | P108: 0.07504434271 | Q108: 1 | R108: 1 | S108: 1
F109: LV Sub Site Specific | G109: 1 or 0 | J109: 1 | K109: 1 | L109: 1 | M109: 0.9249556573 | N109: 0.9249556573 | O109: 0.9249556573 | P109: 0.07504434271 | Q109: 1 | R109: 1 | S109: 0
F110: HV Site Specific | G110: 1 or 0 | J110: 1 | K110: 1 | L110: 1 | M110: 0.9249556573 | N110: 0.9249556573 | O110: 0.9249556573 | P110: 0.07504434271 | Q110: 1 | R110: 0 | S110: 0
F111: Unmetered Supplies | G111: 1 or 0 | J111: 1 | K111: 1 | L111: 1 | M111: 0.9249556573 | N111: 0.9249556573 | O111: 0.9249556573 | P111: 0.07504434271 | Q111: 1 | R111: 1 | S111: 1
F112: LV Generation Aggregated | G112: 1 or 0 | J112: -1 | K112: -1 | L112: -1 | M112: -0.9249556573 | N112: -0.9249556573 | O112: -0.9249556573 | P112: -0.07504434271 | Q112: -1 | R112: -1 | S112: 0
F113: LV Sub Generation Aggregated | G113: 1 or 0 | J113: -1 | K113: -1 | L113: -1 | M113: -0.9249556573 | N113: -0.9249556573 | O113: -0.9249556573 | P113: -0.07504434271 | Q113: -1 | R113: 0 | S113: 0
F114: LV Generation Site Specific | G114: 1 or 0 | J114: -1 | K114: -1 | L114: -1 | M114: -0.9249556573 | N114: -0.9249556573 | O114: -0.9249556573 | P114: -0.07504434271 | Q114: -1 | R114: -1 | S114: 0
F115: LV Generation Site Specific no RP Charge | G115: 1 or 0 | J115: -1 | K115: -1 | L115: -1 | M115: -0.9249556573 | N115: -0.9249556573 | O115: -0.9249556573 | P115: -0.07504434271 | Q115: -1 | R115: -1 | S115: 0
F116: LV Sub Generation Site Specific | G116: 1 or 0 | J116: -1 | K116: -1 | L116: -1 | M116: -0.9249556573 | N116: -0.9249556573 | O116: -0.9249556573 | P116: -0.07504434271 | Q116: -1 | R116: 0 | S116: 0
F117: LV Sub Generation Site Specific no RP Charge | G117: 1 or 0 | J117: -1 | K117: -1 | L117: -1 | M117: -0.9249556573 | N117: -0.9249556573 | O117: -0.9249556573 | P117: -0.07504434271 | Q117: -1 | R117: 0 | S117: 0
F118: HV Generation Site Specific | G118: 1 or 0 | J118: -1 | K118: -1 | L118: -1 | M118: -0.9249556573 | N118: -0.9249556573 | O118: -0.9249556573 | P118: -0.07504434271 | Q118: 0 | R118: 0 | S118: 0
F119: HV Generation Site Specific no RP Charge | G119: 1 or 0 | J119: -1 | K119: -1 | L119: -1 | M119: -0.9249556573 | N119: -0.9249556573 | O119: -0.9249556573 | P119: -0.07504434271 | Q119: 0 | R119: 0 | S119: 0
C121: =INDEX('Version control'!$H$34:$H$58,MATCH($A$1,'Version control'!$F$34:$F$58,0),1)&"-E: User loss factors" -> Section 505-E: User loss factors
E123: User loss factor (assuming generation contributes at level of connection)
E124: For demand, it is the loss factor at network level which user is supplied.
E125: For generation, it is the loss factor at network level which user is supplied. | H125: Maximum
F126: Domestic Aggregated | G126: scalar | H126: =MAX(J126:S126) -> 1.078 | J126: =OR(SUM(J65:$S65) = 1, SUM(J65:$S65) = -1) * J$29 -> 0 | K126: =OR(SUM(K65:$S65) = 1, SUM(K65:$S65) = -1) * K$29 -> 0 | L126: =OR(SUM(L65:$S65) = 1, SUM(L65:$S65) = -1) * L$29 -> 0 | M126: =OR(SUM(M65:$S65) = 1, SUM(M65:$S65) = -1) * M$29 -> 0 | N126: =OR(SUM(N65:$S65) = 1, SUM(N65:$S65) = -1) * N$29 -> 0 | O126: =OR(SUM(O65:$S65) = 1, SUM(O65:$S65) = -1) * O$29 -> 0 | P126: =OR(SUM(P65:$S65) = 1, SUM(P65:$S65) = -1) * P$29 -> 0 | Q126: =OR(SUM(Q65:$S65) = 1, SUM(Q65:$S65) = -1) * Q$29 -> 0 | R126: =OR(SUM(R65:$S65) = 1, SUM(R65:$S65) = -1) * R$29 -> 0 | S126: =OR(SUM(S65:$S65) = 1, SUM(S65:$S65) = -1) * S$29 -> 1.078
F127: Domestic Aggregated (Related MPAN) | G127: scalar | H127: 1.078 | J127: =OR(SUM(J66:$S66) = 1, SUM(J66:$S66) = -1) * J$29 -> 0 | K127: =OR(SUM(K66:$S66) = 1, SUM(K66:$S66) = -1) * K$29 -> 0 | L127: =OR(SUM(L66:$S66) = 1, SUM(L66:$S66) = -1) * L$29 -> 0 | M127: =OR(SUM(M66:$S66) = 1, SUM(M66:$S66) = -1) * M$29 -> 0 | N127: =OR(SUM(N66:$S66) = 1, SUM(N66:$S66) = -1) * N$29 -> 0 | O127: =OR(SUM(O66:$S66) = 1, SUM(O66:$S66) = -1) * O$29 -> 0 | P127: =OR(SUM(P66:$S66) = 1, SUM(P66:$S66) = -1) * P$29 -> 0 | Q127: =OR(SUM(Q66:$S66) = 1, SUM(Q66:$S66) = -1) * Q$29 -> 0 | R127: =OR(SUM(R66:$S66) = 1, SUM(R66:$S66) = -1) * R$29 -> 0 | S127: =OR(SUM(S66:$S66) = 1, SUM(S66:$S66) = -1) * S$29 -> 1.078
F128: Non-Domestic Aggregated | G128: scalar | H128: 1.078 | J128: =OR(SUM(J67:$S67) = 1, SUM(J67:$S67) = -1) * J$29 -> 0 | K128: =OR(SUM(K67:$S67) = 1, SUM(K67:$S67) = -1) * K$29 -> 0 | L128: =OR(SUM(L67:$S67) = 1, SUM(L67:$S67) = -1) * L$29 -> 0 | M128: =OR(SUM(M67:$S67) = 1, SUM(M67:$S67) = -1) * M$29 -> 0 | N128: =OR(SUM(N67:$S67) = 1, SUM(N67:$S67) = -1) * N$29 -> 0 | O128: =OR(SUM(O67:$S67) = 1, SUM(O67:$S67) = -1) * O$29 -> 0 | P128: =OR(SUM(P67:$S67) = 1, SUM(P67:$S67) = -1) * P$29 -> 0 | Q128: =OR(SUM(Q67:$S67) = 1, SUM(Q67:$S67) = -1) * Q$29 -> 0 | R128: =OR(SUM(R67:$S67) = 1, SUM(R67:$S67) = -1) * R$29 -> 0 | S128: =OR(SUM(S67:$S67) = 1, SUM(S67:$S67) = -1) * S$29 -> 1.078
F129: Non-Domestic Aggregated (Related MPAN) | G129: scalar | H129: 1.078 | J129: =OR(SUM(J68:$S68) = 1, SUM(J68:$S68) = -1) * J$29 -> 0 | K129: =OR(SUM(K68:$S68) = 1, SUM(K68:$S68) = -1) * K$29 -> 0 | L129: =OR(SUM(L68:$S68) = 1, SUM(L68:$S68) = -1) * L$29 -> 0 | M129: =OR(SUM(M68:$S68) = 1, SUM(M68:$S68) = -1) * M$29 -> 0 | N129: =OR(SUM(N68:$S68) = 1, SUM(N68:$S68) = -1) * N$29 -> 0 | O129: =OR(SUM(O68:$S68) = 1, SUM(O68:$S68) = -1) * O$29 -> 0 | P129: =OR(SUM(P68:$S68) = 1, SUM(P68:$S68) = -1) * P$29 -> 0 | Q129: =OR(SUM(Q68:$S68) = 1, SUM(Q68:$S68) = -1) * Q$29 -> 0 | R129: =OR(SUM(R68:$S68) = 1, SUM(R68:$S68) = -1) * R$29 -> 0 | S129: =OR(SUM(S68:$S68) = 1, SUM(S68:$S68) = -1) * S$29 -> 1.078
F130: LV Site Specific | G130: scalar | H130: 1.078 | J130: =OR(SUM(J69:$S69) = 1, SUM(J69:$S69) = -1) * J$29 -> 0 | K130: =OR(SUM(K69:$S69) = 1, SUM(K69:$S69) = -1) * K$29 -> 0 | L130: =OR(SUM(L69:$S69) = 1, SUM(L69:$S69) = -1) * L$29 -> 0 | M130: =OR(SUM(M69:$S69) = 1, SUM(M69:$S69) = -1) * M$29 -> 0 | N130: =OR(SUM(N69:$S69) = 1, SUM(N69:$S69) = -1) * N$29 -> 0 | O130: =OR(SUM(O69:$S69) = 1, SUM(O69:$S69) = -1) * O$29 -> 0 | P130: =OR(SUM(P69:$S69) = 1, SUM(P69:$S69) = -1) * P$29 -> 0 | Q130: =OR(SUM(Q69:$S69) = 1, SUM(Q69:$S69) = -1) * Q$29 -> 0 | R130: =OR(SUM(R69:$S69) = 1, SUM(R69:$S69) = -1) * R$29 -> 0 | S130: =OR(SUM(S69:$S69) = 1, SUM(S69:$S69) = -1) * S$29 -> 1.078
F131: LV Sub Site Specific | G131: scalar | H131: 1.047 | J131: =OR(SUM(J70:$S70) = 1, SUM(J70:$S70) = -1) * J$29 -> 0 | K131: =OR(SUM(K70:$S70) = 1, SUM(K70:$S70) = -1) * K$29 -> 0 | L131: =OR(SUM(L70:$S70) = 1, SUM(L70:$S70) = -1) * L$29 -> 0 | M131: =OR(SUM(M70:$S70) = 1, SUM(M70:$S70) = -1) * M$29 -> 0 | N131: =OR(SUM(N70:$S70) = 1, SUM(N70:$S70) = -1) * N$29 -> 0 | O131: =OR(SUM(O70:$S70) = 1, SUM(O70:$S70) = -1) * O$29 -> 0 | P131: =OR(SUM(P70:$S70) = 1, SUM(P70:$S70) = -1) * P$29 -> 0 | Q131: =OR(SUM(Q70:$S70) = 1, SUM(Q70:$S70) = -1) * Q$29 -> 0 | R131: =OR(SUM(R70:$S70) = 1, SUM(R70:$S70) = -1) * R$29 -> 1.047 | S131: =OR(SUM(S70:$S70) = 1, SUM(S70:$S70) = -1) * S$29 -> 0
F132: HV Site Specific | G132: scalar | H132: 1.036 | J132: =OR(SUM(J71:$S71) = 1, SUM(J71:$S71) = -1) * J$29 -> 0 | K132: =OR(SUM(K71:$S71) = 1, SUM(K71:$S71) = -1) * K$29 -> 0 | L132: =OR(SUM(L71:$S71) = 1, SUM(L71:$S71) = -1) * L$29 -> 0 | M132: =OR(SUM(M71:$S71) = 1, SUM(M71:$S71) = -1) * M$29 -> 0 | N132: =OR(SUM(N71:$S71) = 1, SUM(N71:$S71) = -1) * N$29 -> 0 | O132: =OR(SUM(O71:$S71) = 1, SUM(O71:$S71) = -1) * O$29 -> 0 | P132: =OR(SUM(P71:$S71) = 1, SUM(P71:$S71) = -1) * P$29 -> 0 | Q132: =OR(SUM(Q71:$S71) = 1, SUM(Q71:$S71) = -1) * Q$29 -> 1.036 | R132: =OR(SUM(R71:$S71) = 1, SUM(R71:$S71) = -1) * R$29 -> 0 | S132: =OR(SUM(S71:$S71) = 1, SUM(S71:$S71) = -1) * S$29 -> 0
F133: Unmetered Supplies | G133: scalar | H133: 1.078 | J133: =OR(SUM(J72:$S72) = 1, SUM(J72:$S72) = -1) * J$29 -> 0 | K133: =OR(SUM(K72:$S72) = 1, SUM(K72:$S72) = -1) * K$29 -> 0 | L133: =OR(SUM(L72:$S72) = 1, SUM(L72:$S72) = -1) * L$29 -> 0 | M133: =OR(SUM(M72:$S72) = 1, SUM(M72:$S72) = -1) * M$29 -> 0 | N133: =OR(SUM(N72:$S72) = 1, SUM(N72:$S72) = -1) * N$29 -> 0 | O133: =OR(SUM(O72:$S72) = 1, SUM(O72:$S72) = -1) * O$29 -> 0 | P133: =OR(SUM(P72:$S72) = 1, SUM(P72:$S72) = -1) * P$29 -> 0 | Q133: =OR(SUM(Q72:$S72) = 1, SUM(Q72:$S72) = -1) * Q$29 -> 0 | R133: =OR(SUM(R72:$S72) = 1, SUM(R72:$S72) = -1) * R$29 -> 0 | S133: =OR(SUM(S72:$S72) = 1, SUM(S72:$S72) = -1) * S$29 -> 1.078
F134: LV Generation Aggregated | G134: scalar | H134: 1.078 | J134: =OR(SUM(J73:$S73) = 1, SUM(J73:$S73) = -1) * J$29 -> 0 | K134: =OR(SUM(K73:$S73) = 1, SUM(K73:$S73) = -1) * K$29 -> 0 | L134: =OR(SUM(L73:$S73) = 1, SUM(L73:$S73) = -1) * L$29 -> 0 | M134: =OR(SUM(M73:$S73) = 1, SUM(M73:$S73) = -1) * M$29 -> 0 | N134: =OR(SUM(N73:$S73) = 1, SUM(N73:$S73) = -1) * N$29 -> 0 | O134: =OR(SUM(O73:$S73) = 1, SUM(O73:$S73) = -1) * O$29 -> 0 | P134: =OR(SUM(P73:$S73) = 1, SUM(P73:$S73) = -1) * P$29 -> 0 | Q134: =OR(SUM(Q73:$S73) = 1, SUM(Q73:$S73) = -1) * Q$29 -> 0 | R134: =OR(SUM(R73:$S73) = 1, SUM(R73:$S73) = -1) * R$29 -> 0 | S134: =OR(SUM(S73:$S73) = 1, SUM(S73:$S73) = -1) * S$29 -> 1.078
F135: LV Sub Generation Aggregated | G135: scalar | H135: 1.047 | J135: =OR(SUM(J74:$S74) = 1, SUM(J74:$S74) = -1) * J$29 -> 0 | K135: =OR(SUM(K74:$S74) = 1, SUM(K74:$S74) = -1) * K$29 -> 0 | L135: =OR(SUM(L74:$S74) = 1, SUM(L74:$S74) = -1) * L$29 -> 0 | M135: =OR(SUM(M74:$S74) = 1, SUM(M74:$S74) = -1) * M$29 -> 0 | N135: =OR(SUM(N74:$S74) = 1, SUM(N74:$S74) = -1) * N$29 -> 0 | O135: =OR(SUM(O74:$S74) = 1, SUM(O74:$S74) = -1) * O$29 -> 0 | P135: =OR(SUM(P74:$S74) = 1, SUM(P74:$S74) = -1) * P$29 -> 0 | Q135: =OR(SUM(Q74:$S74) = 1, SUM(Q74:$S74) = -1) * Q$29 -> 0 | R135: =OR(SUM(R74:$S74) = 1, SUM(R74:$S74) = -1) * R$29 -> 1.047 | S135: =OR(SUM(S74:$S74) = 1, SUM(S74:$S74) = -1) * S$29 -> 0
F136: LV Generation Site Specific | G136: scalar | H136: 1.078 | J136: =OR(SUM(J75:$S75) = 1, SUM(J75:$S75) = -1) * J$29 -> 0 | K136: =OR(SUM(K75:$S75) = 1, SUM(K75:$S75) = -1) * K$29 -> 0 | L136: =OR(SUM(L75:$S75) = 1, SUM(L75:$S75) = -1) * L$29 -> 0 | M136: =OR(SUM(M75:$S75) = 1, SUM(M75:$S75) = -1) * M$29 -> 0 | N136: =OR(SUM(N75:$S75) = 1, SUM(N75:$S75) = -1) * N$29 -> 0 | O136: =OR(SUM(O75:$S75) = 1, SUM(O75:$S75) = -1) * O$29 -> 0 | P136: =OR(SUM(P75:$S75) = 1, SUM(P75:$S75) = -1) * P$29 -> 0 | Q136: =OR(SUM(Q75:$S75) = 1, SUM(Q75:$S75) = -1) * Q$29 -> 0 | R136: =OR(SUM(R75:$S75) = 1, SUM(R75:$S75) = -1) * R$29 -> 0 | S136: =OR(SUM(S75:$S75) = 1, SUM(S75:$S75) = -1) * S$29 -> 1.078
F137: LV Generation Site Specific no RP Charge | G137: scalar | H137: 1.078 | J137: =OR(SUM(J76:$S76) = 1, SUM(J76:$S76) = -1) * J$29 -> 0 | K137: =OR(SUM(K76:$S76) = 1, SUM(K76:$S76) = -1) * K$29 -> 0 | L137: =OR(SUM(L76:$S76) = 1, SUM(L76:$S76) = -1) * L$29 -> 0 | M137: =OR(SUM(M76:$S76) = 1, SUM(M76:$S76) = -1) * M$29 -> 0 | N137: =OR(SUM(N76:$S76) = 1, SUM(N76:$S76) = -1) * N$29 -> 0 | O137: =OR(SUM(O76:$S76) = 1, SUM(O76:$S76) = -1) * O$29 -> 0 | P137: =OR(SUM(P76:$S76) = 1, SUM(P76:$S76) = -1) * P$29 -> 0 | Q137: =OR(SUM(Q76:$S76) = 1, SUM(Q76:$S76) = -1) * Q$29 -> 0 | R137: =OR(SUM(R76:$S76) = 1, SUM(R76:$S76) = -1) * R$29 -> 0 | S137: =OR(SUM(S76:$S76) = 1, SUM(S76:$S76) = -1) * S$29 -> 1.078
F138: LV Sub Generation Site Specific | G138: scalar | H138: 1.047 | J138: =OR(SUM(J77:$S77) = 1, SUM(J77:$S77) = -1) * J$29 -> 0 | K138: =OR(SUM(K77:$S77) = 1, SUM(K77:$S77) = -1) * K$29 -> 0 | L138: =OR(SUM(L77:$S77) = 1, SUM(L77:$S77) = -1) * L$29 -> 0 | M138: =OR(SUM(M77:$S77) = 1, SUM(M77:$S77) = -1) * M$29 -> 0 | N138: =OR(SUM(N77:$S77) = 1, SUM(N77:$S77) = -1) * N$29 -> 0 | O138: =OR(SUM(O77:$S77) = 1, SUM(O77:$S77) = -1) * O$29 -> 0 | P138: =OR(SUM(P77:$S77) = 1, SUM(P77:$S77) = -1) * P$29 -> 0 | Q138: =OR(SUM(Q77:$S77) = 1, SUM(Q77:$S77) = -1) * Q$29 -> 0 | R138: =OR(SUM(R77:$S77) = 1, SUM(R77:$S77) = -1) * R$29 -> 1.047 | S138: =OR(SUM(S77:$S77) = 1, SUM(S77:$S77) = -1) * S$29 -> 0
F139: LV Sub Generation Site Specific no RP Charge | G139: scalar | H139: 1.047 | J139: =OR(SUM(J78:$S78) = 1, SUM(J78:$S78) = -1) * J$29 -> 0 | K139: =OR(SUM(K78:$S78) = 1, SUM(K78:$S78) = -1) * K$29 -> 0 | L139: =OR(SUM(L78:$S78) = 1, SUM(L78:$S78) = -1) * L$29 -> 0 | M139: =OR(SUM(M78:$S78) = 1, SUM(M78:$S78) = -1) * M$29 -> 0 | N139: =OR(SUM(N78:$S78) = 1, SUM(N78:$S78) = -1) * N$29 -> 0 | O139: =OR(SUM(O78:$S78) = 1, SUM(O78:$S78) = -1) * O$29 -> 0 | P139: =OR(SUM(P78:$S78) = 1, SUM(P78:$S78) = -1) * P$29 -> 0 | Q139: =OR(SUM(Q78:$S78) = 1, SUM(Q78:$S78) = -1) * Q$29 -> 0 | R139: =OR(SUM(R78:$S78) = 1, SUM(R78:$S78) = -1) * R$29 -> 1.047 | S139: =OR(SUM(S78:$S78) = 1, SUM(S78:$S78) = -1) * S$29 -> 0
F140: HV Generation Site Specific | G140: scalar | H140: 1.036 | J140: =OR(SUM(J79:$S79) = 1, SUM(J79:$S79) = -1) * J$29 -> 0 | K140: =OR(SUM(K79:$S79) = 1, SUM(K79:$S79) = -1) * K$29 -> 0 | L140: =OR(SUM(L79:$S79) = 1, SUM(L79:$S79) = -1) * L$29 -> 0 | M140: =OR(SUM(M79:$S79) = 1, SUM(M79:$S79) = -1) * M$29 -> 0 | N140: =OR(SUM(N79:$S79) = 1, SUM(N79:$S79) = -1) * N$29 -> 0 | O140: =OR(SUM(O79:$S79) = 1, SUM(O79:$S79) = -1) * O$29 -> 0 | P140: =OR(SUM(P79:$S79) = 1, SUM(P79:$S79) = -1) * P$29 -> 0 | Q140: =OR(SUM(Q79:$S79) = 1, SUM(Q79:$S79) = -1) * Q$29 -> 1.036 | R140: =OR(SUM(R79:$S79) = 1, SUM(R79:$S79) = -1) * R$29 -> 0 | S140: =OR(SUM(S79:$S79) = 1, SUM(S79:$S79) = -1) * S$29 -> 0
F141: HV Generation Site Specific no RP Charge | G141: scalar | H141: 1.036 | J141: =OR(SUM(J80:$S80) = 1, SUM(J80:$S80) = -1) * J$29 -> 0 | K141: =OR(SUM(K80:$S80) = 1, SUM(K80:$S80) = -1) * K$29 -> 0 | L141: =OR(SUM(L80:$S80) = 1, SUM(L80:$S80) = -1) * L$29 -> 0 | M141: =OR(SUM(M80:$S80) = 1, SUM(M80:$S80) = -1) * M$29 -> 0 | N141: =OR(SUM(N80:$S80) = 1, SUM(N80:$S80) = -1) * N$29 -> 0 | O141: =OR(SUM(O80:$S80) = 1, SUM(O80:$S80) = -1) * O$29 -> 0 | P141: =OR(SUM(P80:$S80) = 1, SUM(P80:$S80) = -1) * P$29 -> 0 | Q141: =OR(SUM(Q80:$S80) = 1, SUM(Q80:$S80) = -1) * Q$29 -> 1.036 | R141: =OR(SUM(R80:$S80) = 1, SUM(R80:$S80) = -1) * R$29 -> 0 | S141: =OR(SUM(S80:$S80) = 1, SUM(S80:$S80) = -1) * S$29 -> 0
E143: User loss factor (assuming generation does not contribute at level of connection) | I143: > | W143: Paragraph 70 (a)
E144: These have been adjusted for the share of load going through 132/HV transformation
F145: Domestic Aggregated | G145: scalar | J145: =$H126 * J104 -> 1.078 | K145: 1.078 | L145: 1.078 | M145: 0.9971021986 | N145: 0.9971021986 | O145: 0.9971021986 | P145: 0.08089780144 | Q145: 1.078 | R145: 1.078 | S145: 1.078
F146: Domestic Aggregated (Related MPAN) | G146: scalar | J146: 1.078 | K146: 1.078 | L146: 1.078 | M146: 0.9971021986 | N146: 0.9971021986 | O146: 0.9971021986 | P146: 0.08089780144 | Q146: 1.078 | R146: 1.078 | S146: 1.078
F147: Non-Domestic Aggregated | G147: scalar | J147: 1.078 | K147: 1.078 | L147: 1.078 | M147: 0.9971021986 | N147: 0.9971021986 | O147: 0.9971021986 | P147: 0.08089780144 | Q147: 1.078 | R147: 1.078 | S147: 1.078
F148: Non-Domestic Aggregated (Related MPAN) | G148: scalar | J148: 1.078 | K148: 1.078 | L148: 1.078 | M148: 0.9971021986 | N148: 0.9971021986 | O148: 0.9971021986 | P148: 0.08089780144 | Q148: 1.078 | R148: 1.078 | S148: 1.078
F149: LV Site Specific | G149: scalar | J149: 1.078 | K149: 1.078 | L149: 1.078 | M149: 0.9971021986 | N149: 0.9971021986 | O149: 0.9971021986 | P149: 0.08089780144 | Q149: 1.078 | R149: 1.078 | S149: 1.078
F150: LV Sub Site Specific | G150: scalar | J150: 1.047 | K150: 1.047 | L150: 1.047 | M150: 0.9684285732 | N150: 0.9684285732 | O150: 0.9684285732 | P150: 0.07857142682 | Q150: 1.047 | R150: 1.047 | S150: 0
F151: HV Site Specific | G151: scalar | J151: 1.036 | K151: 1.036 | L151: 1.036 | M151: 0.958254061 | N151: 0.958254061 | O151: 0.958254061 | P151: 0.07774593905 | Q151: 1.036 | R151: 0 | S151: 0
F152: Unmetered Supplies | G152: scalar | J152: 1.078 | K152: 1.078 | L152: 1.078 | M152: 0.9971021986 | N152: 0.9971021986 | O152: 0.9971021986 | P152: 0.08089780144 | Q152: 1.078 | R152: 1.078 | S152: 1.078
F153: LV Generation Aggregated | G153: scalar | J153: -1.078 | K153: -1.078 | L153: -1.078 | M153: -0.9971021986 | N153: -0.9971021986 | O153: -0.9971021986 | P153: -0.08089780144 | Q153: -1.078 | R153: -1.078 | S153: 0
F154: LV Sub Generation Aggregated | G154: scalar | J154: -1.047 | K154: -1.047 | L154: -1.047 | M154: -0.9684285732 | N154: -0.9684285732 | O154: -0.9684285732 | P154: -0.07857142682 | Q154: -1.047 | R154: 0 | S154: 0
F155: LV Generation Site Specific | G155: scalar | J155: -1.078 | K155: -1.078 | L155: -1.078 | M155: -0.9971021986 | N155: -0.9971021986 | O155: -0.9971021986 | P155: -0.08089780144 | Q155: -1.078 | R155: -1.078 | S155: 0
F156: LV Generation Site Specific no RP Charge | G156: scalar | J156: -1.078 | K156: -1.078 | L156: -1.078 | M156: -0.9971021986 | N156: -0.9971021986 | O156: -0.9971021986 | P156: -0.08089780144 | Q156: -1.078 | R156: -1.078 | S156: 0
F157: LV Sub Generation Site Specific | G157: scalar | J157: -1.047 | K157: -1.047 | L157: -1.047 | M157: -0.9684285732 | N157: -0.9684285732 | O157: -0.9684285732 | P157: -0.07857142682 | Q157: -1.047 | R157: 0 | S157: 0
F158: LV Sub Generation Site Specific no RP Charge | G158: scalar | J158: -1.047 | K158: -1.047 | L158: -1.047 | M158: -0.9684285732 | N158: -0.9684285732 | O158: -0.9684285732 | P158: -0.07857142682 | Q158: -1.047 | R158: 0 | S158: 0
F159: HV Generation Site Specific | G159: scalar | J159: -1.036 | K159: -1.036 | L159: -1.036 | M159: -0.958254061 | N159: -0.958254061 | O159: -0.958254061 | P159: -0.07774593905 | Q159: 0 | R159: 0 | S159: 0
F160: HV Generation Site Specific no RP Charge | G160: scalar | J160: -1.036 | K160: -1.036 | L160: -1.036 | M160: -0.958254061 | N160: -0.958254061 | O160: -0.958254061 | P160: -0.07774593905 | Q160: 0 | R160: 0 | S160: 0
E162: User loss factor (assuming generation contributes at level of connection) | I162: > | W162: Paragraph 70 (a)
E163: These have been adjusted for the share of load going through 132/HV transformation
F164: Domestic Aggregated | G164: scalar
F165: Domestic Aggregated (Related MPAN) | G165: scalar
F166: Non-Domestic Aggregated | G166: scalar
F167: Non-Domestic Aggregated (Related MPAN) | G167: scalar
F168: LV Site Specific | G168: scalar
F169: LV Sub Site Specific | G169: scalar
F170: HV Site Specific | G170: scalar
F171: Unmetered Supplies | G171: scalar
F172: LV Generation Aggregated | G172: scalar | J172: =$H134 * J73 -> -1.078 | K172: -1.078 | L172: -1.078 | M172: -0.9971021986 | N172: -0.9971021986 | O172: -0.9971021986 | P172: -0.08089780144 | Q172: -1.078 | R172: -1.078 | S172: -1.078
F173: LV Sub Generation Aggregated | G173: scalar | J173: -1.047 | K173: -1.047 | L173: -1.047 | M173: -0.9684285732 | N173: -0.9684285732 | O173: -0.9684285732 | P173: -0.07857142682 | Q173: -1.047 | R173: -1.047 | S173: 0
F174: LV Generation Site Specific | G174: scalar | J174: -1.078 | K174: -1.078 | L174: -1.078 | M174: -0.9971021986 | N174: -0.9971021986 | O174: -0.9971021986 | P174: -0.08089780144 | Q174: -1.078 | R174: -1.078 | S174: -1.078
F175: LV Generation Site Specific no RP Charge | G175: scalar | J175: -1.078 | K175: -1.078 | L175: -1.078 | M175: -0.9971021986 | N175: -0.9971021986 | O175: -0.9971021986 | P175: -0.08089780144 | Q175: -1.078 | R175: -1.078 | S175: -1.078
F176: LV Sub Generation Site Specific | G176: scalar | J176: -1.047 | K176: -1.047 | L176: -1.047 | M176: -0.9684285732 | N176: -0.9684285732 | O176: -0.9684285732 | P176: -0.07857142682 | Q176: -1.047 | R176: -1.047 | S176: 0
F177: LV Sub Generation Site Specific no RP Charge | G177: scalar | J177: -1.047 | K177: -1.047 | L177: -1.047 | M177: -0.9684285732 | N177: -0.9684285732 | O177: -0.9684285732 | P177: -0.07857142682 | Q177: -1.047 | R177: -1.047 | S177: 0
F178: HV Generation Site Specific | G178: scalar | J178: -1.036 | K178: -1.036 | L178: -1.036 | M178: -0.958254061 | N178: -0.958254061 | O178: -0.958254061 | P178: -0.07774593905 | Q178: -1.036 | R178: 0 | S178: 0
F179: HV Generation Site Specific no RP Charge | G179: scalar | J179: =$H141 * J80 -> -1.036 | K179: -1.036 | L179: -1.036 | M179: -0.958254061 | N179: -0.958254061 | O179: -0.958254061 | P179: -0.07774593905 | Q179: -1.036 | R179: 0 | S179: 0
B181: Checks
E183: Check for error values | G183: number of issues | H183: =SUM(IF(ISERROR(H19:W181), 1)) -> 0
B185: End of sheet

Sheet Customer contributions
A1: =MID(CELL("filename",A1),FIND("]",CELL("filename",A1))+1,255) -> Customer contributions
A2: =Cover!D21&" - "&Cover!D23 -> WPD Mid East - April 21 Prices
A3: =Cover!D2&" - "&Cover!D8&" v"&Cover!D10&" - "&Cover!D19 -> ARP model - Release for charge setting v5 - 2021/22
A4: =H70 & IF(H70 = 1, " issue", " issues") &" identified in checks on this sheet" -> 0 issues identified in checks on this sheet
B5: Click here to return to model map | G5: Units | H5: Constants | W5: Legal text reference
B7: Description
C9: This sheet calculates customer contributions towards assets (i.e. assets that are paid for, and should not be
C10: recovered under UoS charges)
B12: Customer contributions
C14: Maps customer contributions to customer categories
C16: =INDEX('Version control'!$H$34:$H$58,MATCH($A$1,'Version control'!$F$34:$F$58,0),1)&"-A: Network use factors" -> Section 506-A: Network use factors
E18: Network level at which users are supplied | I18: > | W18: Paragraph 30
E19: Network use factors based on customer contributed assets
J20: HV substation | K20: HV network | L20: LV substation | M20: LV network
F21: Domestic Aggregated | G21: 1 or 0 | J21: =TRANSPOSE('Fixed inputs'!J53:Y56) -> 0 | K21: 0 | L21: 0 | M21: 1
F22: Domestic Aggregated (Related MPAN) | G22: 1 or 0 | J22: 0 | K22: 0 | L22: 0 | M22: 1
F23: Non-Domestic Aggregated | G23: 1 or 0 | J23: 0 | K23: 0 | L23: 0 | M23: 1
F24: Non-Domestic Aggregated (Related MPAN) | G24: 1 or 0 | J24: 0 | K24: 0 | L24: 0 | M24: 1
F25: LV Site Specific | G25: 1 or 0 | J25: 0 | K25: 0 | L25: 0 | M25: 1
F26: LV Sub Site Specific | G26: 1 or 0 | J26: 0 | K26: 0 | L26: 1 | M26: 0
F27: HV Site Specific | G27: 1 or 0 | J27: 0 | K27: 1 | L27: 0 | M27: 0
F28: Unmetered Supplies | G28: 1 or 0 | J28: 0 | K28: 0 | L28: 0 | M28: 1
F29: LV Generation Aggregated | G29: 1 or 0 | J29: 0 | K29: 0 | L29: 0 | M29: 1
F30: LV Sub Generation Aggregated | G30: 1 or 0 | J30: 0 | K30: 0 | L30: 1 | M30: 0
F31: LV Generation Site Specific | G31: 1 or 0 | J31: 0 | K31: 0 | L31: 0 | M31: 1
F32: LV Generation Site Specific no RP Charge | G32: 1 or 0 | J32: 0 | K32: 0 | L32: 0 | M32: 1
F33: LV Sub Generation Site Specific | G33: 1 or 0 | J33: 0 | K33: 0 | L33: 1 | M33: 0
F34: LV Sub Generation Site Specific no RP Charge | G34: 1 or 0 | J34: 0 | K34: 0 | L34: 1 | M34: 0
F35: HV Generation Site Specific | G35: 1 or 0 | J35: 0 | K35: 1 | L35: 0 | M35: 0
F36: HV Generation Site Specific no RP Charge | G36: 1 or 0 | J36: 0 | K36: 1 | L36: 0 | M36: 0
C38: =INDEX('Version control'!$H$34:$H$58,MATCH($A$1,'Version control'!$F$34:$F$58,0),1)&"-B: Customer contributions" -> Section 506-B: Customer contributions
E40: Customer contributions, by network level of supply | I40: > | W40: Paragraph 29
E41: Share of customer contributions by network level and asset type
J42: Transmission exit | K42: GSPs | L42: 132kV | M42: 132kV/EHV | N42: EHV | O42: EHV/HV | P42: 132kV/HV | Q42: HV | R42: HV/LV | S42: LV circuits | T42: LV customers | U42: HV customers
F43: LV network | G43: % | L43: ='Inputs by network level'!L29 -> 0 | M43: ='Inputs by network level'!M29 -> 0 | N43: ='Inputs by network level'!N29 -> 0 | O43: ='Inputs by network level'!O29 -> 0 | P43: ='Inputs by network level'!P29 -> 0 | Q43: ='Inputs by network level'!Q29 -> 0.479133519 | R43: ='Inputs by network level'!R29 -> 0.7089238456 | S43: ='Inputs by network level'!S29 -> 0.9387141723
F44: LV substation | G44: % | L44: ='Inputs by network level'!L30 -> 0 | M44: ='Inputs by network level'!M30 -> 0 | N44: ='Inputs by network level'!N30 -> 0 | O44: ='Inputs by network level'!O30 -> 0 | P44: ='Inputs by network level'!P30 -> 0 | Q44: ='Inputs by network level'!Q30 -> 0.479133519 | R44: ='Inputs by network level'!R30 -> 0.7089238456 | S44: ='Inputs by network level'!S30 -> 0
F45: HV network | G45: % | L45: ='Inputs by network level'!L31 -> 0 | M45: ='Inputs by network level'!M31 -> 0 | N45: ='Inputs by network level'!N31 -> 0.06542004956 | O45: ='Inputs by network level'!O31 -> 0.3516296229 | P45: ='Inputs by network level'!P31 -> 0.3516296229 | Q45: ='Inputs by network level'!Q31 -> 0.6378391962 | R45: ='Inputs by network level'!R31 -> 0 | S45: ='Inputs by network level'!S31 -> 0
F46: HV substation | G46: % | L46: ='Inputs by network level'!L32 -> 0 | M46: ='Inputs by network level'!M32 -> 0 | N46: ='Inputs by network level'!N32 -> 0.06542004956 | O46: ='Inputs by network level'!O32 -> 0.3516296229 | P46: ='Inputs by network level'!P32 -> 0 | Q46: ='Inputs by network level'!Q32 -> 0 | R46: ='Inputs by network level'!R32 -> 0 | S46: ='Inputs by network level'!S32 -> 0
E48: Customer contributions, by network level
E49: Customer contributions by network level and customer type based on mappings above
J50: Transmission exit | K50: GSPs | L50: 132kV | M50: 132kV/EHV | N50: EHV | O50: EHV/HV | P50: 132kV/HV | Q50: HV | R50: HV/LV | S50: LV circuits | T50: LV customers | U50: HV customers
F51: Domestic Aggregated | H51: % | L51: =$M21 * L$43 + $L21 * L$44 + $K21 * L$45 + $J21 * L$46 -> 0 | M51: 0 | N51: 0 | O51: 0 | P51: 0 | Q51: 0.479133519 | R51: 0.7089238456 | S51: 0.9387141723
F52: Domestic Aggregated (Related MPAN) | H52: % | L52: 0 | M52: 0 | N52: 0 | O52: 0 | P52: 0 | Q52: 0.479133519 | R52: 0.7089238456 | S52: 0.9387141723
F53: Non-Domestic Aggregated | H53: % | L53: 0 | M53: 0 | N53: 0 | O53: 0 | P53: 0 | Q53: 0.479133519 | R53: 0.7089238456 | S53: 0.9387141723
F54: Non-Domestic Aggregated (Related MPAN) | H54: % | L54: 0 | M54: 0 | N54: 0 | O54: 0 | P54: 0 | Q54: 0.479133519 | R54: 0.7089238456 | S54: 0.9387141723
F55: LV Site Specific | H55: % | L55: 0 | M55: 0 | N55: 0 | O55: 0 | P55: 0 | Q55: 0.479133519 | R55: 0.7089238456 | S55: 0.9387141723
F56: LV Sub Site Specific | H56: % | L56: 0 | M56: 0 | N56: 0 | O56: 0 | P56: 0 | Q56: 0.479133519 | R56: 0.7089238456 | S56: 0
F57: HV Site Specific | H57: % | L57: 0 | M57: 0 | N57: 0.06542004956 | O57: 0.3516296229 | P57: 0.3516296229 | Q57: 0.6378391962 | R57: 0 | S57: 0
F58: Unmetered Supplies | H58: % | L58: 0 | M58: 0 | N58: 0 | O58: 0 | P58: 0 | Q58: 0.479133519 | R58: 0.7089238456 | S58: 0.9387141723
F59: LV Generation Aggregated | H59: % | L59: 0 | M59: 0 | N59: 0 | O59: 0 | P59: 0 | Q59: 0.479133519 | R59: 0.7089238456 | S59: 0.9387141723
F60: LV Sub Generation Aggregated | H60: % | L60: 0 | M60: 0 | N60: 0 | O60: 0 | P60: 0 | Q60: 0.479133519 | R60: 0.7089238456 | S60: 0
F61: LV Generation Site Specific | H61: % | L61: 0 | M61: 0 | N61: 0 | O61: 0 | P61: 0 | Q61: 0.479133519 | R61: 0.7089238456 | S61: 0.9387141723
F62: LV Generation Site Specific no RP Charge | H62: % | L62: 0 | M62: 0 | N62: 0 | O62: 0 | P62: 0 | Q62: 0.479133519 | R62: 0.7089238456 | S62: 0.9387141723
F63: LV Sub Generation Site Specific | H63: % | L63: 0 | M63: 0 | N63: 0 | O63: 0 | P63: 0 | Q63: 0.479133519 | R63: 0.7089238456 | S63: 0
F64: LV Sub Generation Site Specific no RP Charge | H64: % | L64: 0 | M64: 0 | N64: 0 | O64: 0 | P64: 0 | Q64: 0.479133519 | R64: 0.7089238456 | S64: 0
F65: HV Generation Site Specific | H65: % | L65: 0 | M65: 0 | N65: 0.06542004956 | O65: 0.3516296229 | P65: 0.3516296229 | Q65: 0.6378391962 | R65: 0 | S65: 0
F66: HV Generation Site Specific no RP Charge | H66: % | L66: 0 | M66: 0 | N66: 0.06542004956 | O66: 0.3516296229 | P66: 0.3516296229 | Q66: 0.6378391962 | R66: 0 | S66: 0
B68: Checks
E70: Check for error values | G70: number of issues | H70: =SUM(IF(ISERROR(H21:U66), 1)) -> 0
B72: End of sheet

Sheet Volume adjustments
A1: =MID(CELL("filename",A1),FIND("]",CELL("filename",A1))+1,255) -> Volume adjustments
A2: =Cover!D21&" - "&Cover!D23 -> WPD Mid East - April 21 Prices
A3: =Cover!D2&" - "&Cover!D8&" v"&Cover!D10&" - "&Cover!D19 -> ARP model - Release for charge setting v5 - 2021/22
A4: =H140 & IF(H140 = 1, " issue", " issues") &" identified in checks on this sheet" -> 0 issues identified in checks on this sheet
B5: Click here to return to model map | G5: Units | H5: Constants | J5: Domestic Aggregated | K5: Domestic Aggregated (Related MPAN) | L5: Non-Domestic Aggregated | M5: Non-Domestic Aggregated (Related MPAN) | N5: LV Site Specific | O5: LV Sub Site Specific | P5: HV Site Specific | Q5: Unmetered Supplies | R5: LV Generation Aggregated | S5: LV Sub Generation Aggregated | T5: LV Generation Site Specific | U5: LV Generation Site Specific no RP Charge | V5: LV Sub Generation Site Specific | W5: LV Sub Generation Site Specific no RP Charge | X5: HV Generation Site Specific | Y5: HV Generation Site Specific no RP Charge | AA5: Legal text reference
B7: Description
C9: This sheet calculates volumes (kWh, MPAN, import and exceeded capacity) to be used throughout the model.
C10: This sheet first calculates the discounts to be applied to LDNO volumes, then combines these with volumes for
C11: all the way customers.
B13: LDNO discounts
C15: =INDEX('Version control'!$H$34:$H$58,MATCH($A$1,'Version control'!$F$34:$F$58,0),1)&"-A: LDNO discounts" -> Section 507-A: LDNO discounts
D17: This section maps the LDNO discounts from the PCDM to different customer categories
D18: Generation LDNO customers do not receive the standard LDNO discounts, and this adjustment is made in this section
E20: Discounts from PCDM | I20: >
E21: LDNO discounts calculated in the PCDM | AA21: Paragraph 97
F22: LDNO LV: LV user | G22: % | H22: ='General inputs'!H33 -> 0.3050843779
F23: LDNO HV: LV user | G23: % | H23: ='General inputs'!H34 -> 0.447802573
F24: LDNO HV: LV Sub user | G24: % | H24: ='General inputs'!H35 -> 0.1927605069
F25: LDNO HV: HV user | G25: % | H25: ='General inputs'!H36 -> 0.08466062657
E27: Discount mapping | I27: > | AA27: Paragraphs 98 & 99
E28: Maps customer types to LDNO discount categories and calculates the appropriate discount to be applied to
E29: each customer
F30: LDNO LV: LV user | G30: 1 or 0 | J30: ='Fixed inputs'!J46 -> 1 | K30: ='Fixed inputs'!K46 -> 1 | L30: ='Fixed inputs'!L46 -> 1 | M30: ='Fixed inputs'!M46 -> 1 | N30: ='Fixed inputs'!N46 -> 1 | O30: ='Fixed inputs'!O46 -> 0 | P30: ='Fixed inputs'!P46 -> 0 | Q30: ='Fixed inputs'!Q46 -> 1 | R30: ='Fixed inputs'!R46 -> 0 | S30: ='Fixed inputs'!S46 -> 0 | T30: ='Fixed inputs'!T46 -> 0 | U30: ='Fixed inputs'!U46 -> 0 | V30: ='Fixed inputs'!V46 -> 0 | W30: ='Fixed inputs'!W46 -> 0 | X30: ='Fixed inputs'!X46 -> 0 | Y30: ='Fixed inputs'!Y46 -> 0
F31: LDNO HV: LV user | G31: 1 or 0 | J31: ='Fixed inputs'!J47 -> 1 | K31: ='Fixed inputs'!K47 -> 1 | L31: ='Fixed inputs'!L47 -> 1 | M31: ='Fixed inputs'!M47 -> 1 | N31: ='Fixed inputs'!N47 -> 1 | O31: ='Fixed inputs'!O47 -> 0 | P31: ='Fixed inputs'!P47 -> 0 | Q31: ='Fixed inputs'!Q47 -> 1 | R31: ='Fixed inputs'!R47 -> 0 | S31: ='Fixed inputs'!S47 -> 0 | T31: ='Fixed inputs'!T47 -> 0 | U31: ='Fixed inputs'!U47 -> 0 | V31: ='Fixed inputs'!V47 -> 0 | W31: ='Fixed inputs'!W47 -> 0 | X31: ='Fixed inputs'!X47 -> 0 | Y31: ='Fixed inputs'!Y47 -> 0
F32: LDNO HV: LV Sub user | G32: 1 or 0 | J32: ='Fixed inputs'!J48 -> 0 | K32: ='Fixed inputs'!K48 -> 0 | L32: ='Fixed inputs'!L48 -> 0 | M32: ='Fixed inputs'!M48 -> 0 | N32: ='Fixed inputs'!N48 -> 0 | O32: ='Fixed inputs'!O48 -> 1 | P32: ='Fixed inputs'!P48 -> 0 | Q32: ='Fixed inputs'!Q48 -> 0 | R32: ='Fixed inputs'!R48 -> 0 | S32: ='Fixed inputs'!S48 -> 0 | T32: ='Fixed inputs'!T48 -> 0 | U32: ='Fixed inputs'!U48 -> 0 | V32: ='Fixed inputs'!V48 -> 0 | W32: ='Fixed inputs'!W48 -> 0 | X32: ='Fixed inputs'!X48 -> 0 | Y32: ='Fixed inputs'!Y48 -> 0
F33: LDNO HV: HV user | G33: 1 or 0 | J33: ='Fixed inputs'!J49 -> 0 | K33: ='Fixed inputs'!K49 -> 0 | L33: ='Fixed inputs'!L49 -> 0 | M33: ='Fixed inputs'!M49 -> 0 | N33: ='Fixed inputs'!N49 -> 0 | O33: ='Fixed inputs'!O49 -> 0 | P33: ='Fixed inputs'!P49 -> 1 | Q33: ='Fixed inputs'!Q49 -> 0 | R33: ='Fixed inputs'!R49 -> 0 | S33: ='Fixed inputs'!S49 -> 0 | T33: ='Fixed inputs'!T49 -> 0 | U33: ='Fixed inputs'!U49 -> 0 | V33: ='Fixed inputs'!V49 -> 0 | W33: ='Fixed inputs'!W49 -> 0 | X33: ='Fixed inputs'!X49 -> 0 | Y33: ='Fixed inputs'!Y49 -> 0
F34: LV discount | G34: % | J34: =J30 * $H$22 -> 0.3050843779 | K34: 0.3050843779 | L34: 0.3050843779 | M34: 0.3050843779 | N34: 0.3050843779 | O34: 0 | P34: 0 | Q34: 0.3050843779 | R34: 0 | S34: 0 | T34: 0 | U34: 0 | V34: 0 | W34: 0 | X34: 0 | Y34: 0
F35: HV discount | G35: % | J35: =SUMPRODUCT(J31:J33,$H$23:$H$25) -> 0.447802573 | K35: 0.447802573 | L35: 0.447802573 | M35: 0.447802573 | N35: 0.447802573 | O35: 0.1927605069 | P35: 0.08466062657 | Q35: 0.447802573 | R35: 0 | S35: 0 | T35: 0 | U35: 0 | V35: 0 | W35: 0 | X35: 0 | Y35: 0
E37: Discount override | I37: > | AA37: Paragraphs 98 & 99
E38: This table overrides discount factors for certain categories of user
F39: Flag for overriding MWh discount rate | G39: TRUE / FALSE | J39: ='Fixed inputs'!J105 -> FALSE | K39: ='Fixed inputs'!K105 -> FALSE | L39: ='Fixed inputs'!L105 -> FALSE | M39: ='Fixed inputs'!M105 -> FALSE | N39: ='Fixed inputs'!N105 -> FALSE | O39: ='Fixed inputs'!O105 -> FALSE | P39: ='Fixed inputs'!P105 -> FALSE | Q39: ='Fixed inputs'!Q105 -> FALSE | R39: ='Fixed inputs'!R105 -> TRUE | S39: ='Fixed inputs'!S105 -> TRUE | T39: ='Fixed inputs'!T105 -> TRUE | U39: ='Fixed inputs'!U105 -> TRUE | V39: ='Fixed inputs'!V105 -> TRUE | W39: ='Fixed inputs'!W105 -> TRUE | X39: ='Fixed inputs'!X105 -> TRUE | Y39: ='Fixed inputs'!Y105 -> TRUE
F40: Flag for overriding MPAN discount rate | G40: TRUE / FALSE | J40: ='Fixed inputs'!J109 -> FALSE | K40: ='Fixed inputs'!K109 -> FALSE | L40: ='Fixed inputs'!L109 -> FALSE | M40: ='Fixed inputs'!M109 -> FALSE | N40: ='Fixed inputs'!N109 -> FALSE | O40: ='Fixed inputs'!O109 -> FALSE | P40: ='Fixed inputs'!P109 -> FALSE | Q40: ='Fixed inputs'!Q109 -> FALSE | R40: ='Fixed inputs'!R109 -> TRUE | S40: ='Fixed inputs'!S109 -> TRUE | T40: ='Fixed inputs'!T109 -> TRUE | U40: ='Fixed inputs'!U109 -> TRUE | V40: ='Fixed inputs'!V109 -> TRUE | W40: ='Fixed inputs'!W109 -> TRUE | X40: ='Fixed inputs'!X109 -> TRUE | Y40: ='Fixed inputs'!Y109 -> TRUE
F41: Flag for overriding import capacity discount rate | G41: TRUE / FALSE | J41: ='Fixed inputs'!J113 -> FALSE | K41: ='Fixed inputs'!K113 -> FALSE | L41: ='Fixed inputs'!L113 -> FALSE | M41: ='Fixed inputs'!M113 -> FALSE | N41: ='Fixed inputs'!N113 -> FALSE | O41: ='Fixed inputs'!O113 -> FALSE | P41: ='Fixed inputs'!P113 -> FALSE | Q41: ='Fixed inputs'!Q113 -> FALSE | R41: ='Fixed inputs'!R113 -> TRUE | S41: ='Fixed inputs'!S113 -> TRUE | T41: ='Fixed inputs'!T113 -> TRUE | U41: ='Fixed inputs'!U113 -> TRUE | V41: ='Fixed inputs'!V113 -> TRUE | W41: ='Fixed inputs'!W113 -> TRUE | X41: ='Fixed inputs'!X113 -> TRUE | Y41: ='Fixed inputs'!Y113 -> TRUE
F42: Flag for overriding exceeded capacity discount rate | G42: TRUE / FALSE | J42: ='Fixed inputs'!J117 -> FALSE | K42: ='Fixed inputs'!K117 -> FALSE | L42: ='Fixed inputs'!L117 -> FALSE | M42: ='Fixed inputs'!M117 -> FALSE | N42: ='Fixed inputs'!N117 -> FALSE | O42: ='Fixed inputs'!O117 -> FALSE | P42: ='Fixed inputs'!P117 -> FALSE | Q42: ='Fixed inputs'!Q117 -> FALSE | R42: ='Fixed inputs'!R117 -> TRUE | S42: ='Fixed inputs'!S117 -> TRUE | T42: ='Fixed inputs'!T117 -> TRUE | U42: ='Fixed inputs'!U117 -> TRUE | V42: ='Fixed inputs'!V117 -> TRUE | W42: ='Fixed inputs'!W117 -> TRUE | X42: ='Fixed inputs'!X117 -> TRUE | Y42: ='Fixed inputs'!Y117 -> TRUE
F43: Flag for overriding reactive power units discount rate | G43: TRUE / FALSE | J43: ='Fixed inputs'!J121 -> FALSE | K43: ='Fixed inputs'!K121 -> FALSE | L43: ='Fixed inputs'!L121 -> FALSE | M43: ='Fixed inputs'!M121 -> FALSE | N43: ='Fixed inputs'!N121 -> FALSE | O43: ='Fixed inputs'!O121 -> FALSE | P43: ='Fixed inputs'!P121 -> FALSE | Q43: ='Fixed inputs'!Q121 -> FALSE | R43: ='Fixed inputs'!R121 -> TRUE | S43: ='Fixed inputs'!S121 -> TRUE | T43: ='Fixed inputs'!T121 -> TRUE | U43: ='Fixed inputs'!U121 -> TRUE | V43: ='Fixed inputs'!V121 -> TRUE | W43: ='Fixed inputs'!W121 -> TRUE | X43: ='Fixed inputs'!X121 -> TRUE | Y43: ='Fixed inputs'!Y121 -> TRUE
F45: Override MWh discount rate | G45: % | J45: ='Fixed inputs'!J106 -> 0 | K45: ='Fixed inputs'!K106 -> 0 | L45: ='Fixed inputs'!L106 -> 0 | M45: ='Fixed inputs'!M106 -> 0 | N45: ='Fixed inputs'!N106 -> 0 | O45: ='Fixed inputs'!O106 -> 0 | P45: ='Fixed inputs'!P106 -> 0 | Q45: ='Fixed inputs'!Q106 -> 0 | R45: ='Fixed inputs'!R106 -> 0 | S45: ='Fixed inputs'!S106 -> 0 | T45: ='Fixed inputs'!T106 -> 0 | U45: ='Fixed inputs'!U106 -> 0 | V45: ='Fixed inputs'!V106 -> 0 | W45: ='Fixed inputs'!W106 -> 0 | X45: ='Fixed inputs'!X106 -> 0 | Y45: ='Fixed inputs'!Y106 -> 0
F46: Override MPAN discount rate | G46: % | J46: ='Fixed inputs'!J110 -> 0 | K46: ='Fixed inputs'!K110 -> 0 | L46: ='Fixed inputs'!L110 -> 0 | M46: ='Fixed inputs'!M110 -> 0 | N46: ='Fixed inputs'!N110 -> 0 | O46: ='Fixed inputs'!O110 -> 0 | P46: ='Fixed inputs'!P110 -> 0 | Q46: ='Fixed inputs'!Q110 -> 0 | R46: ='Fixed inputs'!R110 -> 1 | S46: ='Fixed inputs'!S110 -> 1 | T46: ='Fixed inputs'!T110 -> 1 | U46: ='Fixed inputs'!U110 -> 1 | V46: ='Fixed inputs'!V110 -> 1 | W46: ='Fixed inputs'!W110 -> 1 | X46: ='Fixed inputs'!X110 -> 1 | Y46: ='Fixed inputs'!Y110 -> 1
F47: Override import capacity discount rate | G47: % | J47: ='Fixed inputs'!J114 -> 0 | K47: ='Fixed inputs'!K114 -> 0 | L47: ='Fixed inputs'!L114 -> 0 | M47: ='Fixed inputs'!M114 -> 0 | N47: ='Fixed inputs'!N114 -> 0 | O47: ='Fixed inputs'!O114 -> 0 | P47: ='Fixed inputs'!P114 -> 0 | Q47: ='Fixed inputs'!Q114 -> 0 | R47: ='Fixed inputs'!R114 -> 0 | S47: ='Fixed inputs'!S114 -> 0 | T47: ='Fixed inputs'!T114 -> 0 | U47: ='Fixed inputs'!U114 -> 0 | V47: ='Fixed inputs'!V114 -> 0 | W47: ='Fixed inputs'!W114 -> 0 | X47: ='Fixed inputs'!X114 -> 0 | Y47: ='Fixed inputs'!Y114 -> 0
F48: Override exceeded capacity discount rate | G48: % | J48: ='Fixed inputs'!J118 -> 0 | K48: ='Fixed inputs'!K118 -> 0 | L48: ='Fixed inputs'!L118 -> 0 | M48: ='Fixed inputs'!M118 -> 0 | N48: ='Fixed inputs'!N118 -> 0 | O48: ='Fixed inputs'!O118 -> 0 | P48: ='Fixed inputs'!P118 -> 0 | Q48: ='Fixed inputs'!Q118 -> 0 | R48: ='Fixed inputs'!R118 -> 0 | S48: ='Fixed inputs'!S118 -> 0 | T48: ='Fixed inputs'!T118 -> 0 | U48: ='Fixed inputs'!U118 -> 0 | V48: ='Fixed inputs'!V118 -> 0 | W48: ='Fixed inputs'!W118 -> 0 | X48: ='Fixed inputs'!X118 -> 0 | Y48: ='Fixed inputs'!Y118 -> 0
F49: Override reactive power units discount rate | G49: % | J49: ='Fixed inputs'!J122 -> 0 | K49: ='Fixed inputs'!K122 -> 0 | L49: ='Fixed inputs'!L122 -> 0 | M49: ='Fixed inputs'!M122 -> 0 | N49: ='Fixed inputs'!N122 -> 0 | O49: ='Fixed inputs'!O122 -> 0 | P49: ='Fixed inputs'!P122 -> 0 | Q49: ='Fixed inputs'!Q122 -> 0 | R49: ='Fixed inputs'!R122 -> 0 | S49: ='Fixed inputs'!S122 -> 0 | T49: ='Fixed inputs'!T122 -> 0 | U49: ='Fixed inputs'!U122 -> 0 | V49: ='Fixed inputs'!V122 -> 0 | W49: ='Fixed inputs'!W122 -> 0 | X49: ='Fixed inputs'!X122 -> 0 | Y49: ='Fixed inputs'!Y122 -> 0
B51: Volume discounting
C53: Applies LDNO discounts and aggregates with volumes from all the way customers
C55: =INDEX('Version control'!$H$34:$H$58,MATCH($A$1,'Version control'!$F$34:$F$58,0),1)&"-B: Volume discounting" -> Section 507-B: Volume discounting
E57: Unit rate 1 | I57: > | AA57: Paragraph 53
F59: All the way customers | G59: MWh | J59: ='Inputs by customer type'!J24 -> 970871.8236 | K59: ='Inputs by customer type'!K24 -> 844.7630365 | L59: ='Inputs by customer type'!L24 -> 327000 | M59: ='Inputs by customer type'!M24 -> 29.86139468 | N59: ='Inputs by customer type'!N24 -> 336787.2598 | O59: ='Inputs by customer type'!O24 -> 26999.98332 | P59: ='Inputs by customer type'!P24 -> 683754.1663 | Q59: ='Inputs by customer type'!Q24 -> 9789.520573 | R59: ='Inputs by customer type'!R24 -> 111.4890524 | S59: ='Inputs by customer type'!S24 -> 0 | T59: ='Inputs by customer type'!T24 -> 4546.060784 | U59: ='Inputs by customer type'!U24 -> 0 | V59: ='Inputs by customer type'!V24 -> 615.0655258 | W59: ='Inputs by customer type'!W24 -> 0 | X59: ='Inputs by customer type'!X24 -> 229961.8799 | Y59: ='Inputs by customer type'!Y24 -> 0
F60: LDNO LV | G60: MWh | J60: ='Inputs by customer type'!J33 -> 13094.19845 | K60: ='Inputs by customer type'!K33 -> 0 | L60: ='Inputs by customer type'!L33 -> 453.23891 | M60: ='Inputs by customer type'!M33 -> 0 | N60: ='Inputs by customer type'!N33 -> 1820.076549 | O60: ='Inputs by customer type'!O33 -> 0 | P60: ='Inputs by customer type'!P33 -> 0 | Q60: ='Inputs by customer type'!Q33 -> 11.43420017 | R60: ='Inputs by customer type'!R33 -> 1.791337806 | S60: ='Inputs by customer type'!S33 -> 0 | T60: ='Inputs by customer type'!T33 -> 0 | U60: ='Inputs by customer type'!U33 -> 0 | V60: ='Inputs by customer type'!V33 -> 0 | W60: ='Inputs by customer type'!W33 -> 0 | X60: ='Inputs by customer type'!X33 -> 0 | Y60: ='Inputs by customer type'!Y33 -> 0
F61: LDNO HV | G61: MWh | J61: ='Inputs by customer type'!J42 -> 28310.86916 | K61: ='Inputs by customer type'!K42 -> 0 | L61: ='Inputs by customer type'!L42 -> 2258.505891 | M61: ='Inputs by customer type'!M42 -> 0 | N61: ='Inputs by customer type'!N42 -> 16531.88181 | O61: ='Inputs by customer type'!O42 -> 2297.380044 | P61: ='Inputs by customer type'!P42 -> 9826.106985 | Q61: ='Inputs by customer type'!Q42 -> 20.12619214 | R61: ='Inputs by customer type'!R42 -> 0 | S61: ='Inputs by customer type'!S42 -> 0 | T61: ='Inputs by customer type'!T42 -> 7.128093679 | U61: ='Inputs by customer type'!U42 -> 0 | V61: ='Inputs by customer type'!V42 -> 0 | W61: ='Inputs by customer type'!W42 -> 0 | X61: ='Inputs by customer type'!X42 -> 0 | Y61: ='Inputs by customer type'!Y42 -> 0
F62: LDNO LV discount rate applied | G62: % | J62: =IF(J$39, J$45, J$34) -> 0.3050843779 | K62: 0.3050843779 | L62: 0.3050843779 | M62: 0.3050843779 | N62: 0.3050843779 | O62: 0 | P62: 0 | Q62: 0.3050843779 | R62: 0 | S62: 0 | T62: 0 | U62: 0 | V62: 0 | W62: 0 | X62: 0 | Y62: 0
F63: LDNO HV discount rate applied | G63: % | J63: =IF(J$39, J$45, J$35) -> 0.447802573 | K63: 0.447802573 | L63: 0.447802573 | M63: 0.447802573 | N63: 0.447802573 | O63: 0.1927605069 | P63: 0.08466062657 | Q63: 0.447802573 | R63: 0 | S63: 0 | T63: 0 | U63: 0 | V63: 0 | W63: 0 | X63: 0 | Y63: 0
F64: LDNO LV, discounted | G64: MWh | J64: =J60 * (1 - J62) -> 9099.363058 | K64: 0 | L64: 314.9627991 | M64: 0 | N64: 1264.799627 | O64: 0 | P64: 0 | Q64: 7.945804322 | R64: 1.791337806 | S64: 0 | T64: 0 | U64: 0 | V64: 0 | W64: 0 | X64: 0 | Y64: 0
F65: LDNO HV, discounted | G65: MWh | J65: 15633.18911 | K65: 0 | L65: 1247.141142 | M65: 0 | N65: 9128.862598 | O65: 1854.535903 | P65: 8994.222611 | Q65: 11.11363151 | R65: 0 | S65: 0 | T65: 7.128093679 | U65: 0 | V65: 0 | W65: 0 | X65: 0 | Y65: 0
F66: Total after discounting | G66: MWh | J66: =J59 + J64 + J65 -> 995604.3758 | K66: 844.7630365 | L66: 328562.1039 | M66: 29.86139468 | N66: 347180.922 | O66: 28854.51922 | P66: 692748.3889 | Q66: 9808.580009 | R66: 113.2803902 | S66: 0 | T66: 4553.188877 | U66: 0 | V66: 615.0655258 | W66: 0 | X66: 229961.8799 | Y66: 0
E68: Unit rate 2 | I68: > | AA68: Paragraph 53
F70: All the way customers | G70: MWh | J70: ='Inputs by customer type'!J25 -> 2877584.013 | K70: ='Inputs by customer type'!K25 -> 5440.33583 | L70: ='Inputs by customer type'!L25 -> 1347000 | M70: ='Inputs by customer type'!M25 -> 464.0832887 | N70: ='Inputs by customer type'!N25 -> 1423327.11 | O70: ='Inputs by customer type'!O25 -> 99999.93305 | P70: ='Inputs by customer type'!P25 -> 2612881.953 | Q70: ='Inputs by customer type'!Q25 -> 48857.68668 | R70: ='Inputs by customer type'!R25 -> 613.1821802 | S70: ='Inputs by customer type'!S25 -> 0 | T70: ='Inputs by customer type'!T25 -> 22509.83535 | U70: ='Inputs by customer type'!U25 -> 0 | V70: ='Inputs by customer type'!V25 -> 2420.075697 | W70: ='Inputs by customer type'!W25 -> 0 | X70: ='Inputs by customer type'!X25 -> 553493.3101 | Y70: ='Inputs by customer type'!Y25 -> 0
F71: LDNO LV | G71: MWh | J71: ='Inputs by customer type'!J34 -> 37530.49737 | K71: ='Inputs by customer type'!K34 -> 0 | L71: ='Inputs by customer type'!L34 -> 1957.030668 | M71: ='Inputs by customer type'!M34 -> 0 | N71: ='Inputs by customer type'!N34 -> 6832.355527 | O71: ='Inputs by customer type'!O34 -> 0 | P71: ='Inputs by customer type'!P34 -> 0 | Q71: ='Inputs by customer type'!Q34 -> 133.5233261 | R71: ='Inputs by customer type'!R34 -> 8.547918648 | S71: ='Inputs by customer type'!S34 -> 0 | T71: ='Inputs by customer type'!T34 -> 0 | U71: ='Inputs by customer type'!U34 -> 0 | V71: ='Inputs by customer type'!V34 -> 0 | W71: ='Inputs by customer type'!W34 -> 0 | X71: ='Inputs by customer type'!X34 -> 0 | Y71: ='Inputs by customer type'!Y34 -> 0
F72: LDNO HV | G72: MWh | J72: ='Inputs by customer type'!J43 -> 81187.99311 | K72: ='Inputs by customer type'!K43 -> 0 | L72: ='Inputs by customer type'!L43 -> 9690.745452 | M72: ='Inputs by customer type'!M43 -> 0 | N72: ='Inputs by customer type'!N43 -> 61315.14568 | O72: ='Inputs by customer type'!O43 -> 8846.709165 | P72: ='Inputs by customer type'!P43 -> 34457.35047 | Q72: ='Inputs by customer type'!Q43 -> 268.4234907 | R72: ='Inputs by customer type'!R43 -> 0 | S72: ='Inputs by customer type'!S43 -> 0 | T72: ='Inputs by customer type'!T43 -> 38.84068984 | U72: ='Inputs by customer type'!U43 -> 0 | V72: ='Inputs by customer type'!V43 -> 0 | W72: ='Inputs by customer type'!W43 -> 0 | X72: ='Inputs by customer type'!X43 -> 0 | Y72: ='Inputs by customer type'!Y43 -> 0
F73: LDNO LV discount rate applied | G73: % | J73: =IF(J$39, J$45, J$34) -> 0.3050843779 | K73: 0.3050843779 | L73: 0.3050843779 | M73: 0.3050843779 | N73: 0.3050843779 | O73: 0 | P73: 0 | Q73: 0.3050843779 | R73: 0 | S73: 0 | T73: 0 | U73: 0 | V73: 0 | W73: 0 | X73: 0 | Y73: 0
F74: LDNO HV discount rate applied | G74: % | J74: =IF(J$39, J$45, J$35) -> 0.447802573 | K74: 0.447802573 | L74: 0.447802573 | M74: 0.447802573 | N74: 0.447802573 | O74: 0.1927605069 | P74: 0.08466062657 | Q74: 0.447802573 | R74: 0 | S74: 0 | T74: 0 | U74: 0 | V74: 0 | W74: 0 | X74: 0 | Y74: 0
F75: LDNO LV, discounted | G75: MWh | J75: =J71 * (1 - J73) -> 26080.52892 | K75: 0 | L75: 1359.971184 | M75: 0 | N75: 4747.910591 | O75: 0 | P75: 0 | Q75: 92.78744521 | R75: 8.547918648 | S75: 0 | T75: 0 | U75: 0 | V75: 0 | W75: 0 | X75: 0 | Y75: 0
F76: LDNO HV, discounted | G76: MWh | J76: 44831.8009 | K76: 0 | L76: 5351.204704 | M76: 0 | N76: 33858.06568 | O76: 7141.413022 | P76: 31540.16959 | Q76: 148.2227609 | R76: 0 | S76: 0 | T76: 38.84068984 | U76: 0 | V76: 0 | W76: 0 | X76: 0 | Y76: 0
F77: Total after discounting | G77: MWh | J77: =J70 + J75 + J76 -> 2948496.343 | K77: 5440.33583 | L77: 1353711.176 | M77: 464.0832887 | N77: 1461933.086 | O77: 107141.3461 | P77: 2644422.123 | Q77: 49098.69689 | R77: 621.7300989 | S77: 0 | T77: 22548.67604 | U77: 0 | V77: 2420.075697 | W77: 0 | X77: 553493.3101 | Y77: 0
E79: Unit rate 3 | I79: > | AA79: Paragraph 53
F81: All the way customers | G81: MWh | J81: ='Inputs by customer type'!J26 -> 4767280.924 | K81: ='Inputs by customer type'!K26 -> 9899.716549 | L81: ='Inputs by customer type'!L26 -> 1479000 | M81: ='Inputs by customer type'!M26 -> 1793.2522 | N81: ='Inputs by customer type'!N26 -> 1552629.361 | O81: ='Inputs by customer type'!O26 -> 113999.9528 | P81: ='Inputs by customer type'!P26 -> 3724107.611 | Q81: ='Inputs by customer type'!Q26 -> 162200.7872 | R81: ='Inputs by customer type'!R26 -> 360.3962597 | S81: ='Inputs by customer type'!S26 -> 0 | T81: ='Inputs by customer type'!T26 -> 23742.42825 | U81: ='Inputs by customer type'!U26 -> 0 | V81: ='Inputs by customer type'!V26 -> 4177.52702 | W81: ='Inputs by customer type'!W26 -> 0 | X81: ='Inputs by customer type'!X26 -> 650372.2276 | Y81: ='Inputs by customer type'!Y26 -> 0
F82: LDNO LV | G82: MWh | J82: ='Inputs by customer type'!J35 -> 56461.54538 | K82: ='Inputs by customer type'!K35 -> 0 | L82: ='Inputs by customer type'!L35 -> 1844.106757 | M82: ='Inputs by customer type'!M35 -> 0 | N82: ='Inputs by customer type'!N35 -> 8494.704928 | O82: ='Inputs by customer type'!O35 -> 0 | P82: ='Inputs by customer type'!P35 -> 0 | Q82: ='Inputs by customer type'!Q35 -> 229.7570838 | R82: ='Inputs by customer type'!R35 -> 5.044922088 | S82: ='Inputs by customer type'!S35 -> 0 | T82: ='Inputs by customer type'!T35 -> 0 | U82: ='Inputs by customer type'!U35 -> 0 | V82: ='Inputs by customer type'!V35 -> 0 | W82: ='Inputs by customer type'!W35 -> 0 | X82: ='Inputs by customer type'!X35 -> 0 | Y82: ='Inputs by customer type'!Y35 -> 0
F83: LDNO HV | G83: MWh | J83: ='Inputs by customer type'!J44 -> 122440.0956 | K83: ='Inputs by customer type'!K44 -> 0 | L83: ='Inputs by customer type'!L44 -> 8744.01572 | M83: ='Inputs by customer type'!M44 -> 0 | N83: ='Inputs by customer type'!N44 -> 76148.11171 | O83: ='Inputs by customer type'!O44 -> 12956.12975 | P83: ='Inputs by customer type'!P44 -> 53818.46404 | Q83: ='Inputs by customer type'!Q44 -> 487.8145926 | R83: ='Inputs by customer type'!R44 -> 0 | S83: ='Inputs by customer type'!S44 -> 0 | T83: ='Inputs by customer type'!T44 -> 73.65941573 | U83: ='Inputs by customer type'!U44 -> 0 | V83: ='Inputs by customer type'!V44 -> 0 | W83: ='Inputs by customer type'!W44 -> 0 | X83: ='Inputs by customer type'!X44 -> 0 | Y83: ='Inputs by customer type'!Y44 -> 0
F84: LDNO LV discount rate applied | G84: % | J84: =IF(J$39, J$45, J$34) -> 0.3050843779 | K84: 0.3050843779 | L84: 0.3050843779 | M84: 0.3050843779 | N84: 0.3050843779 | O84: 0 | P84: 0 | Q84: 0.3050843779 | R84: 0 | S84: 0 | T84: 0 | U84: 0 | V84: 0 | W84: 0 | X84: 0 | Y84: 0
F85: LDNO HV discount rate applied | G85: % | J85: =IF(J$39, J$45, J$35) -> 0.447802573 | K85: 0.447802573 | L85: 0.447802573 | M85: 0.447802573 | N85: 0.447802573 | O85: 0.1927605069 | P85: 0.08466062657 | Q85: 0.447802573 | R85: 0 | S85: 0 | T85: 0 | U85: 0 | V85: 0 | W85: 0 | X85: 0 | Y85: 0
F86: LDNO LV, discounted | G86: MWh | J86: =J82 * (1 - J84) -> 39236.00993 | K86: 0 | L86: 1281.498594 | M86: 0 | N86: 5903.103159 | O86: 0 | P86: 0 | Q86: 159.6617868 | R86: 5.044922088 | S86: 0 | T86: 0 | U86: 0 | V86: 0 | W86: 0 | X86: 0 | Y86: 0
F87: LDNO HV, discounted | G87: MWh | J87: 67611.10573 | K87: 0 | L87: 4828.422982 | M87: 0 | N87: 42048.79136 | O87: 10458.69961 | P87: 49262.15916 | Q87: 269.3699629 | R87: 0 | S87: 0 | T87: 73.65941573 | U87: 0 | V87: 0 | W87: 0 | X87: 0 | Y87: 0
F88: Total after discounting | G88: MWh | J88: =J81 + J86 + J87 -> 4874128.039 | K88: 9899.716549 | L88: 1485109.922 | M88: 1793.2522 | N88: 1600581.256 | O88: 124458.6524 | P88: 3773369.77 | Q88: 162629.8189 | R88: 365.4411817 | S88: 0 | T88: 23816.08766 | U88: 0 | V88: 4177.52702 | W88: 0 | X88: 650372.2276 | Y88: 0
E90: Total units | I90: >
F92: Total after discounting | G92: MWh | J92: =J88 + J77 + J66 -> 8818228.758 | K92: 16184.81542 | L92: 3167383.201 | M92: 2287.196884 | N92: 3409695.264 | O92: 260454.5177 | P92: 7110540.282 | Q92: 221537.0958 | R92: 1100.451671 | S92: 0 | T92: 50917.95258 | U92: 0 | V92: 7212.668243 | W92: 0 | X92: 1433827.418 | Y92: 0
E94: MPANs | I94: > | AA94: Paragraph 53
F96: All the way customers | G96: MPANs | J96: ='Inputs by customer type'!J27 -> 2477513.718 | K96: ='Inputs by customer type'!K27 -> 0 | L96: ='Inputs by customer type'!L27 -> 185569.609 | M96: ='Inputs by customer type'!M27 -> 0 | N96: ='Inputs by customer type'!N27 -> 15340.27625 | O96: ='Inputs by customer type'!O27 -> 459.2754303 | P96: ='Inputs by customer type'!P27 -> 3354.375621 | Q96: ='Inputs by customer type'!Q27 -> 31.60632558 | R96: ='Inputs by customer type'!R27 -> 0 | S96: ='Inputs by customer type'!S27 -> 0 | T96: ='Inputs by customer type'!T27 -> 737.2411219 | U96: ='Inputs by customer type'!U27 -> 0 | V96: ='Inputs by customer type'!V27 -> 52.79929559 | W96: ='Inputs by customer type'!W27 -> 0 | X96: ='Inputs by customer type'!X27 -> 465.2046601 | Y96: ='Inputs by customer type'!Y27 -> 0
F97: LDNO LV | G97: MPANs | J97: ='Inputs by customer type'!J36 -> 37750.7171 | K97: ='Inputs by customer type'!K36 -> 0 | L97: ='Inputs by customer type'!L36 -> 675.5915152 | M97: ='Inputs by customer type'!M36 -> 0 | N97: ='Inputs by customer type'!N36 -> 72.30452618 | O97: ='Inputs by customer type'!O36 -> 0 | P97: ='Inputs by customer type'!P36 -> 0 | Q97: ='Inputs by customer type'!Q36 -> 0 | R97: ='Inputs by customer type'!R36 -> 0 | S97: ='Inputs by customer type'!S36 -> 0 | T97: ='Inputs by customer type'!T36 -> 0 | U97: ='Inputs by customer type'!U36 -> 0 | V97: ='Inputs by customer type'!V36 -> 0 | W97: ='Inputs by customer type'!W36 -> 0 | X97: ='Inputs by customer type'!X36 -> 0 | Y97: ='Inputs by customer type'!Y36 -> 0
F98: LDNO HV | G98: MPANs | J98: ='Inputs by customer type'!J45 -> 84612.64234 | K98: ='Inputs by customer type'!K45 -> 0 | L98: ='Inputs by customer type'!L45 -> 2007.150809 | M98: ='Inputs by customer type'!M45 -> 0 | N98: ='Inputs by customer type'!N45 -> 465.7393649 | O98: ='Inputs by customer type'!O45 -> 26.84503597 | P98: ='Inputs by customer type'!P45 -> 45.30709916 | Q98: ='Inputs by customer type'!Q45 -> 0 | R98: ='Inputs by customer type'!R45 -> 0 | S98: ='Inputs by customer type'!S45 -> 0 | T98: ='Inputs by customer type'!T45 -> 6.476815257 | U98: ='Inputs by customer type'!U45 -> 0 | V98: ='Inputs by customer type'!V45 -> 0 | W98: ='Inputs by customer type'!W45 -> 0 | X98: ='Inputs by customer type'!X45 -> 0 | Y98: ='Inputs by customer type'!Y45 -> 0
F99: LDNO LV discount rate applied | G99: % | J99: =IF(J$40, J$46, J$34) -> 0.3050843779 | K99: 0.3050843779 | L99: 0.3050843779 | M99: 0.3050843779 | N99: 0.3050843779 | O99: 0 | P99: 0 | Q99: 0.3050843779 | R99: 1 | S99: 1 | T99: 1 | U99: 1 | V99: 1 | W99: 1 | X99: 1 | Y99: 1
F100: LDNO HV discount rate applied | G100: % | J100: =IF(J$40, J$46, J$35) -> 0.447802573 | K100: 0.447802573 | L100: 0.447802573 | M100: 0.447802573 | N100: 0.447802573 | O100: 0.1927605069 | P100: 0.08466062657 | Q100: 0.447802573 | R100: 1 | S100: 1 | T100: 1 | U100: 1 | V100: 1 | W100: 1 | X100: 1 | Y100: 1
F101: LDNO LV, discounted | G101: MPANs | J101: =J97 * (1 - J99) -> 26233.56306 | K101: 0 | L101: 469.4790981 | M101: 0 | N101: 50.24554479 | O101: 0 | P101: 0 | Q101: 0 | R101: 0 | S101: 0 | T101: 0 | U101: 0 | V101: 0 | W101: 0 | X101: 0 | Y101: 0
F102: LDNO HV, discounted | G102: MPANs | J102: 46722.88339 | K102: 0 | L102: 1108.343512 | M102: 0 | N102: 257.1800789 | O102: 21.67037323 | P102: 41.47137176 | Q102: 0 | R102: 0 | S102: 0 | T102: 0 | U102: 0 | V102: 0 | W102: 0 | X102: 0 | Y102: 0
F103: Total after discounting | G103: MPANs | J103: =J96 + J101 + J102 -> 2550470.164 | K103: 0 | L103: 187147.4316 | M103: 0 | N103: 15647.70188 | O103: 480.9458035 | P103: 3395.846993 | Q103: 31.60632558 | R103: 0 | S103: 0 | T103: 737.2411219 | U103: 0 | V103: 52.79929559 | W103: 0 | X103: 465.2046601 | Y103: 0
E105: Import capacity | I105: > | AA105: Paragraph 53
F107: All the way customers | G107: kVA | J107: ='Inputs by customer type'!J28 -> 0 | K107: ='Inputs by customer type'!K28 -> 0 | L107: ='Inputs by customer type'!L28 -> 0 | M107: ='Inputs by customer type'!M28 -> 0 | N107: ='Inputs by customer type'!N28 -> 2030032.333 | O107: ='Inputs by customer type'!O28 -> 145993.6667 | P107: ='Inputs by customer type'!P28 -> 2724720.667 | Q107: ='Inputs by customer type'!Q28 -> 0 | R107: ='Inputs by customer type'!R28 -> 0 | S107: ='Inputs by customer type'!S28 -> 0 | T107: ='Inputs by customer type'!T28 -> 0 | U107: ='Inputs by customer type'!U28 -> 0 | V107: ='Inputs by customer type'!V28 -> 0 | W107: ='Inputs by customer type'!W28 -> 0 | X107: ='Inputs by customer type'!X28 -> 0 | Y107: ='Inputs by customer type'!Y28 -> 0
F108: LDNO LV | G108: kVA | J108: ='Inputs by customer type'!J37 -> 0 | K108: ='Inputs by customer type'!K37 -> 0 | L108: ='Inputs by customer type'!L37 -> 0 | M108: ='Inputs by customer type'!M37 -> 0 | N108: ='Inputs by customer type'!N37 -> 13243.8451 | O108: ='Inputs by customer type'!O37 -> 0 | P108: ='Inputs by customer type'!P37 -> 0 | Q108: ='Inputs by customer type'!Q37 -> 0 | R108: ='Inputs by customer type'!R37 -> 0 | S108: ='Inputs by customer type'!S37 -> 0 | T108: ='Inputs by customer type'!T37 -> 0 | U108: ='Inputs by customer type'!U37 -> 0 | V108: ='Inputs by customer type'!V37 -> 0 | W108: ='Inputs by customer type'!W37 -> 0 | X108: ='Inputs by customer type'!X37 -> 0 | Y108: ='Inputs by customer type'!Y37 -> 0
F109: LDNO HV | G109: kVA | J109: ='Inputs by customer type'!J46 -> 0 | K109: ='Inputs by customer type'!K46 -> 0 | L109: ='Inputs by customer type'!L46 -> 0 | M109: ='Inputs by customer type'!M46 -> 0 | N109: ='Inputs by customer type'!N46 -> 127077.8778 | O109: ='Inputs by customer type'!O46 -> 18844.38059 | P109: ='Inputs by customer type'!P46 -> 68248.27615 | Q109: ='Inputs by customer type'!Q46 -> 0 | R109: ='Inputs by customer type'!R46 -> 0 | S109: ='Inputs by customer type'!S46 -> 0 | T109: ='Inputs by customer type'!T46 -> 0 | U109: ='Inputs by customer type'!U46 -> 0 | V109: ='Inputs by customer type'!V46 -> 0 | W109: ='Inputs by customer type'!W46 -> 0 | X109: ='Inputs by customer type'!X46 -> 0 | Y109: ='Inputs by customer type'!Y46 -> 0
F110: LDNO LV discount rate applied | G110: % | J110: =IF(J$41, J$47, J$34) -> 0.3050843779 | K110: 0.3050843779 | L110: 0.3050843779 | M110: 0.3050843779 | N110: 0.3050843779 | O110: 0 | P110: 0 | Q110: 0.3050843779 | R110: 0 | S110: 0 | T110: 0 | U110: 0 | V110: 0 | W110: 0 | X110: 0 | Y110: 0
F111: LDNO HV discount rate applied | G111: % | J111: =IF(J$41, J$47, J$35) -> 0.447802573 | K111: 0.447802573 | L111: 0.447802573 | M111: 0.447802573 | N111: 0.447802573 | O111: 0.1927605069 | P111: 0.08466062657 | Q111: 0.447802573 | R111: 0 | S111: 0 | T111: 0 | U111: 0 | V111: 0 | W111: 0 | X111: 0 | Y111: 0
F112: LDNO LV, discounted | G112: kVA | J112: =J108 * (1 - J110) -> 0 | K112: 0 | L112: 0 | M112: 0 | N112: 9203.354859 | O112: 0 | P112: 0 | Q112: 0 | R112: 0 | S112: 0 | T112: 0 | U112: 0 | V112: 0 | W112: 0 | X112: 0 | Y112: 0
F113: LDNO HV, discounted | G113: kVA | J113: 0 | K113: 0 | L113: 0 | M113: 0 | N113: 70172.07717 | O113: 15211.92824 | P113: 62470.33433 | Q113: 0 | R113: 0 | S113: 0 | T113: 0 | U113: 0 | V113: 0 | W113: 0 | X113: 0 | Y113: 0
F114: Total after discounting | G114: kVA | J114: =J107 + J112 + J113 -> 0 | K114: 0 | L114: 0 | M114: 0 | N114: 2109407.765 | O114: 161205.5949 | P114: 2787191.001 | Q114: 0 | R114: 0 | S114: 0 | T114: 0 | U114: 0 | V114: 0 | W114: 0 | X114: 0 | Y114: 0
E116: Exceeded capacity | I116: > | AA116: Paragraph 53
F118: All the way customers | G118: kVA | J118: ='Inputs by customer type'!J29 -> 0 | K118: ='Inputs by customer type'!K29 -> 0 | L118: ='Inputs by customer type'!L29 -> 0 | M118: ='Inputs by customer type'!M29 -> 0 | N118: ='Inputs by customer type'!N29 -> 35413.46662 | O118: ='Inputs by customer type'!O29 -> 2300.876114 | P118: ='Inputs by customer type'!P29 -> 45458.07051 | Q118: ='Inputs by customer type'!Q29 -> 0 | R118: ='Inputs by customer type'!R29 -> 0 | S118: ='Inputs by customer type'!S29 -> 0 | T118: ='Inputs by customer type'!T29 -> 0 | U118: ='Inputs by customer type'!U29 -> 0 | V118: ='Inputs by customer type'!V29 -> 0 | W118: ='Inputs by customer type'!W29 -> 0 | X118: ='Inputs by customer type'!X29 -> 0 | Y118: ='Inputs by customer type'!Y29 -> 0
F119: LDNO LV | G119: kVA | J119: ='Inputs by customer type'!J38 -> 0 | K119: ='Inputs by customer type'!K38 -> 0 | L119: ='Inputs by customer type'!L38 -> 0 | M119: ='Inputs by customer type'!M38 -> 0 | N119: ='Inputs by customer type'!N38 -> 35.71225127 | O119: ='Inputs by customer type'!O38 -> 0 | P119: ='Inputs by customer type'!P38 -> 0 | Q119: ='Inputs by customer type'!Q38 -> 0 | R119: ='Inputs by customer type'!R38 -> 0 | S119: ='Inputs by customer type'!S38 -> 0 | T119: ='Inputs by customer type'!T38 -> 0 | U119: ='Inputs by customer type'!U38 -> 0 | V119: ='Inputs by customer type'!V38 -> 0 | W119: ='Inputs by customer type'!W38 -> 0 | X119: ='Inputs by customer type'!X38 -> 0 | Y119: ='Inputs by customer type'!Y38 -> 0
F120: LDNO HV | G120: kVA | J120: ='Inputs by customer type'!J47 -> 0 | K120: ='Inputs by customer type'!K47 -> 0 | L120: ='Inputs by customer type'!L47 -> 0 | M120: ='Inputs by customer type'!M47 -> 0 | N120: ='Inputs by customer type'!N47 -> 395.8235027 | O120: ='Inputs by customer type'!O47 -> 81.92949961 | P120: ='Inputs by customer type'!P47 -> 45.71472071 | Q120: ='Inputs by customer type'!Q47 -> 0 | R120: ='Inputs by customer type'!R47 -> 0 | S120: ='Inputs by customer type'!S47 -> 0 | T120: ='Inputs by customer type'!T47 -> 0 | U120: ='Inputs by customer type'!U47 -> 0 | V120: ='Inputs by customer type'!V47 -> 0 | W120: ='Inputs by customer type'!W47 -> 0 | X120: ='Inputs by customer type'!X47 -> 0 | Y120: ='Inputs by customer type'!Y47 -> 0
F121: LDNO LV discount rate applied | G121: % | J121: =IF(J$42, J$48, J$34) -> 0.3050843779 | K121: 0.3050843779 | L121: 0.3050843779 | M121: 0.3050843779 | N121: 0.3050843779 | O121: 0 | P121: 0 | Q121: 0.3050843779 | R121: 0 | S121: 0 | T121: 0 | U121: 0 | V121: 0 | W121: 0 | X121: 0 | Y121: 0
F122: LDNO HV discount rate applied | G122: % | J122: =IF(J$42, J$48, J$35) -> 0.447802573 | K122: 0.447802573 | L122: 0.447802573 | M122: 0.447802573 | N122: 0.447802573 | O122: 0.1927605069 | P122: 0.08466062657 | Q122: 0.447802573 | R122: 0 | S122: 0 | T122: 0 | U122: 0 | V122: 0 | W122: 0 | X122: 0 | Y122: 0
F123: LDNO LV, discounted | G123: kVA | J123: =J119 * (1 - J121) -> 0 | K123: 0 | L123: 0 | M123: 0 | N123: 24.81700131 | O123: 0 | P123: 0 | Q123: 0 | R123: 0 | S123: 0 | T123: 0 | U123: 0 | V123: 0 | W123: 0 | X123: 0 | Y123: 0
F124: LDNO HV, discounted | G124: kVA | J124: 0 | K124: 0 | L124: 0 | M124: 0 | N124: 218.5727197 | O124: 66.13672774 | P124: 41.84448381 | Q124: 0 | R124: 0 | S124: 0 | T124: 0 | U124: 0 | V124: 0 | W124: 0 | X124: 0 | Y124: 0
F125: Total after discounting | G125: kVA | J125: =J118 + J123 + J124 -> 0 | K125: 0 | L125: 0 | M125: 0 | N125: 35656.85634 | O125: 2367.012842 | P125: 45499.915 | Q125: 0 | R125: 0 | S125: 0 | T125: 0 | U125: 0 | V125: 0 | W125: 0 | X125: 0 | Y125: 0
E127: Reactive power units | I127: > | AA127: Paragraph 53
F129: All the way customers | G129: MVArh | J129: ='Inputs by customer type'!J30 -> 0 | K129: ='Inputs by customer type'!K30 -> 0 | L129: ='Inputs by customer type'!L30 -> 0 | M129: ='Inputs by customer type'!M30 -> 0 | N129: ='Inputs by customer type'!N30 -> 358169.5154 | O129: ='Inputs by customer type'!O30 -> 30403.57565 | P129: ='Inputs by customer type'!P30 -> 596771.2509 | Q129: ='Inputs by customer type'!Q30 -> 0 | R129: ='Inputs by customer type'!R30 -> 0 | S129: ='Inputs by customer type'!S30 -> 0 | T129: ='Inputs by customer type'!T30 -> 3718.690335 | U129: ='Inputs by customer type'!U30 -> 0 | V129: ='Inputs by customer type'!V30 -> 530.8712737 | W129: ='Inputs by customer type'!W30 -> 0 | X129: ='Inputs by customer type'!X30 -> 17917.30144 | Y129: ='Inputs by customer type'!Y30 -> 0
F130: LDNO LV | G130: MVArh | J130: ='Inputs by customer type'!J39 -> 0 | K130: ='Inputs by customer type'!K39 -> 0 | L130: ='Inputs by customer type'!L39 -> 0 | M130: ='Inputs by customer type'!M39 -> 0 | N130: ='Inputs by customer type'!N39 -> 1072.501047 | O130: ='Inputs by customer type'!O39 -> 0 | P130: ='Inputs by customer type'!P39 -> 0 | Q130: ='Inputs by customer type'!Q39 -> 0 | R130: ='Inputs by customer type'!R39 -> 0 | S130: ='Inputs by customer type'!S39 -> 0 | T130: ='Inputs by customer type'!T39 -> 0 | U130: ='Inputs by customer type'!U39 -> 0 | V130: ='Inputs by customer type'!V39 -> 0 | W130: ='Inputs by customer type'!W39 -> 0 | X130: ='Inputs by customer type'!X39 -> 0 | Y130: ='Inputs by customer type'!Y39 -> 0
F131: LDNO HV | G131: MVArh | J131: ='Inputs by customer type'!J48 -> 0 | K131: ='Inputs by customer type'!K48 -> 0 | L131: ='Inputs by customer type'!L48 -> 0 | M131: ='Inputs by customer type'!M48 -> 0 | N131: ='Inputs by customer type'!N48 -> 10517.87956 | O131: ='Inputs by customer type'!O48 -> 1752.531518 | P131: ='Inputs by customer type'!P48 -> 2835.35374 | Q131: ='Inputs by customer type'!Q48 -> 0 | R131: ='Inputs by customer type'!R48 -> 0 | S131: ='Inputs by customer type'!S48 -> 0 | T131: ='Inputs by customer type'!T48 -> 52.88235801 | U131: ='Inputs by customer type'!U48 -> 0 | V131: ='Inputs by customer type'!V48 -> 0 | W131: ='Inputs by customer type'!W48 -> 0 | X131: ='Inputs by customer type'!X48 -> 0 | Y131: ='Inputs by customer type'!Y48 -> 0
F132: LDNO LV discount rate applied | G132: % | J132: =IF(J$43, J$49, J$34) -> 0.3050843779 | K132: 0.3050843779 | L132: 0.3050843779 | M132: 0.3050843779 | N132: 0.3050843779 | O132: 0 | P132: 0 | Q132: 0.3050843779 | R132: 0 | S132: 0 | T132: 0 | U132: 0 | V132: 0 | W132: 0 | X132: 0 | Y132: 0
F133: LDNO HV discount rate applied | G133: % | J133: =IF(J$43, J$49, J$35) -> 0.447802573 | K133: 0.447802573 | L133: 0.447802573 | M133: 0.447802573 | N133: 0.447802573 | O133: 0.1927605069 | P133: 0.08466062657 | Q133: 0.447802573 | R133: 0 | S133: 0 | T133: 0 | U133: 0 | V133: 0 | W133: 0 | X133: 0 | Y133: 0
F134: LDNO LV, discounted | G134: MVArh | J134: =J130 * (1 - J132) -> 0 | K134: 0 | L134: 0 | M134: 0 | N134: 745.297732 | O134: 0 | P134: 0 | Q134: 0 | R134: 0 | S134: 0 | T134: 0 | U134: 0 | V134: 0 | W134: 0 | X134: 0 | Y134: 0
F135: LDNO HV, discounted | G135: MVArh | J135: 0 | K135: 0 | L135: 0 | M135: 0 | N135: 5807.946033 | O135: 1414.712654 | P135: 2595.310916 | Q135: 0 | R135: 0 | S135: 0 | T135: 52.88235801 | U135: 0 | V135: 0 | W135: 0 | X135: 0 | Y135: 0
F136: Total after discounting | G136: MVArh | J136: =J129 + J134 + J135 -> 0 | K136: 0 | L136: 0 | M136: 0 | N136: 364722.7592 | O136: 31818.2883 | P136: 599366.5618 | Q136: 0 | R136: 0 | S136: 0 | T136: 3771.572693 | U136: 0 | V136: 530.8712737 | W136: 0 | X136: 17917.30144 | Y136: 0
B138: Checks
E140: Check for error values | G140: number of issues | H140: =SUM(IF(ISERROR(H22:Y137), 1)) -> 0
B142: End of sheet

Sheet Pseudo-load coefficients
A1: =MID(CELL("filename",A1),FIND("]",CELL("filename",A1))+1,255) -> Pseudo-load coefficients
A2: =Cover!D21&" - "&Cover!D23 -> WPD Mid East - April 21 Prices
A3: =Cover!D2&" - "&Cover!D8&" v"&Cover!D10&" - "&Cover!D19 -> ARP model - Release for charge setting v5 - 2021/22
A4: =H306 & IF(H306 = 1, " issue", " issues") &" identified in checks on this sheet" -> 0 issues identified in checks on this sheet
B5: Click here to return to model map | G5: Units | H5: Constants | J5: Domestic Aggregated | K5: Domestic Aggregated (Related MPAN) | L5: Non-Domestic Aggregated | M5: Non-Domestic Aggregated (Related MPAN) | N5: LV Site Specific | O5: LV Sub Site Specific | P5: HV Site Specific | Q5: Unmetered Supplies | R5: LV Generation Aggregated | S5: LV Sub Generation Aggregated | T5: LV Generation Site Specific | U5: LV Generation Site Specific no RP Charge | V5: LV Sub Generation Site Specific | W5: LV Sub Generation Site Specific no RP Charge | X5: HV Generation Site Specific | Y5: HV Generation Site Specific no RP Charge | AA5: Legal text reference
B7: Description
C9: This sheet calculates the pseudo load coefficients used in the calculation of unit rates and system simultaneous peak demand.
C10: The pseudo load coefficient is specified by customer category, network level and unit rate.
C11: The calculations in this sheet follow the steps set out in Paragraph 70.
B13: Step 1: Ratio of coincidence to load factor assuming units evenly spread within time bands, and peak falls in Red period
C15: This section first calculates the split of MWh by unit rate, aggregating "related MPAN" and "Aggregated" tariffs. | I15: > | AA15: Paragraphs 52A & 70 (c) i
C16: The last part of this section then calculates the ratio of coincidence to load factor based on a simplified load profile.
C18: =INDEX('Version control'!$H$34:$H$58,MATCH($A$1,'Version control'!$F$34:$F$58,0),1)&"-A: Flags and hours in timebands" -> Section 508-A: Flags and hours in timebands
E20: Flag for unmetered customers | G20: TRUE/FALSE | J20: ='Fixed inputs'!J127 -> FALSE | K20: ='Fixed inputs'!K127 -> FALSE | L20: ='Fixed inputs'!L127 -> FALSE | M20: ='Fixed inputs'!M127 -> FALSE | N20: ='Fixed inputs'!N127 -> FALSE | O20: ='Fixed inputs'!O127 -> FALSE | P20: ='Fixed inputs'!P127 -> FALSE | Q20: ='Fixed inputs'!Q127 -> TRUE | R20: ='Fixed inputs'!R127 -> FALSE | S20: ='Fixed inputs'!S127 -> FALSE | T20: ='Fixed inputs'!T127 -> FALSE | U20: ='Fixed inputs'!U127 -> FALSE | V20: ='Fixed inputs'!V127 -> FALSE | W20: ='Fixed inputs'!W127 -> FALSE | X20: ='Fixed inputs'!X127 -> FALSE | Y20: ='Fixed inputs'!Y127 -> FALSE
E22: Hours per timeband | I22: > | AA22: Paragraph 40
E23: UMS customers use Black & Yellow timebands, other customers use Red & Amber
F24: Red or Black | G24: hours | J24: =IF(J$20, 'General inputs'!$H19, 'General inputs'!$H24) -> 783 | K24: =IF(K$20, 'General inputs'!$H19, 'General inputs'!$H24) -> 783 | L24: =IF(L$20, 'General inputs'!$H19, 'General inputs'!$H24) -> 783 | M24: =IF(M$20, 'General inputs'!$H19, 'General inputs'!$H24) -> 783 | N24: =IF(N$20, 'General inputs'!$H19, 'General inputs'!$H24) -> 783 | O24: =IF(O$20, 'General inputs'!$H19, 'General inputs'!$H24) -> 783 | P24: =IF(P$20, 'General inputs'!$H19, 'General inputs'!$H24) -> 783 | Q24: =IF(Q$20, 'General inputs'!$H19, 'General inputs'!$H24) -> 258 | R24: =IF(R$20, 'General inputs'!$H19, 'General inputs'!$H24) -> 783 | S24: =IF(S$20, 'General inputs'!$H19, 'General inputs'!$H24) -> 783 | T24: =IF(T$20, 'General inputs'!$H19, 'General inputs'!$H24) -> 783 | U24: =IF(U$20, 'General inputs'!$H19, 'General inputs'!$H24) -> 783 | V24: =IF(V$20, 'General inputs'!$H19, 'General inputs'!$H24) -> 783 | W24: =IF(W$20, 'General inputs'!$H19, 'General inputs'!$H24) -> 783 | X24: =IF(X$20, 'General inputs'!$H19, 'General inputs'!$H24) -> 783 | Y24: =IF(Y$20, 'General inputs'!$H19, 'General inputs'!$H24) -> 783
F25: Amber or Yellow | G25: hours | J25: =IF(J$20, 'General inputs'!$H20, 'General inputs'!$H25) -> 2740.5 | K25: =IF(K$20, 'General inputs'!$H20, 'General inputs'!$H25) -> 2740.5 | L25: =IF(L$20, 'General inputs'!$H20, 'General inputs'!$H25) -> 2740.5 | M25: =IF(M$20, 'General inputs'!$H20, 'General inputs'!$H25) -> 2740.5 | N25: =IF(N$20, 'General inputs'!$H20, 'General inputs'!$H25) -> 2740.5 | O25: =IF(O$20, 'General inputs'!$H20, 'General inputs'!$H25) -> 2740.5 | P25: =IF(P$20, 'General inputs'!$H20, 'General inputs'!$H25) -> 2740.5 | Q25: =IF(Q$20, 'General inputs'!$H20, 'General inputs'!$H25) -> 3265.5 | R25: =IF(R$20, 'General inputs'!$H20, 'General inputs'!$H25) -> 2740.5 | S25: =IF(S$20, 'General inputs'!$H20, 'General inputs'!$H25) -> 2740.5 | T25: =IF(T$20, 'General inputs'!$H20, 'General inputs'!$H25) -> 2740.5 | U25: =IF(U$20, 'General inputs'!$H20, 'General inputs'!$H25) -> 2740.5 | V25: =IF(V$20, 'General inputs'!$H20, 'General inputs'!$H25) -> 2740.5 | W25: =IF(W$20, 'General inputs'!$H20, 'General inputs'!$H25) -> 2740.5 | X25: =IF(X$20, 'General inputs'!$H20, 'General inputs'!$H25) -> 2740.5 | Y25: =IF(Y$20, 'General inputs'!$H20, 'General inputs'!$H25) -> 2740.5
F26: Green | G26: hours | J26: =IF(J$20, 'General inputs'!$H21, 'General inputs'!$H26) -> 5236.5 | K26: =IF(K$20, 'General inputs'!$H21, 'General inputs'!$H26) -> 5236.5 | L26: =IF(L$20, 'General inputs'!$H21, 'General inputs'!$H26) -> 5236.5 | M26: =IF(M$20, 'General inputs'!$H21, 'General inputs'!$H26) -> 5236.5 | N26: =IF(N$20, 'General inputs'!$H21, 'General inputs'!$H26) -> 5236.5 | O26: =IF(O$20, 'General inputs'!$H21, 'General inputs'!$H26) -> 5236.5 | P26: =IF(P$20, 'General inputs'!$H21, 'General inputs'!$H26) -> 5236.5 | Q26: =IF(Q$20, 'General inputs'!$H21, 'General inputs'!$H26) -> 5236.5 | R26: =IF(R$20, 'General inputs'!$H21, 'General inputs'!$H26) -> 5236.5 | S26: =IF(S$20, 'General inputs'!$H21, 'General inputs'!$H26) -> 5236.5 | T26: =IF(T$20, 'General inputs'!$H21, 'General inputs'!$H26) -> 5236.5 | U26: =IF(U$20, 'General inputs'!$H21, 'General inputs'!$H26) -> 5236.5 | V26: =IF(V$20, 'General inputs'!$H21, 'General inputs'!$H26) -> 5236.5 | W26: =IF(W$20, 'General inputs'!$H21, 'General inputs'!$H26) -> 5236.5 | X26: =IF(X$20, 'General inputs'!$H21, 'General inputs'!$H26) -> 5236.5 | Y26: =IF(Y$20, 'General inputs'!$H21, 'General inputs'!$H26) -> 5236.5
C28: =INDEX('Version control'!$H$34:$H$58,MATCH($A$1,'Version control'!$F$34:$F$58,0),1)&"-B: Average load by timeband" -> Section 508-B: Average load by timeband
E30: Split of units by time pattern regime
F31: Unit rate 1 | G31: MWh | J31: ='Volume adjustments'!J66 -> 995604.3758 | K31: ='Volume adjustments'!K66 -> 844.7630365 | L31: ='Volume adjustments'!L66 -> 328562.1039 | M31: ='Volume adjustments'!M66 -> 29.86139468 | N31: ='Volume adjustments'!N66 -> 347180.922 | O31: ='Volume adjustments'!O66 -> 28854.51922 | P31: ='Volume adjustments'!P66 -> 692748.3889 | Q31: ='Volume adjustments'!Q66 -> 9808.580009 | R31: ='Volume adjustments'!R66 -> 113.2803902 | S31: ='Volume adjustments'!S66 -> 0 | T31: ='Volume adjustments'!T66 -> 4553.188877 | U31: ='Volume adjustments'!U66 -> 0 | V31: ='Volume adjustments'!V66 -> 615.0655258 | W31: ='Volume adjustments'!W66 -> 0 | X31: ='Volume adjustments'!X66 -> 229961.8799 | Y31: ='Volume adjustments'!Y66 -> 0
F32: Unit rate 2 | G32: MWh | J32: ='Volume adjustments'!J77 -> 2948496.343 | K32: ='Volume adjustments'!K77 -> 5440.33583 | L32: ='Volume adjustments'!L77 -> 1353711.176 | M32: ='Volume adjustments'!M77 -> 464.0832887 | N32: ='Volume adjustments'!N77 -> 1461933.086 | O32: ='Volume adjustments'!O77 -> 107141.3461 | P32: ='Volume adjustments'!P77 -> 2644422.123 | Q32: ='Volume adjustments'!Q77 -> 49098.69689 | R32: ='Volume adjustments'!R77 -> 621.7300989 | S32: ='Volume adjustments'!S77 -> 0 | T32: ='Volume adjustments'!T77 -> 22548.67604 | U32: ='Volume adjustments'!U77 -> 0 | V32: ='Volume adjustments'!V77 -> 2420.075697 | W32: ='Volume adjustments'!W77 -> 0 | X32: ='Volume adjustments'!X77 -> 553493.3101 | Y32: ='Volume adjustments'!Y77 -> 0
F33: Unit rate 3 | G33: MWh | J33: ='Volume adjustments'!J88 -> 4874128.039 | K33: ='Volume adjustments'!K88 -> 9899.716549 | L33: ='Volume adjustments'!L88 -> 1485109.922 | M33: ='Volume adjustments'!M88 -> 1793.2522 | N33: ='Volume adjustments'!N88 -> 1600581.256 | O33: ='Volume adjustments'!O88 -> 124458.6524 | P33: ='Volume adjustments'!P88 -> 3773369.77 | Q33: ='Volume adjustments'!Q88 -> 162629.8189 | R33: ='Volume adjustments'!R88 -> 365.4411817 | S33: ='Volume adjustments'!S88 -> 0 | T33: ='Volume adjustments'!T88 -> 23816.08766 | U33: ='Volume adjustments'!U88 -> 0 | V33: ='Volume adjustments'!V88 -> 4177.52702 | W33: ='Volume adjustments'!W88 -> 0 | X33: ='Volume adjustments'!X88 -> 650372.2276 | Y33: ='Volume adjustments'!Y88 -> 0
F34: Total units | G34: MWh | J34: =SUM(J31:J33) -> 8818228.758 | K34: 16184.81542 | L34: 3167383.201 | M34: 2287.196884 | N34: 3409695.264 | O34: 260454.5177 | P34: 7110540.282 | Q34: 221537.0958 | R34: 1100.451671 | S34: 0 | T34: 50917.95258 | U34: 0 | V34: 7212.668243 | W34: 0 | X34: 1433827.418 | Y34: 0
C36: =INDEX('Version control'!$H$34:$H$58,MATCH($A$1,'Version control'!$F$34:$F$58,0),1)&"-C: Aggregated groups for pseudo-load coefficients" -> Section 508-C: Aggregated groups for pseudo-load coefficients
E38: Pseudo-load coefficient aggregation group | G38: integer | I38: > | J38: ='Fixed inputs'!J149 -> 1 | K38: ='Fixed inputs'!K149 -> 1 | L38: ='Fixed inputs'!L149 -> 2 | M38: ='Fixed inputs'!M149 -> 2 | AA38: Paragraphs 52A & 70 (c) iv
E40: Split of total units by timeband for aggregate groups
E41: UMS customers use Black & Yellow timebands, other customers use Red & Amber
F42: Red or Black | G42: % | J42: =SUMIF($J$38:$Y$38, J$38, $J31:$Y31) / SUMIF($J$38:$Y$38, J$38, $J$34:$Y$34) -> 0.1127917694 | K42: 0.1127917694 | L42: 0.1036675503 | M42: 0.1036675503
F43: Amber or Yellow | G43: % | J43: 0.3343670357 | K43: 0.3343670357 | L43: 0.4272290456 | M43: 0.4272290456
F44: Green | G44: % | J44: 0.5528411948 | K44: 0.5528411948 | L44: 0.4691034041 | M44: 0.4691034041
E46: Final split of total units by timeband
E47: UMS customers use Black & Yellow timebands, other customers use Red & Amber
F48: Red or Black | G48: % | J48: =IF(ISNUMBER(J$38), J42, IF(J$34 = 0, 0, J31 / J$34)) -> 0.1127917694 | K48: =IF(ISNUMBER(K$38), K42, IF(K$34 = 0, 0, K31 / K$34)) -> 0.1127917694 | L48: 0.1036675503 | M48: 0.1036675503 | N48: 0.1018216864 | O48: 0.1107852514 | P48: 0.09742556281 | Q48: 0.04427511326 | R48: 0.1029399047 | S48: 0 | T48: 0.0894220731 | U48: 0 | V48: 0.08527572669 | W48: 0 | X48: 0.1603832352 | Y48: 0
F49: Amber or Yellow | G49: % | J49: =IF(ISNUMBER(J$38), J43, IF(J$34 = 0, 0, J32 / J$34)) -> 0.3343670357 | K49: 0.3343670357 | L49: 0.4272290456 | M49: 0.4272290456 | N49: 0.4287576962 | O49: 0.4113629782 | P49: 0.3719017146 | Q49: 0.2216274286 | R49: 0.5649771956 | S49: 0 | T49: 0.4428433371 | U49: 0 | V49: 0.3355312646 | W49: 0 | X49: 0.3860250566 | Y49: 0
F50: Green | G50: % | J50: 0.5528411948 | K50: 0.5528411948 | L50: 0.4691034041 | M50: 0.4691034041 | N50: 0.4694206174 | O50: 0.4778517704 | P50: 0.5306727226 | Q50: 0.7340974581 | R50: 0.3320828996 | S50: 0 | T50: 0.4677345898 | U50: 0 | V50: 0.5791930087 | W50: 0 | X50: 0.4535917082 | Y50: 0
C52: =INDEX('Version control'!$H$34:$H$58,MATCH($A$1,'Version control'!$F$34:$F$58,0),1)&"-D: Ratio of coincidence to load factor assuming units evenly spread within time bands, and peak falls in Red period" -> Section 508-D: Ratio of coincidence to load factor assuming units evenly spread within time bands, and peak falls in Red period
E54: Ratio of coincidence to load factor | G54: scalar | J54: =J48 * hours_in_year / J24 -> 1.26188493 | K54: 1.26188493 | L54: 1.159805543 | M54: 1.159805543 | N54: 1.1391545 | O54: 1.239436529 | P54: 1.089971814 | Q54: 1.503294543 | R54: 1.151664835 | S54: 0 | T54: 1.000430856 | U54: 0 | V54: 0.9540426128 | W54: 0 | X54: 1.79432585 | Y54: 0
B56: Step 2: Calculate correction factor
C58: This section calculates the correction factor described in Paragraph 70 (c) ii
C60: =INDEX('Version control'!$H$34:$H$58,MATCH($A$1,'Version control'!$F$34:$F$58,0),1)&"-E: Load characteristics for all customers" -> Section 508-E: Load characteristics for all customers
E62: Load factor | G62: % | J62: ='Inputs by customer type'!J18 -> 0.4439797468 | K62: ='Inputs by customer type'!K18 -> 0.1388121956 | L62: ='Inputs by customer type'!L18 -> 0.441232798 | M62: ='Inputs by customer type'!M18 -> 0.233687314 | N62: ='Inputs by customer type'!N18 -> 0.5416716375 | O62: ='Inputs by customer type'!O18 -> 0.5848687163 | P62: ='Inputs by customer type'!P18 -> 0.7278437551 | Q62: ='Inputs by customer type'!Q18 -> 0.4874323716 | R62: ='Inputs by customer type'!R18 -> 0 | S62: ='Inputs by customer type'!S18 -> 0 | T62: ='Inputs by customer type'!T18 -> 0 | U62: ='Inputs by customer type'!U18 -> 0 | V62: ='Inputs by customer type'!V18 -> 0 | W62: ='Inputs by customer type'!W18 -> 0 | X62: ='Inputs by customer type'!X18 -> 0 | Y62: ='Inputs by customer type'!Y18 -> 0
E63: Coincidence factor | G63: % | J63: ='Inputs by customer type'!J19 -> 0.9294355812 | K63: ='Inputs by customer type'!K19 -> 0 | L63: ='Inputs by customer type'!L19 -> 0.7345840722 | M63: ='Inputs by customer type'!M19 -> 0 | N63: ='Inputs by customer type'!N19 -> 0.7524203015 | O63: ='Inputs by customer type'!O19 -> 0.8132256091 | P63: ='Inputs by customer type'!P19 -> 0.8107309324 | Q63: ='Inputs by customer type'!Q19 -> 0.9311867749 | R63: ='Inputs by customer type'!R19 -> 0 | S63: ='Inputs by customer type'!S19 -> 0 | T63: ='Inputs by customer type'!T19 -> 0 | U63: ='Inputs by customer type'!U19 -> 0 | V63: ='Inputs by customer type'!V19 -> 0 | W63: ='Inputs by customer type'!W19 -> 0 | X63: ='Inputs by customer type'!X19 -> 0 | Y63: ='Inputs by customer type'!Y19 -> 0
C65: =INDEX('Version control'!$H$34:$H$58,MATCH($A$1,'Version control'!$F$34:$F$58,0),1)&"-F: Aggregated load characteristics for grouped customers" -> Section 508-F: Aggregated load characteristics for grouped customers
D67: Calculation of maximum load
E69: Average load | G69: MW | J69: =J34 / hours_in_year -> 1006.647119 | K69: =K34 / hours_in_year -> 1.847581668 | L69: =L34 / hours_in_year -> 361.5734248 | M69: =M34 / hours_in_year -> 0.2610955346
E71: Maximum load | G71: MW | J71: =IF(J62 = 0, 0, J34 / (J62 * hours_in_year)) -> 2267.326665 | K71: =IF(K62 = 0, 0, K34 / (K62 * hours_in_year)) -> 13.30993765 | L71: =IF(L62 = 0, 0, L34 / (L62 * hours_in_year)) -> 819.4618044 | M71: =IF(M62 = 0, 0, M34 / (M62 * hours_in_year)) -> 1.117285873
E73: System peak load | G73: MW | J73: =J71 * J63 -> 2107.334076 | K73: =K71 * K63 -> 0 | L73: 601.9635893 | M73: 0
D75: Load and coincidence factor for aggregate groups
E77: Load factor | G77: % | J77: =SUMIF($J$38:$Y$38, J$38, $J$69:$Y$69) / SUMIF($J$38:$Y$38, J$38, $J$71:$Y$71) -> 0.4421987699 | K77: =SUMIF($J$38:$Y$38, K$38, $J$69:$Y$69) / SUMIF($J$38:$Y$38, K$38, $J$71:$Y$71) -> 0.4421987699 | L77: 0.4409502078 | M77: 0.4409502078
E79: Coincidence factor | G79: % | J79: =SUMIF($J$38:$Y$38, J$38, $J$73:$Y$73) / SUMIF($J$38:$Y$38, J$38, $J$71:$Y$71) -> 0.9240113371 | K79: =SUMIF($J$38:$Y$38, K$38, $J$73:$Y$73) / SUMIF($J$38:$Y$38, K$38, $J$71:$Y$71) -> 0.9240113371 | L79: 0.7335838756 | M79: 0.7335838756
D81: Final load and coincidence factor
E83: Load factor | G83: % | J83: =IF(J$38 = 0, J62, J77) -> 0.4421987699 | K83: =IF(K$38 = 0, K62, K77) -> 0.4421987699 | L83: 0.4409502078 | M83: 0.4409502078 | N83: 0.5416716375 | O83: 0.5848687163 | P83: 0.7278437551 | Q83: 0.4874323716 | R83: 0 | S83: 0 | T83: 0 | U83: 0 | V83: 0 | W83: 0 | X83: 0 | Y83: 0
E85: Coincidence factor | G85: % | J85: =IF(J38 = 0, J63, J79) -> 0.9240113371 | K85: =IF(K38 = 0, K63, K79) -> 0.9240113371 | L85: 0.7335838756 | M85: 0.7335838756 | N85: 0.7524203015 | O85: 0.8132256091 | P85: 0.8107309324 | Q85: 0.9311867749 | R85: 0 | S85: 0 | T85: 0 | U85: 0 | V85: 0 | W85: 0 | X85: 0 | Y85: 0
C87: =INDEX('Version control'!$H$34:$H$58,MATCH($A$1,'Version control'!$F$34:$F$58,0),1)&"-G: Calculation of correction factor" -> Section 508-G: Calculation of correction factor
E89: Load coefficient | G89: scalar | J89: =IF(AND(J62 = 0, J63 = 0), 1, J63 / J62) -> 2.093418873 | K89: 0 | L89: 1.664844671 | M89: 0 | N89: 1.389070886 | O89: 1.390441284 | P89: 1.113880454 | Q89: 1.910391737 | R89: 1 | S89: 1 | T89: 1 | U89: 1 | V89: 1 | W89: 1 | X89: 1 | Y89: 1
E91: Load coefficient, adjusted for aggregate groups | G91: scalar | I91: > | J91: =IF(AND(J83 = 0, J85 = 0), 1, J85 / J83) -> 2.08958369 | K91: =IF(AND(K83 = 0, K85 = 0), 1, K85 / K83) -> 2.08958369 | L91: 1.663643338 | M91: 1.663643338 | N91: 1.389070886 | O91: 1.390441284 | P91: 1.113880454 | Q91: 1.910391737 | R91: 1 | S91: 1 | T91: 1 | U91: 1 | V91: 1 | W91: 1 | X91: 1 | Y91: 1 | AA91: Paragraphs 52A & 70 (c) iv
E93: Correction factor | G93: scalar | I93: > | J93: =IF(OR(J54 = 0, J85 = 0), 1, J91 / J54) -> 1.655922533 | K93: =IF(OR(K54 = 0, K85 = 0), 1, K91 / K54) -> 1.655922533 | L93: 1.43441575 | M93: 1.43441575 | N93: 1.219387613 | O93: 1.121833391 | P93: 1.021935099 | Q93: 1.270803347 | R93: 1 | S93: 1 | T93: 1 | U93: 1 | V93: 1 | W93: 1 | X93: 1 | Y93: 1 | AA93: Paragraph 70 (c.ii)
B95: Step 3: Ratio of coincidence factor (to network asset peak) to load factor, given peaking probabilities, multiplied by correction factor
C97: This section calculates the pseudo load coefficient in line with Paragraph 70 (c) iii | I97: > | AA97: Paragraph 70 (c.iii)
C98: Mathematical simplifications have been used to avoid errors when estimated volumes are zero
C100: =INDEX('Version control'!$H$34:$H$58,MATCH($A$1,'Version control'!$F$34:$F$58,0),1)&"-H: Peaking probabilities, by network level" -> Section 508-H: Peaking probabilities, by network level
E102: GSPs peaking probabilities
F103: Red | G103: % | H103: ='Inputs by network level'!K43 -> 0.8638018299
F104: Amber | G104: % | H104: ='Inputs by network level'!K44 -> 0.1361981701
F105: Green | G105: % | H105: ='Inputs by network level'!K45 -> 0
F106: Black | G106: % | H106: ='Inputs by network level'!K46 -> 0.7301794974
F107: Yellow | G107: % | H107: =SUM(H103:H104) - H106 -> 0.2698205026
F108: Green | G108: % | H108: =H105 -> 0
E110: 132kV peaking probabilities
F111: Red or Black | G111: % | H111: ='Inputs by network level'!L43 -> 0.7410687627
F112: Amber or Yellow | G112: % | H112: ='Inputs by network level'!L44 -> 0.2381512701
F113: Green | G113: % | H113: ='Inputs by network level'!L45 -> 0.02077996718
F114: Black | G114: % | H114: ='Inputs by network level'!L46 -> 0.7117602951
F115: Yellow | G115: % | H115: =SUM(H111:H112) - H114 -> 0.2674597377
F116: Green | G116: % | H116: =H113 -> 0.02077996718
E118: 132kV/EHV peaking probabilities
F119: Red or Black | G119: % | H119: ='Inputs by network level'!M43 -> 0.7410687627
F120: Amber or Yellow | G120: % | H120: ='Inputs by network level'!M44 -> 0.2381512701
F121: Green | G121: % | H121: ='Inputs by network level'!M45 -> 0.02077996718
F122: Black | G122: % | H122: ='Inputs by network level'!M46 -> 0.7117602951
F123: Yellow | G123: % | H123: =SUM(H119:H120) - H122 -> 0.2674597377
F124: Green | G124: % | H124: =H121 -> 0.02077996718
E126: EHV peaking probabilities
F127: Red or Black | G127: % | H127: ='Inputs by network level'!N43 -> 0.6226809993
F128: Amber or Yellow | G128: % | H128: ='Inputs by network level'!N44 -> 0.3336072936
F129: Green | G129: % | H129: ='Inputs by network level'!N45 -> 0.04371170716
F130: Black | G130: % | H130: ='Inputs by network level'!N46 -> 0.6027144227
F131: Yellow | G131: % | H131: =SUM(H127:H128) - H130 -> 0.3535738702
F132: Green | G132: % | H132: =H129 -> 0.04371170716
E134: EHV/HV peaking probabilities
F135: Red or Black | G135: % | H135: ='Inputs by network level'!O43 -> 0.6226809993
F136: Amber or Yellow | G136: % | H136: ='Inputs by network level'!O44 -> 0.3336072936
F137: Green | G137: % | H137: ='Inputs by network level'!O45 -> 0.04371170716
F138: Black | G138: % | H138: ='Inputs by network level'!O46 -> 0.6027144227
F139: Yellow | G139: % | H139: =SUM(H135:H136) - H138 -> 0.3535738702
F140: Green | G140: % | H140: =H137 -> 0.04371170716
E142: 132kV/HV peaking probabilities
F143: Red or Black | G143: % | H143: ='Inputs by network level'!P43 -> 0.7410687627
F144: Amber or Yellow | G144: % | H144: ='Inputs by network level'!P44 -> 0.2381512701
F145: Green | G145: % | H145: ='Inputs by network level'!P45 -> 0.02077996718
F146: Black | G146: % | H146: ='Inputs by network level'!P46 -> 0.7117602951
F147: Yellow | G147: % | H147: =SUM(H143:H144) - H146 -> 0.2674597377
F148: Green | G148: % | H148: =H145 -> 0.02077996718
E150: HV peaking probabilities
F151: Red or Black | G151: % | H151: ='Inputs by network level'!Q43 -> 0.6226809993
F152: Amber or Yellow | G152: % | H152: ='Inputs by network level'!Q44 -> 0.3336072936
F153: Green | G153: % | H153: ='Inputs by network level'!Q45 -> 0.04371170716
F154: Black | G154: % | H154: ='Inputs by network level'!Q46 -> 0.6027144227
F155: Yellow | G155: % | H155: =SUM(H151:H152) - H154 -> 0.3535738702
F156: Green | G156: % | H156: =H153 -> 0.04371170716
E158: HV/LV peaking probabilities
F159: Red or Black | G159: % | H159: ='Inputs by network level'!R43 -> 0.6226809993
F160: Amber or Yellow | G160: % | H160: ='Inputs by network level'!R44 -> 0.3336072936
F161: Green | G161: % | H161: ='Inputs by network level'!R45 -> 0.04371170716
F162: Black | G162: % | H162: ='Inputs by network level'!R46 -> 0.6027144227
F163: Yellow | G163: % | H163: =SUM(H159:H160) - H162 -> 0.3535738702
F164: Green | G164: % | H164: =H161 -> 0.04371170716
E166: LV circuits peaking probabilities
F167: Red or Black | G167: % | H167: ='Inputs by network level'!S43 -> 0.6226809993
F168: Amber or Yellow | G168: % | H168: ='Inputs by network level'!S44 -> 0.3336072936
F169: Green | G169: % | H169: ='Inputs by network level'!S45 -> 0.04371170716
F170: Black | G170: % | H170: ='Inputs by network level'!S46 -> 0.6027144227
F171: Yellow | G171: % | H171: =SUM(H167:H168) - H170 -> 0.3535738702
F172: Green | G172: % | H172: =H169 -> 0.04371170716
C174: =INDEX('Version control'!$H$34:$H$58,MATCH($A$1,'Version control'!$F$34:$F$58,0),1)&"-I: Peaking probabilities, by network level and customer type" -> Section 508-I: Peaking probabilities, by network level and customer type
E176: GSPs peaking probabilities
F177: Red or Black | G177: % | J177: =IF(J$20, $H106, $H103) -> 0.8638018299 | K177: 0.8638018299 | L177: 0.8638018299 | M177: 0.8638018299 | N177: 0.8638018299 | O177: 0.8638018299 | P177: 0.8638018299 | Q177: 0.7301794974 | R177: 0.8638018299 | S177: 0.8638018299 | T177: 0.8638018299 | U177: 0.8638018299 | V177: 0.8638018299 | W177: 0.8638018299 | X177: 0.8638018299 | Y177: 0.8638018299
F178: Amber or Yellow | G178: % | J178: 0.1361981701 | K178: 0.1361981701 | L178: 0.1361981701 | M178: 0.1361981701 | N178: 0.1361981701 | O178: 0.1361981701 | P178: 0.1361981701 | Q178: 0.2698205026 | R178: 0.1361981701 | S178: 0.1361981701 | T178: 0.1361981701 | U178: 0.1361981701 | V178: 0.1361981701 | W178: 0.1361981701 | X178: 0.1361981701 | Y178: 0.1361981701
F179: Green | G179: % | J179: 0 | K179: 0 | L179: 0 | M179: 0 | N179: 0 | O179: 0 | P179: 0 | Q179: 0 | R179: 0 | S179: 0 | T179: 0 | U179: 0 | V179: 0 | W179: 0 | X179: 0 | Y179: 0
E181: 132kV peaking probabilities
F182: Red or Black | G182: % | J182: =IF(J$20, $H114, $H111) -> 0.7410687627 | K182: 0.7410687627 | L182: 0.7410687627 | M182: 0.7410687627 | N182: 0.7410687627 | O182: 0.7410687627 | P182: 0.7410687627 | Q182: 0.7117602951 | R182: 0.7410687627 | S182: 0.7410687627 | T182: 0.7410687627 | U182: 0.7410687627 | V182: 0.7410687627 | W182: 0.7410687627 | X182: 0.7410687627 | Y182: 0.7410687627
F183: Amber or Yellow | G183: % | J183: 0.2381512701 | K183: 0.2381512701 | L183: 0.2381512701 | M183: 0.2381512701 | N183: 0.2381512701 | O183: 0.2381512701 | P183: 0.2381512701 | Q183: 0.2674597377 | R183: 0.2381512701 | S183: 0.2381512701 | T183: 0.2381512701 | U183: 0.2381512701 | V183: 0.2381512701 | W183: 0.2381512701 | X183: 0.2381512701 | Y183: 0.2381512701
F184: Green | G184: % | J184: 0.02077996718 | K184: 0.02077996718 | L184: 0.02077996718 | M184: 0.02077996718 | N184: 0.02077996718 | O184: 0.02077996718 | P184: 0.02077996718 | Q184: 0.02077996718 | R184: 0.02077996718 | S184: 0.02077996718 | T184: 0.02077996718 | U184: 0.02077996718 | V184: 0.02077996718 | W184: 0.02077996718 | X184: 0.02077996718 | Y184: 0.02077996718
E186: 132kV/EHV peaking probabilities
F187: Red or Black | G187: % | J187: =IF(J$20, $H122, $H119) -> 0.7410687627 | K187: 0.7410687627 | L187: 0.7410687627 | M187: 0.7410687627 | N187: 0.7410687627 | O187: 0.7410687627 | P187: 0.7410687627 | Q187: 0.7117602951 | R187: 0.7410687627 | S187: 0.7410687627 | T187: 0.7410687627 | U187: 0.7410687627 | V187: 0.7410687627 | W187: 0.7410687627 | X187: 0.7410687627 | Y187: 0.7410687627
F188: Amber or Yellow | G188: % | J188: 0.2381512701 | K188: 0.2381512701 | L188: 0.2381512701 | M188: 0.2381512701 | N188: 0.2381512701 | O188: 0.2381512701 | P188: 0.2381512701 | Q188: 0.2674597377 | R188: 0.2381512701 | S188: 0.2381512701 | T188: 0.2381512701 | U188: 0.2381512701 | V188: 0.2381512701 | W188: 0.2381512701 | X188: 0.2381512701 | Y188: 0.2381512701
F189: Green | G189: % | J189: 0.02077996718 | K189: 0.02077996718 | L189: 0.02077996718 | M189: 0.02077996718 | N189: 0.02077996718 | O189: 0.02077996718 | P189: 0.02077996718 | Q189: 0.02077996718 | R189: 0.02077996718 | S189: 0.02077996718 | T189: 0.02077996718 | U189: 0.02077996718 | V189: 0.02077996718 | W189: 0.02077996718 | X189: 0.02077996718 | Y189: 0.02077996718
E191: EHV peaking probabilities
F192: Red or Black | G192: % | J192: =IF(J$20, $H130, $H127) -> 0.6226809993 | K192: 0.6226809993 | L192: 0.6226809993 | M192: 0.6226809993 | N192: 0.6226809993 | O192: 0.6226809993 | P192: 0.6226809993 | Q192: 0.6027144227 | R192: 0.6226809993 | S192: 0.6226809993 | T192: 0.6226809993 | U192: 0.6226809993 | V192: 0.6226809993 | W192: 0.6226809993 | X192: 0.6226809993 | Y192: 0.6226809993
F193: Amber or Yellow | G193: % | J193: 0.3336072936 | K193: 0.3336072936 | L193: 0.3336072936 | M193: 0.3336072936 | N193: 0.3336072936 | O193: 0.3336072936 | P193: 0.3336072936 | Q193: 0.3535738702 | R193: 0.3336072936 | S193: 0.3336072936 | T193: 0.3336072936 | U193: 0.3336072936 | V193: 0.3336072936 | W193: 0.3336072936 | X193: 0.3336072936 | Y193: 0.3336072936
F194: Green | G194: % | J194: 0.04371170716 | K194: 0.04371170716 | L194: 0.04371170716 | M194: 0.04371170716 | N194: 0.04371170716 | O194: 0.04371170716 | P194: 0.04371170716 | Q194: 0.04371170716 | R194: 0.04371170716 | S194: 0.04371170716 | T194: 0.04371170716 | U194: 0.04371170716 | V194: 0.04371170716 | W194: 0.04371170716 | X194: 0.04371170716 | Y194: 0.04371170716
E196: EHV/HV peaking probabilities
F197: Red or Black | G197: % | J197: =IF(J$20, $H138, $H135) -> 0.6226809993 | K197: 0.6226809993 | L197: 0.6226809993 | M197: 0.6226809993 | N197: 0.6226809993 | O197: 0.6226809993 | P197: 0.6226809993 | Q197: 0.6027144227 | R197: 0.6226809993 | S197: 0.6226809993 | T197: 0.6226809993 | U197: 0.6226809993 | V197: 0.6226809993 | W197: 0.6226809993 | X197: 0.6226809993 | Y197: 0.6226809993
F198: Amber or Yellow | G198: % | J198: 0.3336072936 | K198: 0.3336072936 | L198: 0.3336072936 | M198: 0.3336072936 | N198: 0.3336072936 | O198: 0.3336072936 | P198: 0.3336072936 | Q198: 0.3535738702 | R198: 0.3336072936 | S198: 0.3336072936 | T198: 0.3336072936 | U198: 0.3336072936 | V198: 0.3336072936 | W198: 0.3336072936 | X198: 0.3336072936 | Y198: 0.3336072936
F199: Green | G199: % | J199: 0.04371170716 | K199: 0.04371170716 | L199: 0.04371170716 | M199: 0.04371170716 | N199: 0.04371170716 | O199: 0.04371170716 | P199: 0.04371170716 | Q199: 0.04371170716 | R199: 0.04371170716 | S199: 0.04371170716 | T199: 0.04371170716 | U199: 0.04371170716 | V199: 0.04371170716 | W199: 0.04371170716 | X199: 0.04371170716 | Y199: 0.04371170716
E201: 132kV/HV peaking probabilities
F202: Red or Black | G202: % | J202: =IF(J$20, $H146, $H143) -> 0.7410687627 | K202: 0.7410687627 | L202: 0.7410687627 | M202: 0.7410687627 | N202: 0.7410687627 | O202: 0.7410687627 | P202: 0.7410687627 | Q202: 0.7117602951 | R202: 0.7410687627 | S202: 0.7410687627 | T202: 0.7410687627 | U202: 0.7410687627 | V202: 0.7410687627 | W202: 0.7410687627 | X202: 0.7410687627 | Y202: 0.7410687627
F203: Amber or Yellow | G203: % | J203: 0.2381512701 | K203: 0.2381512701 | L203: 0.2381512701 | M203: 0.2381512701 | N203: 0.2381512701 | O203: 0.2381512701 | P203: 0.2381512701 | Q203: 0.2674597377 | R203: 0.2381512701 | S203: 0.2381512701 | T203: 0.2381512701 | U203: 0.2381512701 | V203: 0.2381512701 | W203: 0.2381512701 | X203: 0.2381512701 | Y203: 0.2381512701
F204: Green | G204: % | J204: 0.02077996718 | K204: 0.02077996718 | L204: 0.02077996718 | M204: 0.02077996718 | N204: 0.02077996718 | O204: 0.02077996718 | P204: 0.02077996718 | Q204: 0.02077996718 | R204: 0.02077996718 | S204: 0.02077996718 | T204: 0.02077996718 | U204: 0.02077996718 | V204: 0.02077996718 | W204: 0.02077996718 | X204: 0.02077996718 | Y204: 0.02077996718
E206: HV peaking probabilities
F207: Red or Black | G207: % | J207: =IF(J$20, $H154, $H151) -> 0.6226809993 | K207: 0.6226809993 | L207: 0.6226809993 | M207: 0.6226809993 | N207: 0.6226809993 | O207: 0.6226809993 | P207: 0.6226809993 | Q207: 0.6027144227 | R207: 0.6226809993 | S207: 0.6226809993 | T207: 0.6226809993 | U207: 0.6226809993 | V207: 0.6226809993 | W207: 0.6226809993 | X207: 0.6226809993 | Y207: 0.6226809993
F208: Amber or Yellow | G208: % | J208: 0.3336072936 | K208: 0.3336072936 | L208: 0.3336072936 | M208: 0.3336072936 | N208: 0.3336072936 | O208: 0.3336072936 | P208: 0.3336072936 | Q208: 0.3535738702 | R208: 0.3336072936 | S208: 0.3336072936 | T208: 0.3336072936 | U208: 0.3336072936 | V208: 0.3336072936 | W208: 0.3336072936 | X208: 0.3336072936 | Y208: 0.3336072936
F209: Green | G209: % | J209: 0.04371170716 | K209: 0.04371170716 | L209: 0.04371170716 | M209: 0.04371170716 | N209: 0.04371170716 | O209: 0.04371170716 | P209: 0.04371170716 | Q209: 0.04371170716 | R209: 0.04371170716 | S209: 0.04371170716 | T209: 0.04371170716 | U209: 0.04371170716 | V209: 0.04371170716 | W209: 0.04371170716 | X209: 0.04371170716 | Y209: 0.04371170716
E211: HV/LV peaking probabilities
F212: Red or Black | G212: % | J212: =IF(J$20, $H162, $H159) -> 0.6226809993 | K212: 0.6226809993 | L212: 0.6226809993 | M212: 0.6226809993 | N212: 0.6226809993 | O212: 0.6226809993 | P212: 0.6226809993 | Q212: 0.6027144227 | R212: 0.6226809993 | S212: 0.6226809993 | T212: 0.6226809993 | U212: 0.6226809993 | V212: 0.6226809993 | W212: 0.6226809993 | X212: 0.6226809993 | Y212: 0.6226809993
F213: Amber or Yellow | G213: % | J213: 0.3336072936 | K213: 0.3336072936 | L213: 0.3336072936 | M213: 0.3336072936 | N213: 0.3336072936 | O213: 0.3336072936 | P213: 0.3336072936 | Q213: 0.3535738702 | R213: 0.3336072936 | S213: 0.3336072936 | T213: 0.3336072936 | U213: 0.3336072936 | V213: 0.3336072936 | W213: 0.3336072936 | X213: 0.3336072936 | Y213: 0.3336072936
F214: Green | G214: % | J214: 0.04371170716 | K214: 0.04371170716 | L214: 0.04371170716 | M214: 0.04371170716 | N214: 0.04371170716 | O214: 0.04371170716 | P214: 0.04371170716 | Q214: 0.04371170716 | R214: 0.04371170716 | S214: 0.04371170716 | T214: 0.04371170716 | U214: 0.04371170716 | V214: 0.04371170716 | W214: 0.04371170716 | X214: 0.04371170716 | Y214: 0.04371170716
E216: LV circuits peaking probabilities
F217: Red or Black | G217: % | J217: =IF(J$20, $H170, $H167) -> 0.6226809993 | K217: 0.6226809993 | L217: 0.6226809993 | M217: 0.6226809993 | N217: 0.6226809993 | O217: 0.6226809993 | P217: 0.6226809993 | Q217: 0.6027144227 | R217: 0.6226809993 | S217: 0.6226809993 | T217: 0.6226809993 | U217: 0.6226809993 | V217: 0.6226809993 | W217: 0.6226809993 | X217: 0.6226809993 | Y217: 0.6226809993
F218: Amber or Yellow | G218: % | J218: 0.3336072936 | K218: 0.3336072936 | L218: 0.3336072936 | M218: 0.3336072936 | N218: 0.3336072936 | O218: 0.3336072936 | P218: 0.3336072936 | Q218: 0.3535738702 | R218: 0.3336072936 | S218: 0.3336072936 | T218: 0.3336072936 | U218: 0.3336072936 | V218: 0.3336072936 | W218: 0.3336072936 | X218: 0.3336072936 | Y218: 0.3336072936
F219: Green | G219: % | J219: 0.04371170716 | K219: 0.04371170716 | L219: 0.04371170716 | M219: 0.04371170716 | N219: 0.04371170716 | O219: 0.04371170716 | P219: 0.04371170716 | Q219: 0.04371170716 | R219: 0.04371170716 | S219: 0.04371170716 | T219: 0.04371170716 | U219: 0.04371170716 | V219: 0.04371170716 | W219: 0.04371170716 | X219: 0.04371170716 | Y219: 0.04371170716
C221: =INDEX('Version control'!$H$34:$H$58,MATCH($A$1,'Version control'!$F$34:$F$58,0),1)&"-J: Ratio of coincidence factor to load factor, based on uniform distribution in timebands and peaking probabilities" -> Section 508-J: Ratio of coincidence factor to load factor, based on uniform distribution in timebands and peaking probabilities
E223: Inverse of hours in timeband
F224: Red or Black | G224: 1 / hours | J224: =1 / J24 -> 0.001277139208 | K224: 0.001277139208 | L224: 0.001277139208 | M224: 0.001277139208 | N224: 0.001277139208 | O224: 0.001277139208 | P224: 0.001277139208 | Q224: 0.003875968992 | R224: 0.001277139208 | S224: 0.001277139208 | T224: 0.001277139208 | U224: 0.001277139208 | V224: 0.001277139208 | W224: 0.001277139208 | X224: 0.001277139208 | Y224: 0.001277139208
F225: Amber or Yellow | G225: 1 / hours | J225: 0.0003648969166 | K225: 0.0003648969166 | L225: 0.0003648969166 | M225: 0.0003648969166 | N225: 0.0003648969166 | O225: 0.0003648969166 | P225: 0.0003648969166 | Q225: 0.0003062318175 | R225: 0.0003648969166 | S225: 0.0003648969166 | T225: 0.0003648969166 | U225: 0.0003648969166 | V225: 0.0003648969166 | W225: 0.0003648969166 | X225: 0.0003648969166 | Y225: 0.0003648969166
F226: Green | G226: 1 / hours | J226: 0.0001909672491 | K226: 0.0001909672491 | L226: 0.0001909672491 | M226: 0.0001909672491 | N226: 0.0001909672491 | O226: 0.0001909672491 | P226: 0.0001909672491 | Q226: 0.0001909672491 | R226: 0.0001909672491 | S226: 0.0001909672491 | T226: 0.0001909672491 | U226: 0.0001909672491 | V226: 0.0001909672491 | W226: 0.0001909672491 | X226: 0.0001909672491 | Y226: 0.0001909672491
E228: Unit rate 1
F229: GSPs | G229: scalar | J229: =J177 * J$224 * hours_in_year -> 9.663989822 | K229: 9.663989822 | L229: 9.663989822 | M229: 9.663989822 | N229: 9.663989822 | O229: 9.663989822 | P229: 9.663989822 | Q229: 24.79214107 | R229: 9.663989822 | S229: 9.663989822 | T229: 9.663989822 | U229: 9.663989822 | V229: 9.663989822 | W229: 9.663989822 | X229: 9.663989822 | Y229: 9.663989822
F230: 132kV | G230: scalar | J230: =J182 * J224 * hours_in_year -> 8.290884242 | K230: 8.290884242 | L230: 8.290884242 | M230: 8.290884242 | N230: 8.290884242 | O230: 8.290884242 | P230: 8.290884242 | Q230: 24.1667449 | R230: 8.290884242 | S230: 8.290884242 | T230: 8.290884242 | U230: 8.290884242 | V230: 8.290884242 | W230: 8.290884242 | X230: 8.290884242 | Y230: 8.290884242
F231: 132kV/EHV | G231: scalar | J231: =J187 * J224 * hours_in_year -> 8.290884242 | K231: 8.290884242 | L231: 8.290884242 | M231: 8.290884242 | N231: 8.290884242 | O231: 8.290884242 | P231: 8.290884242 | Q231: 24.1667449 | R231: 8.290884242 | S231: 8.290884242 | T231: 8.290884242 | U231: 8.290884242 | V231: 8.290884242 | W231: 8.290884242 | X231: 8.290884242 | Y231: 8.290884242
F232: EHV | G232: scalar | J232: =J192 * J224 * hours_in_year -> 6.966392789 | K232: 6.966392789 | L232: 6.966392789 | M232: 6.966392789 | N232: 6.966392789 | O232: 6.966392789 | P232: 6.966392789 | Q232: 20.46425714 | R232: 6.966392789 | S232: 6.966392789 | T232: 6.966392789 | U232: 6.966392789 | V232: 6.966392789 | W232: 6.966392789 | X232: 6.966392789 | Y232: 6.966392789
F233: EHV/HV | G233: scalar | J233: =J197 * J224 * hours_in_year -> 6.966392789 | K233: 6.966392789 | L233: 6.966392789 | M233: 6.966392789 | N233: 6.966392789 | O233: 6.966392789 | P233: 6.966392789 | Q233: 20.46425714 | R233: 6.966392789 | S233: 6.966392789 | T233: 6.966392789 | U233: 6.966392789 | V233: 6.966392789 | W233: 6.966392789 | X233: 6.966392789 | Y233: 6.966392789
F234: 132kV/HV | G234: scalar | J234: =J202 * J224 * hours_in_year -> 8.290884242 | K234: 8.290884242 | L234: 8.290884242 | M234: 8.290884242 | N234: 8.290884242 | O234: 8.290884242 | P234: 8.290884242 | Q234: 24.1667449 | R234: 8.290884242 | S234: 8.290884242 | T234: 8.290884242 | U234: 8.290884242 | V234: 8.290884242 | W234: 8.290884242 | X234: 8.290884242 | Y234: 8.290884242
F235: HV | G235: scalar | J235: =J207 * J224 * hours_in_year -> 6.966392789 | K235: 6.966392789 | L235: 6.966392789 | M235: 6.966392789 | N235: 6.966392789 | O235: 6.966392789 | P235: 6.966392789 | Q235: 20.46425714 | R235: 6.966392789 | S235: 6.966392789 | T235: 6.966392789 | U235: 6.966392789 | V235: 6.966392789 | W235: 6.966392789 | X235: 6.966392789 | Y235: 6.966392789
F236: HV/LV | G236: scalar | J236: =J212 * J224 * hours_in_year -> 6.966392789 | K236: 6.966392789 | L236: 6.966392789 | M236: 6.966392789 | N236: 6.966392789 | O236: 6.966392789 | P236: 6.966392789 | Q236: 20.46425714 | R236: 6.966392789 | S236: 6.966392789 | T236: 6.966392789 | U236: 6.966392789 | V236: 6.966392789 | W236: 6.966392789 | X236: 6.966392789 | Y236: 6.966392789
F237: LV circuits | G237: scalar | J237: =J217 * J224 * hours_in_year -> 6.966392789 | K237: 6.966392789 | L237: 6.966392789 | M237: 6.966392789 | N237: 6.966392789 | O237: 6.966392789 | P237: 6.966392789 | Q237: 20.46425714 | R237: 6.966392789 | S237: 6.966392789 | T237: 6.966392789 | U237: 6.966392789 | V237: 6.966392789 | W237: 6.966392789 | X237: 6.966392789 | Y237: 6.966392789
E239: Unit rate 2
F240: GSPs | G240: scalar | J240: =J178 * J225 * hours_in_year -> 0.4353570406 | K240: 0.4353570406 | L240: 0.4353570406 | M240: 0.4353570406 | N240: 0.4353570406 | O240: 0.4353570406 | P240: 0.4353570406 | Q240: 0.7238179767 | R240: 0.4353570406 | S240: 0.4353570406 | T240: 0.4353570406 | U240: 0.4353570406 | V240: 0.4353570406 | W240: 0.4353570406 | X240: 0.4353570406 | Y240: 0.4353570406
F241: 132kV | G241: scalar | J241: =J183 * J225 * hours_in_year -> 0.7612498179 | K241: 0.7612498179 | L241: 0.7612498179 | M241: 0.7612498179 | N241: 0.7612498179 | O241: 0.7612498179 | P241: 0.7612498179 | Q241: 0.7174850107 | R241: 0.7612498179 | S241: 0.7612498179 | T241: 0.7612498179 | U241: 0.7612498179 | V241: 0.7612498179 | W241: 0.7612498179 | X241: 0.7612498179 | Y241: 0.7612498179
F242: 132kV/EHV | G242: scalar | J242: =J188 * J225 * hours_in_year -> 0.7612498179 | K242: 0.7612498179 | L242: 0.7612498179 | M242: 0.7612498179 | N242: 0.7612498179 | O242: 0.7612498179 | P242: 0.7612498179 | Q242: 0.7174850107 | R242: 0.7612498179 | S242: 0.7612498179 | T242: 0.7612498179 | U242: 0.7612498179 | V242: 0.7612498179 | W242: 0.7612498179 | X242: 0.7612498179 | Y242: 0.7612498179
F243: EHV | G243: scalar | J243: =J193 * J225 * hours_in_year -> 1.06637471 | K243: 1.06637471 | L243: 1.06637471 | M243: 1.06637471 | N243: 1.06637471 | O243: 1.06637471 | P243: 1.06637471 | Q243: 0.9484939834 | R243: 1.06637471 | S243: 1.06637471 | T243: 1.06637471 | U243: 1.06637471 | V243: 1.06637471 | W243: 1.06637471 | X243: 1.06637471 | Y243: 1.06637471
F244: EHV/HV | G244: scalar | J244: =J198 * J225 * hours_in_year -> 1.06637471 | K244: 1.06637471 | L244: 1.06637471 | M244: 1.06637471 | N244: 1.06637471 | O244: 1.06637471 | P244: 1.06637471 | Q244: 0.9484939834 | R244: 1.06637471 | S244: 1.06637471 | T244: 1.06637471 | U244: 1.06637471 | V244: 1.06637471 | W244: 1.06637471 | X244: 1.06637471 | Y244: 1.06637471
F245: 132kV/HV | G245: scalar | J245: =J203 * J225 * hours_in_year -> 0.7612498179 | K245: 0.7612498179 | L245: 0.7612498179 | M245: 0.7612498179 | N245: 0.7612498179 | O245: 0.7612498179 | P245: 0.7612498179 | Q245: 0.7174850107 | R245: 0.7612498179 | S245: 0.7612498179 | T245: 0.7612498179 | U245: 0.7612498179 | V245: 0.7612498179 | W245: 0.7612498179 | X245: 0.7612498179 | Y245: 0.7612498179
F246: HV | G246: scalar | J246: =J208 * J225 * hours_in_year -> 1.06637471 | K246: 1.06637471 | L246: 1.06637471 | M246: 1.06637471 | N246: 1.06637471 | O246: 1.06637471 | P246: 1.06637471 | Q246: 0.9484939834 | R246: 1.06637471 | S246: 1.06637471 | T246: 1.06637471 | U246: 1.06637471 | V246: 1.06637471 | W246: 1.06637471 | X246: 1.06637471 | Y246: 1.06637471
F247: HV/LV | G247: scalar | J247: =J213 * J225 * hours_in_year -> 1.06637471 | K247: 1.06637471 | L247: 1.06637471 | M247: 1.06637471 | N247: 1.06637471 | O247: 1.06637471 | P247: 1.06637471 | Q247: 0.9484939834 | R247: 1.06637471 | S247: 1.06637471 | T247: 1.06637471 | U247: 1.06637471 | V247: 1.06637471 | W247: 1.06637471 | X247: 1.06637471 | Y247: 1.06637471
F248: LV circuits | G248: scalar | J248: =J218 * J225 * hours_in_year -> 1.06637471 | K248: 1.06637471 | L248: 1.06637471 | M248: 1.06637471 | N248: 1.06637471 | O248: 1.06637471 | P248: 1.06637471 | Q248: 0.9484939834 | R248: 1.06637471 | S248: 1.06637471 | T248: 1.06637471 | U248: 1.06637471 | V248: 1.06637471 | W248: 1.06637471 | X248: 1.06637471 | Y248: 1.06637471
E250: Unit rate 3
F251: GSPs | G251: scalar | J251: =J179 * J226 * hours_in_year -> 0 | K251: 0 | L251: 0 | M251: 0 | N251: 0 | O251: 0 | P251: 0 | Q251: 0 | R251: 0 | S251: 0 | T251: 0 | U251: 0 | V251: 0 | W251: 0 | X251: 0 | Y251: 0
F252: 132kV | G252: scalar | J252: =J184 * J226 * hours_in_year -> 0.03476224816 | K252: 0.03476224816 | L252: 0.03476224816 | M252: 0.03476224816 | N252: 0.03476224816 | O252: 0.03476224816 | P252: 0.03476224816 | Q252: 0.03476224816 | R252: 0.03476224816 | S252: 0.03476224816 | T252: 0.03476224816 | U252: 0.03476224816 | V252: 0.03476224816 | W252: 0.03476224816 | X252: 0.03476224816 | Y252: 0.03476224816
